Workbook

Sheet GUIA PARA PREENCHIMENTO
A1: GUIA PARA PREENCHIMENTO
A3: 1 - Preencher apenas as guias azuis:
A5: 2 - Recomendamos preencher somente as células com fundo azul claro. As demais possuem fórmulas e sugerimos não alterá-las.

Sheet MODELO PROPOSTA
B2: MODELO DA PROPOSTA COMPLETA
B4: .
B5: I – FORMALIZAÇÃO
B7: PREGÃO ELETRÔNICO N. 90014/2024
B8: OBJETO: Prestação de serviços continuados por alocação de postos de trabalho nas áreas de manutenção, operação e execução de intervenções nas instalações elétricas e hidrossanitárias dos edifícios e das áreas da Câmara dos Deputados, incluindo, sob demanda, fornecimento de materiais e prestação de serviços, pelo período de 36 (trinta e seis) meses, conforme condições e exigências estabelecidas neste instrumento e em seus Anexos
B9: LICITANTE: _____________________________________________________
B10: CNPJ: ________________________________________________________
B11: ENDEREÇO COMPLETO: _________________________________________
B12: TELEFONE:_____________________________________________________
B13: E-MAIL: ________________________________________________________
B15: Apresentamos nossa proposta para o item único da presente licitação, de acordo com as disposições do Edital.
B16: Decorre do conteúdo da presente proposta a explicitação do seguinte PREÇO DE JULGAMENTO (GLOBAL PARA O ITEM ÚNICO):
B17: R$
B20: (por extenso)
B22: No valor proposto estão incluídos todos os custos e todas as despesas, diretas e indiretas, para a execução dos serviços objeto da licitação, em conformidade com as especificações e demais condições e exigências constantes do Edital.
B23: Informamos que eventuais rubricas dispostas em Acordo ou Convenção Coletiva de Trabalho que não se relacionem ao custo direto da venda do serviço, tais como “Participação nos Resultados” e “Abono substitutivo de Participação nos Resultados”, serão consideradas nos custos indiretos da proposta.
B24: O prazo de validade da presente proposta é de ______ (por extenso) dias. (observado o disposto no Título 11 do Edital).
B26: Convenção coletiva de trabalho ou a norma coletiva a que estamos obrigados:
B27: Data-Base:
B28: Número do Registro no TEM:
B29: Regime de tributação da empresa:
B30: Empresa é beneficiada pela desoneração da folha de pagamento instituída pela Lei n. 12.546, de 2001, alterada pela Lei n. 13.161, de 2015?
B31: Empresa adere ao PAT (Programa de Alimentação do Trabalhador)?
B32: (Se adere ao PAT): Os valores do auxílio-alimentação apresentados na presente proposta correspondem somente aos efetivamente pagos pela empresa aos empregados?
B34: DADOS PARA ASSINATURA DO CONTRATO
B35: Nome do signatário
B36: Cargo
B37: Qualificação (CPF, naturalidade e domicílio)
B38: OBS.: O signatário deve possuir poderes de administração estabelecidos em contrato social e/ou possuir procuração com poderes para assinar contratos em nome da empresa. A documentação comprobatória deverá ser encaminhada quando da assinatura do contrato.
B41: Brasília, de de 2024
B43: Assinatura do representante legal da empresa
B46: Nome do representante legal da empresa

Sheet Remunerações
B1: QUADRO DE REMUNERAÇÕES
C3: ITEM | D3: POSTO DE TRABALHO | E3: QUANTIDADE | F3: SALÁRIO | G3: ADICIONAL DE PERICULOSIDADE | H3: ADICIONAL DE INSALUBRIDADE | I3: ADICIONAL NOTURNO | J3: OUTROS | K3: SALÁRIO COM ADICIONAIS
C4: 1 | D4: =HLOOKUP(C4,'Dados Gerais'!$D$6:$BI$11,6) -> AJUDANTE DE BOMBEIRO HIDRÁULICO DE MANUTENÇÃO | E4: =HLOOKUP($C4,'Dados Gerais'!$D$6:$BI$15,10) -> 17 | F4: ='1'!$F$9 -> 2129.26 | G4: ='1'!$F$10 -> 0 | H4: ='1'!$F$11 -> 564.8 | I4: ='1'!$F$12 -> 0 | J4: ='1'!$F$13+'1'!$F$14 -> 0 | K4: =SUM(F4:J4) -> 2694.06
C5: =C4+1 -> 2 | D5: =HLOOKUP(C5,'Dados Gerais'!$D$6:$BI$11,6) -> AJUDANTE DE ELETRICISTA DE MANUTENÇÃO | E5: =HLOOKUP($C5,'Dados Gerais'!$D$6:$BI$15,10) -> 20 | F5: ='2'!$F$9 -> 2129.26 | G5: ='2'!$F$10 -> 638.78 | H5: ='2'!$F$11 -> 0 | I5: ='2'!$F$12 -> 0 | J5: ='2'!$F$13+'2'!$F$14 -> 0 | K5: 2768.04
C6: =C5+1 -> 3 | D6: =HLOOKUP(C6,'Dados Gerais'!$D$6:$BI$11,6) -> ASSISTENTE DE CONTROLE OPERACIONAL | E6: =HLOOKUP($C6,'Dados Gerais'!$D$6:$BI$15,10) -> 4 | F6: ='3'!$F$9 -> 3240.37 | G6: ='3'!$F$10 -> 0 | H6: ='3'!$F$11 -> 0 | I6: ='3'!$F$12 -> 0 | J6: ='3'!$F$13+'3'!$F$14 -> 0 | K6: 3240.37
C7: 4 | D7: =HLOOKUP(C7,'Dados Gerais'!$D$6:$BI$11,6) -> BOMBEIRO HIDRÁULICO DE MANUTENÇÃO I | E7: =HLOOKUP($C7,'Dados Gerais'!$D$6:$BI$15,10) -> 17 | F7: ='4'!$F$9 -> 2752.02 | G7: ='4'!$F$10 -> 0 | H7: ='4'!$F$11 -> 564.8 | I7: ='4'!$F$12 -> 0 | J7: ='4'!$F$13+'4'!$F$14 -> 0 | K7: 3316.82
C8: 5 | D8: =HLOOKUP(C8,'Dados Gerais'!$D$6:$BI$11,6) -> BOMBEIRO HIDRÁULICO DE MANUTENÇÃO II | E8: =HLOOKUP($C8,'Dados Gerais'!$D$6:$BI$15,10) -> 6 | F8: ='5'!$F$9 -> 3240.37 | G8: ='5'!$F$10 -> 0 | H8: ='5'!$F$11 -> 564.8 | I8: ='5'!$F$12 -> 0 | J8: ='5'!$F$13+'5'!$F$14 -> 0 | K8: 3805.17
C9: 6 | D9: =HLOOKUP(C9,'Dados Gerais'!$D$6:$BI$11,6) -> ELETRICISTA DE MANUTENÇÃO I | E9: =HLOOKUP($C9,'Dados Gerais'!$D$6:$BI$15,10) -> 25 | F9: ='6'!$F$9 -> 2752.02 | G9: ='6'!$F$10 -> 825.61 | H9: ='6'!$F$11 -> 0 | I9: ='6'!$F$12 -> 0 | J9: ='6'!$F$13+'6'!$F$14 -> 0 | K9: 3577.63
C10: 7 | D10: =HLOOKUP(C10,'Dados Gerais'!$D$6:$BI$11,6) -> ELETRICISTA DE MANUTENÇÃO II | E10: =HLOOKUP($C10,'Dados Gerais'!$D$6:$BI$15,10) -> 9 | F10: ='7'!$F$9 -> 3240.37 | G10: ='7'!$F$10 -> 972.11 | H10: ='7'!$F$11 -> 0 | I10: ='7'!$F$12 -> 0 | J10: ='7'!$F$13+'7'!$F$14 -> 0 | K10: 4212.48
C11: 8 | D11: =HLOOKUP(C11,'Dados Gerais'!$D$6:$BI$11,6) -> OPERADOR DE GERADORES E NOBREAKS | E11: =HLOOKUP($C11,'Dados Gerais'!$D$6:$BI$15,10) -> 3 | F11: ='8'!$F$9 -> 2752.02 | G11: ='8'!$F$10 -> 825.61 | H11: ='8'!$F$11 -> 0 | I11: ='8'!$F$12 -> 0 | J11: ='8'!$F$13+'8'!$F$14 -> 0 | K11: 3577.63
C12: 9 | D12: =HLOOKUP(C12,'Dados Gerais'!$D$6:$BI$11,6) -> SUPERVISOR GERAL DE MANUTENÇÃO E INSTALAÇÕES ELÉTRICAS E HIDROSSANITÁRIAS | E12: =HLOOKUP($C12,'Dados Gerais'!$D$6:$BI$15,10) -> 1 | F12: ='9'!$F$9 -> 10778.75 | G12: ='9'!$F$10 -> 0 | H12: ='9'!$F$11 -> 0 | I12: ='9'!$F$12 -> 0 | J12: ='9'!$F$13+'9'!$F$14 -> 0 | K12: 10778.75
C13: 10 | D13: =HLOOKUP(C13,'Dados Gerais'!$D$6:$BI$11,6) -> TÉCNICO DE AUTOMAÇÃO E CONTROLE | E13: =HLOOKUP($C13,'Dados Gerais'!$D$6:$BI$15,10) -> 2 | F13: ='10'!$F$9 -> 6112.66 | G13: ='10'!$F$10 -> 1833.8 | H13: ='10'!$F$11 -> 0 | I13: ='10'!$F$12 -> 0 | J13: ='10'!$F$13+'10'!$F$14 -> 521.46 | K13: 8467.92
C14: 11 | D14: =HLOOKUP(C14,'Dados Gerais'!$D$6:$BI$11,6) -> TÉCNICO DE CONTROLE LOGÍSTICO | E14: =HLOOKUP($C14,'Dados Gerais'!$D$6:$BI$15,10) -> 1 | F14: ='11'!$F$9 -> 6112.66 | G14: ='11'!$F$10 -> 0 | H14: ='11'!$F$11 -> 0 | I14: ='11'!$F$12 -> 0 | J14: ='11'!$F$13+'11'!$F$14 -> 0 | K14: 6112.66
C15: 12 | D15: =HLOOKUP(C15,'Dados Gerais'!$D$6:$BI$11,6) -> TÉCNICO DE CONTROLE OPERACIONAL DE INSTALAÇÕES ELÉTRICAS | E15: =HLOOKUP($C15,'Dados Gerais'!$D$6:$BI$15,10) -> 3 | F15: ='12'!$F$9 -> 6508.88 | G15: ='12'!$F$10 -> 1952.66 | H15: ='12'!$F$11 -> 0 | I15: ='12'!$F$12 -> 0 | J15: ='12'!$F$13+'12'!$F$14 -> 555.26 | K15: 9016.8
C16: 13 | D16: =HLOOKUP(C16,'Dados Gerais'!$D$6:$BI$11,6) -> TÉCNICO DE CONTROLE OPERACIONAL DE INSTALAÇÕES HIDROSSANITÁRIAS | E16: =HLOOKUP($C16,'Dados Gerais'!$D$6:$BI$15,10) -> 2 | F16: ='13'!$F$9 -> 6508.88 | G16: ='13'!$F$10 -> 0 | H16: ='13'!$F$11 -> 564.8 | I16: ='13'!$F$12 -> 0 | J16: ='13'!$F$13+'13'!$F$14 -> 696.22 | K16: 7769.9
C17: 14 | D17: =HLOOKUP(C17,'Dados Gerais'!$D$6:$BI$11,6) -> TÉCNICO DE INSTALAÇÕES RESIDENCIAIS | E17: =HLOOKUP($C17,'Dados Gerais'!$D$6:$BI$15,10) -> 1 | F17: ='14'!$F$9 -> 6112.66 | G17: ='14'!$F$10 -> 1833.8 | H17: ='14'!$F$11 -> 0 | I17: ='14'!$F$12 -> 0 | J17: ='14'!$F$13+'14'!$F$14 -> 521.46 | K17: 8467.92
C18: 15 | D18: =HLOOKUP(C18,'Dados Gerais'!$D$6:$BI$11,6) -> TÉCNICO DE MANUTENÇÃO DE INSTALAÇÕES ELÉTRICAS | E18: =HLOOKUP($C18,'Dados Gerais'!$D$6:$BI$15,10) -> 6 | F18: ='15'!$F$9 -> 6112.66 | G18: ='15'!$F$10 -> 1833.8 | H18: ='15'!$F$11 -> 0 | I18: ='15'!$F$12 -> 0 | J18: ='15'!$F$13+'15'!$F$14 -> 521.46 | K18: 8467.92
C19: 16 | D19: =HLOOKUP(C19,'Dados Gerais'!$D$6:$BI$11,6) -> TÉCNICO DE MANUTENÇÃO DE INSTALAÇÕES HIDROSSANITÁRIAS | E19: =HLOOKUP($C19,'Dados Gerais'!$D$6:$BI$15,10) -> 6 | F19: ='16'!$F$9 -> 6112.66 | G19: ='16'!$F$10 -> 0 | H19: ='16'!$F$11 -> 564.8 | I19: ='16'!$F$12 -> 0 | J19: ='16'!$F$13+'16'!$F$14 -> 657.22 | K19: 7334.68
C20: 17 | D20: =HLOOKUP(C20,'Dados Gerais'!$D$6:$BI$11,6) -> BOMBEIRO HIDRÁULICO DE MANUTENÇÃO - PLANTONISTA DIURNO | E20: =HLOOKUP($C20,'Dados Gerais'!$D$6:$BI$15,10) -> 4 | F20: ='17'!$F$9 -> 3240.37 | G20: ='17'!$F$10 -> 0 | H20: ='17'!$F$11 -> 564.8 | I20: ='17'!$F$12 -> 0 | J20: ='17'!$F$13+'17'!$F$14 -> 207.55 | K20: 4012.72
C21: 18 | D21: =HLOOKUP(C21,'Dados Gerais'!$D$6:$BI$11,6) -> BOMBEIRO HIDRÁULICO DE MANUTENÇÃO - PLANTONISTA NOTURNO | E21: =HLOOKUP($C21,'Dados Gerais'!$D$6:$BI$15,10) -> 4 | F21: ='18'!$F$9 -> 3240.37 | G21: ='18'!$F$10 -> 0 | H21: ='18'!$F$11 -> 564.8 | I21: ='18'!$F$12 -> 415.11 | J21: ='18'!$F$13+'18'!$F$14 -> 207.55 | K21: 4427.83
C22: 19 | D22: =HLOOKUP(C22,'Dados Gerais'!$D$6:$BI$11,6) -> ELETRICISTA DE MANUTENÇÃO - PLANTONISTA DIURNO | E22: =HLOOKUP($C22,'Dados Gerais'!$D$6:$BI$15,10) -> 4 | F22: ='19'!$F$9 -> 3240.37 | G22: ='19'!$F$10 -> 972.11 | H22: ='19'!$F$11 -> 0 | I22: ='19'!$F$12 -> 0 | J22: ='19'!$F$13+'19'!$F$14 -> 229.77 | K22: 4442.25
C23: 20 | D23: =HLOOKUP(C23,'Dados Gerais'!$D$6:$BI$11,6) -> ELETRICISTA DE MANUTENÇÃO - PLANTONISTA NOTURNO | E23: =HLOOKUP($C23,'Dados Gerais'!$D$6:$BI$15,10) -> 4 | F23: ='20'!$F$9 -> 3240.37 | G23: ='20'!$F$10 -> 972.11 | H23: ='20'!$F$11 -> 0 | I23: ='20'!$F$12 -> 459.54 | J23: ='20'!$F$13+'20'!$F$14 -> 229.77 | K23: 4901.79
C24: 21 | D24: =HLOOKUP(C24,'Dados Gerais'!$D$6:$BI$11,6) -> 0 | E24: =HLOOKUP($C24,'Dados Gerais'!$D$6:$BI$15,10) -> 0 | F24: ='1'!$F$9 -> 2129.26 | G24: ='1'!$F$10 -> 0 | H24: ='1'!$F$11 -> 564.8 | I24: ='1'!$F$12 -> 0 | J24: ='1'!$F$13+'1'!$F$14 -> 0 | K24: 2694.06
C25: 22 | D25: =HLOOKUP(C25,'Dados Gerais'!$D$6:$BI$11,6) -> 0 | E25: =HLOOKUP($C25,'Dados Gerais'!$D$6:$BI$15,10) -> 0 | F25: ='1'!$F$9 -> 2129.26 | G25: ='1'!$F$10 -> 0 | H25: ='1'!$F$11 -> 564.8 | I25: ='1'!$F$12 -> 0 | J25: ='1'!$F$13+'1'!$F$14 -> 0 | K25: 2694.06
C26: 23 | D26: =HLOOKUP(C26,'Dados Gerais'!$D$6:$BI$11,6) -> 0 | E26: =HLOOKUP($C26,'Dados Gerais'!$D$6:$BI$15,10) -> 0 | F26: ='1'!$F$9 -> 2129.26 | G26: ='1'!$F$10 -> 0 | H26: ='1'!$F$11 -> 564.8 | I26: ='1'!$F$12 -> 0 | J26: ='1'!$F$13+'1'!$F$14 -> 0 | K26: 2694.06
C27: 24 | D27: =HLOOKUP(C27,'Dados Gerais'!$D$6:$BI$11,6) -> 0 | E27: =HLOOKUP($C27,'Dados Gerais'!$D$6:$BI$15,10) -> 0 | F27: ='1'!$F$9 -> 2129.26 | G27: ='1'!$F$10 -> 0 | H27: ='1'!$F$11 -> 564.8 | I27: ='1'!$F$12 -> 0 | J27: ='1'!$F$13+'1'!$F$14 -> 0 | K27: 2694.06
C28: 25 | D28: =HLOOKUP(C28,'Dados Gerais'!$D$6:$BI$11,6) -> 0 | E28: =HLOOKUP($C28,'Dados Gerais'!$D$6:$BI$15,10) -> 0 | F28: ='1'!$F$9 -> 2129.26 | G28: ='1'!$F$10 -> 0 | H28: ='1'!$F$11 -> 564.8 | I28: ='1'!$F$12 -> 0 | J28: ='1'!$F$13+'1'!$F$14 -> 0 | K28: 2694.06
C29: 26 | D29: =HLOOKUP(C29,'Dados Gerais'!$D$6:$BI$11,6) -> 0 | E29: =HLOOKUP($C29,'Dados Gerais'!$D$6:$BI$15,10) -> 0 | F29: ='1'!$F$9 -> 2129.26 | G29: ='1'!$F$10 -> 0 | H29: ='1'!$F$11 -> 564.8 | I29: ='1'!$F$12 -> 0 | J29: ='1'!$F$13+'1'!$F$14 -> 0 | K29: 2694.06
C30: 27 | D30: =HLOOKUP(C30,'Dados Gerais'!$D$6:$BI$11,6) -> 0 | E30: =HLOOKUP($C30,'Dados Gerais'!$D$6:$BI$15,10) -> 0 | F30: ='1'!$F$9 -> 2129.26 | G30: ='1'!$F$10 -> 0 | H30: ='1'!$F$11 -> 564.8 | I30: ='1'!$F$12 -> 0 | J30: ='1'!$F$13+'1'!$F$14 -> 0 | K30: 2694.06
C31: 28 | D31: =HLOOKUP(C31,'Dados Gerais'!$D$6:$BI$11,6) -> 0 | E31: =HLOOKUP($C31,'Dados Gerais'!$D$6:$BI$15,10) -> 0 | F31: ='1'!$F$9 -> 2129.26 | G31: ='1'!$F$10 -> 0 | H31: ='1'!$F$11 -> 564.8 | I31: ='1'!$F$12 -> 0 | J31: ='1'!$F$13+'1'!$F$14 -> 0 | K31: 2694.06
C32: 29 | D32: =HLOOKUP(C32,'Dados Gerais'!$D$6:$BI$11,6) -> 0 | E32: =HLOOKUP($C32,'Dados Gerais'!$D$6:$BI$15,10) -> 0 | F32: ='1'!$F$9 -> 2129.26 | G32: ='1'!$F$10 -> 0 | H32: ='1'!$F$11 -> 564.8 | I32: ='1'!$F$12 -> 0 | J32: ='1'!$F$13+'1'!$F$14 -> 0 | K32: 2694.06
C33: 30 | D33: =HLOOKUP(C33,'Dados Gerais'!$D$6:$BI$11,6) -> 0 | E33: =HLOOKUP($C33,'Dados Gerais'!$D$6:$BI$15,10) -> 0 | F33: ='1'!$F$9 -> 2129.26 | G33: ='1'!$F$10 -> 0 | H33: ='1'!$F$11 -> 564.8 | I33: ='1'!$F$12 -> 0 | J33: ='1'!$F$13+'1'!$F$14 -> 0 | K33: 2694.06
C34: 31 | D34: =HLOOKUP(C34,'Dados Gerais'!$D$6:$BI$11,6) -> 0 | E34: =HLOOKUP($C34,'Dados Gerais'!$D$6:$BI$15,10) -> 0 | F34: ='1'!$F$9 -> 2129.26 | G34: ='1'!$F$10 -> 0 | H34: ='1'!$F$11 -> 564.8 | I34: ='1'!$F$12 -> 0 | J34: ='1'!$F$13+'1'!$F$14 -> 0 | K34: 2694.06
C35: 32 | D35: =HLOOKUP(C35,'Dados Gerais'!$D$6:$BI$11,6) -> 0 | E35: =HLOOKUP($C35,'Dados Gerais'!$D$6:$BI$15,10) -> 0 | F35: ='1'!$F$9 -> 2129.26 | G35: ='1'!$F$10 -> 0 | H35: ='1'!$F$11 -> 564.8 | I35: ='1'!$F$12 -> 0 | J35: ='1'!$F$13+'1'!$F$14 -> 0 | K35: 2694.06
C36: 33 | D36: =HLOOKUP(C36,'Dados Gerais'!$D$6:$BI$11,6) -> 0 | E36: =HLOOKUP($C36,'Dados Gerais'!$D$6:$BI$15,10) -> 0 | F36: ='1'!$F$9 -> 2129.26 | G36: ='1'!$F$10 -> 0 | H36: ='1'!$F$11 -> 564.8 | I36: ='1'!$F$12 -> 0 | J36: ='1'!$F$13+'1'!$F$14 -> 0 | K36: 2694.06
C37: 34 | D37: =HLOOKUP(C37,'Dados Gerais'!$D$6:$BI$11,6) -> 0 | E37: =HLOOKUP($C37,'Dados Gerais'!$D$6:$BI$15,10) -> 0 | F37: ='1'!$F$9 -> 2129.26 | G37: ='1'!$F$10 -> 0 | H37: ='1'!$F$11 -> 564.8 | I37: ='1'!$F$12 -> 0 | J37: ='1'!$F$13+'1'!$F$14 -> 0 | K37: 2694.06
C38: 35 | D38: =HLOOKUP(C38,'Dados Gerais'!$D$6:$BI$11,6) -> 0 | E38: =HLOOKUP($C38,'Dados Gerais'!$D$6:$BI$15,10) -> 0 | F38: ='1'!$F$9 -> 2129.26 | G38: ='1'!$F$10 -> 0 | H38: ='1'!$F$11 -> 564.8 | I38: ='1'!$F$12 -> 0 | J38: ='1'!$F$13+'1'!$F$14 -> 0 | K38: 2694.06
C39: 36 | D39: =HLOOKUP(C39,'Dados Gerais'!$D$6:$BI$11,6) -> 0 | E39: =HLOOKUP($C39,'Dados Gerais'!$D$6:$BI$15,10) -> 0 | F39: ='1'!$F$9 -> 2129.26 | G39: ='1'!$F$10 -> 0 | H39: ='1'!$F$11 -> 564.8 | I39: ='1'!$F$12 -> 0 | J39: ='1'!$F$13+'1'!$F$14 -> 0 | K39: 2694.06
C40: 37 | D40: =HLOOKUP(C40,'Dados Gerais'!$D$6:$BI$11,6) -> 0 | E40: =HLOOKUP($C40,'Dados Gerais'!$D$6:$BI$15,10) -> 0 | F40: ='1'!$F$9 -> 2129.26 | G40: ='1'!$F$10 -> 0 | H40: ='1'!$F$11 -> 564.8 | I40: ='1'!$F$12 -> 0 | J40: ='1'!$F$13+'1'!$F$14 -> 0 | K40: 2694.06
C41: 38 | D41: =HLOOKUP(C41,'Dados Gerais'!$D$6:$BI$11,6) -> 0 | E41: =HLOOKUP($C41,'Dados Gerais'!$D$6:$BI$15,10) -> 0 | F41: ='1'!$F$9 -> 2129.26 | G41: ='1'!$F$10 -> 0 | H41: ='1'!$F$11 -> 564.8 | I41: ='1'!$F$12 -> 0 | J41: ='1'!$F$13+'1'!$F$14 -> 0 | K41: 2694.06
C42: 39 | D42: =HLOOKUP(C42,'Dados Gerais'!$D$6:$BI$11,6) -> 0 | E42: =HLOOKUP($C42,'Dados Gerais'!$D$6:$BI$15,10) -> 0 | F42: ='1'!$F$9 -> 2129.26 | G42: ='1'!$F$10 -> 0 | H42: ='1'!$F$11 -> 564.8 | I42: ='1'!$F$12 -> 0 | J42: ='1'!$F$13+'1'!$F$14 -> 0 | K42: 2694.06
C43: 40 | D43: =HLOOKUP(C43,'Dados Gerais'!$D$6:$BI$11,6) -> 0 | E43: =HLOOKUP($C43,'Dados Gerais'!$D$6:$BI$15,10) -> 0 | F43: ='1'!$F$9 -> 2129.26 | G43: ='1'!$F$10 -> 0 | H43: ='1'!$F$11 -> 564.8 | I43: ='1'!$F$12 -> 0 | J43: ='1'!$F$13+'1'!$F$14 -> 0 | K43: 2694.06
C44: 41 | D44: =HLOOKUP(C44,'Dados Gerais'!$D$6:$BI$11,6) -> 0 | E44: =HLOOKUP($C44,'Dados Gerais'!$D$6:$BI$15,10) -> 0 | F44: ='1'!$F$9 -> 2129.26 | G44: ='1'!$F$10 -> 0 | H44: ='1'!$F$11 -> 564.8 | I44: ='1'!$F$12 -> 0 | J44: ='1'!$F$13+'1'!$F$14 -> 0 | K44: 2694.06
D46: TOTAL | E46: =SUM(E4:E44) -> 139

Sheet Resumo
B1: 1.1 - DETEC - FATURA ORDINÁRIA
B4: 1.1.1 RESUMO - TOTAIS MENSAIS - FATURA ORDINÁRIA (SEM O 13º E SEM OS ITENS SOB DEMANDA)
C7: ITEM | D7: POSTO DE TRABALHO | E7: QUANTIDADE | F7: PREÇO UNIT (SEM O 13º) | G7: DESTAQUE DO 13º | H7: PREÇO POR EMPREGADO | I7: PREÇO TOTAL (MENSAL)
C8: 1 | D8: =HLOOKUP(C8,'Dados Gerais'!$D$6:$BI$11,6) -> AJUDANTE DE BOMBEIRO HIDRÁULICO DE MANUTENÇÃO | E8: ='Dados Gerais'!D$15 -> 17 | F8: ='1'!$E$115 -> 6345.26 | G8: 0 | H8: =G8+F8 -> 6345.26 | I8: =H8*E8 -> 107869.42
C9: 2 | D9: =HLOOKUP(C9,'Dados Gerais'!$D$6:$BI$11,6) -> AJUDANTE DE ELETRICISTA DE MANUTENÇÃO | E9: ='Dados Gerais'!E$15 -> 20 | F9: ='2'!$E$115 -> 6472.87 | G9: 0 | H9: =G9+F9 -> 6472.87 | I9: =H9*E9 -> 129457.4
C10: 3 | D10: =HLOOKUP(C10,'Dados Gerais'!$D$6:$BI$11,6) -> ASSISTENTE DE CONTROLE OPERACIONAL | E10: ='Dados Gerais'!F$15 -> 4 | F10: ='3'!$E$115 -> 7291 | G10: 0 | H10: =G10+F10 -> 7291 | I10: =H10*E10 -> 29164
C11: 4 | D11: =HLOOKUP(C11,'Dados Gerais'!$D$6:$BI$11,6) -> BOMBEIRO HIDRÁULICO DE MANUTENÇÃO I | E11: ='Dados Gerais'!G$15 -> 17 | F11: ='4'!$E$115 -> 7454.25 | G11: 0 | H11: =G11+F11 -> 7454.25 | I11: =H11*E11 -> 126722.25
C12: 5 | D12: =HLOOKUP(C12,'Dados Gerais'!$D$6:$BI$11,6) -> BOMBEIRO HIDRÁULICO DE MANUTENÇÃO II | E12: ='Dados Gerais'!H$15 -> 6 | F12: ='5'!$E$115 -> 8309.65 | G12: 0 | H12: =G12+F12 -> 8309.65 | I12: =H12*E12 -> 49857.9
C13: 6 | D13: =HLOOKUP(C13,'Dados Gerais'!$D$6:$BI$11,6) -> ELETRICISTA DE MANUTENÇÃO I | E13: ='Dados Gerais'!I$15 -> 25 | F13: ='6'!$E$115 -> 7907.57 | G13: 0 | H13: =G13+F13 -> 7907.57 | I13: =H13*E13 -> 197689.25
C14: 7 | D14: =HLOOKUP(C14,'Dados Gerais'!$D$6:$BI$11,6) -> ELETRICISTA DE MANUTENÇÃO II | E14: ='Dados Gerais'!J$15 -> 9 | F14: ='7'!$E$115 -> 9047.68 | G14: 0 | H14: 9047.68 | I14: 81429.12
C15: 8 | D15: =HLOOKUP(C15,'Dados Gerais'!$D$6:$BI$11,6) -> OPERADOR DE GERADORES E NOBREAKS | E15: ='Dados Gerais'!K$15 -> 3 | F15: ='8'!$E$115 -> 7918.7 | G15: 0 | H15: 7918.7 | I15: 23756.1
C16: 9 | D16: =HLOOKUP(C16,'Dados Gerais'!$D$6:$BI$11,6) -> SUPERVISOR GERAL DE MANUTENÇÃO E INSTALAÇÕES ELÉTRICAS E HIDROSSANITÁRIAS | E16: ='Dados Gerais'!L$15 -> 1 | F16: ='9'!$E$115 -> 20495.64 | G16: 0 | H16: 20495.64 | I16: 20495.64
C17: 10 | D17: =HLOOKUP(C17,'Dados Gerais'!$D$6:$BI$11,6) -> TÉCNICO DE AUTOMAÇÃO E CONTROLE | E17: ='Dados Gerais'!M$15 -> 2 | F17: ='10'!$E$115 -> 16604.82 | G17: 0 | H17: 16604.82 | I17: 33209.64
C18: 11 | D18: =HLOOKUP(C18,'Dados Gerais'!$D$6:$BI$11,6) -> TÉCNICO DE CONTROLE LOGÍSTICO | E18: ='Dados Gerais'!N$15 -> 1 | F18: ='11'!$E$115 -> 12322.22 | G18: 0 | H18: 12322.22 | I18: 12322.22
C19: 12 | D19: =HLOOKUP(C19,'Dados Gerais'!$D$6:$BI$11,6) -> TÉCNICO DE CONTROLE OPERACIONAL DE INSTALAÇÕES ELÉTRICAS | E19: ='Dados Gerais'!O$15 -> 3 | F19: ='12'!$E$115 -> 17524.39 | G19: 0 | H19: 17524.39 | I19: 52573.17
C20: 13 | D20: =HLOOKUP(C20,'Dados Gerais'!$D$6:$BI$11,6) -> TÉCNICO DE CONTROLE OPERACIONAL DE INSTALAÇÕES HIDROSSANITÁRIAS | E20: ='Dados Gerais'!P$15 -> 2 | F20: ='13'!$E$115 -> 15256.28 | G20: 0 | H20: 15256.28 | I20: 30512.56
C21: 14 | D21: =HLOOKUP(C21,'Dados Gerais'!$D$6:$BI$11,6) -> TÉCNICO DE INSTALAÇÕES RESIDENCIAIS | E21: ='Dados Gerais'!Q$15 -> 1 | F21: ='14'!$E$115 -> 16562.95 | G21: 0 | H21: =G21+F21 -> 16562.95 | I21: =H21*E21 -> 16562.95
C22: 15 | D22: =HLOOKUP(C22,'Dados Gerais'!$D$6:$BI$11,6) -> TÉCNICO DE MANUTENÇÃO DE INSTALAÇÕES ELÉTRICAS | E22: ='Dados Gerais'!R$15 -> 6 | F22: ='15'!$E$115 -> 16562.95 | G22: 0 | H22: =G22+F22 -> 16562.95 | I22: =H22*E22 -> 99377.7
C23: 16 | D23: =HLOOKUP(C23,'Dados Gerais'!$D$6:$BI$11,6) -> TÉCNICO DE MANUTENÇÃO DE INSTALAÇÕES HIDROSSANITÁRIAS | E23: ='Dados Gerais'!S$15 -> 6 | F23: ='16'!$E$115 -> 14493.9 | G23: 0 | H23: 14493.9 | I23: 86963.4
C24: 17 | D24: =HLOOKUP(C24,'Dados Gerais'!$D$6:$BI$11,6) -> BOMBEIRO HIDRÁULICO DE MANUTENÇÃO - PLANTONISTA DIURNO | E24: ='Dados Gerais'!T$15 -> 4 | F24: ='17'!$E$115 -> 8164.98 | G24: 0 | H24: =G24+F24 -> 8164.98 | I24: =H24*E24 -> 32659.92
C25: 18 | D25: =HLOOKUP(C25,'Dados Gerais'!$D$6:$BI$11,6) -> BOMBEIRO HIDRÁULICO DE MANUTENÇÃO - PLANTONISTA NOTURNO | E25: ='Dados Gerais'!U$15 -> 4 | F25: ='18'!$E$115 -> 8892.14 | G25: 0 | H25: =G25+F25 -> 8892.14 | I25: =H25*E25 -> 35568.56
C26: 19 | D26: =HLOOKUP(C26,'Dados Gerais'!$D$6:$BI$11,6) -> ELETRICISTA DE MANUTENÇÃO - PLANTONISTA DIURNO | E26: ='Dados Gerais'!V$15 -> 4 | F26: ='19'!$E$115 -> 8926.21 | G26: 0 | H26: =G26+F26 -> 8926.21 | I26: =H26*E26 -> 35704.84
C27: 20 | D27: =HLOOKUP(C27,'Dados Gerais'!$D$6:$BI$11,6) -> ELETRICISTA DE MANUTENÇÃO - PLANTONISTA NOTURNO | E27: ='Dados Gerais'!W$15 -> 4 | F27: ='20'!$E$115 -> 9731.14 | G27: 0 | H27: =G27+F27 -> 9731.14 | I27: =H27*E27 -> 38924.56
D29: TOTAL MENSAL - SALÁRIOS | I29: =SUM(I8:I28) -> 1240820.6
B32: 1.1.2 RESUMO - TOTAIS MENSAIS - FATURA ORDINÁRIA - DESTAQUE DO 13º SALÁRIO
C35: ITEM | D35: POSTO DE TRABALHO | E35: QUANTIDADE | F35: PREÇO UNIT (SEM O 13º) | G35: DESTAQUE DO 13º | H35: PREÇO POR EMPREGADO | I35: PREÇO TOTAL (MENSAL)
C36: 1 | D36: =HLOOKUP(C36,'Dados Gerais'!$D$6:$BI$11,6) -> AJUDANTE DE BOMBEIRO HIDRÁULICO DE MANUTENÇÃO | E36: =E8 -> 17 | F36: 0 | G36: ='1'!$E$116 -> 335.51 | H36: =G36+F36 -> 335.51 | I36: =H36*E36 -> 5703.67
C37: 2 | D37: =HLOOKUP(C37,'Dados Gerais'!$D$6:$BI$11,6) -> AJUDANTE DE ELETRICISTA DE MANUTENÇÃO | E37: 20 | F37: 0 | G37: ='2'!$E$116 -> 344.71 | H37: =G37+F37 -> 344.71 | I37: =H37*E37 -> 6894.2
C38: 3 | D38: =HLOOKUP(C38,'Dados Gerais'!$D$6:$BI$11,6) -> ASSISTENTE DE CONTROLE OPERACIONAL | E38: 4 | F38: 0 | G38: ='3'!$E$116 -> 403.54 | H38: =G38+F38 -> 403.54 | I38: =H38*E38 -> 1614.16
C39: 4 | D39: =HLOOKUP(C39,'Dados Gerais'!$D$6:$BI$11,6) -> BOMBEIRO HIDRÁULICO DE MANUTENÇÃO I | E39: 17 | F39: 0 | G39: ='4'!$E$116 -> 413.05 | H39: =G39+F39 -> 413.05 | I39: =H39*E39 -> 7021.85
C40: 5 | D40: =HLOOKUP(C40,'Dados Gerais'!$D$6:$BI$11,6) -> BOMBEIRO HIDRÁULICO DE MANUTENÇÃO II | E40: 6 | F40: 0 | G40: ='5'!$E$116 -> 473.87 | H40: =G40+F40 -> 473.87 | I40: =H40*E40 -> 2843.22
C41: 6 | D41: =HLOOKUP(C41,'Dados Gerais'!$D$6:$BI$11,6) -> ELETRICISTA DE MANUTENÇÃO I | E41: 25 | F41: 0 | G41: ='6'!$E$116 -> 445.54 | H41: 445.54 | I41: 11138.5
C42: 7 | D42: =HLOOKUP(C42,'Dados Gerais'!$D$6:$BI$11,6) -> ELETRICISTA DE MANUTENÇÃO II | E42: 9 | F42: 0 | G42: ='7'!$E$116 -> 524.6 | H42: 524.6 | I42: 4721.4
C43: 8 | D43: =HLOOKUP(C43,'Dados Gerais'!$D$6:$BI$11,6) -> OPERADOR DE GERADORES E NOBREAKS | E43: 3 | F43: 0 | G43: ='8'!$E$116 -> 445.54 | H43: 445.54 | I43: 1336.62
C44: 9 | D44: =HLOOKUP(C44,'Dados Gerais'!$D$6:$BI$11,6) -> SUPERVISOR GERAL DE MANUTENÇÃO E INSTALAÇÕES ELÉTRICAS E HIDROSSANITÁRIAS | E44: 1 | F44: 0 | G44: ='9'!$E$116 -> 1342.31 | H44: 1342.31 | I44: 1342.31
C45: 10 | D45: =HLOOKUP(C45,'Dados Gerais'!$D$6:$BI$11,6) -> TÉCNICO DE AUTOMAÇÃO E CONTROLE | E45: 2 | F45: 0 | G45: ='10'!$E$116 -> 1054.55 | H45: 1054.55 | I45: 2109.1
C46: 11 | D46: =HLOOKUP(C46,'Dados Gerais'!$D$6:$BI$11,6) -> TÉCNICO DE CONTROLE LOGÍSTICO | E46: 1 | F46: 0 | G46: ='11'!$E$116 -> 761.22 | H46: 761.22 | I46: 761.22
C47: 12 | D47: =HLOOKUP(C47,'Dados Gerais'!$D$6:$BI$11,6) -> TÉCNICO DE CONTROLE OPERACIONAL DE INSTALAÇÕES ELÉTRICAS | E47: 3 | F47: 0 | G47: ='12'!$E$116 -> 1122.9 | H47: 1122.9 | I47: 3368.7
C48: 13 | D48: =HLOOKUP(C48,'Dados Gerais'!$D$6:$BI$11,6) -> TÉCNICO DE CONTROLE OPERACIONAL DE INSTALAÇÕES HIDROSSANITÁRIAS | E48: 2 | F48: 0 | G48: ='13'!$E$116 -> 967.61 | H48: 967.61 | I48: 1935.22
C49: 14 | D49: =HLOOKUP(C49,'Dados Gerais'!$D$6:$BI$11,6) -> TÉCNICO DE INSTALAÇÕES RESIDENCIAIS | E49: 1 | F49: 0 | G49: ='14'!$E$116 -> 1054.55 | H49: 1054.55 | I49: 1054.55
C50: 15 | D50: =HLOOKUP(C50,'Dados Gerais'!$D$6:$BI$11,6) -> TÉCNICO DE MANUTENÇÃO DE INSTALAÇÕES ELÉTRICAS | E50: 6 | F50: 0 | G50: ='15'!$E$116 -> 1054.55 | H50: =G50+F50 -> 1054.55 | I50: =H50*E50 -> 6327.3
C51: 16 | D51: =HLOOKUP(C51,'Dados Gerais'!$D$6:$BI$11,6) -> TÉCNICO DE MANUTENÇÃO DE INSTALAÇÕES HIDROSSANITÁRIAS | E51: 6 | F51: 0 | G51: ='16'!$E$116 -> 913.41 | H51: 913.41 | I51: 5480.46
C52: 17 | D52: =HLOOKUP(C52,'Dados Gerais'!$D$6:$BI$11,6) -> BOMBEIRO HIDRÁULICO DE MANUTENÇÃO - PLANTONISTA DIURNO | E52: 4 | F52: 0 | G52: ='17'!$E$116 -> 499.72 | H52: 499.72 | I52: 1998.88
C53: 18 | D53: =HLOOKUP(C53,'Dados Gerais'!$D$6:$BI$11,6) -> BOMBEIRO HIDRÁULICO DE MANUTENÇÃO - PLANTONISTA NOTURNO | E53: 4 | F53: 0 | G53: ='18'!$E$116 -> 551.41 | H53: 551.41 | I53: 2205.64
C54: 19 | D54: =HLOOKUP(C54,'Dados Gerais'!$D$6:$BI$11,6) -> ELETRICISTA DE MANUTENÇÃO - PLANTONISTA DIURNO | E54: 4 | F54: 0 | G54: ='19'!$E$116 -> 553.21 | H54: 553.21 | I54: 2212.84
C55: 20 | D55: =HLOOKUP(C55,'Dados Gerais'!$D$6:$BI$11,6) -> ELETRICISTA DE MANUTENÇÃO - PLANTONISTA NOTURNO | E55: 4 | F55: 0 | G55: ='20'!$E$116 -> 610.44 | H55: 610.44 | I55: 2441.76
D57: TOTAL MENSAL - DESTAQUE DO 13º | I57: =SUM(I36:I56) -> 72511.6
B60: 1.1.3 RESUMO - TOTAIS MENSAIS - FATURA ORDINÁRIA TOTAL
C63: ITEM | D63: POSTO DE TRABALHO | E63: QUANTIDADE | F63: PREÇO UNIT (SEM O 13º) | G63: DESTAQUE DO 13º | H63: PREÇO POR EMPREGADO | I63: PREÇO TOTAL (MENSAL)
C64: 1 | D64: =HLOOKUP(C64,'Dados Gerais'!$D$6:$BI$11,6) -> AJUDANTE DE BOMBEIRO HIDRÁULICO DE MANUTENÇÃO | E64: =E8 -> 17 | F64: 6345.26 | G64: =G36 -> 335.51 | H64: =G64+F64 -> 6680.77 | I64: =H64*E64 -> 113573.09
C65: 2 | D65: =HLOOKUP(C65,'Dados Gerais'!$D$6:$BI$11,6) -> AJUDANTE DE ELETRICISTA DE MANUTENÇÃO | E65: 20 | F65: 6472.87 | G65: 344.71 | H65: =G65+F65 -> 6817.58 | I65: =H65*E65 -> 136351.6
C66: 3 | D66: =HLOOKUP(C66,'Dados Gerais'!$D$6:$BI$11,6) -> ASSISTENTE DE CONTROLE OPERACIONAL | E66: 4 | F66: 7291 | G66: 403.54 | H66: =G66+F66 -> 7694.54 | I66: =H66*E66 -> 30778.16
C67: 4 | D67: =HLOOKUP(C67,'Dados Gerais'!$D$6:$BI$11,6) -> BOMBEIRO HIDRÁULICO DE MANUTENÇÃO I | E67: 17 | F67: 7454.25 | G67: 413.05 | H67: =G67+F67 -> 7867.3 | I67: =H67*E67 -> 133744.1
C68: 5 | D68: =HLOOKUP(C68,'Dados Gerais'!$D$6:$BI$11,6) -> BOMBEIRO HIDRÁULICO DE MANUTENÇÃO II | E68: 6 | F68: 8309.65 | G68: 473.87 | H68: =G68+F68 -> 8783.52 | I68: =H68*E68 -> 52701.12
C69: 6 | D69: =HLOOKUP(C69,'Dados Gerais'!$D$6:$BI$11,6) -> ELETRICISTA DE MANUTENÇÃO I | E69: 25 | F69: 7907.57 | G69: 445.54 | H69: 8353.11 | I69: 208827.75
C70: 7 | D70: =HLOOKUP(C70,'Dados Gerais'!$D$6:$BI$11,6) -> ELETRICISTA DE MANUTENÇÃO II | E70: 9 | F70: 9047.68 | G70: 524.6 | H70: 9572.28 | I70: 86150.52
C71: 8 | D71: =HLOOKUP(C71,'Dados Gerais'!$D$6:$BI$11,6) -> OPERADOR DE GERADORES E NOBREAKS | E71: 3 | F71: 7918.7 | G71: 445.54 | H71: 8364.24 | I71: 25092.72
C72: 9 | D72: =HLOOKUP(C72,'Dados Gerais'!$D$6:$BI$11,6) -> SUPERVISOR GERAL DE MANUTENÇÃO E INSTALAÇÕES ELÉTRICAS E HIDROSSANITÁRIAS | E72: 1 | F72: 20495.64 | G72: 1342.31 | H72: 21837.95 | I72: 21837.95
C73: 10 | D73: =HLOOKUP(C73,'Dados Gerais'!$D$6:$BI$11,6) -> TÉCNICO DE AUTOMAÇÃO E CONTROLE | E73: 2 | F73: 16604.82 | G73: 1054.55 | H73: 17659.37 | I73: 35318.74
C74: 11 | D74: =HLOOKUP(C74,'Dados Gerais'!$D$6:$BI$11,6) -> TÉCNICO DE CONTROLE LOGÍSTICO | E74: 1 | F74: 12322.22 | G74: 761.22 | H74: 13083.44 | I74: 13083.44
C75: 12 | D75: =HLOOKUP(C75,'Dados Gerais'!$D$6:$BI$11,6) -> TÉCNICO DE CONTROLE OPERACIONAL DE INSTALAÇÕES ELÉTRICAS | E75: 3 | F75: 17524.39 | G75: 1122.9 | H75: 18647.29 | I75: 55941.87
C76: 13 | D76: =HLOOKUP(C76,'Dados Gerais'!$D$6:$BI$11,6) -> TÉCNICO DE CONTROLE OPERACIONAL DE INSTALAÇÕES HIDROSSANITÁRIAS | E76: 2 | F76: 15256.28 | G76: 967.61 | H76: 16223.89 | I76: 32447.78
C77: 14 | D77: =HLOOKUP(C77,'Dados Gerais'!$D$6:$BI$11,6) -> TÉCNICO DE INSTALAÇÕES RESIDENCIAIS | E77: 1 | F77: 16562.95 | G77: 1054.55 | H77: 17617.5 | I77: 17617.5
C78: 15 | D78: =HLOOKUP(C78,'Dados Gerais'!$D$6:$BI$11,6) -> TÉCNICO DE MANUTENÇÃO DE INSTALAÇÕES ELÉTRICAS | E78: 6 | F78: 16562.95 | G78: 1054.55 | H78: 17617.5 | I78: 105705
C79: 16 | D79: =HLOOKUP(C79,'Dados Gerais'!$D$6:$BI$11,6) -> TÉCNICO DE MANUTENÇÃO DE INSTALAÇÕES HIDROSSANITÁRIAS | E79: 6 | F79: 14493.9 | G79: 913.41 | H79: 15407.31 | I79: 92443.86
C80: 17 | D80: =HLOOKUP(C80,'Dados Gerais'!$D$6:$BI$11,6) -> BOMBEIRO HIDRÁULICO DE MANUTENÇÃO - PLANTONISTA DIURNO | E80: 4 | F80: 8164.98 | G80: 499.72 | H80: 8664.7 | I80: 34658.8
C81: 18 | D81: =HLOOKUP(C81,'Dados Gerais'!$D$6:$BI$11,6) -> BOMBEIRO HIDRÁULICO DE MANUTENÇÃO - PLANTONISTA NOTURNO | E81: 4 | F81: 8892.14 | G81: 551.41 | H81: 9443.55 | I81: 37774.2
C82: 19 | D82: =HLOOKUP(C82,'Dados Gerais'!$D$6:$BI$11,6) -> ELETRICISTA DE MANUTENÇÃO - PLANTONISTA DIURNO | E82: 4 | F82: 8926.21 | G82: 553.21 | H82: 9479.42 | I82: 37917.68
C83: 20 | D83: =HLOOKUP(C83,'Dados Gerais'!$D$6:$BI$11,6) -> ELETRICISTA DE MANUTENÇÃO - PLANTONISTA NOTURNO | E83: 4 | F83: 9731.14 | G83: 610.44 | H83: 10341.58 | I83: 41366.32
D85: TOTAL MENSAL - SALÁRIOS | I85: =SUM(I64:I84) -> 1313332.2 | K85: =I85*12 -> 15759986.4
B88: RESUMO - TOTAIS MENSAIS - ITENS COMPLEMENTARES À FOLHA
C91: ITEM | D91: DESCRIÇÃO | I91: PREÇO TOTAL (MENSAL)
C92: SREP | D92: SISTEMA DE REGISTRO ELETRÔNICO DE PRESENÇA - SREP | I92: =SREP!M46 -> 1403.21 | L92: Serviços continuos | N92: =I85+I92+I94+I106 -> 1403226.46 | O92: =N92*30 -> 42096793.8
C93: EPI - N.REL | D93: EQUIPAMENTOS DE PROTEÇÃO INDIVIDUAL NÃO RELACIONADOS DIRETAMENTE A UM POSTO DE TRABALHO | I93: ='Não Rel - EPI'!K62 -> 0
C94: EQUIP - N.REL | D94: EQUIPAMENTOS NÃO RELACIONADAS DIRETAMENTE A UM POSTO DE TRABALHO | I94: ='Não Rel - Equip'!M77 -> 3926.83 | L94: Fornecimento de mat | N94: =#REF! ->  | O94: =N94*30 -> 
C95: TRANSPORTE DE COLAB E MATERIAIS | D95: TRANSPORTE DE COLABORADORES E MATERIAIS | I95: =Transporte!J25 -> 3855.56 | M95: b | O95: =O94-#REF! -> 
D97: TOTAL MENSAL - ITENS COMPLEMENTARES À FOLHA | I97: =SUM(I92:I96) -> 9185.6 | M97: a | O97: 50043.83
M98: b | O98: 17962.75
B101: RESUMO - TOTAIS MENSAIS - ITENS SOB DEMANDA
C104: ITEM | D104: DESCRIÇÃO | I104: PREÇO TOTAL (MENSAL)
C105: NOT. DEMANDA | D105: HORAS NOTURNAS - SOB DEMANDA | I105: ='NOT - Demanda'!G44 -> 97.63612149 | M105: a | O105: 8107550.12
C106: HORAS EXTRAS | D106: HORAS EXTRAS - SOB DEMANDA | I106: ='HE - Demanda'!L71 -> 84564.22 | M106: a | O106: 8107550.12
C107: SERV SOB DEMANDA | D107: SERVIÇOS NÃO RELACIONADOS DIRETAMENTE A UM POSTO DE TRABALHO - AQUISIÇÃO SOB DEMANDA | I107: ='Não Rel - Servicos'!K99 -> 117788.71
C108: MAT SOB DEMANDA | D108: MATERIAIS NÃO RELACIONADOS DIRETAMENTE A UM POSTO DE TRABALHO - AQUISIÇÃO SOB DEMANDA | I108: ='Não Rel - Materiais sob Demanda'!K1716 -> 442983.64 | L108: Serviços sob demanda | N108: =#REF!+#REF! ->  | O108: =N108*30 -> 
C109: MAT PERM SOB DEMANDA | D109: MATERIAIS PERMANENTES NÃO RELACIONADOS DIRETAMENTE A UM POSTO DE TRABALHO - AQUISIÇÃO SOB DEMANDA | I109: ='Não Rel - Mat. Perm.'!K27 -> 22608.73 | N109: =#REF! ->  | O109: =N109*30 -> 
D111: TOTAL MENSAL - ITENS SOB DEMANDA | I111: =SUM(I105:I110) -> 668042.9361 | M111: a | O111: 50043.83
M112: b | O112: 17962.75
D113: TOTAL MENSAL | M113: c | O113: 104902
D114: DESCRIÇÃO | H114: VALOR | M114: d | O114: 52959.75
D115: FATURA MENSAL ORDINÁRIA - DETEC | H115: =I85 -> 1313332.2 | M115: e | O115: 54562.2
D116: ESTIMATIVA MENSAL - ITENS COMPLEMENTARES À FOLHA | H116: =I97 -> 9185.6 | M116: f | O116: 68006.4
D117: ESTIMATIVA MENSAL - ITENS SOB DEMANDA | H117: =I111 -> 668042.9361
G119: TOTAL MENSAL DA CONTRATAÇÃO | H119: =ROUND(SUM(H115:H118),2) -> 1990560.74 | M119: g | O119: 124800
M120: h | O120: =#REF!-SUM(O97:O119) -> 
D121: TOTAL GLOBAL DA CONTRATAÇÃO - 12 MESES
G123: 12 x TOTAL MENSAL | H123: =ROUND(H119*12,2) -> 23886728.88
D125: TOTAL MENSAL - ITENS SOB DEMANDA
D126: DESCRIÇÃO | H126: VALOR
D127: Materiais não relacionados diretamente a um posto de trabalho - AQUISIÇÃO SOB DEMANDA | H127: =I79 -> 92443.86
D128: Equipamentos não relacionados diretamente a um posto de trabalho - AQUISIÇÃO SOB DEMANDA | H128: =I80 -> 34658.8
G130: TOTAL MENSAL DA CONTRATAÇÃO | H130: =SUM(H127:H129) -> 127102.66
D132: TOTAL ANUAL - ITENS SOB DEMANDA
G134: 12 x TOTAL MENSAL | H134: =H130*12 -> 1525231.92
D136: TOTAL ANUAL GLOBAL DA CONTRATAÇÃO
H138: =H134+H123 -> 25411960.8
O140: =36*(H115+I105+I106+I97) -> 50658467.62
D141: TOTAL GLOBAL DA CONTRATAÇÃO - 36 MESES | O141: =I108*36 -> 15947411.04
G143: 36 x TOTAL MENSAL | H143: =ROUND(H119*36,2) -> 71660186.64 | O143: =I107*36 -> 4240393.56
D145: TOTAL MENSAL - ITENS SOB DEMANDA
D146: DESCRIÇÃO | H146: VALOR
D147: Materiais não relacionados diretamente a um posto de trabalho - AQUISIÇÃO SOB DEMANDA | H147: =#REF! -> 
D148: Equipamentos não relacionados diretamente a um posto de trabalho - AQUISIÇÃO SOB DEMANDA | H148: =#REF! -> 
G150: TOTAL MENSAL DA CONTRATAÇÃO | H150: =SUM(H147:H149) -> 
D152: TOTAL ANUAL - ITENS SOB DEMANDA
G154: 12 x TOTAL MENSAL | H154: =H150*12 -> 
D156: TOTAL ANUAL GLOBAL DA CONTRATAÇÃO
H158: =H154+H143 -> 
O160: =I109*36 -> 813914.28
O163: 56751.99
O164: 143743.05
O165: 55198.47
O166: 57826.53
O167: 71042.4
O168: 118524
O169: 120456
O170: 400963.2
O171: 108164.4
O172: 60564.45
O173: 5442.18
O174: 86535.9

Sheet 1
B2: PLANILHA DE ESTIMATIVA DE CUSTOS
B3: Padrão IN 05/2017 e IN 07/2018 - MPDG
B5: 1 | D5: =HLOOKUP($B$5,'Dados Gerais'!$D$6:$BI$22,6) -> AJUDANTE DE BOMBEIRO HIDRÁULICO DE MANUTENÇÃO | E5: QUANTIDADE | F5: =HLOOKUP($B$5,'Dados Gerais'!$D$6:$BI$22,10) -> 17
B6: CCT | D6: =HLOOKUP($B$5,'Dados Gerais'!$D$6:$BI$22,16) -> SINDUSCON/DF x STICOMBE/DF CCT 2024/2025 N.º DF000276/2024 | E6: DATA-BASE | F6: =HLOOKUP($B$5,'Dados Gerais'!$D$6:$BI$22,17) -> 2024-05-01
B8: MÓDULO 1 - COMPOSIÇÃO DA REMUNERAÇÃO | F8: Valor
C9: A | D9: Salário-Base | F9: =HLOOKUP($B$5,'Dados Gerais'!$D$6:$BI$22,8) -> 2129.26
C10: B | D10: Adicional de Periculosidade | F10: =HLOOKUP($B$5,'Dados Gerais'!$D$6:$BI$39,26) -> 0
C11: C | D11: Adicional de Insalubridade | F11: =HLOOKUP($B$5,'Dados Gerais'!$D$6:$BI$39,32) -> 564.8
C12: D | D12: Adicional Noturno | F12: =HLOOKUP($B$5,'Dados Gerais'!$D$6:$BI$52,47) -> 0 | H12: * Nota 1 - O Módulo 1 refere-se ao valor mensal devido ao empregado pela prestação do serviço no período de 12 meses.
C13: E | D13: Adicional de Hora Extra | F13: =HLOOKUP($B$5,'Dados Gerais'!$D$6:$BI$69,64) -> 0 | H13: * Nota 2 - O adicional de hora extra no feriado trabalhado foi suprimido pela Lei 13.467/17
C14: F | D14: Outros (adicional de sobreaviso) | F14: =HLOOKUP($B$5,'Dados Gerais'!$D$6:$BI$69,34) -> 0 | H14: * Nota 3 - ART. 7º, § 2º, DA LEI Nº 605/49.Sendo mensalista o obreiro, o adicional noturno pago de forma fixa já é considerado integrado para os efeitos do pagamento do repouso semanal remunerado, nos termos do art. 7º, § 2º, da Lei nº 605/49.
D16: TOTAL DA REMUNERAÇÃO | F16: =SUM(F9:F14) -> 2694.06
B18: MÓDULO 2 - ENCARGOS E BENEFÍCIOS ANUAIS, MENSAIS E DIÁRIOS | E18: Percentuais | F18: Valor
B19: Submódulo 2.1 - 13º Salário, Férias e Adicional de Férias
C20: A | D20: 13º Salário - Calculado no Módulo 7 - Destacado | E20: 0 | F20: =ROUND(E20*F$16,2) -> 0
C21: B | D21: Férias e Adicional de Férias | E21: ='Encargos Sociais'!E25+'Encargos Sociais'!E31 -> 0.1212 | F21: =ROUND(E21*F$16,2) -> 326.52 | H21: * Nota 1 - Provisiona-se, mensalmente, o proporcional a 1/12 dos valores referentes a gratificação natalina, férias e adicional de férias.
H22: * Nota 2 - O adicional de férias contido no Submódulo 2.1 corresponde a 1/3 da remuneração que, por sua vez, é dividida por 12 contome Nota 1.
B23: Submódulo 2.2 - Encargos Previdenciários (GPS), Fundo de Garantia por Tempo de Serviço (FGTS) e Outras Contribuições
C24: A | D24: INSS (art. 22, inciso I, Lei nº 8.212/91) | E24: ='Encargos Sociais'!E14 -> 0 | F24: =ROUND(E24*($F$16+$F$41+$F$73),2) -> 0
C25: B | D25: Salário Educação (art. 3º, inciso I, Decreto nº 87.043/82) | E25: ='Encargos Sociais'!E15 -> 0.025 | F25: =ROUND(E25*($F$16+$F$41+$F$73),2) -> 76.86
C26: C | D26: SAT/RAT (art. 22, II, Lei 8.212/91 e Anexo V, Decreto 6.042/07) - Enquadramento 8211-3/00 | E26: ='Encargos Sociais'!E16 -> 0.03 | F26: 92.23
C27: D | D27: SESC ou SESI (art. 30, Lei nº 8.036/90 e art. 1º, Lei 8.154/90) | E27: ='Encargos Sociais'!E17 -> 0.015 | F27: 46.12
C28: E | D28: SENAI ou SENAC (Decreto nº 2.318/86) | E28: ='Encargos Sociais'!E18 -> 0.01 | F28: 30.74
C29: F | D29: SEBRAE (§ 3º, art. 8º, Lei 8.029/90, alterada pela Lei nº 8.154/90) | E29: ='Encargos Sociais'!E19 -> 0.006 | F29: 18.45
C30: G | D30: INCRA (art. 1º, I, Decreto Lei 1.146/70 e Lei 7.787, de 30/06/89) | E30: ='Encargos Sociais'!E20 -> 0.002 | F30: 6.15 | H30: * Nota 1 - Os percentuais dos encargos previdenciários, do FGTS e demais contribuições são estabelecidos por legislação vigente.
C31: H | D31: FGTS (Lei Complementar nº 110/01 e art. 30, Lei nº 8.036/90) | E31: ='Encargos Sociais'!E21 -> 0.08 | F31: 245.96 | H31: * Nota 2 - O SAT, a depender do grau de risco do serviço, irá variar entre 1%, para risco leve, de 2%, para risco médio, e de 3% para risco grave.
C32: I | D32: SECONCI (Convenções Coletivas de Trabalho da construção) | E32: ='Encargos Sociais'!E22 -> 0.01 | F32: 30.74 | H32: * Nota 3 - Os percentuais do Submódulo 2.2 incidem sobre o Módulo 1 e o Submódulo 2.1.
B34: Submódulo 2.3 - Benefícios Mensais e Diários
C35: A | D35: Auxílio Transporte | F35: =HLOOKUP($B$5,'Dados Gerais'!$D$6:$BI$95,83) -> 488.59
C36: B | D36: Auxílio Alimentação | F36: =HLOOKUP($B$5,'Dados Gerais'!$D$6:$BI$95,90) -> 770
C37: C | D37: Assistência Médica e Familiar | F37: =HLOOKUP($B$5,'Dados Gerais'!$D$6:$BI$103,98) -> 0
C38: D | D38: Outros (Seguro de vida, auxílio funeral, auxílio odontológico e auxílio creche) | F38: =HLOOKUP($B$5,'Dados Gerais'!$D$6:$BI$121,115) -> 13.95 | H38: * Nota 1 - O valor informado deverá ser o custo real do benefício (descontado o valor eventualmente pago pelo empregado).
H39: * Nota 2 - Observar a previsão dos benefícios contidos em Acordos, Convenções e Dissídios Coletivos de Trabalho e o disposto no art. 6º da IN 5/2017
D40: QUADRO-RESUMO DO MÓDULO 2
D41: 2.1 - 13º Salário, Férias e Adicional de Férias - 13º Destacado - Calculado no Módulo 7 | E41: =SUM(E20:E21) -> 0.1212 | F41: =F20+F21 -> 326.52
D42: 2.2 - Encargos Previdenciários (GPS), Fundo de Garantia por Tempo de Serviço (FGTS) e Contribuições | E42: =SUM(E24:E32) -> 0.178 | F42: =SUM(F24:F32) -> 547.25
D43: 2.3 - Benefícios Mensais e Diários | F43: =SUM(F35:F38) -> 1272.54
D45: TOTAL DOS ENCARGOS E BENEFÍCIOS | F45: =SUM(F41:F43) -> 2146.31
B47: MÓDULO 3 - PREVISÃO PARA RESCISÃO | E47: Percentuais | F47: Valor
C48: A | D48: Aviso Prévio Indenizado (Art. 7º, inciso XXI, da CF/1988 e arts. 477, 487, §1º, e 491 da CLT) | E48: ='Encargos Sociais'!E36 -> 0.005 | F48: =ROUND(E48*$F$16,2) -> 13.47
C49: B | D49: Incidência do FGTS sobre o Aviso Prévio Indenizado (Súmula 305 TST) | E49: ='Encargos Sociais'!E37 -> 0.0004 | F49: 1.08 | H49: * Nota 1 - Adotou-se os parâmetros do estudo do STF (http://www.stf.jus.br/arquivo/cms/sobrestfestudosci/anexo/encargos_sociais_03102007.pdf), onde 5% do pessoal é demitido pelo empregador no decurso do contrato (para estes, considerou-se o aviso prévio indenizado). Desprezou-se as demissões por justa causa e os pedidos de demissão.
C50: C | D50: Multa do FGTS e Contribuição Social sobre o Aviso Prévio Indenizado (Art. 18, §1º, da Lei 8.036/1990 e art. 1º da LC nº 110/2001) | E50: ='Encargos Sociais'!E38 -> 0.0019 | F50: 5.12 | H50: * Nota 2 - No cálculo do percentual, considerou-se 36 dias, correspondendo à metade da duração média dos contratos (2 anos)
C51: D | D51: Aviso Prévio Trabalhado (Art. 488, parágrafo único, CLT) | E51: ='Encargos Sociais'!E39 -> 0.012 | F51: 32.33 | H51: * Nota 3 - Incide sobre a Remuneração + 13º salário (1/12) + Férias (1/12) + Adicional de Férias (1/36) x 50% multa (40% para o empregado e 10% de contribuição social) x 8% FGTS
C52: E | D52: Incidência de GPS, FGTS e outras contribuições sobre o Aviso Prévio Trabalhado | E52: ='Encargos Sociais'!E40 -> 0.0021 | F52: 5.66 | H52: * Nota 4 - Os 95% restantes do cálculo, a um prazo médio de contrato de 4 anos. Assim, calcula-se 7 dias para o 1º ano de contrato e mais 3 dias para os 3 anos seguintes.
C53: F | D53: Multa do FGTS e Contribuição Social sobre o Aviso Prévio Trabalhado | E53: ='Encargos Sociais'!E41 -> 0.0145 | F53: 39.06
D55: TOTAL DE PREVISÃO PARA RESCISÃO | F55: =SUM(F48:F53) -> 96.72
B57: MÓDULO 4 - CUSTO DO PROFISSIONAL AUSENTE | E57: Percentuais | F57: Valor
B58: Submódulo 4.1 - Ausências Legais
C59: A | D59: Férias (Arts. 129 e 130, inc. I, da CLT) - Calculado no Submódulo 2.1 | E59: 0 | F59: =ROUND(E59*$F$16,2) -> 0 | H59: * Nota 1 - As alíneas “A” a “F” referem-se somente ao custo que será pago ao repositor pelos dias trabalhados quando da necessidade de substituir a mão de obra alocada na prestação do serviço.
C60: B | D60: Ausências Legais (Arts. 131 e 473 da CLT) | E60: ='Encargos Sociais'!E26 -> 0.0079 | F60: 21.28 | H60: * Nota 2 - Adotou-se a estimativa do SINAPI de 2 dias por ano.
C61: C | D61: Licença-Paternidade (Art. 7º, XIX, e art. 10, §1º, do ADCT, CF/1988 e Art. 1º, II, da Lei 11.770/2008) | E61: ='Encargos Sociais'!E27 -> 0.0008 | F61: 2.16 | H61: * Nota 3 - Utilizada a proporção de 50% para homens, 5 dias de afastamento, e a probabilidade de um trabalhador requerer a Licença Paternidade em 5,22%, conforme SINAPI (citando dados da PNAD 2015)
C62: D | D62: Ausência por Acidente de Trabalho (Art. 131, III, da CLT) | E62: ='Encargos Sociais'!E28 -> 0.0009 | F62: 2.42 | H62: * Nota 4 - Utilzada a estatística de 1,96% dos contribuintes beneficiados com a emissão do auxílio, conforme Anuário Estatístico da Previdência Social. Afastamento de 15 dias a cargo da empresa.
C63: E | D63: Afastamento Maternidade (Art. 71 da Lei nº 8.213/1991) | E63: ='Encargos Sociais'!E29 -> 0.0033 | F63: 8.89 | H63: * Nota 5 - Utilizada a proporção de 50% para mulheres, 180 dias de afastamento, e a probabilidade de uma trabalhadora requerer a Licença Maternidade em 4,91%, conforme SINAPI (citando dados do IBGE 2016)
C64: F | D64: Auxílio Enfermidade - Doença (Art. 59 da Lei nº 8.213/1991) | E64: ='Encargos Sociais'!E30 -> 0.0071 | F64: 19.13 | H64: * Nota 6 - Utilizada a estatística de 3,37% dos contribuintes beneficiados com o auxílio, conforme Anuário Estatístico da Previdência Social de 2015 (acrescidos de 2 dias ao ano, para os quais o trabalhador nem requer o benefício da Previdência - conforme SINAPI)
B66: Submódulo 4.2 - Intrajornada
C67: A | D67: Intervalo para repouso ou alimentação | E67: ='Encargos Sociais'!E33 -> 0 | F67: =ROUND(E67*$F$16,2) -> 0
D69: QUADRO-RESUMO DO MÓDULO 4 | F69: Valor
D70: 4.1 - Ausências Legais | E70: =SUM(E59:E64) -> 0.02 | F70: =ROUND(E70*$F$16,2) -> 53.88
D71: 4.2 - Intrajornada | E71: =E67 -> 0 | F71: =ROUND(E71*$F$16,2) -> 0
D73: TOTAL DE PREVISÃO PARA RESCISÃO E INTERVALO INTRAJORNADA | F73: =SUM(F70:F71) -> 53.88
B75: MÓDULO 5 - INSUMOS DIVERSOS | F75: Valor
C76: A | D76: Uniformes - aquisição | F76: 0
C77: B | D77: Materiais de consumo relacionados ao posto - aquisição | F77: =ROUND(HLOOKUP(B5,'Mat Cons'!I11:DX13,3)/12,2) -> 0
C78: C | D78: Ferramentas relacionadas ao posto - remuneração da sua depreciação / manutenção | F78: =HLOOKUP(B5,'Relacion - Ferram'!Q3:EF5,3) -> 8.84
C79: D | D79: Equipamentos relacionados ao posto - remuneração da sua depreciação / manutenção | F79: =HLOOKUP(B5,'Equip Rel'!Q11:EF13,3) -> 0
C80: E | D80: Equipamentos de Proteção Individual - EPI - aquisição | F80: =ROUND(HLOOKUP(B5,EPI!I4:X6,3)/12,2) -> 0
D82: TOTAL DE INSUMOS DIVERSOS | F82: =SUM(F76:F81) -> 8.84 | H82: * Nota - Valores mensais por empregado
B84: MÓDULO 6 - CUSTOS INDIRETOS, TRIBUTOS E LUCRO - BDI | E84: Percentuais | F84: Valor
C85: A | D85: Custos Indiretos | E85: ='BDI - Geral'!E7 -> 0.0227
C86: A.1 | D86: Administração Central | E86: ='BDI - Geral'!E8 -> 0.0173
C87: A.2 | D87: Seguros, Garantias e Riscos | E87: ='BDI - Geral'!E9 -> 0.0054
C88: B | D88: Lucro | E88: ='BDI - Geral'!E11 -> 0.0267
C89: C | D89: Tributos | E89: =SUM(E90:E91) -> 0.169
C90: C.1 | D90: Tributos Federais (COFINS, PIS e CPRB) | E90: ='BDI - Geral'!E19 -> 0.119
C91: C.2 | D91: Tributos Distritais (ISS) | E91: ='BDI - Geral'!E24 -> 0.05 | H91: * Nota - Utilizou-se o indicado pelo Sindicato da Arquitetura e da Engenharia (Sinaenco, 2008, p. 22), que adota um percentual redutor de 20% no cálculo dos custos tributários relativos às contribuições PIS e COFINS
C92: D | D92: Despesas Financeiras | E92: ='BDI - Geral'!E14 -> 0.004367839439
D94: TOTAL DE BDI | E94: ='BDI - Geral'!E27 -> 0.2691 | F94: =ROUND(E94*E102,2) -> 1345.45
D96: QUADRO-RESUMO DO CUSTO MENSAL POR EMPREGADO - SEM O 13º | E96: Valor
D97: Módulo 1 - Composição da Remuneração | E97: =F16 -> 2694.06
D98: Módulo 2 - Encargos e Benefícios Anuais, Mensais e Diários | E98: =F45 -> 2146.31
D99: Módulo 3 - Provisão para Rescisão | E99: =F55 -> 96.72
D100: Módulo 4 - Custo de Reposição do Profissional Ausente | E100: =F73 -> 53.88
D101: Módulo 5 - Insumos Diversos | E101: =F82 -> 8.84
D102: SUBTOTAL (A+B+C+D+E) | E102: =SUM(E97:E101) -> 4999.81
D103: Módulo 6 - Custos Indiretos, Tributos e Lucro | E103: =F94 -> 1345.45
D105: TOTAL DO POSTO | E105: =SUM(E102:E103) -> 6345.26
B107: MÓDULO 7 - DESTAQUE DO MÓDULO 2 - 13º SALÁRIO | E107: Percentuais | F107: Valor
C108: A | D108: 13º Salário | E108: ='Encargos Sociais'!E32 -> 0.0833 | F108: =ROUND(E108*F$16,2) -> 224.42
C109: B | D109: Encargos Sociais sobre o 13º Salário - Taxa calculada no SUBMÓDULO 2.2 | E109: =SUM($E$24:$E$32) -> 0.178 | F109: =ROUND(E109*$F$108,2) -> 39.95 | H109: * Nota 1 - Provisiona-se, mensalmente, o proporcional a 1/12 dos valores referentes a gratificação natalina e adicional de férias.
C110: C | D110: BDI sobre o 13º Salário - Taxa calculada no MÓDULO 6 | E110: =E94 -> 0.2691 | F110: =ROUND(E110*($F$108+$F$109),2) -> 71.14
D112: TOTAL DO DESTAQUE DO 13º SALÁRIO | F112: =SUM(F108:F110) -> 335.51
D114: QUADRO-RESUMO DO CUSTO MENSAL POR EMPREGADO | E114: Valor
D115: Custo total - sem o 13º Salário | E115: =ROUND(E105,2) -> 6345.26
D116: Destaque do 13º Salário (valor mensal) | E116: =ROUND(F112,2) -> 335.51
D118: TOTAL DO POSTO | E118: =E115+E116 -> 6680.77

Sheet 2
B2: PLANILHA DE ESTIMATIVA DE CUSTOS
B3: Padrão IN 05/2017 e IN 07/2018 - MPDG
B5: 2 | D5: =HLOOKUP($B$5,'Dados Gerais'!$D$6:$BI$22,6) -> AJUDANTE DE ELETRICISTA DE MANUTENÇÃO | E5: QUANTIDADE | F5: =HLOOKUP($B$5,'Dados Gerais'!$D$6:$BI$22,10) -> 20
B6: CCT | D6: =HLOOKUP($B$5,'Dados Gerais'!$D$6:$BI$22,16) -> SINDUSCON/DF x STICOMBE/DF CCT 2024/2025 N.º DF000276/2024 | E6: DATA-BASE | F6: =HLOOKUP($B$5,'Dados Gerais'!$D$6:$BI$22,17) -> 2024-05-01
B8: MÓDULO 1 - COMPOSIÇÃO DA REMUNERAÇÃO | F8: Valor
C9: A | D9: Salário-Base | F9: =HLOOKUP($B$5,'Dados Gerais'!$D$6:$BI$22,8) -> 2129.26
C10: B | D10: Adicional de Periculosidade | F10: =HLOOKUP($B$5,'Dados Gerais'!$D$6:$BI$39,26) -> 638.78
C11: C | D11: Adicional de Insalubridade | F11: =HLOOKUP($B$5,'Dados Gerais'!$D$6:$BI$39,32) -> 0
C12: D | D12: Adicional Noturno | F12: =HLOOKUP($B$5,'Dados Gerais'!$D$6:$BI$52,47) -> 0 | H12: * Nota 1 - O Módulo 1 refere-se ao valor mensal devido ao empregado pela prestação do serviço no período de 12 meses.
C13: E | D13: Adicional de Hora Extra | F13: =HLOOKUP($B$5,'Dados Gerais'!$D$6:$BI$69,64) -> 0 | H13: * Nota 2 - O adicional de hora extra no feriado trabalhado foi suprimido pela Lei 13.467/17
C14: F | D14: Outros (adicional de sobreaviso) | F14: =HLOOKUP($B$5,'Dados Gerais'!$D$6:$BI$69,34) -> 0 | H14: * Nota 3 - ART. 7º, § 2º, DA LEI Nº 605/49.Sendo mensalista o obreiro, o adicional noturno pago de forma fixa já é considerado integrado para os efeitos do pagamento do repouso semanal remunerado, nos termos do art. 7º, § 2º, da Lei nº 605/49.
D16: TOTAL DA REMUNERAÇÃO | F16: =SUM(F9:F14) -> 2768.04
B18: MÓDULO 2 - ENCARGOS E BENEFÍCIOS ANUAIS, MENSAIS E DIÁRIOS | E18: Percentuais | F18: Valor
B19: Submódulo 2.1 - 13º Salário, Férias e Adicional de Férias
C20: A | D20: 13º Salário - Calculado no Módulo 7 - Destacado | E20: 0 | F20: =ROUND(E20*F$16,2) -> 0
C21: B | D21: Férias e Adicional de Férias | E21: ='Encargos Sociais'!E25+'Encargos Sociais'!E31 -> 0.1212 | F21: =ROUND(E21*F$16,2) -> 335.49 | H21: * Nota 1 - Provisiona-se, mensalmente, o proporcional a 1/12 dos valores referentes a gratificação natalina, férias e adicional de férias.
H22: * Nota 2 - O adicional de férias contido no Submódulo 2.1 corresponde a 1/3 da remuneração que, por sua vez, é dividida por 12 contome Nota 1.
B23: Submódulo 2.2 - Encargos Previdenciários (GPS), Fundo de Garantia por Tempo de Serviço (FGTS) e Outras Contribuições
C24: A | D24: INSS (art. 22, inciso I, Lei nº 8.212/91) | E24: ='Encargos Sociais'!E14 -> 0 | F24: =ROUND(E24*($F$16+$F$41+$F$73),2) -> 0
C25: B | D25: Salário Educação (art. 3º, inciso I, Decreto nº 87.043/82) | E25: ='Encargos Sociais'!E15 -> 0.025 | F25: =ROUND(E25*($F$16+$F$41+$F$73),2) -> 78.97
C26: C | D26: SAT/RAT (art. 22, II, Lei 8.212/91 e Anexo V, Decreto 6.042/07) - Enquadramento 8211-3/00 | E26: ='Encargos Sociais'!E16 -> 0.03 | F26: 94.77
C27: D | D27: SESC ou SESI (art. 30, Lei nº 8.036/90 e art. 1º, Lei 8.154/90) | E27: ='Encargos Sociais'!E17 -> 0.015 | F27: 47.38
C28: E | D28: SENAI ou SENAC (Decreto nº 2.318/86) | E28: ='Encargos Sociais'!E18 -> 0.01 | F28: 31.59
C29: F | D29: SEBRAE (§ 3º, art. 8º, Lei 8.029/90, alterada pela Lei nº 8.154/90) | E29: ='Encargos Sociais'!E19 -> 0.006 | F29: 18.95
C30: G | D30: INCRA (art. 1º, I, Decreto Lei 1.146/70 e Lei 7.787, de 30/06/89) | E30: ='Encargos Sociais'!E20 -> 0.002 | F30: 6.32 | H30: * Nota 1 - Os percentuais dos encargos previdenciários, do FGTS e demais contribuições são estabelecidos por legislação vigente.
C31: H | D31: FGTS (Lei Complementar nº 110/01 e art. 30, Lei nº 8.036/90) | E31: ='Encargos Sociais'!E21 -> 0.08 | F31: 252.71 | H31: * Nota 2 - O SAT, a depender do grau de risco do serviço, irá variar entre 1%, para risco leve, de 2%, para risco médio, e de 3% para risco grave.
C32: I | D32: SECONCI (Convenções Coletivas de Trabalho da construção) | E32: ='Encargos Sociais'!E22 -> 0.01 | F32: 31.59 | H32: * Nota 3 - Os percentuais do Submódulo 2.2 incidem sobre o Módulo 1 e o Submódulo 2.1.
B34: Submódulo 2.3 - Benefícios Mensais e Diários
C35: A | D35: Auxílio Transporte | F35: =HLOOKUP($B$5,'Dados Gerais'!$D$6:$BI$95,83) -> 488.59
C36: B | D36: Auxílio Alimentação | F36: =HLOOKUP($B$5,'Dados Gerais'!$D$6:$BI$95,90) -> 770
C37: C | D37: Assistência Médica e Familiar | F37: =HLOOKUP($B$5,'Dados Gerais'!$D$6:$BI$103,98) -> 0
C38: D | D38: Outros (Seguro de vida, auxílio funeral, auxílio odontológico e auxílio creche) | F38: =HLOOKUP($B$5,'Dados Gerais'!$D$6:$BI$121,115) -> 13.95 | H38: * Nota 1 - O valor informado deverá ser o custo real do benefício (descontado o valor eventualmente pago pelo empregado).
H39: * Nota 2 - Observar a previsão dos benefícios contidos em Acordos, Convenções e Dissídios Coletivos de Trabalho e o disposto no art. 6º da IN 5/2017
D40: QUADRO-RESUMO DO MÓDULO 2
D41: 2.1 - 13º Salário, Férias e Adicional de Férias - 13º Destacado - Calculado no Módulo 7 | E41: =SUM(E20:E21) -> 0.1212 | F41: =F20+F21 -> 335.49
D42: 2.2 - Encargos Previdenciários (GPS), Fundo de Garantia por Tempo de Serviço (FGTS) e Contribuições | E42: =SUM(E24:E32) -> 0.178 | F42: =SUM(F24:F32) -> 562.28
D43: 2.3 - Benefícios Mensais e Diários | F43: =SUM(F35:F38) -> 1272.54
D45: TOTAL DOS ENCARGOS E BENEFÍCIOS | F45: =SUM(F41:F43) -> 2170.31
B47: MÓDULO 3 - PREVISÃO PARA RESCISÃO | E47: Percentuais | F47: Valor
C48: A | D48: Aviso Prévio Indenizado (Art. 7º, inciso XXI, da CF/1988 e arts. 477, 487, §1º, e 491 da CLT) | E48: ='Encargos Sociais'!E36 -> 0.005 | F48: =ROUND(E48*$F$16,2) -> 13.84
C49: B | D49: Incidência do FGTS sobre o Aviso Prévio Indenizado (Súmula 305 TST) | E49: ='Encargos Sociais'!E37 -> 0.0004 | F49: 1.11 | H49: * Nota 1 - Adotou-se os parâmetros do estudo do STF (http://www.stf.jus.br/arquivo/cms/sobrestfestudosci/anexo/encargos_sociais_03102007.pdf), onde 5% do pessoal é demitido pelo empregador no decurso do contrato (para estes, considerou-se o aviso prévio indenizado). Desprezou-se as demissões por justa causa e os pedidos de demissão.
C50: C | D50: Multa do FGTS e Contribuição Social sobre o Aviso Prévio Indenizado (Art. 18, §1º, da Lei 8.036/1990 e art. 1º da LC nº 110/2001) | E50: ='Encargos Sociais'!E38 -> 0.0019 | F50: 5.26 | H50: * Nota 2 - No cálculo do percentual, considerou-se 36 dias, correspondendo à metade da duração média dos contratos (2 anos)
C51: D | D51: Aviso Prévio Trabalhado (Art. 488, parágrafo único, CLT) | E51: ='Encargos Sociais'!E39 -> 0.012 | F51: 33.22 | H51: * Nota 3 - Incide sobre a Remuneração + 13º salário (1/12) + Férias (1/12) + Adicional de Férias (1/36) x 50% multa (40% para o empregado e 10% de contribuição social) x 8% FGTS
C52: E | D52: Incidência de GPS, FGTS e outras contribuições sobre o Aviso Prévio Trabalhado | E52: ='Encargos Sociais'!E40 -> 0.0021 | F52: 5.81 | H52: * Nota 4 - Os 95% restantes do cálculo, a um prazo médio de contrato de 4 anos. Assim, calcula-se 7 dias para o 1º ano de contrato e mais 3 dias para os 3 anos seguintes.
C53: F | D53: Multa do FGTS e Contribuição Social sobre o Aviso Prévio Trabalhado | E53: ='Encargos Sociais'!E41 -> 0.0145 | F53: 40.14
D55: TOTAL DE PREVISÃO PARA RESCISÃO | F55: =SUM(F48:F53) -> 99.38
B57: MÓDULO 4 - CUSTO DO PROFISSIONAL AUSENTE | E57: Percentuais | F57: Valor
B58: Submódulo 4.1 - Ausências Legais
C59: A | D59: Férias (Arts. 129 e 130, inc. I, da CLT) - Calculado no Submódulo 2.1 | E59: 0 | F59: =ROUND(E59*$F$16,2) -> 0 | H59: * Nota 1 - As alíneas “A” a “F” referem-se somente ao custo que será pago ao repositor pelos dias trabalhados quando da necessidade de substituir a mão de obra alocada na prestação do serviço.
C60: B | D60: Ausências Legais (Arts. 131 e 473 da CLT) | E60: ='Encargos Sociais'!E26 -> 0.0079 | F60: 21.87 | H60: * Nota 2 - Adotou-se a estimativa do SINAPI de 2 dias por ano.
C61: C | D61: Licença-Paternidade (Art. 7º, XIX, e art. 10, §1º, do ADCT, CF/1988 e Art. 1º, II, da Lei 11.770/2008) | E61: ='Encargos Sociais'!E27 -> 0.0008 | F61: 2.21 | H61: * Nota 3 - Utilizada a proporção de 50% para homens, 5 dias de afastamento, e a probabilidade de um trabalhador requerer a Licença Paternidade em 5,22%, conforme SINAPI (citando dados da PNAD 2015)
C62: D | D62: Ausência por Acidente de Trabalho (Art. 131, III, da CLT) | E62: ='Encargos Sociais'!E28 -> 0.0009 | F62: 2.49 | H62: * Nota 4 - Utilzada a estatística de 1,96% dos contribuintes beneficiados com a emissão do auxílio, conforme Anuário Estatístico da Previdência Social. Afastamento de 15 dias a cargo da empresa.
C63: E | D63: Afastamento Maternidade (Art. 71 da Lei nº 8.213/1991) | E63: ='Encargos Sociais'!E29 -> 0.0033 | F63: 9.13 | H63: * Nota 5 - Utilizada a proporção de 50% para mulheres, 180 dias de afastamento, e a probabilidade de uma trabalhadora requerer a Licença Maternidade em 4,91%, conforme SINAPI (citando dados do IBGE 2016)
C64: F | D64: Auxílio Enfermidade - Doença (Art. 59 da Lei nº 8.213/1991) | E64: ='Encargos Sociais'!E30 -> 0.0071 | F64: 19.65 | H64: * Nota 6 - Utilizada a estatística de 3,37% dos contribuintes beneficiados com o auxílio, conforme Anuário Estatístico da Previdência Social de 2015 (acrescidos de 2 dias ao ano, para os quais o trabalhador nem requer o benefício da Previdência - conforme SINAPI)
B66: Submódulo 4.2 - Intrajornada
C67: A | D67: Intervalo para repouso ou alimentação | E67: ='Encargos Sociais'!E33 -> 0 | F67: =ROUND(E67*$F$16,2) -> 0
D69: QUADRO-RESUMO DO MÓDULO 4 | F69: Valor
D70: 4.1 - Ausências Legais | E70: =SUM(E59:E64) -> 0.02 | F70: =ROUND(E70*$F$16,2) -> 55.36
D71: 4.2 - Intrajornada | E71: =E67 -> 0 | F71: =ROUND(E71*$F$16,2) -> 0
D73: TOTAL DE PREVISÃO PARA RESCISÃO E INTERVALO INTRAJORNADA | F73: =SUM(F70:F71) -> 55.36
B75: MÓDULO 5 - INSUMOS DIVERSOS | F75: Valor
C76: A | D76: Uniformes - aquisição | F76: 0
C77: B | D77: Materiais de consumo relacionados ao posto - aquisição | F77: =ROUND(HLOOKUP(B5,'Mat Cons'!I11:DX13,3)/12,2) -> 0
C78: C | D78: Ferramentas relacionadas ao posto - remuneração da sua depreciação / manutenção | F78: =HLOOKUP(B5,'Relacion - Ferram'!Q3:EF5,3) -> 7.27
C79: D | D79: Equipamentos relacionados ao posto - remuneração da sua depreciação / manutenção | F79: =HLOOKUP(B5,'Equip Rel'!Q11:EF13,3) -> 0
C80: E | D80: Equipamentos de Proteção Individual - EPI - aquisição | F80: =ROUND(HLOOKUP(B5,EPI!I4:X6,3)/12,2) -> 0
D82: TOTAL DE INSUMOS DIVERSOS | F82: =SUM(F76:F81) -> 7.27 | H82: * Nota - Valores mensais por empregado
B84: MÓDULO 6 - CUSTOS INDIRETOS, TRIBUTOS E LUCRO - BDI | E84: Percentuais | F84: Valor
C85: A | D85: Custos Indiretos | E85: ='BDI - Geral'!E7 -> 0.0227
C86: A.1 | D86: Administração Central | E86: ='BDI - Geral'!E8 -> 0.0173
C87: A.2 | D87: Seguros, Garantias e Riscos | E87: ='BDI - Geral'!E9 -> 0.0054
C88: B | D88: Lucro | E88: ='BDI - Geral'!E11 -> 0.0267
C89: C | D89: Tributos | E89: =SUM(E90:E91) -> 0.169
C90: C.1 | D90: Tributos Federais (COFINS, PIS e CPRB) | E90: ='BDI - Geral'!E19 -> 0.119
C91: C.2 | D91: Tributos Distritais (ISS) | E91: ='BDI - Geral'!E24 -> 0.05 | H91: * Nota - Utilizou-se o indicado pelo Sindicato da Arquitetura e da Engenharia (Sinaenco, 2008, p. 22), que adota um percentual redutor de 20% no cálculo dos custos tributários relativos às contribuições PIS e COFINS
C92: D | D92: Despesas Financeiras | E92: ='BDI - Geral'!E14 -> 0.004367839439
D94: TOTAL DE BDI | E94: ='BDI - Geral'!E27 -> 0.2691 | F94: =ROUND(E94*E102,2) -> 1372.51
D96: QUADRO-RESUMO DO CUSTO MENSAL POR EMPREGADO - SEM O 13º | E96: Valor
D97: Módulo 1 - Composição da Remuneração | E97: =F16 -> 2768.04
D98: Módulo 2 - Encargos e Benefícios Anuais, Mensais e Diários | E98: =F45 -> 2170.31
D99: Módulo 3 - Provisão para Rescisão | E99: =F55 -> 99.38
D100: Módulo 4 - Custo de Reposição do Profissional Ausente | E100: =F73 -> 55.36
D101: Módulo 5 - Insumos Diversos | E101: =F82 -> 7.27
D102: SUBTOTAL (A+B+C+D+E) | E102: =SUM(E97:E101) -> 5100.36
D103: Módulo 6 - Custos Indiretos, Tributos e Lucro | E103: =F94 -> 1372.51
D105: TOTAL DO POSTO | E105: =SUM(E102:E103) -> 6472.87
B107: MÓDULO 7 - DESTAQUE DO MÓDULO 2 - 13º SALÁRIO | E107: Percentuais | F107: Valor
C108: A | D108: 13º Salário | E108: ='Encargos Sociais'!E32 -> 0.0833 | F108: =ROUND(E108*F$16,2) -> 230.58
C109: B | D109: Encargos Sociais sobre o 13º Salário - Taxa calculada no SUBMÓDULO 2.2 | E109: =SUM($E$24:$E$32) -> 0.178 | F109: =ROUND(E109*$F$108,2) -> 41.04 | H109: * Nota 1 - Provisiona-se, mensalmente, o proporcional a 1/12 dos valores referentes a gratificação natalina e adicional de férias.
C110: C | D110: BDI sobre o 13º Salário - Taxa calculada no MÓDULO 6 | E110: =E94 -> 0.2691 | F110: =ROUND(E110*($F$108+$F$109),2) -> 73.09
D112: TOTAL DO DESTAQUE DO 13º SALÁRIO | F112: =SUM(F108:F110) -> 344.71
D114: QUADRO-RESUMO DO CUSTO MENSAL POR EMPREGADO | E114: Valor
D115: Custo total - sem o 13º Salário | E115: =ROUND(E105,2) -> 6472.87
D116: Destaque do 13º Salário (valor mensal) | E116: =ROUND(F112,2) -> 344.71
D118: TOTAL DO POSTO | E118: =E115+E116 -> 6817.58

Sheet 3
B2: PLANILHA DE ESTIMATIVA DE CUSTOS
B3: Padrão IN 05/2017 e IN 07/2018 - MPDG
B5: 3 | D5: =HLOOKUP($B$5,'Dados Gerais'!$D$6:$BI$22,6) -> ASSISTENTE DE CONTROLE OPERACIONAL | E5: QUANTIDADE | F5: =HLOOKUP($B$5,'Dados Gerais'!$D$6:$BI$22,10) -> 4
B6: CCT | D6: =HLOOKUP($B$5,'Dados Gerais'!$D$6:$BI$22,16) -> SINDUSCON/DF x STICOMBE/DF CCT 2024/2025 N.º DF000276/2024 | E6: DATA-BASE | F6: =HLOOKUP($B$5,'Dados Gerais'!$D$6:$BI$22,17) -> 2024-05-01
B8: MÓDULO 1 - COMPOSIÇÃO DA REMUNERAÇÃO | F8: Valor
C9: A | D9: Salário-Base | F9: =HLOOKUP($B$5,'Dados Gerais'!$D$6:$BI$22,8) -> 3240.37
C10: B | D10: Adicional de Periculosidade | F10: =HLOOKUP($B$5,'Dados Gerais'!$D$6:$BI$39,26) -> 0
C11: C | D11: Adicional de Insalubridade | F11: =HLOOKUP($B$5,'Dados Gerais'!$D$6:$BI$39,32) -> 0
C12: D | D12: Adicional Noturno | F12: =HLOOKUP($B$5,'Dados Gerais'!$D$6:$BI$52,47) -> 0 | H12: * Nota 1 - O Módulo 1 refere-se ao valor mensal devido ao empregado pela prestação do serviço no período de 12 meses.
C13: E | D13: Adicional de Hora Extra | F13: =HLOOKUP($B$5,'Dados Gerais'!$D$6:$BI$69,64) -> 0 | H13: * Nota 2 - O adicional de hora extra no feriado trabalhado foi suprimido pela Lei 13.467/17
C14: F | D14: Outros (adicional de sobreaviso) | F14: =HLOOKUP($B$5,'Dados Gerais'!$D$6:$BI$69,34) -> 0 | H14: * Nota 3 - ART. 7º, § 2º, DA LEI Nº 605/49.Sendo mensalista o obreiro, o adicional noturno pago de forma fixa já é considerado integrado para os efeitos do pagamento do repouso semanal remunerado, nos termos do art. 7º, § 2º, da Lei nº 605/49.
D16: TOTAL DA REMUNERAÇÃO | F16: =SUM(F9:F14) -> 3240.37
B18: MÓDULO 2 - ENCARGOS E BENEFÍCIOS ANUAIS, MENSAIS E DIÁRIOS | E18: Percentuais | F18: Valor
B19: Submódulo 2.1 - 13º Salário, Férias e Adicional de Férias
C20: A | D20: 13º Salário - Calculado no Módulo 7 - Destacado | E20: 0 | F20: =ROUND(E20*F$16,2) -> 0
C21: B | D21: Férias e Adicional de Férias | E21: ='Encargos Sociais'!E25+'Encargos Sociais'!E31 -> 0.1212 | F21: =ROUND(E21*F$16,2) -> 392.73 | H21: * Nota 1 - Provisiona-se, mensalmente, o proporcional a 1/12 dos valores referentes a gratificação natalina, férias e adicional de férias.
H22: * Nota 2 - O adicional de férias contido no Submódulo 2.1 corresponde a 1/3 da remuneração que, por sua vez, é dividida por 12 contome Nota 1.
B23: Submódulo 2.2 - Encargos Previdenciários (GPS), Fundo de Garantia por Tempo de Serviço (FGTS) e Outras Contribuições
C24: A | D24: INSS (art. 22, inciso I, Lei nº 8.212/91) | E24: ='Encargos Sociais'!E14 -> 0 | F24: =ROUND(E24*($F$16+$F$41+$F$73),2) -> 0
C25: B | D25: Salário Educação (art. 3º, inciso I, Decreto nº 87.043/82) | E25: ='Encargos Sociais'!E15 -> 0.025 | F25: =ROUND(E25*($F$16+$F$41+$F$73),2) -> 92.45
C26: C | D26: SAT/RAT (art. 22, II, Lei 8.212/91 e Anexo V, Decreto 6.042/07) - Enquadramento 8211-3/00 | E26: ='Encargos Sociais'!E16 -> 0.03 | F26: 110.94
C27: D | D27: SESC ou SESI (art. 30, Lei nº 8.036/90 e art. 1º, Lei 8.154/90) | E27: ='Encargos Sociais'!E17 -> 0.015 | F27: 55.47
C28: E | D28: SENAI ou SENAC (Decreto nº 2.318/86) | E28: ='Encargos Sociais'!E18 -> 0.01 | F28: 36.98
C29: F | D29: SEBRAE (§ 3º, art. 8º, Lei 8.029/90, alterada pela Lei nº 8.154/90) | E29: ='Encargos Sociais'!E19 -> 0.006 | F29: 22.19
C30: G | D30: INCRA (art. 1º, I, Decreto Lei 1.146/70 e Lei 7.787, de 30/06/89) | E30: ='Encargos Sociais'!E20 -> 0.002 | F30: 7.4 | H30: * Nota 1 - Os percentuais dos encargos previdenciários, do FGTS e demais contribuições são estabelecidos por legislação vigente.
C31: H | D31: FGTS (Lei Complementar nº 110/01 e art. 30, Lei nº 8.036/90) | E31: ='Encargos Sociais'!E21 -> 0.08 | F31: 295.83 | H31: * Nota 2 - O SAT, a depender do grau de risco do serviço, irá variar entre 1%, para risco leve, de 2%, para risco médio, e de 3% para risco grave.
C32: I | D32: SECONCI (Convenções Coletivas de Trabalho da construção) | E32: ='Encargos Sociais'!E22 -> 0.01 | F32: 36.98 | H32: * Nota 3 - Os percentuais do Submódulo 2.2 incidem sobre o Módulo 1 e o Submódulo 2.1.
B34: Submódulo 2.3 - Benefícios Mensais e Diários
C35: A | D35: Auxílio Transporte | F35: =HLOOKUP($B$5,'Dados Gerais'!$D$6:$BI$95,83) -> 488.59
C36: B | D36: Auxílio Alimentação | F36: =HLOOKUP($B$5,'Dados Gerais'!$D$6:$BI$95,90) -> 770
C37: C | D37: Assistência Médica e Familiar | F37: =HLOOKUP($B$5,'Dados Gerais'!$D$6:$BI$103,98) -> 0
C38: D | D38: Outros (Seguro de vida, auxílio funeral, auxílio odontológico e auxílio creche) | F38: =HLOOKUP($B$5,'Dados Gerais'!$D$6:$BI$121,115) -> 13.95 | H38: * Nota 1 - O valor informado deverá ser o custo real do benefício (descontado o valor eventualmente pago pelo empregado).
H39: * Nota 2 - Observar a previsão dos benefícios contidos em Acordos, Convenções e Dissídios Coletivos de Trabalho e o disposto no art. 6º da IN 5/2017
D40: QUADRO-RESUMO DO MÓDULO 2
D41: 2.1 - 13º Salário, Férias e Adicional de Férias - 13º Destacado - Calculado no Módulo 7 | E41: =SUM(E20:E21) -> 0.1212 | F41: =F20+F21 -> 392.73
D42: 2.2 - Encargos Previdenciários (GPS), Fundo de Garantia por Tempo de Serviço (FGTS) e Contribuições | E42: =SUM(E24:E32) -> 0.178 | F42: =SUM(F24:F32) -> 658.24
D43: 2.3 - Benefícios Mensais e Diários | F43: =SUM(F35:F38) -> 1272.54
D45: TOTAL DOS ENCARGOS E BENEFÍCIOS | F45: =SUM(F41:F43) -> 2323.51
B47: MÓDULO 3 - PREVISÃO PARA RESCISÃO | E47: Percentuais | F47: Valor
C48: A | D48: Aviso Prévio Indenizado (Art. 7º, inciso XXI, da CF/1988 e arts. 477, 487, §1º, e 491 da CLT) | E48: ='Encargos Sociais'!E36 -> 0.005 | F48: =ROUND(E48*$F$16,2) -> 16.2
C49: B | D49: Incidência do FGTS sobre o Aviso Prévio Indenizado (Súmula 305 TST) | E49: ='Encargos Sociais'!E37 -> 0.0004 | F49: 1.3 | H49: * Nota 1 - Adotou-se os parâmetros do estudo do STF (http://www.stf.jus.br/arquivo/cms/sobrestfestudosci/anexo/encargos_sociais_03102007.pdf), onde 5% do pessoal é demitido pelo empregador no decurso do contrato (para estes, considerou-se o aviso prévio indenizado). Desprezou-se as demissões por justa causa e os pedidos de demissão.
C50: C | D50: Multa do FGTS e Contribuição Social sobre o Aviso Prévio Indenizado (Art. 18, §1º, da Lei 8.036/1990 e art. 1º da LC nº 110/2001) | E50: ='Encargos Sociais'!E38 -> 0.0019 | F50: 6.16 | H50: * Nota 2 - No cálculo do percentual, considerou-se 36 dias, correspondendo à metade da duração média dos contratos (2 anos)
C51: D | D51: Aviso Prévio Trabalhado (Art. 488, parágrafo único, CLT) | E51: ='Encargos Sociais'!E39 -> 0.012 | F51: 38.88 | H51: * Nota 3 - Incide sobre a Remuneração + 13º salário (1/12) + Férias (1/12) + Adicional de Férias (1/36) x 50% multa (40% para o empregado e 10% de contribuição social) x 8% FGTS
C52: E | D52: Incidência de GPS, FGTS e outras contribuições sobre o Aviso Prévio Trabalhado | E52: ='Encargos Sociais'!E40 -> 0.0021 | F52: 6.8 | H52: * Nota 4 - Os 95% restantes do cálculo, a um prazo médio de contrato de 4 anos. Assim, calcula-se 7 dias para o 1º ano de contrato e mais 3 dias para os 3 anos seguintes.
C53: F | D53: Multa do FGTS e Contribuição Social sobre o Aviso Prévio Trabalhado | E53: ='Encargos Sociais'!E41 -> 0.0145 | F53: 46.99
D55: TOTAL DE PREVISÃO PARA RESCISÃO | F55: =SUM(F48:F53) -> 116.33
B57: MÓDULO 4 - CUSTO DO PROFISSIONAL AUSENTE | E57: Percentuais | F57: Valor
B58: Submódulo 4.1 - Ausências Legais
C59: A | D59: Férias (Arts. 129 e 130, inc. I, da CLT) - Calculado no Submódulo 2.1 | E59: 0 | F59: =ROUND(E59*$F$16,2) -> 0 | H59: * Nota 1 - As alíneas “A” a “F” referem-se somente ao custo que será pago ao repositor pelos dias trabalhados quando da necessidade de substituir a mão de obra alocada na prestação do serviço.
C60: B | D60: Ausências Legais (Arts. 131 e 473 da CLT) | E60: ='Encargos Sociais'!E26 -> 0.0079 | F60: 25.6 | H60: * Nota 2 - Adotou-se a estimativa do SINAPI de 2 dias por ano.
C61: C | D61: Licença-Paternidade (Art. 7º, XIX, e art. 10, §1º, do ADCT, CF/1988 e Art. 1º, II, da Lei 11.770/2008) | E61: ='Encargos Sociais'!E27 -> 0.0008 | F61: 2.59 | H61: * Nota 3 - Utilizada a proporção de 50% para homens, 5 dias de afastamento, e a probabilidade de um trabalhador requerer a Licença Paternidade em 5,22%, conforme SINAPI (citando dados da PNAD 2015)
C62: D | D62: Ausência por Acidente de Trabalho (Art. 131, III, da CLT) | E62: ='Encargos Sociais'!E28 -> 0.0009 | F62: 2.92 | H62: * Nota 4 - Utilzada a estatística de 1,96% dos contribuintes beneficiados com a emissão do auxílio, conforme Anuário Estatístico da Previdência Social. Afastamento de 15 dias a cargo da empresa.
C63: E | D63: Afastamento Maternidade (Art. 71 da Lei nº 8.213/1991) | E63: ='Encargos Sociais'!E29 -> 0.0033 | F63: 10.69 | H63: * Nota 5 - Utilizada a proporção de 50% para mulheres, 180 dias de afastamento, e a probabilidade de uma trabalhadora requerer a Licença Maternidade em 4,91%, conforme SINAPI (citando dados do IBGE 2016)
C64: F | D64: Auxílio Enfermidade - Doença (Art. 59 da Lei nº 8.213/1991) | E64: ='Encargos Sociais'!E30 -> 0.0071 | F64: 23.01 | H64: * Nota 6 - Utilizada a estatística de 3,37% dos contribuintes beneficiados com o auxílio, conforme Anuário Estatístico da Previdência Social de 2015 (acrescidos de 2 dias ao ano, para os quais o trabalhador nem requer o benefício da Previdência - conforme SINAPI)
B66: Submódulo 4.2 - Intrajornada
C67: A | D67: Intervalo para repouso ou alimentação | E67: ='Encargos Sociais'!E33 -> 0 | F67: =ROUND(E67*$F$16,2) -> 0
D69: QUADRO-RESUMO DO MÓDULO 4 | F69: Valor
D70: 4.1 - Ausências Legais | E70: =SUM(E59:E64) -> 0.02 | F70: =ROUND(E70*$F$16,2) -> 64.81
D71: 4.2 - Intrajornada | E71: =E67 -> 0 | F71: =ROUND(E71*$F$16,2) -> 0
D73: TOTAL DE PREVISÃO PARA RESCISÃO E INTERVALO INTRAJORNADA | F73: =SUM(F70:F71) -> 64.81
B75: MÓDULO 5 - INSUMOS DIVERSOS | F75: Valor
C76: A | D76: Uniformes - aquisição | F76: 0
C77: B | D77: Materiais de consumo relacionados ao posto - aquisição | F77: =ROUND(HLOOKUP(B5,'Mat Cons'!I11:DX13,3)/12,2) -> 0
C78: C | D78: Ferramentas relacionadas ao posto - remuneração da sua depreciação / manutenção | F78: =HLOOKUP(B5,'Relacion - Ferram'!Q3:EF5,3) -> 0
C79: D | D79: Equipamentos relacionados ao posto - remuneração da sua depreciação / manutenção | F79: =HLOOKUP(B5,'Equip Rel'!Q11:EF13,3) -> 0
C80: E | D80: Equipamentos de Proteção Individual - EPI - aquisição | F80: =ROUND(HLOOKUP(B5,EPI!I4:X6,3)/12,2) -> 0
D82: TOTAL DE INSUMOS DIVERSOS | F82: =SUM(F76:F81) -> 0 | H82: * Nota - Valores mensais por empregado
B84: MÓDULO 6 - CUSTOS INDIRETOS, TRIBUTOS E LUCRO - BDI | E84: Percentuais | F84: Valor
C85: A | D85: Custos Indiretos | E85: ='BDI - Geral'!E7 -> 0.0227
C86: A.1 | D86: Administração Central | E86: ='BDI - Geral'!E8 -> 0.0173
C87: A.2 | D87: Seguros, Garantias e Riscos | E87: ='BDI - Geral'!E9 -> 0.0054
C88: B | D88: Lucro | E88: ='BDI - Geral'!E11 -> 0.0267
C89: C | D89: Tributos | E89: =SUM(E90:E91) -> 0.169
C90: C.1 | D90: Tributos Federais (COFINS, PIS e CPRB) | E90: ='BDI - Geral'!E19 -> 0.119
C91: C.2 | D91: Tributos Distritais (ISS) | E91: ='BDI - Geral'!E24 -> 0.05 | H91: * Nota - Utilizou-se o indicado pelo Sindicato da Arquitetura e da Engenharia (Sinaenco, 2008, p. 22), que adota um percentual redutor de 20% no cálculo dos custos tributários relativos às contribuições PIS e COFINS
C92: D | D92: Despesas Financeiras | E92: ='BDI - Geral'!E14 -> 0.004367839439
D94: TOTAL DE BDI | E94: ='BDI - Geral'!E27 -> 0.2691 | F94: =ROUND(E94*E102,2) -> 1545.98
D96: QUADRO-RESUMO DO CUSTO MENSAL POR EMPREGADO - SEM O 13º | E96: Valor
D97: Módulo 1 - Composição da Remuneração | E97: =F16 -> 3240.37
D98: Módulo 2 - Encargos e Benefícios Anuais, Mensais e Diários | E98: =F45 -> 2323.51
D99: Módulo 3 - Provisão para Rescisão | E99: =F55 -> 116.33
D100: Módulo 4 - Custo de Reposição do Profissional Ausente | E100: =F73 -> 64.81
D101: Módulo 5 - Insumos Diversos | E101: =F82 -> 0
D102: SUBTOTAL (A+B+C+D+E) | E102: =SUM(E97:E101) -> 5745.02
D103: Módulo 6 - Custos Indiretos, Tributos e Lucro | E103: =F94 -> 1545.98
D105: TOTAL DO POSTO | E105: =SUM(E102:E103) -> 7291
B107: MÓDULO 7 - DESTAQUE DO MÓDULO 2 - 13º SALÁRIO | E107: Percentuais | F107: Valor
C108: A | D108: 13º Salário | E108: ='Encargos Sociais'!E32 -> 0.0833 | F108: =ROUND(E108*F$16,2) -> 269.92
C109: B | D109: Encargos Sociais sobre o 13º Salário - Taxa calculada no SUBMÓDULO 2.2 | E109: =SUM($E$24:$E$32) -> 0.178 | F109: =ROUND(E109*$F$108,2) -> 48.05 | H109: * Nota 1 - Provisiona-se, mensalmente, o proporcional a 1/12 dos valores referentes a gratificação natalina e adicional de férias.
C110: C | D110: BDI sobre o 13º Salário - Taxa calculada no MÓDULO 6 | E110: =E94 -> 0.2691 | F110: =ROUND(E110*($F$108+$F$109),2) -> 85.57
D112: TOTAL DO DESTAQUE DO 13º SALÁRIO | F112: =SUM(F108:F110) -> 403.54
D114: QUADRO-RESUMO DO CUSTO MENSAL POR EMPREGADO | E114: Valor
D115: Custo total - sem o 13º Salário | E115: =ROUND(E105,2) -> 7291
D116: Destaque do 13º Salário (valor mensal) | E116: =ROUND(F112,2) -> 403.54
D118: TOTAL DO POSTO | E118: =E115+E116 -> 7694.54

Sheet 4
B2: PLANILHA DE ESTIMATIVA DE CUSTOS
B3: Padrão IN 05/2017 e IN 07/2018 - MPDG
B5: 4 | D5: =HLOOKUP($B$5,'Dados Gerais'!$D$6:$BI$22,6) -> BOMBEIRO HIDRÁULICO DE MANUTENÇÃO I | E5: QUANTIDADE | F5: =HLOOKUP($B$5,'Dados Gerais'!$D$6:$BI$22,10) -> 17
B6: CCT | D6: =HLOOKUP($B$5,'Dados Gerais'!$D$6:$BI$22,16) -> SINDUSCON/DF x STICOMBE/DF CCT 2024/2025 N.º DF000276/2024 | E6: DATA-BASE | F6: =HLOOKUP($B$5,'Dados Gerais'!$D$6:$BI$22,17) -> 2024-05-01
B8: MÓDULO 1 - COMPOSIÇÃO DA REMUNERAÇÃO | F8: Valor
C9: A | D9: Salário-Base | F9: =HLOOKUP($B$5,'Dados Gerais'!$D$6:$BI$22,8) -> 2752.02
C10: B | D10: Adicional de Periculosidade | F10: =HLOOKUP($B$5,'Dados Gerais'!$D$6:$BI$39,26) -> 0
C11: C | D11: Adicional de Insalubridade | F11: =HLOOKUP($B$5,'Dados Gerais'!$D$6:$BI$39,32) -> 564.8
C12: D | D12: Adicional Noturno | F12: =HLOOKUP($B$5,'Dados Gerais'!$D$6:$BI$52,47) -> 0 | H12: * Nota 1 - O Módulo 1 refere-se ao valor mensal devido ao empregado pela prestação do serviço no período de 12 meses.
C13: E | D13: Adicional de Hora Extra | F13: =HLOOKUP($B$5,'Dados Gerais'!$D$6:$BI$69,64) -> 0 | H13: * Nota 2 - O adicional de hora extra no feriado trabalhado foi suprimido pela Lei 13.467/17
C14: F | D14: Outros (adicional de sobreaviso) | F14: =HLOOKUP($B$5,'Dados Gerais'!$D$6:$BI$69,34) -> 0 | H14: * Nota 3 - ART. 7º, § 2º, DA LEI Nº 605/49.Sendo mensalista o obreiro, o adicional noturno pago de forma fixa já é considerado integrado para os efeitos do pagamento do repouso semanal remunerado, nos termos do art. 7º, § 2º, da Lei nº 605/49.
D16: TOTAL DA REMUNERAÇÃO | F16: =SUM(F9:F14) -> 3316.82
B18: MÓDULO 2 - ENCARGOS E BENEFÍCIOS ANUAIS, MENSAIS E DIÁRIOS | E18: Percentuais | F18: Valor
B19: Submódulo 2.1 - 13º Salário, Férias e Adicional de Férias
C20: A | D20: 13º Salário - Calculado no Módulo 7 - Destacado | E20: 0 | F20: =ROUND(E20*F$16,2) -> 0
C21: B | D21: Férias e Adicional de Férias | E21: ='Encargos Sociais'!E25+'Encargos Sociais'!E31 -> 0.1212 | F21: =ROUND(E21*F$16,2) -> 402 | H21: * Nota 1 - Provisiona-se, mensalmente, o proporcional a 1/12 dos valores referentes a gratificação natalina, férias e adicional de férias.
H22: * Nota 2 - O adicional de férias contido no Submódulo 2.1 corresponde a 1/3 da remuneração que, por sua vez, é dividida por 12 contome Nota 1.
B23: Submódulo 2.2 - Encargos Previdenciários (GPS), Fundo de Garantia por Tempo de Serviço (FGTS) e Outras Contribuições
C24: A | D24: INSS (art. 22, inciso I, Lei nº 8.212/91) | E24: ='Encargos Sociais'!E14 -> 0 | F24: =ROUND(E24*($F$16+$F$41+$F$73),2) -> 0
C25: B | D25: Salário Educação (art. 3º, inciso I, Decreto nº 87.043/82) | E25: ='Encargos Sociais'!E15 -> 0.025 | F25: =ROUND(E25*($F$16+$F$41+$F$73),2) -> 94.63
C26: C | D26: SAT/RAT (art. 22, II, Lei 8.212/91 e Anexo V, Decreto 6.042/07) - Enquadramento 8211-3/00 | E26: ='Encargos Sociais'!E16 -> 0.03 | F26: 113.55
C27: D | D27: SESC ou SESI (art. 30, Lei nº 8.036/90 e art. 1º, Lei 8.154/90) | E27: ='Encargos Sociais'!E17 -> 0.015 | F27: 56.78
C28: E | D28: SENAI ou SENAC (Decreto nº 2.318/86) | E28: ='Encargos Sociais'!E18 -> 0.01 | F28: 37.85
C29: F | D29: SEBRAE (§ 3º, art. 8º, Lei 8.029/90, alterada pela Lei nº 8.154/90) | E29: ='Encargos Sociais'!E19 -> 0.006 | F29: 22.71
C30: G | D30: INCRA (art. 1º, I, Decreto Lei 1.146/70 e Lei 7.787, de 30/06/89) | E30: ='Encargos Sociais'!E20 -> 0.002 | F30: 7.57 | H30: * Nota 1 - Os percentuais dos encargos previdenciários, do FGTS e demais contribuições são estabelecidos por legislação vigente.
C31: H | D31: FGTS (Lei Complementar nº 110/01 e art. 30, Lei nº 8.036/90) | E31: ='Encargos Sociais'!E21 -> 0.08 | F31: 302.81 | H31: * Nota 2 - O SAT, a depender do grau de risco do serviço, irá variar entre 1%, para risco leve, de 2%, para risco médio, e de 3% para risco grave.
C32: I | D32: SECONCI (Convenções Coletivas de Trabalho da construção) | E32: ='Encargos Sociais'!E22 -> 0.01 | F32: 37.85 | H32: * Nota 3 - Os percentuais do Submódulo 2.2 incidem sobre o Módulo 1 e o Submódulo 2.1.
B34: Submódulo 2.3 - Benefícios Mensais e Diários
C35: A | D35: Auxílio Transporte | F35: =HLOOKUP($B$5,'Dados Gerais'!$D$6:$BI$95,83) -> 488.59
C36: B | D36: Auxílio Alimentação | F36: =HLOOKUP($B$5,'Dados Gerais'!$D$6:$BI$95,90) -> 770
C37: C | D37: Assistência Médica e Familiar | F37: =HLOOKUP($B$5,'Dados Gerais'!$D$6:$BI$103,98) -> 0
C38: D | D38: Outros (Seguro de vida, auxílio funeral, auxílio odontológico e auxílio creche) | F38: =HLOOKUP($B$5,'Dados Gerais'!$D$6:$BI$121,115) -> 13.95 | H38: * Nota 1 - O valor informado deverá ser o custo real do benefício (descontado o valor eventualmente pago pelo empregado).
H39: * Nota 2 - Observar a previsão dos benefícios contidos em Acordos, Convenções e Dissídios Coletivos de Trabalho e o disposto no art. 6º da IN 5/2017
D40: QUADRO-RESUMO DO MÓDULO 2
D41: 2.1 - 13º Salário, Férias e Adicional de Férias - 13º Destacado - Calculado no Módulo 7 | E41: =SUM(E20:E21) -> 0.1212 | F41: =F20+F21 -> 402
D42: 2.2 - Encargos Previdenciários (GPS), Fundo de Garantia por Tempo de Serviço (FGTS) e Contribuições | E42: =SUM(E24:E32) -> 0.178 | F42: =SUM(F24:F32) -> 673.75
D43: 2.3 - Benefícios Mensais e Diários | F43: =SUM(F35:F38) -> 1272.54
D45: TOTAL DOS ENCARGOS E BENEFÍCIOS | F45: =SUM(F41:F43) -> 2348.29
B47: MÓDULO 3 - PREVISÃO PARA RESCISÃO | E47: Percentuais | F47: Valor
C48: A | D48: Aviso Prévio Indenizado (Art. 7º, inciso XXI, da CF/1988 e arts. 477, 487, §1º, e 491 da CLT) | E48: ='Encargos Sociais'!E36 -> 0.005 | F48: =ROUND(E48*$F$16,2) -> 16.58
C49: B | D49: Incidência do FGTS sobre o Aviso Prévio Indenizado (Súmula 305 TST) | E49: ='Encargos Sociais'!E37 -> 0.0004 | F49: 1.33 | H49: * Nota 1 - Adotou-se os parâmetros do estudo do STF (http://www.stf.jus.br/arquivo/cms/sobrestfestudosci/anexo/encargos_sociais_03102007.pdf), onde 5% do pessoal é demitido pelo empregador no decurso do contrato (para estes, considerou-se o aviso prévio indenizado). Desprezou-se as demissões por justa causa e os pedidos de demissão.
C50: C | D50: Multa do FGTS e Contribuição Social sobre o Aviso Prévio Indenizado (Art. 18, §1º, da Lei 8.036/1990 e art. 1º da LC nº 110/2001) | E50: ='Encargos Sociais'!E38 -> 0.0019 | F50: 6.3 | H50: * Nota 2 - No cálculo do percentual, considerou-se 36 dias, correspondendo à metade da duração média dos contratos (2 anos)
C51: D | D51: Aviso Prévio Trabalhado (Art. 488, parágrafo único, CLT) | E51: ='Encargos Sociais'!E39 -> 0.012 | F51: 39.8 | H51: * Nota 3 - Incide sobre a Remuneração + 13º salário (1/12) + Férias (1/12) + Adicional de Férias (1/36) x 50% multa (40% para o empregado e 10% de contribuição social) x 8% FGTS
C52: E | D52: Incidência de GPS, FGTS e outras contribuições sobre o Aviso Prévio Trabalhado | E52: ='Encargos Sociais'!E40 -> 0.0021 | F52: 6.97 | H52: * Nota 4 - Os 95% restantes do cálculo, a um prazo médio de contrato de 4 anos. Assim, calcula-se 7 dias para o 1º ano de contrato e mais 3 dias para os 3 anos seguintes.
C53: F | D53: Multa do FGTS e Contribuição Social sobre o Aviso Prévio Trabalhado | E53: ='Encargos Sociais'!E41 -> 0.0145 | F53: 48.09
D55: TOTAL DE PREVISÃO PARA RESCISÃO | F55: =SUM(F48:F53) -> 119.07
B57: MÓDULO 4 - CUSTO DO PROFISSIONAL AUSENTE | E57: Percentuais | F57: Valor
B58: Submódulo 4.1 - Ausências Legais
C59: A | D59: Férias (Arts. 129 e 130, inc. I, da CLT) - Calculado no Submódulo 2.1 | E59: 0 | F59: =ROUND(E59*$F$16,2) -> 0 | H59: * Nota 1 - As alíneas “A” a “F” referem-se somente ao custo que será pago ao repositor pelos dias trabalhados quando da necessidade de substituir a mão de obra alocada na prestação do serviço.
C60: B | D60: Ausências Legais (Arts. 131 e 473 da CLT) | E60: ='Encargos Sociais'!E26 -> 0.0079 | F60: 26.2 | H60: * Nota 2 - Adotou-se a estimativa do SINAPI de 2 dias por ano.
C61: C | D61: Licença-Paternidade (Art. 7º, XIX, e art. 10, §1º, do ADCT, CF/1988 e Art. 1º, II, da Lei 11.770/2008) | E61: ='Encargos Sociais'!E27 -> 0.0008 | F61: 2.65 | H61: * Nota 3 - Utilizada a proporção de 50% para homens, 5 dias de afastamento, e a probabilidade de um trabalhador requerer a Licença Paternidade em 5,22%, conforme SINAPI (citando dados da PNAD 2015)
C62: D | D62: Ausência por Acidente de Trabalho (Art. 131, III, da CLT) | E62: ='Encargos Sociais'!E28 -> 0.0009 | F62: 2.99 | H62: * Nota 4 - Utilzada a estatística de 1,96% dos contribuintes beneficiados com a emissão do auxílio, conforme Anuário Estatístico da Previdência Social. Afastamento de 15 dias a cargo da empresa.
C63: E | D63: Afastamento Maternidade (Art. 71 da Lei nº 8.213/1991) | E63: ='Encargos Sociais'!E29 -> 0.0033 | F63: 10.95 | H63: * Nota 5 - Utilizada a proporção de 50% para mulheres, 180 dias de afastamento, e a probabilidade de uma trabalhadora requerer a Licença Maternidade em 4,91%, conforme SINAPI (citando dados do IBGE 2016)
C64: F | D64: Auxílio Enfermidade - Doença (Art. 59 da Lei nº 8.213/1991) | E64: ='Encargos Sociais'!E30 -> 0.0071 | F64: 23.55 | H64: * Nota 6 - Utilizada a estatística de 3,37% dos contribuintes beneficiados com o auxílio, conforme Anuário Estatístico da Previdência Social de 2015 (acrescidos de 2 dias ao ano, para os quais o trabalhador nem requer o benefício da Previdência - conforme SINAPI)
B66: Submódulo 4.2 - Intrajornada
C67: A | D67: Intervalo para repouso ou alimentação | E67: ='Encargos Sociais'!E33 -> 0 | F67: =ROUND(E67*$F$16,2) -> 0
D69: QUADRO-RESUMO DO MÓDULO 4 | F69: Valor
D70: 4.1 - Ausências Legais | E70: =SUM(E59:E64) -> 0.02 | F70: =ROUND(E70*$F$16,2) -> 66.34
D71: 4.2 - Intrajornada | E71: =E67 -> 0 | F71: =ROUND(E71*$F$16,2) -> 0
D73: TOTAL DE PREVISÃO PARA RESCISÃO E INTERVALO INTRAJORNADA | F73: =SUM(F70:F71) -> 66.34
B75: MÓDULO 5 - INSUMOS DIVERSOS | F75: Valor
C76: A | D76: Uniformes - aquisição | F76: 0
C77: B | D77: Materiais de consumo relacionados ao posto - aquisição | F77: =ROUND(HLOOKUP(B5,'Mat Cons'!I11:DX13,3)/12,2) -> 0
C78: C | D78: Ferramentas relacionadas ao posto - remuneração da sua depreciação / manutenção | F78: =HLOOKUP(B5,'Relacion - Ferram'!Q3:EF5,3) -> 23.13
C79: D | D79: Equipamentos relacionados ao posto - remuneração da sua depreciação / manutenção | F79: =HLOOKUP(B5,'Equip Rel'!Q11:EF13,3) -> 0
C80: E | D80: Equipamentos de Proteção Individual - EPI - aquisição | F80: =ROUND(HLOOKUP(B5,EPI!I4:X6,3)/12,2) -> 0
D82: TOTAL DE INSUMOS DIVERSOS | F82: =SUM(F76:F81) -> 23.13 | H82: * Nota - Valores mensais por empregado
B84: MÓDULO 6 - CUSTOS INDIRETOS, TRIBUTOS E LUCRO - BDI | E84: Percentuais | F84: Valor
C85: A | D85: Custos Indiretos | E85: ='BDI - Geral'!E7 -> 0.0227
C86: A.1 | D86: Administração Central | E86: ='BDI - Geral'!E8 -> 0.0173
C87: A.2 | D87: Seguros, Garantias e Riscos | E87: ='BDI - Geral'!E9 -> 0.0054
C88: B | D88: Lucro | E88: ='BDI - Geral'!E11 -> 0.0267
C89: C | D89: Tributos | E89: =SUM(E90:E91) -> 0.169
C90: C.1 | D90: Tributos Federais (COFINS, PIS e CPRB) | E90: ='BDI - Geral'!E19 -> 0.119
C91: C.2 | D91: Tributos Distritais (ISS) | E91: ='BDI - Geral'!E24 -> 0.05 | H91: * Nota - Utilizou-se o indicado pelo Sindicato da Arquitetura e da Engenharia (Sinaenco, 2008, p. 22), que adota um percentual redutor de 20% no cálculo dos custos tributários relativos às contribuições PIS e COFINS
C92: D | D92: Despesas Financeiras | E92: ='BDI - Geral'!E14 -> 0.004367839439
D94: TOTAL DE BDI | E94: ='BDI - Geral'!E27 -> 0.2691 | F94: =ROUND(E94*E102,2) -> 1580.6
D96: QUADRO-RESUMO DO CUSTO MENSAL POR EMPREGADO - SEM O 13º | E96: Valor
D97: Módulo 1 - Composição da Remuneração | E97: =F16 -> 3316.82
D98: Módulo 2 - Encargos e Benefícios Anuais, Mensais e Diários | E98: =F45 -> 2348.29
D99: Módulo 3 - Provisão para Rescisão | E99: =F55 -> 119.07
D100: Módulo 4 - Custo de Reposição do Profissional Ausente | E100: =F73 -> 66.34
D101: Módulo 5 - Insumos Diversos | E101: =F82 -> 23.13
D102: SUBTOTAL (A+B+C+D+E) | E102: =SUM(E97:E101) -> 5873.65
D103: Módulo 6 - Custos Indiretos, Tributos e Lucro | E103: =F94 -> 1580.6
D105: TOTAL DO POSTO | E105: =SUM(E102:E103) -> 7454.25
B107: MÓDULO 7 - DESTAQUE DO MÓDULO 2 - 13º SALÁRIO | E107: Percentuais | F107: Valor
C108: A | D108: 13º Salário | E108: ='Encargos Sociais'!E32 -> 0.0833 | F108: =ROUND(E108*F$16,2) -> 276.29
C109: B | D109: Encargos Sociais sobre o 13º Salário - Taxa calculada no SUBMÓDULO 2.2 | E109: =SUM($E$24:$E$32) -> 0.178 | F109: =ROUND(E109*$F$108,2) -> 49.18 | H109: * Nota 1 - Provisiona-se, mensalmente, o proporcional a 1/12 dos valores referentes a gratificação natalina e adicional de férias.
C110: C | D110: BDI sobre o 13º Salário - Taxa calculada no MÓDULO 6 | E110: =E94 -> 0.2691 | F110: =ROUND(E110*($F$108+$F$109),2) -> 87.58
D112: TOTAL DO DESTAQUE DO 13º SALÁRIO | F112: =SUM(F108:F110) -> 413.05
D114: QUADRO-RESUMO DO CUSTO MENSAL POR EMPREGADO | E114: Valor
D115: Custo total - sem o 13º Salário | E115: =ROUND(E105,2) -> 7454.25
D116: Destaque do 13º Salário (valor mensal) | E116: =ROUND(F112,2) -> 413.05
D118: TOTAL DO POSTO | E118: =E115+E116 -> 7867.3

Sheet 5
B2: PLANILHA DE ESTIMATIVA DE CUSTOS
B3: Padrão IN 05/2017 e IN 07/2018 - MPDG
B5: 5 | D5: =HLOOKUP($B$5,'Dados Gerais'!$D$6:$BI$22,6) -> BOMBEIRO HIDRÁULICO DE MANUTENÇÃO II | E5: QUANTIDADE | F5: =HLOOKUP($B$5,'Dados Gerais'!$D$6:$BI$22,10) -> 6
B6: CCT | D6: =HLOOKUP($B$5,'Dados Gerais'!$D$6:$BI$22,16) -> SINDUSCON/DF x STICOMBE/DF CCT 2024/2025 N.º DF000276/2024 | E6: DATA-BASE | F6: =HLOOKUP($B$5,'Dados Gerais'!$D$6:$BI$22,17) -> 2024-05-01
B8: MÓDULO 1 - COMPOSIÇÃO DA REMUNERAÇÃO | F8: Valor
C9: A | D9: Salário-Base | F9: =HLOOKUP($B$5,'Dados Gerais'!$D$6:$BI$22,8) -> 3240.37
C10: B | D10: Adicional de Periculosidade | F10: =HLOOKUP($B$5,'Dados Gerais'!$D$6:$BI$39,26) -> 0
C11: C | D11: Adicional de Insalubridade | F11: =HLOOKUP($B$5,'Dados Gerais'!$D$6:$BI$39,32) -> 564.8
C12: D | D12: Adicional Noturno | F12: =HLOOKUP($B$5,'Dados Gerais'!$D$6:$BI$52,47) -> 0 | H12: * Nota 1 - O Módulo 1 refere-se ao valor mensal devido ao empregado pela prestação do serviço no período de 12 meses.
C13: E | D13: Adicional de Hora Extra | F13: =HLOOKUP($B$5,'Dados Gerais'!$D$6:$BI$69,64) -> 0 | H13: * Nota 2 - O adicional de hora extra no feriado trabalhado foi suprimido pela Lei 13.467/17
C14: F | D14: Outros (adicional de sobreaviso) | F14: =HLOOKUP($B$5,'Dados Gerais'!$D$6:$BI$69,34) -> 0 | H14: * Nota 3 - ART. 7º, § 2º, DA LEI Nº 605/49.Sendo mensalista o obreiro, o adicional noturno pago de forma fixa já é considerado integrado para os efeitos do pagamento do repouso semanal remunerado, nos termos do art. 7º, § 2º, da Lei nº 605/49.
D16: TOTAL DA REMUNERAÇÃO | F16: =SUM(F9:F14) -> 3805.17
B18: MÓDULO 2 - ENCARGOS E BENEFÍCIOS ANUAIS, MENSAIS E DIÁRIOS | E18: Percentuais | F18: Valor
B19: Submódulo 2.1 - 13º Salário, Férias e Adicional de Férias
C20: A | D20: 13º Salário - Calculado no Módulo 7 - Destacado | E20: 0 | F20: =ROUND(E20*F$16,2) -> 0
C21: B | D21: Férias e Adicional de Férias | E21: ='Encargos Sociais'!E25+'Encargos Sociais'!E31 -> 0.1212 | F21: =ROUND(E21*F$16,2) -> 461.19 | H21: * Nota 1 - Provisiona-se, mensalmente, o proporcional a 1/12 dos valores referentes a gratificação natalina, férias e adicional de férias.
H22: * Nota 2 - O adicional de férias contido no Submódulo 2.1 corresponde a 1/3 da remuneração que, por sua vez, é dividida por 12 contome Nota 1.
B23: Submódulo 2.2 - Encargos Previdenciários (GPS), Fundo de Garantia por Tempo de Serviço (FGTS) e Outras Contribuições
C24: A | D24: INSS (art. 22, inciso I, Lei nº 8.212/91) | E24: ='Encargos Sociais'!E14 -> 0 | F24: =ROUND(E24*($F$16+$F$41+$F$73),2) -> 0
C25: B | D25: Salário Educação (art. 3º, inciso I, Decreto nº 87.043/82) | E25: ='Encargos Sociais'!E15 -> 0.025 | F25: =ROUND(E25*($F$16+$F$41+$F$73),2) -> 108.56
C26: C | D26: SAT/RAT (art. 22, II, Lei 8.212/91 e Anexo V, Decreto 6.042/07) - Enquadramento 8211-3/00 | E26: ='Encargos Sociais'!E16 -> 0.03 | F26: 130.27
C27: D | D27: SESC ou SESI (art. 30, Lei nº 8.036/90 e art. 1º, Lei 8.154/90) | E27: ='Encargos Sociais'!E17 -> 0.015 | F27: 65.14
C28: E | D28: SENAI ou SENAC (Decreto nº 2.318/86) | E28: ='Encargos Sociais'!E18 -> 0.01 | F28: 43.42
C29: F | D29: SEBRAE (§ 3º, art. 8º, Lei 8.029/90, alterada pela Lei nº 8.154/90) | E29: ='Encargos Sociais'!E19 -> 0.006 | F29: 26.05
C30: G | D30: INCRA (art. 1º, I, Decreto Lei 1.146/70 e Lei 7.787, de 30/06/89) | E30: ='Encargos Sociais'!E20 -> 0.002 | F30: 8.68 | H30: * Nota 1 - Os percentuais dos encargos previdenciários, do FGTS e demais contribuições são estabelecidos por legislação vigente.
C31: H | D31: FGTS (Lei Complementar nº 110/01 e art. 30, Lei nº 8.036/90) | E31: ='Encargos Sociais'!E21 -> 0.08 | F31: 347.4 | H31: * Nota 2 - O SAT, a depender do grau de risco do serviço, irá variar entre 1%, para risco leve, de 2%, para risco médio, e de 3% para risco grave.
C32: I | D32: SECONCI (Convenções Coletivas de Trabalho da construção) | E32: ='Encargos Sociais'!E22 -> 0.01 | F32: 43.42 | H32: * Nota 3 - Os percentuais do Submódulo 2.2 incidem sobre o Módulo 1 e o Submódulo 2.1.
B34: Submódulo 2.3 - Benefícios Mensais e Diários
C35: A | D35: Auxílio Transporte | F35: =HLOOKUP($B$5,'Dados Gerais'!$D$6:$BI$95,83) -> 488.59
C36: B | D36: Auxílio Alimentação | F36: =HLOOKUP($B$5,'Dados Gerais'!$D$6:$BI$95,90) -> 770
C37: C | D37: Assistência Médica e Familiar | F37: =HLOOKUP($B$5,'Dados Gerais'!$D$6:$BI$103,98) -> 0
C38: D | D38: Outros (Seguro de vida, auxílio funeral, auxílio odontológico e auxílio creche) | F38: =HLOOKUP($B$5,'Dados Gerais'!$D$6:$BI$121,115) -> 13.95 | H38: * Nota 1 - O valor informado deverá ser o custo real do benefício (descontado o valor eventualmente pago pelo empregado).
H39: * Nota 2 - Observar a previsão dos benefícios contidos em Acordos, Convenções e Dissídios Coletivos de Trabalho e o disposto no art. 6º da IN 5/2017
D40: QUADRO-RESUMO DO MÓDULO 2
D41: 2.1 - 13º Salário, Férias e Adicional de Férias - 13º Destacado - Calculado no Módulo 7 | E41: =SUM(E20:E21) -> 0.1212 | F41: =F20+F21 -> 461.19
D42: 2.2 - Encargos Previdenciários (GPS), Fundo de Garantia por Tempo de Serviço (FGTS) e Contribuições | E42: =SUM(E24:E32) -> 0.178 | F42: =SUM(F24:F32) -> 772.94
D43: 2.3 - Benefícios Mensais e Diários | F43: =SUM(F35:F38) -> 1272.54
D45: TOTAL DOS ENCARGOS E BENEFÍCIOS | F45: =SUM(F41:F43) -> 2506.67
B47: MÓDULO 3 - PREVISÃO PARA RESCISÃO | E47: Percentuais | F47: Valor
C48: A | D48: Aviso Prévio Indenizado (Art. 7º, inciso XXI, da CF/1988 e arts. 477, 487, §1º, e 491 da CLT) | E48: ='Encargos Sociais'!E36 -> 0.005 | F48: =ROUND(E48*$F$16,2) -> 19.03
C49: B | D49: Incidência do FGTS sobre o Aviso Prévio Indenizado (Súmula 305 TST) | E49: ='Encargos Sociais'!E37 -> 0.0004 | F49: 1.52 | H49: * Nota 1 - Adotou-se os parâmetros do estudo do STF (http://www.stf.jus.br/arquivo/cms/sobrestfestudosci/anexo/encargos_sociais_03102007.pdf), onde 5% do pessoal é demitido pelo empregador no decurso do contrato (para estes, considerou-se o aviso prévio indenizado). Desprezou-se as demissões por justa causa e os pedidos de demissão.
C50: C | D50: Multa do FGTS e Contribuição Social sobre o Aviso Prévio Indenizado (Art. 18, §1º, da Lei 8.036/1990 e art. 1º da LC nº 110/2001) | E50: ='Encargos Sociais'!E38 -> 0.0019 | F50: 7.23 | H50: * Nota 2 - No cálculo do percentual, considerou-se 36 dias, correspondendo à metade da duração média dos contratos (2 anos)
C51: D | D51: Aviso Prévio Trabalhado (Art. 488, parágrafo único, CLT) | E51: ='Encargos Sociais'!E39 -> 0.012 | F51: 45.66 | H51: * Nota 3 - Incide sobre a Remuneração + 13º salário (1/12) + Férias (1/12) + Adicional de Férias (1/36) x 50% multa (40% para o empregado e 10% de contribuição social) x 8% FGTS
C52: E | D52: Incidência de GPS, FGTS e outras contribuições sobre o Aviso Prévio Trabalhado | E52: ='Encargos Sociais'!E40 -> 0.0021 | F52: 7.99 | H52: * Nota 4 - Os 95% restantes do cálculo, a um prazo médio de contrato de 4 anos. Assim, calcula-se 7 dias para o 1º ano de contrato e mais 3 dias para os 3 anos seguintes.
C53: F | D53: Multa do FGTS e Contribuição Social sobre o Aviso Prévio Trabalhado | E53: ='Encargos Sociais'!E41 -> 0.0145 | F53: 55.17
D55: TOTAL DE PREVISÃO PARA RESCISÃO | F55: =SUM(F48:F53) -> 136.6
B57: MÓDULO 4 - CUSTO DO PROFISSIONAL AUSENTE | E57: Percentuais | F57: Valor
B58: Submódulo 4.1 - Ausências Legais
C59: A | D59: Férias (Arts. 129 e 130, inc. I, da CLT) - Calculado no Submódulo 2.1 | E59: 0 | F59: =ROUND(E59*$F$16,2) -> 0 | H59: * Nota 1 - As alíneas “A” a “F” referem-se somente ao custo que será pago ao repositor pelos dias trabalhados quando da necessidade de substituir a mão de obra alocada na prestação do serviço.
C60: B | D60: Ausências Legais (Arts. 131 e 473 da CLT) | E60: ='Encargos Sociais'!E26 -> 0.0079 | F60: 30.06 | H60: * Nota 2 - Adotou-se a estimativa do SINAPI de 2 dias por ano.
C61: C | D61: Licença-Paternidade (Art. 7º, XIX, e art. 10, §1º, do ADCT, CF/1988 e Art. 1º, II, da Lei 11.770/2008) | E61: ='Encargos Sociais'!E27 -> 0.0008 | F61: 3.04 | H61: * Nota 3 - Utilizada a proporção de 50% para homens, 5 dias de afastamento, e a probabilidade de um trabalhador requerer a Licença Paternidade em 5,22%, conforme SINAPI (citando dados da PNAD 2015)
C62: D | D62: Ausência por Acidente de Trabalho (Art. 131, III, da CLT) | E62: ='Encargos Sociais'!E28 -> 0.0009 | F62: 3.42 | H62: * Nota 4 - Utilzada a estatística de 1,96% dos contribuintes beneficiados com a emissão do auxílio, conforme Anuário Estatístico da Previdência Social. Afastamento de 15 dias a cargo da empresa.
C63: E | D63: Afastamento Maternidade (Art. 71 da Lei nº 8.213/1991) | E63: ='Encargos Sociais'!E29 -> 0.0033 | F63: 12.56 | H63: * Nota 5 - Utilizada a proporção de 50% para mulheres, 180 dias de afastamento, e a probabilidade de uma trabalhadora requerer a Licença Maternidade em 4,91%, conforme SINAPI (citando dados do IBGE 2016)
C64: F | D64: Auxílio Enfermidade - Doença (Art. 59 da Lei nº 8.213/1991) | E64: ='Encargos Sociais'!E30 -> 0.0071 | F64: 27.02 | H64: * Nota 6 - Utilizada a estatística de 3,37% dos contribuintes beneficiados com o auxílio, conforme Anuário Estatístico da Previdência Social de 2015 (acrescidos de 2 dias ao ano, para os quais o trabalhador nem requer o benefício da Previdência - conforme SINAPI)
B66: Submódulo 4.2 - Intrajornada
C67: A | D67: Intervalo para repouso ou alimentação | E67: ='Encargos Sociais'!E33 -> 0 | F67: =ROUND(E67*$F$16,2) -> 0
D69: QUADRO-RESUMO DO MÓDULO 4 | F69: Valor
D70: 4.1 - Ausências Legais | E70: =SUM(E59:E64) -> 0.02 | F70: =ROUND(E70*$F$16,2) -> 76.1
D71: 4.2 - Intrajornada | E71: =E67 -> 0 | F71: =ROUND(E71*$F$16,2) -> 0
D73: TOTAL DE PREVISÃO PARA RESCISÃO E INTERVALO INTRAJORNADA | F73: =SUM(F70:F71) -> 76.1
B75: MÓDULO 5 - INSUMOS DIVERSOS | F75: Valor
C76: A | D76: Uniformes - aquisição | F76: 0
C77: B | D77: Materiais de consumo relacionados ao posto - aquisição | F77: =ROUND(HLOOKUP(B5,'Mat Cons'!I11:DX13,3)/12,2) -> 0
C78: C | D78: Ferramentas relacionadas ao posto - remuneração da sua depreciação / manutenção | F78: =HLOOKUP(B5,'Relacion - Ferram'!Q3:EF5,3) -> 23.13
C79: D | D79: Equipamentos relacionados ao posto - remuneração da sua depreciação / manutenção | F79: =HLOOKUP(B5,'Equip Rel'!Q11:EF13,3) -> 0
C80: E | D80: Equipamentos de Proteção Individual - EPI - aquisição | F80: =ROUND(HLOOKUP(B5,EPI!I4:X6,3)/12,2) -> 0
D82: TOTAL DE INSUMOS DIVERSOS | F82: =SUM(F76:F81) -> 23.13 | H82: * Nota - Valores mensais por empregado
B84: MÓDULO 6 - CUSTOS INDIRETOS, TRIBUTOS E LUCRO - BDI | E84: Percentuais | F84: Valor
C85: A | D85: Custos Indiretos | E85: ='BDI - Geral'!E7 -> 0.0227
C86: A.1 | D86: Administração Central | E86: ='BDI - Geral'!E8 -> 0.0173
C87: A.2 | D87: Seguros, Garantias e Riscos | E87: ='BDI - Geral'!E9 -> 0.0054
C88: B | D88: Lucro | E88: ='BDI - Geral'!E11 -> 0.0267
C89: C | D89: Tributos | E89: =SUM(E90:E91) -> 0.169
C90: C.1 | D90: Tributos Federais (COFINS, PIS e CPRB) | E90: ='BDI - Geral'!E19 -> 0.119
C91: C.2 | D91: Tributos Distritais (ISS) | E91: ='BDI - Geral'!E24 -> 0.05 | H91: * Nota - Utilizou-se o indicado pelo Sindicato da Arquitetura e da Engenharia (Sinaenco, 2008, p. 22), que adota um percentual redutor de 20% no cálculo dos custos tributários relativos às contribuições PIS e COFINS
C92: D | D92: Despesas Financeiras | E92: ='BDI - Geral'!E14 -> 0.004367839439
D94: TOTAL DE BDI | E94: ='BDI - Geral'!E27 -> 0.2691 | F94: =ROUND(E94*E102,2) -> 1761.98
D96: QUADRO-RESUMO DO CUSTO MENSAL POR EMPREGADO - SEM O 13º | E96: Valor
D97: Módulo 1 - Composição da Remuneração | E97: =F16 -> 3805.17
D98: Módulo 2 - Encargos e Benefícios Anuais, Mensais e Diários | E98: =F45 -> 2506.67
D99: Módulo 3 - Provisão para Rescisão | E99: =F55 -> 136.6
D100: Módulo 4 - Custo de Reposição do Profissional Ausente | E100: =F73 -> 76.1
D101: Módulo 5 - Insumos Diversos | E101: =F82 -> 23.13
D102: SUBTOTAL (A+B+C+D+E) | E102: =SUM(E97:E101) -> 6547.67
D103: Módulo 6 - Custos Indiretos, Tributos e Lucro | E103: =F94 -> 1761.98
D105: TOTAL DO POSTO | E105: =SUM(E102:E103) -> 8309.65
B107: MÓDULO 7 - DESTAQUE DO MÓDULO 2 - 13º SALÁRIO | E107: Percentuais | F107: Valor
C108: A | D108: 13º Salário | E108: ='Encargos Sociais'!E32 -> 0.0833 | F108: =ROUND(E108*F$16,2) -> 316.97
C109: B | D109: Encargos Sociais sobre o 13º Salário - Taxa calculada no SUBMÓDULO 2.2 | E109: =SUM($E$24:$E$32) -> 0.178 | F109: =ROUND(E109*$F$108,2) -> 56.42 | H109: * Nota 1 - Provisiona-se, mensalmente, o proporcional a 1/12 dos valores referentes a gratificação natalina e adicional de férias.
C110: C | D110: BDI sobre o 13º Salário - Taxa calculada no MÓDULO 6 | E110: =E94 -> 0.2691 | F110: =ROUND(E110*($F$108+$F$109),2) -> 100.48
D112: TOTAL DO DESTAQUE DO 13º SALÁRIO | F112: =SUM(F108:F110) -> 473.87
D114: QUADRO-RESUMO DO CUSTO MENSAL POR EMPREGADO | E114: Valor
D115: Custo total - sem o 13º Salário | E115: =ROUND(E105,2) -> 8309.65
D116: Destaque do 13º Salário (valor mensal) | E116: =ROUND(F112,2) -> 473.87
D118: TOTAL DO POSTO | E118: =E115+E116 -> 8783.52

Sheet 6
B2: PLANILHA DE ESTIMATIVA DE CUSTOS
B3: Padrão IN 05/2017 e IN 07/2018 - MPDG
B5: 6 | D5: =HLOOKUP($B$5,'Dados Gerais'!$D$6:$BI$22,6) -> ELETRICISTA DE MANUTENÇÃO I | E5: QUANTIDADE | F5: =HLOOKUP($B$5,'Dados Gerais'!$D$6:$BI$22,10) -> 25
B6: CCT | D6: =HLOOKUP($B$5,'Dados Gerais'!$D$6:$BI$22,16) -> SINDUSCON/DF x STICOMBE/DF CCT 2024/2025 N.º DF000276/2024 | E6: DATA-BASE | F6: =HLOOKUP($B$5,'Dados Gerais'!$D$6:$BI$22,17) -> 2024-05-01
B8: MÓDULO 1 - COMPOSIÇÃO DA REMUNERAÇÃO | F8: Valor
C9: A | D9: Salário-Base | F9: =HLOOKUP($B$5,'Dados Gerais'!$D$6:$BI$22,8) -> 2752.02
C10: B | D10: Adicional de Periculosidade | F10: =HLOOKUP($B$5,'Dados Gerais'!$D$6:$BI$39,26) -> 825.61
C11: C | D11: Adicional de Insalubridade | F11: =HLOOKUP($B$5,'Dados Gerais'!$D$6:$BI$39,32) -> 0
C12: D | D12: Adicional Noturno | F12: =HLOOKUP($B$5,'Dados Gerais'!$D$6:$BI$52,47) -> 0 | H12: * Nota 1 - O Módulo 1 refere-se ao valor mensal devido ao empregado pela prestação do serviço no período de 12 meses.
C13: E | D13: Adicional de Hora Extra | F13: =HLOOKUP($B$5,'Dados Gerais'!$D$6:$BI$69,64) -> 0 | H13: * Nota 2 - O adicional de hora extra no feriado trabalhado foi suprimido pela Lei 13.467/17
C14: F | D14: Outros (adicional de sobreaviso) | F14: =HLOOKUP($B$5,'Dados Gerais'!$D$6:$BI$69,34) -> 0 | H14: * Nota 3 - ART. 7º, § 2º, DA LEI Nº 605/49.Sendo mensalista o obreiro, o adicional noturno pago de forma fixa já é considerado integrado para os efeitos do pagamento do repouso semanal remunerado, nos termos do art. 7º, § 2º, da Lei nº 605/49.
D16: TOTAL DA REMUNERAÇÃO | F16: =SUM(F9:F14) -> 3577.63
B18: MÓDULO 2 - ENCARGOS E BENEFÍCIOS ANUAIS, MENSAIS E DIÁRIOS | E18: Percentuais | F18: Valor
B19: Submódulo 2.1 - 13º Salário, Férias e Adicional de Férias
C20: A | D20: 13º Salário - Calculado no Módulo 7 - Destacado | E20: 0 | F20: =ROUND(E20*F$16,2) -> 0
C21: B | D21: Férias e Adicional de Férias | E21: ='Encargos Sociais'!E25+'Encargos Sociais'!E31 -> 0.1212 | F21: =ROUND(E21*F$16,2) -> 433.61 | H21: * Nota 1 - Provisiona-se, mensalmente, o proporcional a 1/12 dos valores referentes a gratificação natalina, férias e adicional de férias.
H22: * Nota 2 - O adicional de férias contido no Submódulo 2.1 corresponde a 1/3 da remuneração que, por sua vez, é dividida por 12 contome Nota 1.
B23: Submódulo 2.2 - Encargos Previdenciários (GPS), Fundo de Garantia por Tempo de Serviço (FGTS) e Outras Contribuições
C24: A | D24: INSS (art. 22, inciso I, Lei nº 8.212/91) | E24: ='Encargos Sociais'!E14 -> 0 | F24: =ROUND(E24*($F$16+$F$41+$F$73),2) -> 0
C25: B | D25: Salário Educação (art. 3º, inciso I, Decreto nº 87.043/82) | E25: ='Encargos Sociais'!E15 -> 0.025 | F25: =ROUND(E25*($F$16+$F$41+$F$73),2) -> 102.07
C26: C | D26: SAT/RAT (art. 22, II, Lei 8.212/91 e Anexo V, Decreto 6.042/07) - Enquadramento 8211-3/00 | E26: ='Encargos Sociais'!E16 -> 0.03 | F26: 122.48
C27: D | D27: SESC ou SESI (art. 30, Lei nº 8.036/90 e art. 1º, Lei 8.154/90) | E27: ='Encargos Sociais'!E17 -> 0.015 | F27: 61.24
C28: E | D28: SENAI ou SENAC (Decreto nº 2.318/86) | E28: ='Encargos Sociais'!E18 -> 0.01 | F28: 40.83
C29: F | D29: SEBRAE (§ 3º, art. 8º, Lei 8.029/90, alterada pela Lei nº 8.154/90) | E29: ='Encargos Sociais'!E19 -> 0.006 | F29: 24.5
C30: G | D30: INCRA (art. 1º, I, Decreto Lei 1.146/70 e Lei 7.787, de 30/06/89) | E30: ='Encargos Sociais'!E20 -> 0.002 | F30: 8.17 | H30: * Nota 1 - Os percentuais dos encargos previdenciários, do FGTS e demais contribuições são estabelecidos por legislação vigente.
C31: H | D31: FGTS (Lei Complementar nº 110/01 e art. 30, Lei nº 8.036/90) | E31: ='Encargos Sociais'!E21 -> 0.08 | F31: 326.62 | H31: * Nota 2 - O SAT, a depender do grau de risco do serviço, irá variar entre 1%, para risco leve, de 2%, para risco médio, e de 3% para risco grave.
C32: I | D32: SECONCI (Convenções Coletivas de Trabalho da construção) | E32: ='Encargos Sociais'!E22 -> 0.01 | F32: 40.83 | H32: * Nota 3 - Os percentuais do Submódulo 2.2 incidem sobre o Módulo 1 e o Submódulo 2.1.
B34: Submódulo 2.3 - Benefícios Mensais e Diários
C35: A | D35: Auxílio Transporte | F35: =HLOOKUP($B$5,'Dados Gerais'!$D$6:$BI$95,83) -> 488.59
C36: B | D36: Auxílio Alimentação | F36: =HLOOKUP($B$5,'Dados Gerais'!$D$6:$BI$95,90) -> 770
C37: C | D37: Assistência Médica e Familiar | F37: =HLOOKUP($B$5,'Dados Gerais'!$D$6:$BI$103,98) -> 0
C38: D | D38: Outros (Seguro de vida, auxílio funeral, auxílio odontológico e auxílio creche) | F38: =HLOOKUP($B$5,'Dados Gerais'!$D$6:$BI$121,115) -> 13.95 | H38: * Nota 1 - O valor informado deverá ser o custo real do benefício (descontado o valor eventualmente pago pelo empregado).
H39: * Nota 2 - Observar a previsão dos benefícios contidos em Acordos, Convenções e Dissídios Coletivos de Trabalho e o disposto no art. 6º da IN 5/2017
D40: QUADRO-RESUMO DO MÓDULO 2
D41: 2.1 - 13º Salário, Férias e Adicional de Férias - 13º Destacado - Calculado no Módulo 7 | E41: =SUM(E20:E21) -> 0.1212 | F41: =F20+F21 -> 433.61
D42: 2.2 - Encargos Previdenciários (GPS), Fundo de Garantia por Tempo de Serviço (FGTS) e Contribuições | E42: =SUM(E24:E32) -> 0.178 | F42: =SUM(F24:F32) -> 726.74
D43: 2.3 - Benefícios Mensais e Diários | F43: =SUM(F35:F38) -> 1272.54
D45: TOTAL DOS ENCARGOS E BENEFÍCIOS | F45: =SUM(F41:F43) -> 2432.89
B47: MÓDULO 3 - PREVISÃO PARA RESCISÃO | E47: Percentuais | F47: Valor
C48: A | D48: Aviso Prévio Indenizado (Art. 7º, inciso XXI, da CF/1988 e arts. 477, 487, §1º, e 491 da CLT) | E48: ='Encargos Sociais'!E36 -> 0.005 | F48: =ROUND(E48*$F$16,2) -> 17.89
C49: B | D49: Incidência do FGTS sobre o Aviso Prévio Indenizado (Súmula 305 TST) | E49: ='Encargos Sociais'!E37 -> 0.0004 | F49: 1.43 | H49: * Nota 1 - Adotou-se os parâmetros do estudo do STF (http://www.stf.jus.br/arquivo/cms/sobrestfestudosci/anexo/encargos_sociais_03102007.pdf), onde 5% do pessoal é demitido pelo empregador no decurso do contrato (para estes, considerou-se o aviso prévio indenizado). Desprezou-se as demissões por justa causa e os pedidos de demissão.
C50: C | D50: Multa do FGTS e Contribuição Social sobre o Aviso Prévio Indenizado (Art. 18, §1º, da Lei 8.036/1990 e art. 1º da LC nº 110/2001) | E50: ='Encargos Sociais'!E38 -> 0.0019 | F50: 6.8 | H50: * Nota 2 - No cálculo do percentual, considerou-se 36 dias, correspondendo à metade da duração média dos contratos (2 anos)
C51: D | D51: Aviso Prévio Trabalhado (Art. 488, parágrafo único, CLT) | E51: ='Encargos Sociais'!E39 -> 0.012 | F51: 42.93 | H51: * Nota 3 - Incide sobre a Remuneração + 13º salário (1/12) + Férias (1/12) + Adicional de Férias (1/36) x 50% multa (40% para o empregado e 10% de contribuição social) x 8% FGTS
C52: E | D52: Incidência de GPS, FGTS e outras contribuições sobre o Aviso Prévio Trabalhado | E52: ='Encargos Sociais'!E40 -> 0.0021 | F52: 7.51 | H52: * Nota 4 - Os 95% restantes do cálculo, a um prazo médio de contrato de 4 anos. Assim, calcula-se 7 dias para o 1º ano de contrato e mais 3 dias para os 3 anos seguintes.
C53: F | D53: Multa do FGTS e Contribuição Social sobre o Aviso Prévio Trabalhado | E53: ='Encargos Sociais'!E41 -> 0.0145 | F53: 51.88
D55: TOTAL DE PREVISÃO PARA RESCISÃO | F55: =SUM(F48:F53) -> 128.44
B57: MÓDULO 4 - CUSTO DO PROFISSIONAL AUSENTE | E57: Percentuais | F57: Valor
B58: Submódulo 4.1 - Ausências Legais
C59: A | D59: Férias (Arts. 129 e 130, inc. I, da CLT) - Calculado no Submódulo 2.1 | E59: 0 | F59: =ROUND(E59*$F$16,2) -> 0 | H59: * Nota 1 - As alíneas “A” a “F” referem-se somente ao custo que será pago ao repositor pelos dias trabalhados quando da necessidade de substituir a mão de obra alocada na prestação do serviço.
C60: B | D60: Ausências Legais (Arts. 131 e 473 da CLT) | E60: ='Encargos Sociais'!E26 -> 0.0079 | F60: 28.26 | H60: * Nota 2 - Adotou-se a estimativa do SINAPI de 2 dias por ano.
C61: C | D61: Licença-Paternidade (Art. 7º, XIX, e art. 10, §1º, do ADCT, CF/1988 e Art. 1º, II, da Lei 11.770/2008) | E61: ='Encargos Sociais'!E27 -> 0.0008 | F61: 2.86 | H61: * Nota 3 - Utilizada a proporção de 50% para homens, 5 dias de afastamento, e a probabilidade de um trabalhador requerer a Licença Paternidade em 5,22%, conforme SINAPI (citando dados da PNAD 2015)
C62: D | D62: Ausência por Acidente de Trabalho (Art. 131, III, da CLT) | E62: ='Encargos Sociais'!E28 -> 0.0009 | F62: 3.22 | H62: * Nota 4 - Utilzada a estatística de 1,96% dos contribuintes beneficiados com a emissão do auxílio, conforme Anuário Estatístico da Previdência Social. Afastamento de 15 dias a cargo da empresa.
C63: E | D63: Afastamento Maternidade (Art. 71 da Lei nº 8.213/1991) | E63: ='Encargos Sociais'!E29 -> 0.0033 | F63: 11.81 | H63: * Nota 5 - Utilizada a proporção de 50% para mulheres, 180 dias de afastamento, e a probabilidade de uma trabalhadora requerer a Licença Maternidade em 4,91%, conforme SINAPI (citando dados do IBGE 2016)
C64: F | D64: Auxílio Enfermidade - Doença (Art. 59 da Lei nº 8.213/1991) | E64: ='Encargos Sociais'!E30 -> 0.0071 | F64: 25.4 | H64: * Nota 6 - Utilizada a estatística de 3,37% dos contribuintes beneficiados com o auxílio, conforme Anuário Estatístico da Previdência Social de 2015 (acrescidos de 2 dias ao ano, para os quais o trabalhador nem requer o benefício da Previdência - conforme SINAPI)
B66: Submódulo 4.2 - Intrajornada
C67: A | D67: Intervalo para repouso ou alimentação | E67: ='Encargos Sociais'!E33 -> 0 | F67: =ROUND(E67*$F$16,2) -> 0
D69: QUADRO-RESUMO DO MÓDULO 4 | F69: Valor
D70: 4.1 - Ausências Legais | E70: =SUM(E59:E64) -> 0.02 | F70: =ROUND(E70*$F$16,2) -> 71.55
D71: 4.2 - Intrajornada | E71: =E67 -> 0 | F71: =ROUND(E71*$F$16,2) -> 0
D73: TOTAL DE PREVISÃO PARA RESCISÃO E INTERVALO INTRAJORNADA | F73: =SUM(F70:F71) -> 71.55
B75: MÓDULO 5 - INSUMOS DIVERSOS | F75: Valor
C76: A | D76: Uniformes - aquisição | F76: 0
C77: B | D77: Materiais de consumo relacionados ao posto - aquisição | F77: =ROUND(HLOOKUP(B5,'Mat Cons'!I11:DX13,3)/12,2) -> 0
C78: C | D78: Ferramentas relacionadas ao posto - remuneração da sua depreciação / manutenção | F78: =HLOOKUP(B5,'Relacion - Ferram'!Q3:EF5,3) -> 20.34
C79: D | D79: Equipamentos relacionados ao posto - remuneração da sua depreciação / manutenção | F79: =HLOOKUP(B5,'Equip Rel'!Q11:EF13,3) -> 0
C80: E | D80: Equipamentos de Proteção Individual - EPI - aquisição | F80: =ROUND(HLOOKUP(B5,EPI!I4:X6,3)/12,2) -> 0
D82: TOTAL DE INSUMOS DIVERSOS | F82: =SUM(F76:F81) -> 20.34 | H82: * Nota - Valores mensais por empregado
B84: MÓDULO 6 - CUSTOS INDIRETOS, TRIBUTOS E LUCRO - BDI | E84: Percentuais | F84: Valor
C85: A | D85: Custos Indiretos | E85: ='BDI - Geral'!E7 -> 0.0227
C86: A.1 | D86: Administração Central | E86: ='BDI - Geral'!E8 -> 0.0173
C87: A.2 | D87: Seguros, Garantias e Riscos | E87: ='BDI - Geral'!E9 -> 0.0054
C88: B | D88: Lucro | E88: ='BDI - Geral'!E11 -> 0.0267
C89: C | D89: Tributos | E89: =SUM(E90:E91) -> 0.169
C90: C.1 | D90: Tributos Federais (COFINS, PIS e CPRB) | E90: ='BDI - Geral'!E19 -> 0.119
C91: C.2 | D91: Tributos Distritais (ISS) | E91: ='BDI - Geral'!E24 -> 0.05 | H91: * Nota - Utilizou-se o indicado pelo Sindicato da Arquitetura e da Engenharia (Sinaenco, 2008, p. 22), que adota um percentual redutor de 20% no cálculo dos custos tributários relativos às contribuições PIS e COFINS
C92: D | D92: Despesas Financeiras | E92: ='BDI - Geral'!E14 -> 0.004367839439
D94: TOTAL DE BDI | E94: ='BDI - Geral'!E27 -> 0.2691 | F94: =ROUND(E94*E102,2) -> 1676.72
D96: QUADRO-RESUMO DO CUSTO MENSAL POR EMPREGADO - SEM O 13º | E96: Valor
D97: Módulo 1 - Composição da Remuneração | E97: =F16 -> 3577.63
D98: Módulo 2 - Encargos e Benefícios Anuais, Mensais e Diários | E98: =F45 -> 2432.89
D99: Módulo 3 - Provisão para Rescisão | E99: =F55 -> 128.44
D100: Módulo 4 - Custo de Reposição do Profissional Ausente | E100: =F73 -> 71.55
D101: Módulo 5 - Insumos Diversos | E101: =F82 -> 20.34
D102: SUBTOTAL (A+B+C+D+E) | E102: =SUM(E97:E101) -> 6230.85
D103: Módulo 6 - Custos Indiretos, Tributos e Lucro | E103: =F94 -> 1676.72
D105: TOTAL DO POSTO | E105: =SUM(E102:E103) -> 7907.57
B107: MÓDULO 7 - DESTAQUE DO MÓDULO 2 - 13º SALÁRIO | E107: Percentuais | F107: Valor
C108: A | D108: 13º Salário | E108: ='Encargos Sociais'!E32 -> 0.0833 | F108: =ROUND(E108*F$16,2) -> 298.02
C109: B | D109: Encargos Sociais sobre o 13º Salário - Taxa calculada no SUBMÓDULO 2.2 | E109: =SUM($E$24:$E$32) -> 0.178 | F109: =ROUND(E109*$F$108,2) -> 53.05 | H109: * Nota 1 - Provisiona-se, mensalmente, o proporcional a 1/12 dos valores referentes a gratificação natalina e adicional de férias.
C110: C | D110: BDI sobre o 13º Salário - Taxa calculada no MÓDULO 6 | E110: =E94 -> 0.2691 | F110: =ROUND(E110*($F$108+$F$109),2) -> 94.47
D112: TOTAL DO DESTAQUE DO 13º SALÁRIO | F112: =SUM(F108:F110) -> 445.54
D114: QUADRO-RESUMO DO CUSTO MENSAL POR EMPREGADO | E114: Valor
D115: Custo total - sem o 13º Salário | E115: =ROUND(E105,2) -> 7907.57
D116: Destaque do 13º Salário (valor mensal) | E116: =ROUND(F112,2) -> 445.54
D118: TOTAL DO POSTO | E118: =E115+E116 -> 8353.11

Sheet 7
B2: PLANILHA DE ESTIMATIVA DE CUSTOS
B3: Padrão IN 05/2017 e IN 07/2018 - MPDG
B5: 7 | D5: =HLOOKUP($B$5,'Dados Gerais'!$D$6:$BI$22,6) -> ELETRICISTA DE MANUTENÇÃO II | E5: QUANTIDADE | F5: =HLOOKUP($B$5,'Dados Gerais'!$D$6:$BI$22,10) -> 9
B6: CCT | D6: =HLOOKUP($B$5,'Dados Gerais'!$D$6:$BI$22,16) -> SINDUSCON/DF x STICOMBE/DF CCT 2024/2025 N.º DF000276/2024 | E6: DATA-BASE | F6: =HLOOKUP($B$5,'Dados Gerais'!$D$6:$BI$22,17) -> 2024-05-01
B8: MÓDULO 1 - COMPOSIÇÃO DA REMUNERAÇÃO | F8: Valor
C9: A | D9: Salário-Base | F9: =HLOOKUP($B$5,'Dados Gerais'!$D$6:$BI$22,8) -> 3240.37
C10: B | D10: Adicional de Periculosidade | F10: =HLOOKUP($B$5,'Dados Gerais'!$D$6:$BI$39,26) -> 972.11
C11: C | D11: Adicional de Insalubridade | F11: =HLOOKUP($B$5,'Dados Gerais'!$D$6:$BI$39,32) -> 0
C12: D | D12: Adicional Noturno | F12: =HLOOKUP($B$5,'Dados Gerais'!$D$6:$BI$52,47) -> 0 | H12: * Nota 1 - O Módulo 1 refere-se ao valor mensal devido ao empregado pela prestação do serviço no período de 12 meses.
C13: E | D13: Adicional de Hora Extra | F13: =HLOOKUP($B$5,'Dados Gerais'!$D$6:$BI$69,64) -> 0 | H13: * Nota 2 - O adicional de hora extra no feriado trabalhado foi suprimido pela Lei 13.467/17
C14: F | D14: Outros (adicional de sobreaviso) | F14: =HLOOKUP($B$5,'Dados Gerais'!$D$6:$BI$69,34) -> 0 | H14: * Nota 3 - ART. 7º, § 2º, DA LEI Nº 605/49.Sendo mensalista o obreiro, o adicional noturno pago de forma fixa já é considerado integrado para os efeitos do pagamento do repouso semanal remunerado, nos termos do art. 7º, § 2º, da Lei nº 605/49.
D16: TOTAL DA REMUNERAÇÃO | F16: =SUM(F9:F14) -> 4212.48
B18: MÓDULO 2 - ENCARGOS E BENEFÍCIOS ANUAIS, MENSAIS E DIÁRIOS | E18: Percentuais | F18: Valor
B19: Submódulo 2.1 - 13º Salário, Férias e Adicional de Férias
C20: A | D20: 13º Salário - Calculado no Módulo 7 - Destacado | E20: 0 | F20: =ROUND(E20*F$16,2) -> 0
C21: B | D21: Férias e Adicional de Férias | E21: ='Encargos Sociais'!E25+'Encargos Sociais'!E31 -> 0.1212 | F21: =ROUND(E21*F$16,2) -> 510.55 | H21: * Nota 1 - Provisiona-se, mensalmente, o proporcional a 1/12 dos valores referentes a gratificação natalina, férias e adicional de férias.
H22: * Nota 2 - O adicional de férias contido no Submódulo 2.1 corresponde a 1/3 da remuneração que, por sua vez, é dividida por 12 contome Nota 1.
B23: Submódulo 2.2 - Encargos Previdenciários (GPS), Fundo de Garantia por Tempo de Serviço (FGTS) e Outras Contribuições
C24: A | D24: INSS (art. 22, inciso I, Lei nº 8.212/91) | E24: ='Encargos Sociais'!E14 -> 0 | F24: =ROUND(E24*($F$16+$F$41+$F$73),2) -> 0
C25: B | D25: Salário Educação (art. 3º, inciso I, Decreto nº 87.043/82) | E25: ='Encargos Sociais'!E15 -> 0.025 | F25: =ROUND(E25*($F$16+$F$41+$F$73),2) -> 120.18
C26: C | D26: SAT/RAT (art. 22, II, Lei 8.212/91 e Anexo V, Decreto 6.042/07) - Enquadramento 8211-3/00 | E26: ='Encargos Sociais'!E16 -> 0.03 | F26: 144.22
C27: D | D27: SESC ou SESI (art. 30, Lei nº 8.036/90 e art. 1º, Lei 8.154/90) | E27: ='Encargos Sociais'!E17 -> 0.015 | F27: 72.11
C28: E | D28: SENAI ou SENAC (Decreto nº 2.318/86) | E28: ='Encargos Sociais'!E18 -> 0.01 | F28: 48.07
C29: F | D29: SEBRAE (§ 3º, art. 8º, Lei 8.029/90, alterada pela Lei nº 8.154/90) | E29: ='Encargos Sociais'!E19 -> 0.006 | F29: 28.84
C30: G | D30: INCRA (art. 1º, I, Decreto Lei 1.146/70 e Lei 7.787, de 30/06/89) | E30: ='Encargos Sociais'!E20 -> 0.002 | F30: 9.61 | H30: * Nota 1 - Os percentuais dos encargos previdenciários, do FGTS e demais contribuições são estabelecidos por legislação vigente.
C31: H | D31: FGTS (Lei Complementar nº 110/01 e art. 30, Lei nº 8.036/90) | E31: ='Encargos Sociais'!E21 -> 0.08 | F31: 384.58 | H31: * Nota 2 - O SAT, a depender do grau de risco do serviço, irá variar entre 1%, para risco leve, de 2%, para risco médio, e de 3% para risco grave.
C32: I | D32: SECONCI (Convenções Coletivas de Trabalho da construção) | E32: ='Encargos Sociais'!E22 -> 0.01 | F32: 48.07 | H32: * Nota 3 - Os percentuais do Submódulo 2.2 incidem sobre o Módulo 1 e o Submódulo 2.1.
B34: Submódulo 2.3 - Benefícios Mensais e Diários
C35: A | D35: Auxílio Transporte | F35: =HLOOKUP($B$5,'Dados Gerais'!$D$6:$BI$95,83) -> 488.59
C36: B | D36: Auxílio Alimentação | F36: =HLOOKUP($B$5,'Dados Gerais'!$D$6:$BI$95,90) -> 770
C37: C | D37: Assistência Médica e Familiar | F37: =HLOOKUP($B$5,'Dados Gerais'!$D$6:$BI$103,98) -> 0
C38: D | D38: Outros (Seguro de vida, auxílio funeral, auxílio odontológico e auxílio creche) | F38: =HLOOKUP($B$5,'Dados Gerais'!$D$6:$BI$121,115) -> 13.95 | H38: * Nota 1 - O valor informado deverá ser o custo real do benefício (descontado o valor eventualmente pago pelo empregado).
H39: * Nota 2 - Observar a previsão dos benefícios contidos em Acordos, Convenções e Dissídios Coletivos de Trabalho e o disposto no art. 6º da IN 5/2017
D40: QUADRO-RESUMO DO MÓDULO 2
D41: 2.1 - 13º Salário, Férias e Adicional de Férias - 13º Destacado - Calculado no Módulo 7 | E41: =SUM(E20:E21) -> 0.1212 | F41: =F20+F21 -> 510.55
D42: 2.2 - Encargos Previdenciários (GPS), Fundo de Garantia por Tempo de Serviço (FGTS) e Contribuições | E42: =SUM(E24:E32) -> 0.178 | F42: =SUM(F24:F32) -> 855.68
D43: 2.3 - Benefícios Mensais e Diários | F43: =SUM(F35:F38) -> 1272.54
D45: TOTAL DOS ENCARGOS E BENEFÍCIOS | F45: =SUM(F41:F43) -> 2638.77
B47: MÓDULO 3 - PREVISÃO PARA RESCISÃO | E47: Percentuais | F47: Valor
C48: A | D48: Aviso Prévio Indenizado (Art. 7º, inciso XXI, da CF/1988 e arts. 477, 487, §1º, e 491 da CLT) | E48: ='Encargos Sociais'!E36 -> 0.005 | F48: =ROUND(E48*$F$16,2) -> 21.06
C49: B | D49: Incidência do FGTS sobre o Aviso Prévio Indenizado (Súmula 305 TST) | E49: ='Encargos Sociais'!E37 -> 0.0004 | F49: 1.68 | H49: * Nota 1 - Adotou-se os parâmetros do estudo do STF (http://www.stf.jus.br/arquivo/cms/sobrestfestudosci/anexo/encargos_sociais_03102007.pdf), onde 5% do pessoal é demitido pelo empregador no decurso do contrato (para estes, considerou-se o aviso prévio indenizado). Desprezou-se as demissões por justa causa e os pedidos de demissão.
C50: C | D50: Multa do FGTS e Contribuição Social sobre o Aviso Prévio Indenizado (Art. 18, §1º, da Lei 8.036/1990 e art. 1º da LC nº 110/2001) | E50: ='Encargos Sociais'!E38 -> 0.0019 | F50: 8 | H50: * Nota 2 - No cálculo do percentual, considerou-se 36 dias, correspondendo à metade da duração média dos contratos (2 anos)
C51: D | D51: Aviso Prévio Trabalhado (Art. 488, parágrafo único, CLT) | E51: ='Encargos Sociais'!E39 -> 0.012 | F51: 50.55 | H51: * Nota 3 - Incide sobre a Remuneração + 13º salário (1/12) + Férias (1/12) + Adicional de Férias (1/36) x 50% multa (40% para o empregado e 10% de contribuição social) x 8% FGTS
C52: E | D52: Incidência de GPS, FGTS e outras contribuições sobre o Aviso Prévio Trabalhado | E52: ='Encargos Sociais'!E40 -> 0.0021 | F52: 8.85 | H52: * Nota 4 - Os 95% restantes do cálculo, a um prazo médio de contrato de 4 anos. Assim, calcula-se 7 dias para o 1º ano de contrato e mais 3 dias para os 3 anos seguintes.
C53: F | D53: Multa do FGTS e Contribuição Social sobre o Aviso Prévio Trabalhado | E53: ='Encargos Sociais'!E41 -> 0.0145 | F53: 61.08
D55: TOTAL DE PREVISÃO PARA RESCISÃO | F55: =SUM(F48:F53) -> 151.22
B57: MÓDULO 4 - CUSTO DO PROFISSIONAL AUSENTE | E57: Percentuais | F57: Valor
B58: Submódulo 4.1 - Ausências Legais
C59: A | D59: Férias (Arts. 129 e 130, inc. I, da CLT) - Calculado no Submódulo 2.1 | E59: 0 | F59: =ROUND(E59*$F$16,2) -> 0 | H59: * Nota 1 - As alíneas “A” a “F” referem-se somente ao custo que será pago ao repositor pelos dias trabalhados quando da necessidade de substituir a mão de obra alocada na prestação do serviço.
C60: B | D60: Ausências Legais (Arts. 131 e 473 da CLT) | E60: ='Encargos Sociais'!E26 -> 0.0079 | F60: 33.28 | H60: * Nota 2 - Adotou-se a estimativa do SINAPI de 2 dias por ano.
C61: C | D61: Licença-Paternidade (Art. 7º, XIX, e art. 10, §1º, do ADCT, CF/1988 e Art. 1º, II, da Lei 11.770/2008) | E61: ='Encargos Sociais'!E27 -> 0.0008 | F61: 3.37 | H61: * Nota 3 - Utilizada a proporção de 50% para homens, 5 dias de afastamento, e a probabilidade de um trabalhador requerer a Licença Paternidade em 5,22%, conforme SINAPI (citando dados da PNAD 2015)
C62: D | D62: Ausência por Acidente de Trabalho (Art. 131, III, da CLT) | E62: ='Encargos Sociais'!E28 -> 0.0009 | F62: 3.79 | H62: * Nota 4 - Utilzada a estatística de 1,96% dos contribuintes beneficiados com a emissão do auxílio, conforme Anuário Estatístico da Previdência Social. Afastamento de 15 dias a cargo da empresa.
C63: E | D63: Afastamento Maternidade (Art. 71 da Lei nº 8.213/1991) | E63: ='Encargos Sociais'!E29 -> 0.0033 | F63: 13.9 | H63: * Nota 5 - Utilizada a proporção de 50% para mulheres, 180 dias de afastamento, e a probabilidade de uma trabalhadora requerer a Licença Maternidade em 4,91%, conforme SINAPI (citando dados do IBGE 2016)
C64: F | D64: Auxílio Enfermidade - Doença (Art. 59 da Lei nº 8.213/1991) | E64: ='Encargos Sociais'!E30 -> 0.0071 | F64: 29.91 | H64: * Nota 6 - Utilizada a estatística de 3,37% dos contribuintes beneficiados com o auxílio, conforme Anuário Estatístico da Previdência Social de 2015 (acrescidos de 2 dias ao ano, para os quais o trabalhador nem requer o benefício da Previdência - conforme SINAPI)
B66: Submódulo 4.2 - Intrajornada
C67: A | D67: Intervalo para repouso ou alimentação | E67: ='Encargos Sociais'!E33 -> 0 | F67: =ROUND(E67*$F$16,2) -> 0
D69: QUADRO-RESUMO DO MÓDULO 4 | F69: Valor
D70: 4.1 - Ausências Legais | E70: =SUM(E59:E64) -> 0.02 | F70: =ROUND(E70*$F$16,2) -> 84.25
D71: 4.2 - Intrajornada | E71: =E67 -> 0 | F71: =ROUND(E71*$F$16,2) -> 0
D73: TOTAL DE PREVISÃO PARA RESCISÃO E INTERVALO INTRAJORNADA | F73: =SUM(F70:F71) -> 84.25
B75: MÓDULO 5 - INSUMOS DIVERSOS | F75: Valor
C76: A | D76: Uniformes - aquisição | F76: 0
C77: B | D77: Materiais de consumo relacionados ao posto - aquisição | F77: =ROUND(HLOOKUP(B5,'Mat Cons'!I11:DX13,3)/12,2) -> 0
C78: C | D78: Ferramentas relacionadas ao posto - remuneração da sua depreciação / manutenção | F78: =HLOOKUP(B5,'Relacion - Ferram'!Q3:EF5,3) -> 42.49
C79: D | D79: Equipamentos relacionados ao posto - remuneração da sua depreciação / manutenção | F79: =HLOOKUP(B5,'Equip Rel'!Q11:EF13,3) -> 0
C80: E | D80: Equipamentos de Proteção Individual - EPI - aquisição | F80: =ROUND(HLOOKUP(B5,EPI!I4:X6,3)/12,2) -> 0
D82: TOTAL DE INSUMOS DIVERSOS | F82: =SUM(F76:F81) -> 42.49 | H82: * Nota - Valores mensais por empregado
B84: MÓDULO 6 - CUSTOS INDIRETOS, TRIBUTOS E LUCRO - BDI | E84: Percentuais | F84: Valor
C85: A | D85: Custos Indiretos | E85: ='BDI - Geral'!E7 -> 0.0227
C86: A.1 | D86: Administração Central | E86: ='BDI - Geral'!E8 -> 0.0173
C87: A.2 | D87: Seguros, Garantias e Riscos | E87: ='BDI - Geral'!E9 -> 0.0054
C88: B | D88: Lucro | E88: ='BDI - Geral'!E11 -> 0.0267
C89: C | D89: Tributos | E89: =SUM(E90:E91) -> 0.169
C90: C.1 | D90: Tributos Federais (COFINS, PIS e CPRB) | E90: ='BDI - Geral'!E19 -> 0.119
C91: C.2 | D91: Tributos Distritais (ISS) | E91: ='BDI - Geral'!E24 -> 0.05 | H91: * Nota - Utilizou-se o indicado pelo Sindicato da Arquitetura e da Engenharia (Sinaenco, 2008, p. 22), que adota um percentual redutor de 20% no cálculo dos custos tributários relativos às contribuições PIS e COFINS
C92: D | D92: Despesas Financeiras | E92: ='BDI - Geral'!E14 -> 0.004367839439
D94: TOTAL DE BDI | E94: ='BDI - Geral'!E27 -> 0.2691 | F94: =ROUND(E94*E102,2) -> 1918.47
D96: QUADRO-RESUMO DO CUSTO MENSAL POR EMPREGADO - SEM O 13º | E96: Valor
D97: Módulo 1 - Composição da Remuneração | E97: =F16 -> 4212.48
D98: Módulo 2 - Encargos e Benefícios Anuais, Mensais e Diários | E98: =F45 -> 2638.77
D99: Módulo 3 - Provisão para Rescisão | E99: =F55 -> 151.22
D100: Módulo 4 - Custo de Reposição do Profissional Ausente | E100: =F73 -> 84.25
D101: Módulo 5 - Insumos Diversos | E101: =F82 -> 42.49
D102: SUBTOTAL (A+B+C+D+E) | E102: =SUM(E97:E101) -> 7129.21
D103: Módulo 6 - Custos Indiretos, Tributos e Lucro | E103: =F94 -> 1918.47
D105: TOTAL DO POSTO | E105: =SUM(E102:E103) -> 9047.68
B107: MÓDULO 7 - DESTAQUE DO MÓDULO 2 - 13º SALÁRIO | E107: Percentuais | F107: Valor
C108: A | D108: 13º Salário | E108: ='Encargos Sociais'!E32 -> 0.0833 | F108: =ROUND(E108*F$16,2) -> 350.9
C109: B | D109: Encargos Sociais sobre o 13º Salário - Taxa calculada no SUBMÓDULO 2.2 | E109: =SUM($E$24:$E$32) -> 0.178 | F109: =ROUND(E109*$F$108,2) -> 62.46 | H109: * Nota 1 - Provisiona-se, mensalmente, o proporcional a 1/12 dos valores referentes a gratificação natalina e adicional de férias.
C110: C | D110: BDI sobre o 13º Salário - Taxa calculada no MÓDULO 6 | E110: =E94 -> 0.2691 | F110: =ROUND(E110*($F$108+$F$109),2) -> 111.24
D112: TOTAL DO DESTAQUE DO 13º SALÁRIO | F112: =SUM(F108:F110) -> 524.6
D114: QUADRO-RESUMO DO CUSTO MENSAL POR EMPREGADO | E114: Valor
D115: Custo total - sem o 13º Salário | E115: =ROUND(E105,2) -> 9047.68
D116: Destaque do 13º Salário (valor mensal) | E116: =ROUND(F112,2) -> 524.6
D118: TOTAL DO POSTO | E118: =E115+E116 -> 9572.28

Sheet 8
B2: PLANILHA DE ESTIMATIVA DE CUSTOS
B3: Padrão IN 05/2017 e IN 07/2018 - MPDG
B5: 8 | D5: =HLOOKUP($B$5,'Dados Gerais'!$D$6:$BI$22,6) -> OPERADOR DE GERADORES E NOBREAKS | E5: QUANTIDADE | F5: =HLOOKUP($B$5,'Dados Gerais'!$D$6:$BI$22,10) -> 3
B6: CCT | D6: =HLOOKUP($B$5,'Dados Gerais'!$D$6:$BI$22,16) -> SINDUSCON/DF x STICOMBE/DF CCT 2024/2025 N.º DF000276/2024 | E6: DATA-BASE | F6: =HLOOKUP($B$5,'Dados Gerais'!$D$6:$BI$22,17) -> 2024-05-01
B8: MÓDULO 1 - COMPOSIÇÃO DA REMUNERAÇÃO | F8: Valor
C9: A | D9: Salário-Base | F9: =HLOOKUP($B$5,'Dados Gerais'!$D$6:$BI$22,8) -> 2752.02
C10: B | D10: Adicional de Periculosidade | F10: =HLOOKUP($B$5,'Dados Gerais'!$D$6:$BI$39,26) -> 825.61
C11: C | D11: Adicional de Insalubridade | F11: =HLOOKUP($B$5,'Dados Gerais'!$D$6:$BI$39,32) -> 0
C12: D | D12: Adicional Noturno | F12: =HLOOKUP($B$5,'Dados Gerais'!$D$6:$BI$52,47) -> 0 | H12: * Nota 1 - O Módulo 1 refere-se ao valor mensal devido ao empregado pela prestação do serviço no período de 12 meses.
C13: E | D13: Adicional de Hora Extra | F13: =HLOOKUP($B$5,'Dados Gerais'!$D$6:$BI$69,64) -> 0 | H13: * Nota 2 - O adicional de hora extra no feriado trabalhado foi suprimido pela Lei 13.467/17
C14: F | D14: Outros (adicional de sobreaviso) | F14: =HLOOKUP($B$5,'Dados Gerais'!$D$6:$BI$69,34) -> 0 | H14: * Nota 3 - ART. 7º, § 2º, DA LEI Nº 605/49.Sendo mensalista o obreiro, o adicional noturno pago de forma fixa já é considerado integrado para os efeitos do pagamento do repouso semanal remunerado, nos termos do art. 7º, § 2º, da Lei nº 605/49.
D16: TOTAL DA REMUNERAÇÃO | F16: =SUM(F9:F14) -> 3577.63
B18: MÓDULO 2 - ENCARGOS E BENEFÍCIOS ANUAIS, MENSAIS E DIÁRIOS | E18: Percentuais | F18: Valor
B19: Submódulo 2.1 - 13º Salário, Férias e Adicional de Férias
C20: A | D20: 13º Salário - Calculado no Módulo 7 - Destacado | E20: 0 | F20: =ROUND(E20*F$16,2) -> 0
C21: B | D21: Férias e Adicional de Férias | E21: ='Encargos Sociais'!E25+'Encargos Sociais'!E31 -> 0.1212 | F21: =ROUND(E21*F$16,2) -> 433.61 | H21: * Nota 1 - Provisiona-se, mensalmente, o proporcional a 1/12 dos valores referentes a gratificação natalina, férias e adicional de férias.
H22: * Nota 2 - O adicional de férias contido no Submódulo 2.1 corresponde a 1/3 da remuneração que, por sua vez, é dividida por 12 contome Nota 1.
B23: Submódulo 2.2 - Encargos Previdenciários (GPS), Fundo de Garantia por Tempo de Serviço (FGTS) e Outras Contribuições
C24: A | D24: INSS (art. 22, inciso I, Lei nº 8.212/91) | E24: ='Encargos Sociais'!E14 -> 0 | F24: =ROUND(E24*($F$16+$F$41+$F$73),2) -> 0
C25: B | D25: Salário Educação (art. 3º, inciso I, Decreto nº 87.043/82) | E25: ='Encargos Sociais'!E15 -> 0.025 | F25: =ROUND(E25*($F$16+$F$41+$F$73),2) -> 102.07
C26: C | D26: SAT/RAT (art. 22, II, Lei 8.212/91 e Anexo V, Decreto 6.042/07) - Enquadramento 8211-3/00 | E26: ='Encargos Sociais'!E16 -> 0.03 | F26: 122.48
C27: D | D27: SESC ou SESI (art. 30, Lei nº 8.036/90 e art. 1º, Lei 8.154/90) | E27: ='Encargos Sociais'!E17 -> 0.015 | F27: 61.24
C28: E | D28: SENAI ou SENAC (Decreto nº 2.318/86) | E28: ='Encargos Sociais'!E18 -> 0.01 | F28: 40.83
C29: F | D29: SEBRAE (§ 3º, art. 8º, Lei 8.029/90, alterada pela Lei nº 8.154/90) | E29: ='Encargos Sociais'!E19 -> 0.006 | F29: 24.5
C30: G | D30: INCRA (art. 1º, I, Decreto Lei 1.146/70 e Lei 7.787, de 30/06/89) | E30: ='Encargos Sociais'!E20 -> 0.002 | F30: 8.17 | H30: * Nota 1 - Os percentuais dos encargos previdenciários, do FGTS e demais contribuições são estabelecidos por legislação vigente.
C31: H | D31: FGTS (Lei Complementar nº 110/01 e art. 30, Lei nº 8.036/90) | E31: ='Encargos Sociais'!E21 -> 0.08 | F31: 326.62 | H31: * Nota 2 - O SAT, a depender do grau de risco do serviço, irá variar entre 1%, para risco leve, de 2%, para risco médio, e de 3% para risco grave.
C32: I | D32: SECONCI (Convenções Coletivas de Trabalho da construção) | E32: ='Encargos Sociais'!E22 -> 0.01 | F32: 40.83 | H32: * Nota 3 - Os percentuais do Submódulo 2.2 incidem sobre o Módulo 1 e o Submódulo 2.1.
B34: Submódulo 2.3 - Benefícios Mensais e Diários
C35: A | D35: Auxílio Transporte | F35: =HLOOKUP($B$5,'Dados Gerais'!$D$6:$BI$95,83) -> 488.59
C36: B | D36: Auxílio Alimentação | F36: =HLOOKUP($B$5,'Dados Gerais'!$D$6:$BI$95,90) -> 770
C37: C | D37: Assistência Médica e Familiar | F37: =HLOOKUP($B$5,'Dados Gerais'!$D$6:$BI$103,98) -> 0
C38: D | D38: Outros (Seguro de vida, auxílio funeral, auxílio odontológico e auxílio creche) | F38: =HLOOKUP($B$5,'Dados Gerais'!$D$6:$BI$121,115) -> 13.95 | H38: * Nota 1 - O valor informado deverá ser o custo real do benefício (descontado o valor eventualmente pago pelo empregado).
H39: * Nota 2 - Observar a previsão dos benefícios contidos em Acordos, Convenções e Dissídios Coletivos de Trabalho e o disposto no art. 6º da IN 5/2017
D40: QUADRO-RESUMO DO MÓDULO 2
D41: 2.1 - 13º Salário, Férias e Adicional de Férias - 13º Destacado - Calculado no Módulo 7 | E41: =SUM(E20:E21) -> 0.1212 | F41: =F20+F21 -> 433.61
D42: 2.2 - Encargos Previdenciários (GPS), Fundo de Garantia por Tempo de Serviço (FGTS) e Contribuições | E42: =SUM(E24:E32) -> 0.178 | F42: =SUM(F24:F32) -> 726.74
D43: 2.3 - Benefícios Mensais e Diários | F43: =SUM(F35:F38) -> 1272.54
D45: TOTAL DOS ENCARGOS E BENEFÍCIOS | F45: =SUM(F41:F43) -> 2432.89
B47: MÓDULO 3 - PREVISÃO PARA RESCISÃO | E47: Percentuais | F47: Valor
C48: A | D48: Aviso Prévio Indenizado (Art. 7º, inciso XXI, da CF/1988 e arts. 477, 487, §1º, e 491 da CLT) | E48: ='Encargos Sociais'!E36 -> 0.005 | F48: =ROUND(E48*$F$16,2) -> 17.89
C49: B | D49: Incidência do FGTS sobre o Aviso Prévio Indenizado (Súmula 305 TST) | E49: ='Encargos Sociais'!E37 -> 0.0004 | F49: 1.43 | H49: * Nota 1 - Adotou-se os parâmetros do estudo do STF (http://www.stf.jus.br/arquivo/cms/sobrestfestudosci/anexo/encargos_sociais_03102007.pdf), onde 5% do pessoal é demitido pelo empregador no decurso do contrato (para estes, considerou-se o aviso prévio indenizado). Desprezou-se as demissões por justa causa e os pedidos de demissão.
C50: C | D50: Multa do FGTS e Contribuição Social sobre o Aviso Prévio Indenizado (Art. 18, §1º, da Lei 8.036/1990 e art. 1º da LC nº 110/2001) | E50: ='Encargos Sociais'!E38 -> 0.0019 | F50: 6.8 | H50: * Nota 2 - No cálculo do percentual, considerou-se 36 dias, correspondendo à metade da duração média dos contratos (2 anos)
C51: D | D51: Aviso Prévio Trabalhado (Art. 488, parágrafo único, CLT) | E51: ='Encargos Sociais'!E39 -> 0.012 | F51: 42.93 | H51: * Nota 3 - Incide sobre a Remuneração + 13º salário (1/12) + Férias (1/12) + Adicional de Férias (1/36) x 50% multa (40% para o empregado e 10% de contribuição social) x 8% FGTS
C52: E | D52: Incidência de GPS, FGTS e outras contribuições sobre o Aviso Prévio Trabalhado | E52: ='Encargos Sociais'!E40 -> 0.0021 | F52: 7.51 | H52: * Nota 4 - Os 95% restantes do cálculo, a um prazo médio de contrato de 4 anos. Assim, calcula-se 7 dias para o 1º ano de contrato e mais 3 dias para os 3 anos seguintes.
C53: F | D53: Multa do FGTS e Contribuição Social sobre o Aviso Prévio Trabalhado | E53: ='Encargos Sociais'!E41 -> 0.0145 | F53: 51.88
D55: TOTAL DE PREVISÃO PARA RESCISÃO | F55: =SUM(F48:F53) -> 128.44
B57: MÓDULO 4 - CUSTO DO PROFISSIONAL AUSENTE | E57: Percentuais | F57: Valor
B58: Submódulo 4.1 - Ausências Legais
C59: A | D59: Férias (Arts. 129 e 130, inc. I, da CLT) - Calculado no Submódulo 2.1 | E59: 0 | F59: =ROUND(E59*$F$16,2) -> 0 | H59: * Nota 1 - As alíneas “A” a “F” referem-se somente ao custo que será pago ao repositor pelos dias trabalhados quando da necessidade de substituir a mão de obra alocada na prestação do serviço.
C60: B | D60: Ausências Legais (Arts. 131 e 473 da CLT) | E60: ='Encargos Sociais'!E26 -> 0.0079 | F60: 28.26 | H60: * Nota 2 - Adotou-se a estimativa do SINAPI de 2 dias por ano.
C61: C | D61: Licença-Paternidade (Art. 7º, XIX, e art. 10, §1º, do ADCT, CF/1988 e Art. 1º, II, da Lei 11.770/2008) | E61: ='Encargos Sociais'!E27 -> 0.0008 | F61: 2.86 | H61: * Nota 3 - Utilizada a proporção de 50% para homens, 5 dias de afastamento, e a probabilidade de um trabalhador requerer a Licença Paternidade em 5,22%, conforme SINAPI (citando dados da PNAD 2015)
C62: D | D62: Ausência por Acidente de Trabalho (Art. 131, III, da CLT) | E62: ='Encargos Sociais'!E28 -> 0.0009 | F62: 3.22 | H62: * Nota 4 - Utilzada a estatística de 1,96% dos contribuintes beneficiados com a emissão do auxílio, conforme Anuário Estatístico da Previdência Social. Afastamento de 15 dias a cargo da empresa.
C63: E | D63: Afastamento Maternidade (Art. 71 da Lei nº 8.213/1991) | E63: ='Encargos Sociais'!E29 -> 0.0033 | F63: 11.81 | H63: * Nota 5 - Utilizada a proporção de 50% para mulheres, 180 dias de afastamento, e a probabilidade de uma trabalhadora requerer a Licença Maternidade em 4,91%, conforme SINAPI (citando dados do IBGE 2016)
C64: F | D64: Auxílio Enfermidade - Doença (Art. 59 da Lei nº 8.213/1991) | E64: ='Encargos Sociais'!E30 -> 0.0071 | F64: 25.4 | H64: * Nota 6 - Utilizada a estatística de 3,37% dos contribuintes beneficiados com o auxílio, conforme Anuário Estatístico da Previdência Social de 2015 (acrescidos de 2 dias ao ano, para os quais o trabalhador nem requer o benefício da Previdência - conforme SINAPI)
B66: Submódulo 4.2 - Intrajornada
C67: A | D67: Intervalo para repouso ou alimentação | E67: ='Encargos Sociais'!E33 -> 0 | F67: =ROUND(E67*$F$16,2) -> 0
D69: QUADRO-RESUMO DO MÓDULO 4 | F69: Valor
D70: 4.1 - Ausências Legais | E70: =SUM(E59:E64) -> 0.02 | F70: =ROUND(E70*$F$16,2) -> 71.55
D71: 4.2 - Intrajornada | E71: =E67 -> 0 | F71: =ROUND(E71*$F$16,2) -> 0
D73: TOTAL DE PREVISÃO PARA RESCISÃO E INTERVALO INTRAJORNADA | F73: =SUM(F70:F71) -> 71.55
B75: MÓDULO 5 - INSUMOS DIVERSOS | F75: Valor
C76: A | D76: Uniformes - aquisição | F76: 0
C77: B | D77: Materiais de consumo relacionados ao posto - aquisição | F77: =ROUND(HLOOKUP(B5,'Mat Cons'!I11:DX13,3)/12,2) -> 0
C78: C | D78: Ferramentas relacionadas ao posto - remuneração da sua depreciação / manutenção | F78: =HLOOKUP(B5,'Relacion - Ferram'!Q3:EF5,3) -> 29.11
C79: D | D79: Equipamentos relacionados ao posto - remuneração da sua depreciação / manutenção | F79: =HLOOKUP(B5,'Equip Rel'!Q11:EF13,3) -> 0
C80: E | D80: Equipamentos de Proteção Individual - EPI - aquisição | F80: =ROUND(HLOOKUP(B5,EPI!I4:X6,3)/12,2) -> 0
D82: TOTAL DE INSUMOS DIVERSOS | F82: =SUM(F76:F81) -> 29.11 | H82: * Nota - Valores mensais por empregado
B84: MÓDULO 6 - CUSTOS INDIRETOS, TRIBUTOS E LUCRO - BDI | E84: Percentuais | F84: Valor
C85: A | D85: Custos Indiretos | E85: ='BDI - Geral'!E7 -> 0.0227
C86: A.1 | D86: Administração Central | E86: ='BDI - Geral'!E8 -> 0.0173
C87: A.2 | D87: Seguros, Garantias e Riscos | E87: ='BDI - Geral'!E9 -> 0.0054
C88: B | D88: Lucro | E88: ='BDI - Geral'!E11 -> 0.0267
C89: C | D89: Tributos | E89: =SUM(E90:E91) -> 0.169
C90: C.1 | D90: Tributos Federais (COFINS, PIS e CPRB) | E90: ='BDI - Geral'!E19 -> 0.119
C91: C.2 | D91: Tributos Distritais (ISS) | E91: ='BDI - Geral'!E24 -> 0.05 | H91: * Nota - Utilizou-se o indicado pelo Sindicato da Arquitetura e da Engenharia (Sinaenco, 2008, p. 22), que adota um percentual redutor de 20% no cálculo dos custos tributários relativos às contribuições PIS e COFINS
C92: D | D92: Despesas Financeiras | E92: ='BDI - Geral'!E14 -> 0.004367839439
D94: TOTAL DE BDI | E94: ='BDI - Geral'!E27 -> 0.2691 | F94: =ROUND(E94*E102,2) -> 1679.08
D96: QUADRO-RESUMO DO CUSTO MENSAL POR EMPREGADO - SEM O 13º | E96: Valor
D97: Módulo 1 - Composição da Remuneração | E97: =F16 -> 3577.63
D98: Módulo 2 - Encargos e Benefícios Anuais, Mensais e Diários | E98: =F45 -> 2432.89
D99: Módulo 3 - Provisão para Rescisão | E99: =F55 -> 128.44
D100: Módulo 4 - Custo de Reposição do Profissional Ausente | E100: =F73 -> 71.55
D101: Módulo 5 - Insumos Diversos | E101: =F82 -> 29.11
D102: SUBTOTAL (A+B+C+D+E) | E102: =SUM(E97:E101) -> 6239.62
D103: Módulo 6 - Custos Indiretos, Tributos e Lucro | E103: =F94 -> 1679.08
D105: TOTAL DO POSTO | E105: =SUM(E102:E103) -> 7918.7
B107: MÓDULO 7 - DESTAQUE DO MÓDULO 2 - 13º SALÁRIO | E107: Percentuais | F107: Valor
C108: A | D108: 13º Salário | E108: ='Encargos Sociais'!E32 -> 0.0833 | F108: =ROUND(E108*F$16,2) -> 298.02
C109: B | D109: Encargos Sociais sobre o 13º Salário - Taxa calculada no SUBMÓDULO 2.2 | E109: =SUM($E$24:$E$32) -> 0.178 | F109: =ROUND(E109*$F$108,2) -> 53.05 | H109: * Nota 1 - Provisiona-se, mensalmente, o proporcional a 1/12 dos valores referentes a gratificação natalina e adicional de férias.
C110: C | D110: BDI sobre o 13º Salário - Taxa calculada no MÓDULO 6 | E110: =E94 -> 0.2691 | F110: =ROUND(E110*($F$108+$F$109),2) -> 94.47
D112: TOTAL DO DESTAQUE DO 13º SALÁRIO | F112: =SUM(F108:F110) -> 445.54
D114: QUADRO-RESUMO DO CUSTO MENSAL POR EMPREGADO | E114: Valor
D115: Custo total - sem o 13º Salário | E115: =ROUND(E105,2) -> 7918.7
D116: Destaque do 13º Salário (valor mensal) | E116: =ROUND(F112,2) -> 445.54
D118: TOTAL DO POSTO | E118: =E115+E116 -> 8364.24

Sheet 9
B2: PLANILHA DE ESTIMATIVA DE CUSTOS
B3: Padrão IN 05/2017 e IN 07/2018 - MPDG
B5: 9 | D5: =HLOOKUP($B$5,'Dados Gerais'!$D$6:$BI$22,6) -> SUPERVISOR GERAL DE MANUTENÇÃO E INSTALAÇÕES ELÉTRICAS E HIDROSSANITÁRIAS | E5: QUANTIDADE | F5: =HLOOKUP($B$5,'Dados Gerais'!$D$6:$BI$22,10) -> 1
B6: CCT | D6: =HLOOKUP($B$5,'Dados Gerais'!$D$6:$BI$22,16) -> SINDUSCON/DF x STICOMBE/DF CCT 2024/2025 N.º DF000276/2024 | E6: DATA-BASE | F6: =HLOOKUP($B$5,'Dados Gerais'!$D$6:$BI$22,17) -> 2024-05-01
B8: MÓDULO 1 - COMPOSIÇÃO DA REMUNERAÇÃO | F8: Valor
C9: A | D9: Salário-Base | F9: =HLOOKUP($B$5,'Dados Gerais'!$D$6:$BI$22,8) -> 10778.75
C10: B | D10: Adicional de Periculosidade | F10: =HLOOKUP($B$5,'Dados Gerais'!$D$6:$BI$39,26) -> 0
C11: C | D11: Adicional de Insalubridade | F11: =HLOOKUP($B$5,'Dados Gerais'!$D$6:$BI$39,32) -> 0
C12: D | D12: Adicional Noturno | F12: =HLOOKUP($B$5,'Dados Gerais'!$D$6:$BI$52,47) -> 0 | H12: * Nota 1 - O Módulo 1 refere-se ao valor mensal devido ao empregado pela prestação do serviço no período de 12 meses.
C13: E | D13: Adicional de Hora Extra | F13: =HLOOKUP($B$5,'Dados Gerais'!$D$6:$BI$69,64) -> 0 | H13: * Nota 2 - O adicional de hora extra no feriado trabalhado foi suprimido pela Lei 13.467/17
C14: F | D14: Outros (adicional de sobreaviso) | F14: =HLOOKUP($B$5,'Dados Gerais'!$D$6:$BI$69,34) -> 0 | H14: * Nota 3 - ART. 7º, § 2º, DA LEI Nº 605/49.Sendo mensalista o obreiro, o adicional noturno pago de forma fixa já é considerado integrado para os efeitos do pagamento do repouso semanal remunerado, nos termos do art. 7º, § 2º, da Lei nº 605/49.
D16: TOTAL DA REMUNERAÇÃO | F16: =SUM(F9:F14) -> 10778.75
B18: MÓDULO 2 - ENCARGOS E BENEFÍCIOS ANUAIS, MENSAIS E DIÁRIOS | E18: Percentuais | F18: Valor
B19: Submódulo 2.1 - 13º Salário, Férias e Adicional de Férias
C20: A | D20: 13º Salário - Calculado no Módulo 7 - Destacado | E20: 0 | F20: =ROUND(E20*F$16,2) -> 0
C21: B | D21: Férias e Adicional de Férias | E21: ='Encargos Sociais'!E25+'Encargos Sociais'!E31 -> 0.1212 | F21: =ROUND(E21*F$16,2) -> 1306.38 | H21: * Nota 1 - Provisiona-se, mensalmente, o proporcional a 1/12 dos valores referentes a gratificação natalina, férias e adicional de férias.
H22: * Nota 2 - O adicional de férias contido no Submódulo 2.1 corresponde a 1/3 da remuneração que, por sua vez, é dividida por 12 contome Nota 1.
B23: Submódulo 2.2 - Encargos Previdenciários (GPS), Fundo de Garantia por Tempo de Serviço (FGTS) e Outras Contribuições
C24: A | D24: INSS (art. 22, inciso I, Lei nº 8.212/91) | E24: ='Encargos Sociais'!E14 -> 0 | F24: =ROUND(E24*($F$16+$F$41+$F$73),2) -> 0
C25: B | D25: Salário Educação (art. 3º, inciso I, Decreto nº 87.043/82) | E25: ='Encargos Sociais'!E15 -> 0.025 | F25: =ROUND(E25*($F$16+$F$41+$F$73),2) -> 307.52
C26: C | D26: SAT/RAT (art. 22, II, Lei 8.212/91 e Anexo V, Decreto 6.042/07) - Enquadramento 8211-3/00 | E26: ='Encargos Sociais'!E16 -> 0.03 | F26: 369.02
C27: D | D27: SESC ou SESI (art. 30, Lei nº 8.036/90 e art. 1º, Lei 8.154/90) | E27: ='Encargos Sociais'!E17 -> 0.015 | F27: 184.51
C28: E | D28: SENAI ou SENAC (Decreto nº 2.318/86) | E28: ='Encargos Sociais'!E18 -> 0.01 | F28: 123.01
C29: F | D29: SEBRAE (§ 3º, art. 8º, Lei 8.029/90, alterada pela Lei nº 8.154/90) | E29: ='Encargos Sociais'!E19 -> 0.006 | F29: 73.8
C30: G | D30: INCRA (art. 1º, I, Decreto Lei 1.146/70 e Lei 7.787, de 30/06/89) | E30: ='Encargos Sociais'!E20 -> 0.002 | F30: 24.6 | H30: * Nota 1 - Os percentuais dos encargos previdenciários, do FGTS e demais contribuições são estabelecidos por legislação vigente.
C31: H | D31: FGTS (Lei Complementar nº 110/01 e art. 30, Lei nº 8.036/90) | E31: ='Encargos Sociais'!E21 -> 0.08 | F31: 984.06 | H31: * Nota 2 - O SAT, a depender do grau de risco do serviço, irá variar entre 1%, para risco leve, de 2%, para risco médio, e de 3% para risco grave.
C32: I | D32: SECONCI (Convenções Coletivas de Trabalho da construção) | E32: ='Encargos Sociais'!E22 -> 0.01 | F32: 123.01 | H32: * Nota 3 - Os percentuais do Submódulo 2.2 incidem sobre o Módulo 1 e o Submódulo 2.1.
B34: Submódulo 2.3 - Benefícios Mensais e Diários
C35: A | D35: Auxílio Transporte | F35: =HLOOKUP($B$5,'Dados Gerais'!$D$6:$BI$95,83) -> 488.59
C36: B | D36: Auxílio Alimentação | F36: =HLOOKUP($B$5,'Dados Gerais'!$D$6:$BI$95,90) -> 770
C37: C | D37: Assistência Médica e Familiar | F37: =HLOOKUP($B$5,'Dados Gerais'!$D$6:$BI$103,98) -> 0
C38: D | D38: Outros (Seguro de vida, auxílio funeral, auxílio odontológico e auxílio creche) | F38: =HLOOKUP($B$5,'Dados Gerais'!$D$6:$BI$121,115) -> 13.95 | H38: * Nota 1 - O valor informado deverá ser o custo real do benefício (descontado o valor eventualmente pago pelo empregado).
H39: * Nota 2 - Observar a previsão dos benefícios contidos em Acordos, Convenções e Dissídios Coletivos de Trabalho e o disposto no art. 6º da IN 5/2017
D40: QUADRO-RESUMO DO MÓDULO 2
D41: 2.1 - 13º Salário, Férias e Adicional de Férias - 13º Destacado - Calculado no Módulo 7 | E41: =SUM(E20:E21) -> 0.1212 | F41: =F20+F21 -> 1306.38
D42: 2.2 - Encargos Previdenciários (GPS), Fundo de Garantia por Tempo de Serviço (FGTS) e Contribuições | E42: =SUM(E24:E32) -> 0.178 | F42: =SUM(F24:F32) -> 2189.53
D43: 2.3 - Benefícios Mensais e Diários | F43: =SUM(F35:F38) -> 1272.54
D45: TOTAL DOS ENCARGOS E BENEFÍCIOS | F45: =SUM(F41:F43) -> 4768.45
B47: MÓDULO 3 - PREVISÃO PARA RESCISÃO | E47: Percentuais | F47: Valor
C48: A | D48: Aviso Prévio Indenizado (Art. 7º, inciso XXI, da CF/1988 e arts. 477, 487, §1º, e 491 da CLT) | E48: ='Encargos Sociais'!E36 -> 0.005 | F48: =ROUND(E48*$F$16,2) -> 53.89
C49: B | D49: Incidência do FGTS sobre o Aviso Prévio Indenizado (Súmula 305 TST) | E49: ='Encargos Sociais'!E37 -> 0.0004 | F49: 4.31 | H49: * Nota 1 - Adotou-se os parâmetros do estudo do STF (http://www.stf.jus.br/arquivo/cms/sobrestfestudosci/anexo/encargos_sociais_03102007.pdf), onde 5% do pessoal é demitido pelo empregador no decurso do contrato (para estes, considerou-se o aviso prévio indenizado). Desprezou-se as demissões por justa causa e os pedidos de demissão.
C50: C | D50: Multa do FGTS e Contribuição Social sobre o Aviso Prévio Indenizado (Art. 18, §1º, da Lei 8.036/1990 e art. 1º da LC nº 110/2001) | E50: ='Encargos Sociais'!E38 -> 0.0019 | F50: 20.48 | H50: * Nota 2 - No cálculo do percentual, considerou-se 36 dias, correspondendo à metade da duração média dos contratos (2 anos)
C51: D | D51: Aviso Prévio Trabalhado (Art. 488, parágrafo único, CLT) | E51: ='Encargos Sociais'!E39 -> 0.012 | F51: 129.35 | H51: * Nota 3 - Incide sobre a Remuneração + 13º salário (1/12) + Férias (1/12) + Adicional de Férias (1/36) x 50% multa (40% para o empregado e 10% de contribuição social) x 8% FGTS
C52: E | D52: Incidência de GPS, FGTS e outras contribuições sobre o Aviso Prévio Trabalhado | E52: ='Encargos Sociais'!E40 -> 0.0021 | F52: 22.64 | H52: * Nota 4 - Os 95% restantes do cálculo, a um prazo médio de contrato de 4 anos. Assim, calcula-se 7 dias para o 1º ano de contrato e mais 3 dias para os 3 anos seguintes.
C53: F | D53: Multa do FGTS e Contribuição Social sobre o Aviso Prévio Trabalhado | E53: ='Encargos Sociais'!E41 -> 0.0145 | F53: 156.29
D55: TOTAL DE PREVISÃO PARA RESCISÃO | F55: =SUM(F48:F53) -> 386.96
B57: MÓDULO 4 - CUSTO DO PROFISSIONAL AUSENTE | E57: Percentuais | F57: Valor
B58: Submódulo 4.1 - Ausências Legais
C59: A | D59: Férias (Arts. 129 e 130, inc. I, da CLT) - Calculado no Submódulo 2.1 | E59: 0 | F59: =ROUND(E59*$F$16,2) -> 0 | H59: * Nota 1 - As alíneas “A” a “F” referem-se somente ao custo que será pago ao repositor pelos dias trabalhados quando da necessidade de substituir a mão de obra alocada na prestação do serviço.
C60: B | D60: Ausências Legais (Arts. 131 e 473 da CLT) | E60: ='Encargos Sociais'!E26 -> 0.0079 | F60: 85.15 | H60: * Nota 2 - Adotou-se a estimativa do SINAPI de 2 dias por ano.
C61: C | D61: Licença-Paternidade (Art. 7º, XIX, e art. 10, §1º, do ADCT, CF/1988 e Art. 1º, II, da Lei 11.770/2008) | E61: ='Encargos Sociais'!E27 -> 0.0008 | F61: 8.62 | H61: * Nota 3 - Utilizada a proporção de 50% para homens, 5 dias de afastamento, e a probabilidade de um trabalhador requerer a Licença Paternidade em 5,22%, conforme SINAPI (citando dados da PNAD 2015)
C62: D | D62: Ausência por Acidente de Trabalho (Art. 131, III, da CLT) | E62: ='Encargos Sociais'!E28 -> 0.0009 | F62: 9.7 | H62: * Nota 4 - Utilzada a estatística de 1,96% dos contribuintes beneficiados com a emissão do auxílio, conforme Anuário Estatístico da Previdência Social. Afastamento de 15 dias a cargo da empresa.
C63: E | D63: Afastamento Maternidade (Art. 71 da Lei nº 8.213/1991) | E63: ='Encargos Sociais'!E29 -> 0.0033 | F63: 35.57 | H63: * Nota 5 - Utilizada a proporção de 50% para mulheres, 180 dias de afastamento, e a probabilidade de uma trabalhadora requerer a Licença Maternidade em 4,91%, conforme SINAPI (citando dados do IBGE 2016)
C64: F | D64: Auxílio Enfermidade - Doença (Art. 59 da Lei nº 8.213/1991) | E64: ='Encargos Sociais'!E30 -> 0.0071 | F64: 76.53 | H64: * Nota 6 - Utilizada a estatística de 3,37% dos contribuintes beneficiados com o auxílio, conforme Anuário Estatístico da Previdência Social de 2015 (acrescidos de 2 dias ao ano, para os quais o trabalhador nem requer o benefício da Previdência - conforme SINAPI)
B66: Submódulo 4.2 - Intrajornada
C67: A | D67: Intervalo para repouso ou alimentação | E67: ='Encargos Sociais'!E33 -> 0 | F67: =ROUND(E67*$F$16,2) -> 0
D69: QUADRO-RESUMO DO MÓDULO 4 | F69: Valor
D70: 4.1 - Ausências Legais | E70: =SUM(E59:E64) -> 0.02 | F70: =ROUND(E70*$F$16,2) -> 215.58
D71: 4.2 - Intrajornada | E71: =E67 -> 0 | F71: =ROUND(E71*$F$16,2) -> 0
D73: TOTAL DE PREVISÃO PARA RESCISÃO E INTERVALO INTRAJORNADA | F73: =SUM(F70:F71) -> 215.58
B75: MÓDULO 5 - INSUMOS DIVERSOS | F75: Valor
C76: A | D76: Uniformes - aquisição | F76: 0
C77: B | D77: Materiais de consumo relacionados ao posto - aquisição | F77: =ROUND(HLOOKUP(B5,'Mat Cons'!I11:DX13,3)/12,2) -> 0
C78: C | D78: Ferramentas relacionadas ao posto - remuneração da sua depreciação / manutenção | F78: =HLOOKUP(B5,'Relacion - Ferram'!Q3:EF5,3) -> 0
C79: D | D79: Equipamentos relacionados ao posto - remuneração da sua depreciação / manutenção | F79: =HLOOKUP(B5,'Equip Rel'!Q11:EF13,3) -> 0
C80: E | D80: Equipamentos de Proteção Individual - EPI - aquisição | F80: =ROUND(HLOOKUP(B5,EPI!I4:X6,3)/12,2) -> 0
D82: TOTAL DE INSUMOS DIVERSOS | F82: =SUM(F76:F81) -> 0 | H82: * Nota - Valores mensais por empregado
B84: MÓDULO 6 - CUSTOS INDIRETOS, TRIBUTOS E LUCRO - BDI | E84: Percentuais | F84: Valor
C85: A | D85: Custos Indiretos | E85: ='BDI - Geral'!E7 -> 0.0227
C86: A.1 | D86: Administração Central | E86: ='BDI - Geral'!E8 -> 0.0173
C87: A.2 | D87: Seguros, Garantias e Riscos | E87: ='BDI - Geral'!E9 -> 0.0054
C88: B | D88: Lucro | E88: ='BDI - Geral'!E11 -> 0.0267
C89: C | D89: Tributos | E89: =SUM(E90:E91) -> 0.169
C90: C.1 | D90: Tributos Federais (COFINS, PIS e CPRB) | E90: ='BDI - Geral'!E19 -> 0.119
C91: C.2 | D91: Tributos Distritais (ISS) | E91: ='BDI - Geral'!E24 -> 0.05 | H91: * Nota - Utilizou-se o indicado pelo Sindicato da Arquitetura e da Engenharia (Sinaenco, 2008, p. 22), que adota um percentual redutor de 20% no cálculo dos custos tributários relativos às contribuições PIS e COFINS
C92: D | D92: Despesas Financeiras | E92: ='BDI - Geral'!E14 -> 0.004367839439
D94: TOTAL DE BDI | E94: ='BDI - Geral'!E27 -> 0.2691 | F94: =ROUND(E94*E102,2) -> 4345.9
D96: QUADRO-RESUMO DO CUSTO MENSAL POR EMPREGADO - SEM O 13º | E96: Valor
D97: Módulo 1 - Composição da Remuneração | E97: =F16 -> 10778.75
D98: Módulo 2 - Encargos e Benefícios Anuais, Mensais e Diários | E98: =F45 -> 4768.45
D99: Módulo 3 - Provisão para Rescisão | E99: =F55 -> 386.96
D100: Módulo 4 - Custo de Reposição do Profissional Ausente | E100: =F73 -> 215.58
D101: Módulo 5 - Insumos Diversos | E101: =F82 -> 0
D102: SUBTOTAL (A+B+C+D+E) | E102: =SUM(E97:E101) -> 16149.74
D103: Módulo 6 - Custos Indiretos, Tributos e Lucro | E103: =F94 -> 4345.9
D105: TOTAL DO POSTO | E105: =SUM(E102:E103) -> 20495.64
B107: MÓDULO 7 - DESTAQUE DO MÓDULO 2 - 13º SALÁRIO | E107: Percentuais | F107: Valor
C108: A | D108: 13º Salário | E108: ='Encargos Sociais'!E32 -> 0.0833 | F108: =ROUND(E108*F$16,2) -> 897.87
C109: B | D109: Encargos Sociais sobre o 13º Salário - Taxa calculada no SUBMÓDULO 2.2 | E109: =SUM($E$24:$E$32) -> 0.178 | F109: =ROUND(E109*$F$108,2) -> 159.82 | H109: * Nota 1 - Provisiona-se, mensalmente, o proporcional a 1/12 dos valores referentes a gratificação natalina e adicional de férias.
C110: C | D110: BDI sobre o 13º Salário - Taxa calculada no MÓDULO 6 | E110: =E94 -> 0.2691 | F110: =ROUND(E110*($F$108+$F$109),2) -> 284.62
D112: TOTAL DO DESTAQUE DO 13º SALÁRIO | F112: =SUM(F108:F110) -> 1342.31
D114: QUADRO-RESUMO DO CUSTO MENSAL POR EMPREGADO | E114: Valor
D115: Custo total - sem o 13º Salário | E115: =ROUND(E105,2) -> 20495.64
D116: Destaque do 13º Salário (valor mensal) | E116: =ROUND(F112,2) -> 1342.31
D118: TOTAL DO POSTO | E118: =E115+E116 -> 21837.95

Sheet 10
B2: PLANILHA DE ESTIMATIVA DE CUSTOS
B3: Padrão IN 05/2017 e IN 07/2018 - MPDG
B5: 10 | D5: =HLOOKUP($B$5,'Dados Gerais'!$D$6:$BI$22,6) -> TÉCNICO DE AUTOMAÇÃO E CONTROLE | E5: QUANTIDADE | F5: =HLOOKUP($B$5,'Dados Gerais'!$D$6:$BI$22,10) -> 2
B6: CCT | D6: =HLOOKUP($B$5,'Dados Gerais'!$D$6:$BI$22,16) -> SINDUSCON/DF x STICOMBE/DF CCT 2024/2025 N.º DF000276/2024 | E6: DATA-BASE | F6: =HLOOKUP($B$5,'Dados Gerais'!$D$6:$BI$22,17) -> 2024-05-01
B8: MÓDULO 1 - COMPOSIÇÃO DA REMUNERAÇÃO | F8: Valor
C9: A | D9: Salário-Base | F9: =HLOOKUP($B$5,'Dados Gerais'!$D$6:$BI$22,8) -> 6112.66
C10: B | D10: Adicional de Periculosidade | F10: =HLOOKUP($B$5,'Dados Gerais'!$D$6:$BI$39,26) -> 1833.8
C11: C | D11: Adicional de Insalubridade | F11: =HLOOKUP($B$5,'Dados Gerais'!$D$6:$BI$39,32) -> 0
C12: D | D12: Adicional Noturno | F12: =HLOOKUP($B$5,'Dados Gerais'!$D$6:$BI$52,47) -> 0 | H12: * Nota 1 - O Módulo 1 refere-se ao valor mensal devido ao empregado pela prestação do serviço no período de 12 meses.
C13: E | D13: Adicional de Hora Extra | F13: =HLOOKUP($B$5,'Dados Gerais'!$D$6:$BI$69,64) -> 0 | H13: * Nota 2 - O adicional de hora extra no feriado trabalhado foi suprimido pela Lei 13.467/17
C14: F | D14: Outros (adicional de sobreaviso) | F14: =HLOOKUP($B$5,'Dados Gerais'!$D$6:$BI$69,34) -> 521.46 | H14: * Nota 3 - ART. 7º, § 2º, DA LEI Nº 605/49.Sendo mensalista o obreiro, o adicional noturno pago de forma fixa já é considerado integrado para os efeitos do pagamento do repouso semanal remunerado, nos termos do art. 7º, § 2º, da Lei nº 605/49.
D16: TOTAL DA REMUNERAÇÃO | F16: =SUM(F9:F14) -> 8467.92
B18: MÓDULO 2 - ENCARGOS E BENEFÍCIOS ANUAIS, MENSAIS E DIÁRIOS | E18: Percentuais | F18: Valor
B19: Submódulo 2.1 - 13º Salário, Férias e Adicional de Férias
C20: A | D20: 13º Salário - Calculado no Módulo 7 - Destacado | E20: 0 | F20: =ROUND(E20*F$16,2) -> 0
C21: B | D21: Férias e Adicional de Férias | E21: ='Encargos Sociais'!E25+'Encargos Sociais'!E31 -> 0.1212 | F21: =ROUND(E21*F$16,2) -> 1026.31 | H21: * Nota 1 - Provisiona-se, mensalmente, o proporcional a 1/12 dos valores referentes a gratificação natalina, férias e adicional de férias.
H22: * Nota 2 - O adicional de férias contido no Submódulo 2.1 corresponde a 1/3 da remuneração que, por sua vez, é dividida por 12 contome Nota 1.
B23: Submódulo 2.2 - Encargos Previdenciários (GPS), Fundo de Garantia por Tempo de Serviço (FGTS) e Outras Contribuições
C24: A | D24: INSS (art. 22, inciso I, Lei nº 8.212/91) | E24: ='Encargos Sociais'!E14 -> 0 | F24: =ROUND(E24*($F$16+$F$41+$F$73),2) -> 0
C25: B | D25: Salário Educação (art. 3º, inciso I, Decreto nº 87.043/82) | E25: ='Encargos Sociais'!E15 -> 0.025 | F25: =ROUND(E25*($F$16+$F$41+$F$73),2) -> 241.59
C26: C | D26: SAT/RAT (art. 22, II, Lei 8.212/91 e Anexo V, Decreto 6.042/07) - Enquadramento 8211-3/00 | E26: ='Encargos Sociais'!E16 -> 0.03 | F26: 289.91
C27: D | D27: SESC ou SESI (art. 30, Lei nº 8.036/90 e art. 1º, Lei 8.154/90) | E27: ='Encargos Sociais'!E17 -> 0.015 | F27: 144.95
C28: E | D28: SENAI ou SENAC (Decreto nº 2.318/86) | E28: ='Encargos Sociais'!E18 -> 0.01 | F28: 96.64
C29: F | D29: SEBRAE (§ 3º, art. 8º, Lei 8.029/90, alterada pela Lei nº 8.154/90) | E29: ='Encargos Sociais'!E19 -> 0.006 | F29: 57.98
C30: G | D30: INCRA (art. 1º, I, Decreto Lei 1.146/70 e Lei 7.787, de 30/06/89) | E30: ='Encargos Sociais'!E20 -> 0.002 | F30: 19.33 | H30: * Nota 1 - Os percentuais dos encargos previdenciários, do FGTS e demais contribuições são estabelecidos por legislação vigente.
C31: H | D31: FGTS (Lei Complementar nº 110/01 e art. 30, Lei nº 8.036/90) | E31: ='Encargos Sociais'!E21 -> 0.08 | F31: 773.09 | H31: * Nota 2 - O SAT, a depender do grau de risco do serviço, irá variar entre 1%, para risco leve, de 2%, para risco médio, e de 3% para risco grave.
C32: I | D32: SECONCI (Convenções Coletivas de Trabalho da construção) | E32: ='Encargos Sociais'!E22 -> 0.01 | F32: 96.64 | H32: * Nota 3 - Os percentuais do Submódulo 2.2 incidem sobre o Módulo 1 e o Submódulo 2.1.
B34: Submódulo 2.3 - Benefícios Mensais e Diários
C35: A | D35: Auxílio Transporte | F35: =HLOOKUP($B$5,'Dados Gerais'!$D$6:$BI$95,83) -> 488.59
C36: B | D36: Auxílio Alimentação | F36: =HLOOKUP($B$5,'Dados Gerais'!$D$6:$BI$95,90) -> 770
C37: C | D37: Assistência Médica e Familiar | F37: =HLOOKUP($B$5,'Dados Gerais'!$D$6:$BI$103,98) -> 0
C38: D | D38: Outros (Seguro de vida, auxílio funeral, auxílio odontológico e auxílio creche) | F38: =HLOOKUP($B$5,'Dados Gerais'!$D$6:$BI$121,115) -> 13.95 | H38: * Nota 1 - O valor informado deverá ser o custo real do benefício (descontado o valor eventualmente pago pelo empregado).
H39: * Nota 2 - Observar a previsão dos benefícios contidos em Acordos, Convenções e Dissídios Coletivos de Trabalho e o disposto no art. 6º da IN 5/2017
D40: QUADRO-RESUMO DO MÓDULO 2
D41: 2.1 - 13º Salário, Férias e Adicional de Férias - 13º Destacado - Calculado no Módulo 7 | E41: =SUM(E20:E21) -> 0.1212 | F41: =F20+F21 -> 1026.31
D42: 2.2 - Encargos Previdenciários (GPS), Fundo de Garantia por Tempo de Serviço (FGTS) e Contribuições | E42: =SUM(E24:E32) -> 0.178 | F42: =SUM(F24:F32) -> 1720.13
D43: 2.3 - Benefícios Mensais e Diários | F43: =SUM(F35:F38) -> 1272.54
D45: TOTAL DOS ENCARGOS E BENEFÍCIOS | F45: =SUM(F41:F43) -> 4018.98
B47: MÓDULO 3 - PREVISÃO PARA RESCISÃO | E47: Percentuais | F47: Valor
C48: A | D48: Aviso Prévio Indenizado (Art. 7º, inciso XXI, da CF/1988 e arts. 477, 487, §1º, e 491 da CLT) | E48: ='Encargos Sociais'!E36 -> 0.005 | F48: =ROUND(E48*$F$16,2) -> 42.34
C49: B | D49: Incidência do FGTS sobre o Aviso Prévio Indenizado (Súmula 305 TST) | E49: ='Encargos Sociais'!E37 -> 0.0004 | F49: 3.39 | H49: * Nota 1 - Adotou-se os parâmetros do estudo do STF (http://www.stf.jus.br/arquivo/cms/sobrestfestudosci/anexo/encargos_sociais_03102007.pdf), onde 5% do pessoal é demitido pelo empregador no decurso do contrato (para estes, considerou-se o aviso prévio indenizado). Desprezou-se as demissões por justa causa e os pedidos de demissão.
C50: C | D50: Multa do FGTS e Contribuição Social sobre o Aviso Prévio Indenizado (Art. 18, §1º, da Lei 8.036/1990 e art. 1º da LC nº 110/2001) | E50: ='Encargos Sociais'!E38 -> 0.0019 | F50: 16.09 | H50: * Nota 2 - No cálculo do percentual, considerou-se 36 dias, correspondendo à metade da duração média dos contratos (2 anos)
C51: D | D51: Aviso Prévio Trabalhado (Art. 488, parágrafo único, CLT) | E51: ='Encargos Sociais'!E39 -> 0.012 | F51: 101.62 | H51: * Nota 3 - Incide sobre a Remuneração + 13º salário (1/12) + Férias (1/12) + Adicional de Férias (1/36) x 50% multa (40% para o empregado e 10% de contribuição social) x 8% FGTS
C52: E | D52: Incidência de GPS, FGTS e outras contribuições sobre o Aviso Prévio Trabalhado | E52: ='Encargos Sociais'!E40 -> 0.0021 | F52: 17.78 | H52: * Nota 4 - Os 95% restantes do cálculo, a um prazo médio de contrato de 4 anos. Assim, calcula-se 7 dias para o 1º ano de contrato e mais 3 dias para os 3 anos seguintes.
C53: F | D53: Multa do FGTS e Contribuição Social sobre o Aviso Prévio Trabalhado | E53: ='Encargos Sociais'!E41 -> 0.0145 | F53: 122.78
D55: TOTAL DE PREVISÃO PARA RESCISÃO | F55: =SUM(F48:F53) -> 304
B57: MÓDULO 4 - CUSTO DO PROFISSIONAL AUSENTE | E57: Percentuais | F57: Valor
B58: Submódulo 4.1 - Ausências Legais
C59: A | D59: Férias (Arts. 129 e 130, inc. I, da CLT) - Calculado no Submódulo 2.1 | E59: 0 | F59: =ROUND(E59*$F$16,2) -> 0 | H59: * Nota 1 - As alíneas “A” a “F” referem-se somente ao custo que será pago ao repositor pelos dias trabalhados quando da necessidade de substituir a mão de obra alocada na prestação do serviço.
C60: B | D60: Ausências Legais (Arts. 131 e 473 da CLT) | E60: ='Encargos Sociais'!E26 -> 0.0079 | F60: 66.9 | H60: * Nota 2 - Adotou-se a estimativa do SINAPI de 2 dias por ano.
C61: C | D61: Licença-Paternidade (Art. 7º, XIX, e art. 10, §1º, do ADCT, CF/1988 e Art. 1º, II, da Lei 11.770/2008) | E61: ='Encargos Sociais'!E27 -> 0.0008 | F61: 6.77 | H61: * Nota 3 - Utilizada a proporção de 50% para homens, 5 dias de afastamento, e a probabilidade de um trabalhador requerer a Licença Paternidade em 5,22%, conforme SINAPI (citando dados da PNAD 2015)
C62: D | D62: Ausência por Acidente de Trabalho (Art. 131, III, da CLT) | E62: ='Encargos Sociais'!E28 -> 0.0009 | F62: 7.62 | H62: * Nota 4 - Utilzada a estatística de 1,96% dos contribuintes beneficiados com a emissão do auxílio, conforme Anuário Estatístico da Previdência Social. Afastamento de 15 dias a cargo da empresa.
C63: E | D63: Afastamento Maternidade (Art. 71 da Lei nº 8.213/1991) | E63: ='Encargos Sociais'!E29 -> 0.0033 | F63: 27.94 | H63: * Nota 5 - Utilizada a proporção de 50% para mulheres, 180 dias de afastamento, e a probabilidade de uma trabalhadora requerer a Licença Maternidade em 4,91%, conforme SINAPI (citando dados do IBGE 2016)
C64: F | D64: Auxílio Enfermidade - Doença (Art. 59 da Lei nº 8.213/1991) | E64: ='Encargos Sociais'!E30 -> 0.0071 | F64: 60.12 | H64: * Nota 6 - Utilizada a estatística de 3,37% dos contribuintes beneficiados com o auxílio, conforme Anuário Estatístico da Previdência Social de 2015 (acrescidos de 2 dias ao ano, para os quais o trabalhador nem requer o benefício da Previdência - conforme SINAPI)
B66: Submódulo 4.2 - Intrajornada
C67: A | D67: Intervalo para repouso ou alimentação | E67: ='Encargos Sociais'!E33 -> 0 | F67: =ROUND(E67*$F$16,2) -> 0
D69: QUADRO-RESUMO DO MÓDULO 4 | F69: Valor
D70: 4.1 - Ausências Legais | E70: =SUM(E59:E64) -> 0.02 | F70: =ROUND(E70*$F$16,2) -> 169.36
D71: 4.2 - Intrajornada | E71: =E67 -> 0 | F71: =ROUND(E71*$F$16,2) -> 0
D73: TOTAL DE PREVISÃO PARA RESCISÃO E INTERVALO INTRAJORNADA | F73: =SUM(F70:F71) -> 169.36
B75: MÓDULO 5 - INSUMOS DIVERSOS | F75: Valor
C76: A | D76: Uniformes - aquisição | F76: 0
C77: B | D77: Materiais de consumo relacionados ao posto - aquisição | F77: =ROUND(HLOOKUP(B5,'Mat Cons'!I11:DX13,3)/12,2) -> 0
C78: C | D78: Ferramentas relacionadas ao posto - remuneração da sua depreciação / manutenção | F78: =HLOOKUP(B5,'Relacion - Ferram'!Q3:EF5,3) -> 123.67
C79: D | D79: Equipamentos relacionados ao posto - remuneração da sua depreciação / manutenção | F79: =HLOOKUP(B5,'Equip Rel'!Q11:EF13,3) -> 0
C80: E | D80: Equipamentos de Proteção Individual - EPI - aquisição | F80: =ROUND(HLOOKUP(B5,EPI!I4:X6,3)/12,2) -> 0
D82: TOTAL DE INSUMOS DIVERSOS | F82: =SUM(F76:F81) -> 123.67 | H82: * Nota - Valores mensais por empregado
B84: MÓDULO 6 - CUSTOS INDIRETOS, TRIBUTOS E LUCRO - BDI | E84: Percentuais | F84: Valor
C85: A | D85: Custos Indiretos | E85: ='BDI - Geral'!E7 -> 0.0227
C86: A.1 | D86: Administração Central | E86: ='BDI - Geral'!E8 -> 0.0173
C87: A.2 | D87: Seguros, Garantias e Riscos | E87: ='BDI - Geral'!E9 -> 0.0054
C88: B | D88: Lucro | E88: ='BDI - Geral'!E11 -> 0.0267
C89: C | D89: Tributos | E89: =SUM(E90:E91) -> 0.169
C90: C.1 | D90: Tributos Federais (COFINS, PIS e CPRB) | E90: ='BDI - Geral'!E19 -> 0.119
C91: C.2 | D91: Tributos Distritais (ISS) | E91: ='BDI - Geral'!E24 -> 0.05 | H91: * Nota - Utilizou-se o indicado pelo Sindicato da Arquitetura e da Engenharia (Sinaenco, 2008, p. 22), que adota um percentual redutor de 20% no cálculo dos custos tributários relativos às contribuições PIS e COFINS
C92: D | D92: Despesas Financeiras | E92: ='BDI - Geral'!E14 -> 0.004367839439
D94: TOTAL DE BDI | E94: ='BDI - Geral'!E27 -> 0.2691 | F94: =ROUND(E94*E102,2) -> 3520.89
D96: QUADRO-RESUMO DO CUSTO MENSAL POR EMPREGADO - SEM O 13º | E96: Valor
D97: Módulo 1 - Composição da Remuneração | E97: =F16 -> 8467.92
D98: Módulo 2 - Encargos e Benefícios Anuais, Mensais e Diários | E98: =F45 -> 4018.98
D99: Módulo 3 - Provisão para Rescisão | E99: =F55 -> 304
D100: Módulo 4 - Custo de Reposição do Profissional Ausente | E100: =F73 -> 169.36
D101: Módulo 5 - Insumos Diversos | E101: =F82 -> 123.67
D102: SUBTOTAL (A+B+C+D+E) | E102: =SUM(E97:E101) -> 13083.93
D103: Módulo 6 - Custos Indiretos, Tributos e Lucro | E103: =F94 -> 3520.89
D105: TOTAL DO POSTO | E105: =SUM(E102:E103) -> 16604.82
B107: MÓDULO 7 - DESTAQUE DO MÓDULO 2 - 13º SALÁRIO | E107: Percentuais | F107: Valor
C108: A | D108: 13º Salário | E108: ='Encargos Sociais'!E32 -> 0.0833 | F108: =ROUND(E108*F$16,2) -> 705.38
C109: B | D109: Encargos Sociais sobre o 13º Salário - Taxa calculada no SUBMÓDULO 2.2 | E109: =SUM($E$24:$E$32) -> 0.178 | F109: =ROUND(E109*$F$108,2) -> 125.56 | H109: * Nota 1 - Provisiona-se, mensalmente, o proporcional a 1/12 dos valores referentes a gratificação natalina e adicional de férias.
C110: C | D110: BDI sobre o 13º Salário - Taxa calculada no MÓDULO 6 | E110: =E94 -> 0.2691 | F110: =ROUND(E110*($F$108+$F$109),2) -> 223.61
D112: TOTAL DO DESTAQUE DO 13º SALÁRIO | F112: =SUM(F108:F110) -> 1054.55
D114: QUADRO-RESUMO DO CUSTO MENSAL POR EMPREGADO | E114: Valor
D115: Custo total - sem o 13º Salário | E115: =ROUND(E105,2) -> 16604.82
D116: Destaque do 13º Salário (valor mensal) | E116: =ROUND(F112,2) -> 1054.55
D118: TOTAL DO POSTO | E118: =E115+E116 -> 17659.37

Sheet 11
B2: PLANILHA DE ESTIMATIVA DE CUSTOS
B3: Padrão IN 05/2017 e IN 07/2018 - MPDG
B5: 11 | D5: =HLOOKUP($B$5,'Dados Gerais'!$D$6:$BI$22,6) -> TÉCNICO DE CONTROLE LOGÍSTICO | E5: QUANTIDADE | F5: =HLOOKUP($B$5,'Dados Gerais'!$D$6:$BI$22,10) -> 1
B6: CCT | D6: =HLOOKUP($B$5,'Dados Gerais'!$D$6:$BI$22,16) -> SINDUSCON/DF x STICOMBE/DF CCT 2024/2025 N.º DF000276/2024 | E6: DATA-BASE | F6: =HLOOKUP($B$5,'Dados Gerais'!$D$6:$BI$22,17) -> 2024-05-01
B8: MÓDULO 1 - COMPOSIÇÃO DA REMUNERAÇÃO | F8: Valor
C9: A | D9: Salário-Base | F9: =HLOOKUP($B$5,'Dados Gerais'!$D$6:$BI$22,8) -> 6112.66
C10: B | D10: Adicional de Periculosidade | F10: =HLOOKUP($B$5,'Dados Gerais'!$D$6:$BI$39,26) -> 0
C11: C | D11: Adicional de Insalubridade | F11: =HLOOKUP($B$5,'Dados Gerais'!$D$6:$BI$39,32) -> 0
C12: D | D12: Adicional Noturno | F12: =HLOOKUP($B$5,'Dados Gerais'!$D$6:$BI$52,47) -> 0 | H12: * Nota 1 - O Módulo 1 refere-se ao valor mensal devido ao empregado pela prestação do serviço no período de 12 meses.
C13: E | D13: Adicional de Hora Extra | F13: =HLOOKUP($B$5,'Dados Gerais'!$D$6:$BI$69,64) -> 0 | H13: * Nota 2 - O adicional de hora extra no feriado trabalhado foi suprimido pela Lei 13.467/17
C14: F | D14: Outros (adicional de sobreaviso) | F14: =HLOOKUP($B$5,'Dados Gerais'!$D$6:$BI$69,34) -> 0 | H14: * Nota 3 - ART. 7º, § 2º, DA LEI Nº 605/49.Sendo mensalista o obreiro, o adicional noturno pago de forma fixa já é considerado integrado para os efeitos do pagamento do repouso semanal remunerado, nos termos do art. 7º, § 2º, da Lei nº 605/49.
D16: TOTAL DA REMUNERAÇÃO | F16: =SUM(F9:F14) -> 6112.66
B18: MÓDULO 2 - ENCARGOS E BENEFÍCIOS ANUAIS, MENSAIS E DIÁRIOS | E18: Percentuais | F18: Valor
B19: Submódulo 2.1 - 13º Salário, Férias e Adicional de Férias
C20: A | D20: 13º Salário - Calculado no Módulo 7 - Destacado | E20: 0 | F20: =ROUND(E20*F$16,2) -> 0
C21: B | D21: Férias e Adicional de Férias | E21: ='Encargos Sociais'!E25+'Encargos Sociais'!E31 -> 0.1212 | F21: =ROUND(E21*F$16,2) -> 740.85 | H21: * Nota 1 - Provisiona-se, mensalmente, o proporcional a 1/12 dos valores referentes a gratificação natalina, férias e adicional de férias.
H22: * Nota 2 - O adicional de férias contido no Submódulo 2.1 corresponde a 1/3 da remuneração que, por sua vez, é dividida por 12 contome Nota 1.
B23: Submódulo 2.2 - Encargos Previdenciários (GPS), Fundo de Garantia por Tempo de Serviço (FGTS) e Outras Contribuições
C24: A | D24: INSS (art. 22, inciso I, Lei nº 8.212/91) | E24: ='Encargos Sociais'!E14 -> 0 | F24: =ROUND(E24*($F$16+$F$41+$F$73),2) -> 0
C25: B | D25: Salário Educação (art. 3º, inciso I, Decreto nº 87.043/82) | E25: ='Encargos Sociais'!E15 -> 0.025 | F25: =ROUND(E25*($F$16+$F$41+$F$73),2) -> 174.39
C26: C | D26: SAT/RAT (art. 22, II, Lei 8.212/91 e Anexo V, Decreto 6.042/07) - Enquadramento 8211-3/00 | E26: ='Encargos Sociais'!E16 -> 0.03 | F26: 209.27
C27: D | D27: SESC ou SESI (art. 30, Lei nº 8.036/90 e art. 1º, Lei 8.154/90) | E27: ='Encargos Sociais'!E17 -> 0.015 | F27: 104.64
C28: E | D28: SENAI ou SENAC (Decreto nº 2.318/86) | E28: ='Encargos Sociais'!E18 -> 0.01 | F28: 69.76
C29: F | D29: SEBRAE (§ 3º, art. 8º, Lei 8.029/90, alterada pela Lei nº 8.154/90) | E29: ='Encargos Sociais'!E19 -> 0.006 | F29: 41.85
C30: G | D30: INCRA (art. 1º, I, Decreto Lei 1.146/70 e Lei 7.787, de 30/06/89) | E30: ='Encargos Sociais'!E20 -> 0.002 | F30: 13.95 | H30: * Nota 1 - Os percentuais dos encargos previdenciários, do FGTS e demais contribuições são estabelecidos por legislação vigente.
C31: H | D31: FGTS (Lei Complementar nº 110/01 e art. 30, Lei nº 8.036/90) | E31: ='Encargos Sociais'!E21 -> 0.08 | F31: 558.06 | H31: * Nota 2 - O SAT, a depender do grau de risco do serviço, irá variar entre 1%, para risco leve, de 2%, para risco médio, e de 3% para risco grave.
C32: I | D32: SECONCI (Convenções Coletivas de Trabalho da construção) | E32: ='Encargos Sociais'!E22 -> 0.01 | F32: 69.76 | H32: * Nota 3 - Os percentuais do Submódulo 2.2 incidem sobre o Módulo 1 e o Submódulo 2.1.
B34: Submódulo 2.3 - Benefícios Mensais e Diários
C35: A | D35: Auxílio Transporte | F35: =HLOOKUP($B$5,'Dados Gerais'!$D$6:$BI$95,83) -> 488.59
C36: B | D36: Auxílio Alimentação | F36: =HLOOKUP($B$5,'Dados Gerais'!$D$6:$BI$95,90) -> 770
C37: C | D37: Assistência Médica e Familiar | F37: =HLOOKUP($B$5,'Dados Gerais'!$D$6:$BI$103,98) -> 0
C38: D | D38: Outros (Seguro de vida, auxílio funeral, auxílio odontológico e auxílio creche) | F38: =HLOOKUP($B$5,'Dados Gerais'!$D$6:$BI$121,115) -> 13.95 | H38: * Nota 1 - O valor informado deverá ser o custo real do benefício (descontado o valor eventualmente pago pelo empregado).
H39: * Nota 2 - Observar a previsão dos benefícios contidos em Acordos, Convenções e Dissídios Coletivos de Trabalho e o disposto no art. 6º da IN 5/2017
D40: QUADRO-RESUMO DO MÓDULO 2
D41: 2.1 - 13º Salário, Férias e Adicional de Férias - 13º Destacado - Calculado no Módulo 7 | E41: =SUM(E20:E21) -> 0.1212 | F41: =F20+F21 -> 740.85
D42: 2.2 - Encargos Previdenciários (GPS), Fundo de Garantia por Tempo de Serviço (FGTS) e Contribuições | E42: =SUM(E24:E32) -> 0.178 | F42: =SUM(F24:F32) -> 1241.68
D43: 2.3 - Benefícios Mensais e Diários | F43: =SUM(F35:F38) -> 1272.54
D45: TOTAL DOS ENCARGOS E BENEFÍCIOS | F45: =SUM(F41:F43) -> 3255.07
B47: MÓDULO 3 - PREVISÃO PARA RESCISÃO | E47: Percentuais | F47: Valor
C48: A | D48: Aviso Prévio Indenizado (Art. 7º, inciso XXI, da CF/1988 e arts. 477, 487, §1º, e 491 da CLT) | E48: ='Encargos Sociais'!E36 -> 0.005 | F48: =ROUND(E48*$F$16,2) -> 30.56
C49: B | D49: Incidência do FGTS sobre o Aviso Prévio Indenizado (Súmula 305 TST) | E49: ='Encargos Sociais'!E37 -> 0.0004 | F49: 2.45 | H49: * Nota 1 - Adotou-se os parâmetros do estudo do STF (http://www.stf.jus.br/arquivo/cms/sobrestfestudosci/anexo/encargos_sociais_03102007.pdf), onde 5% do pessoal é demitido pelo empregador no decurso do contrato (para estes, considerou-se o aviso prévio indenizado). Desprezou-se as demissões por justa causa e os pedidos de demissão.
C50: C | D50: Multa do FGTS e Contribuição Social sobre o Aviso Prévio Indenizado (Art. 18, §1º, da Lei 8.036/1990 e art. 1º da LC nº 110/2001) | E50: ='Encargos Sociais'!E38 -> 0.0019 | F50: 11.61 | H50: * Nota 2 - No cálculo do percentual, considerou-se 36 dias, correspondendo à metade da duração média dos contratos (2 anos)
C51: D | D51: Aviso Prévio Trabalhado (Art. 488, parágrafo único, CLT) | E51: ='Encargos Sociais'!E39 -> 0.012 | F51: 73.35 | H51: * Nota 3 - Incide sobre a Remuneração + 13º salário (1/12) + Férias (1/12) + Adicional de Férias (1/36) x 50% multa (40% para o empregado e 10% de contribuição social) x 8% FGTS
C52: E | D52: Incidência de GPS, FGTS e outras contribuições sobre o Aviso Prévio Trabalhado | E52: ='Encargos Sociais'!E40 -> 0.0021 | F52: 12.84 | H52: * Nota 4 - Os 95% restantes do cálculo, a um prazo médio de contrato de 4 anos. Assim, calcula-se 7 dias para o 1º ano de contrato e mais 3 dias para os 3 anos seguintes.
C53: F | D53: Multa do FGTS e Contribuição Social sobre o Aviso Prévio Trabalhado | E53: ='Encargos Sociais'!E41 -> 0.0145 | F53: 88.63
D55: TOTAL DE PREVISÃO PARA RESCISÃO | F55: =SUM(F48:F53) -> 219.44
B57: MÓDULO 4 - CUSTO DO PROFISSIONAL AUSENTE | E57: Percentuais | F57: Valor
B58: Submódulo 4.1 - Ausências Legais
C59: A | D59: Férias (Arts. 129 e 130, inc. I, da CLT) - Calculado no Submódulo 2.1 | E59: 0 | F59: =ROUND(E59*$F$16,2) -> 0 | H59: * Nota 1 - As alíneas “A” a “F” referem-se somente ao custo que será pago ao repositor pelos dias trabalhados quando da necessidade de substituir a mão de obra alocada na prestação do serviço.
C60: B | D60: Ausências Legais (Arts. 131 e 473 da CLT) | E60: ='Encargos Sociais'!E26 -> 0.0079 | F60: 48.29 | H60: * Nota 2 - Adotou-se a estimativa do SINAPI de 2 dias por ano.
C61: C | D61: Licença-Paternidade (Art. 7º, XIX, e art. 10, §1º, do ADCT, CF/1988 e Art. 1º, II, da Lei 11.770/2008) | E61: ='Encargos Sociais'!E27 -> 0.0008 | F61: 4.89 | H61: * Nota 3 - Utilizada a proporção de 50% para homens, 5 dias de afastamento, e a probabilidade de um trabalhador requerer a Licença Paternidade em 5,22%, conforme SINAPI (citando dados da PNAD 2015)
C62: D | D62: Ausência por Acidente de Trabalho (Art. 131, III, da CLT) | E62: ='Encargos Sociais'!E28 -> 0.0009 | F62: 5.5 | H62: * Nota 4 - Utilzada a estatística de 1,96% dos contribuintes beneficiados com a emissão do auxílio, conforme Anuário Estatístico da Previdência Social. Afastamento de 15 dias a cargo da empresa.
C63: E | D63: Afastamento Maternidade (Art. 71 da Lei nº 8.213/1991) | E63: ='Encargos Sociais'!E29 -> 0.0033 | F63: 20.17 | H63: * Nota 5 - Utilizada a proporção de 50% para mulheres, 180 dias de afastamento, e a probabilidade de uma trabalhadora requerer a Licença Maternidade em 4,91%, conforme SINAPI (citando dados do IBGE 2016)
C64: F | D64: Auxílio Enfermidade - Doença (Art. 59 da Lei nº 8.213/1991) | E64: ='Encargos Sociais'!E30 -> 0.0071 | F64: 43.4 | H64: * Nota 6 - Utilizada a estatística de 3,37% dos contribuintes beneficiados com o auxílio, conforme Anuário Estatístico da Previdência Social de 2015 (acrescidos de 2 dias ao ano, para os quais o trabalhador nem requer o benefício da Previdência - conforme SINAPI)
B66: Submódulo 4.2 - Intrajornada
C67: A | D67: Intervalo para repouso ou alimentação | E67: ='Encargos Sociais'!E33 -> 0 | F67: =ROUND(E67*$F$16,2) -> 0
D69: QUADRO-RESUMO DO MÓDULO 4 | F69: Valor
D70: 4.1 - Ausências Legais | E70: =SUM(E59:E64) -> 0.02 | F70: =ROUND(E70*$F$16,2) -> 122.25
D71: 4.2 - Intrajornada | E71: =E67 -> 0 | F71: =ROUND(E71*$F$16,2) -> 0
D73: TOTAL DE PREVISÃO PARA RESCISÃO E INTERVALO INTRAJORNADA | F73: =SUM(F70:F71) -> 122.25
B75: MÓDULO 5 - INSUMOS DIVERSOS | F75: Valor
C76: A | D76: Uniformes - aquisição | F76: 0
C77: B | D77: Materiais de consumo relacionados ao posto - aquisição | F77: =ROUND(HLOOKUP(B5,'Mat Cons'!I11:DX13,3)/12,2) -> 0
C78: C | D78: Ferramentas relacionadas ao posto - remuneração da sua depreciação / manutenção | F78: =HLOOKUP(B5,'Relacion - Ferram'!Q3:EF5,3) -> 0
C79: D | D79: Equipamentos relacionados ao posto - remuneração da sua depreciação / manutenção | F79: =HLOOKUP(B5,'Equip Rel'!Q11:EF13,3) -> 0
C80: E | D80: Equipamentos de Proteção Individual - EPI - aquisição | F80: =ROUND(HLOOKUP(B5,EPI!I4:X6,3)/12,2) -> 0
D82: TOTAL DE INSUMOS DIVERSOS | F82: =SUM(F76:F81) -> 0 | H82: * Nota - Valores mensais por empregado
B84: MÓDULO 6 - CUSTOS INDIRETOS, TRIBUTOS E LUCRO - BDI | E84: Percentuais | F84: Valor
C85: A | D85: Custos Indiretos | E85: ='BDI - Geral'!E7 -> 0.0227
C86: A.1 | D86: Administração Central | E86: ='BDI - Geral'!E8 -> 0.0173
C87: A.2 | D87: Seguros, Garantias e Riscos | E87: ='BDI - Geral'!E9 -> 0.0054
C88: B | D88: Lucro | E88: ='BDI - Geral'!E11 -> 0.0267
C89: C | D89: Tributos | E89: =SUM(E90:E91) -> 0.169
C90: C.1 | D90: Tributos Federais (COFINS, PIS e CPRB) | E90: ='BDI - Geral'!E19 -> 0.119
C91: C.2 | D91: Tributos Distritais (ISS) | E91: ='BDI - Geral'!E24 -> 0.05 | H91: * Nota - Utilizou-se o indicado pelo Sindicato da Arquitetura e da Engenharia (Sinaenco, 2008, p. 22), que adota um percentual redutor de 20% no cálculo dos custos tributários relativos às contribuições PIS e COFINS
C92: D | D92: Despesas Financeiras | E92: ='BDI - Geral'!E14 -> 0.004367839439
D94: TOTAL DE BDI | E94: ='BDI - Geral'!E27 -> 0.2691 | F94: =ROUND(E94*E102,2) -> 2612.8
D96: QUADRO-RESUMO DO CUSTO MENSAL POR EMPREGADO - SEM O 13º | E96: Valor
D97: Módulo 1 - Composição da Remuneração | E97: =F16 -> 6112.66
D98: Módulo 2 - Encargos e Benefícios Anuais, Mensais e Diários | E98: =F45 -> 3255.07
D99: Módulo 3 - Provisão para Rescisão | E99: =F55 -> 219.44
D100: Módulo 4 - Custo de Reposição do Profissional Ausente | E100: =F73 -> 122.25
D101: Módulo 5 - Insumos Diversos | E101: =F82 -> 0
D102: SUBTOTAL (A+B+C+D+E) | E102: =SUM(E97:E101) -> 9709.42
D103: Módulo 6 - Custos Indiretos, Tributos e Lucro | E103: =F94 -> 2612.8
D105: TOTAL DO POSTO | E105: =SUM(E102:E103) -> 12322.22
B107: MÓDULO 7 - DESTAQUE DO MÓDULO 2 - 13º SALÁRIO | E107: Percentuais | F107: Valor
C108: A | D108: 13º Salário | E108: ='Encargos Sociais'!E32 -> 0.0833 | F108: =ROUND(E108*F$16,2) -> 509.18
C109: B | D109: Encargos Sociais sobre o 13º Salário - Taxa calculada no SUBMÓDULO 2.2 | E109: =SUM($E$24:$E$32) -> 0.178 | F109: =ROUND(E109*$F$108,2) -> 90.63 | H109: * Nota 1 - Provisiona-se, mensalmente, o proporcional a 1/12 dos valores referentes a gratificação natalina e adicional de férias.
C110: C | D110: BDI sobre o 13º Salário - Taxa calculada no MÓDULO 6 | E110: =E94 -> 0.2691 | F110: =ROUND(E110*($F$108+$F$109),2) -> 161.41
D112: TOTAL DO DESTAQUE DO 13º SALÁRIO | F112: =SUM(F108:F110) -> 761.22
D114: QUADRO-RESUMO DO CUSTO MENSAL POR EMPREGADO | E114: Valor
D115: Custo total - sem o 13º Salário | E115: =ROUND(E105,2) -> 12322.22
D116: Destaque do 13º Salário (valor mensal) | E116: =ROUND(F112,2) -> 761.22
D118: TOTAL DO POSTO | E118: =E115+E116 -> 13083.44

Sheet 12
B2: PLANILHA DE ESTIMATIVA DE CUSTOS
B3: Padrão IN 05/2017 e IN 07/2018 - MPDG
B5: 12 | D5: =HLOOKUP($B$5,'Dados Gerais'!$D$6:$BI$22,6) -> TÉCNICO DE CONTROLE OPERACIONAL DE INSTALAÇÕES ELÉTRICAS | E5: QUANTIDADE | F5: =HLOOKUP($B$5,'Dados Gerais'!$D$6:$BI$22,10) -> 3
B6: CCT | D6: =HLOOKUP($B$5,'Dados Gerais'!$D$6:$BI$22,16) -> SINDUSCON/DF x STICOMBE/DF CCT 2024/2025 N.º DF000276/2024 | E6: DATA-BASE | F6: =HLOOKUP($B$5,'Dados Gerais'!$D$6:$BI$22,17) -> 2024-05-01
B8: MÓDULO 1 - COMPOSIÇÃO DA REMUNERAÇÃO | F8: Valor
C9: A | D9: Salário-Base | F9: =HLOOKUP($B$5,'Dados Gerais'!$D$6:$BI$22,8) -> 6508.88
C10: B | D10: Adicional de Periculosidade | F10: =HLOOKUP($B$5,'Dados Gerais'!$D$6:$BI$39,26) -> 1952.66
C11: C | D11: Adicional de Insalubridade | F11: =HLOOKUP($B$5,'Dados Gerais'!$D$6:$BI$39,32) -> 0
C12: D | D12: Adicional Noturno | F12: =HLOOKUP($B$5,'Dados Gerais'!$D$6:$BI$52,47) -> 0 | H12: * Nota 1 - O Módulo 1 refere-se ao valor mensal devido ao empregado pela prestação do serviço no período de 12 meses.
C13: E | D13: Adicional de Hora Extra | F13: =HLOOKUP($B$5,'Dados Gerais'!$D$6:$BI$69,64) -> 0 | H13: * Nota 2 - O adicional de hora extra no feriado trabalhado foi suprimido pela Lei 13.467/17
C14: F | D14: Outros (adicional de sobreaviso) | F14: =HLOOKUP($B$5,'Dados Gerais'!$D$6:$BI$69,34) -> 555.26 | H14: * Nota 3 - ART. 7º, § 2º, DA LEI Nº 605/49.Sendo mensalista o obreiro, o adicional noturno pago de forma fixa já é considerado integrado para os efeitos do pagamento do repouso semanal remunerado, nos termos do art. 7º, § 2º, da Lei nº 605/49.
D16: TOTAL DA REMUNERAÇÃO | F16: =SUM(F9:F14) -> 9016.8
B18: MÓDULO 2 - ENCARGOS E BENEFÍCIOS ANUAIS, MENSAIS E DIÁRIOS | E18: Percentuais | F18: Valor
B19: Submódulo 2.1 - 13º Salário, Férias e Adicional de Férias
C20: A | D20: 13º Salário - Calculado no Módulo 7 - Destacado | E20: 0 | F20: =ROUND(E20*F$16,2) -> 0
C21: B | D21: Férias e Adicional de Férias | E21: ='Encargos Sociais'!E25+'Encargos Sociais'!E31 -> 0.1212 | F21: =ROUND(E21*F$16,2) -> 1092.84 | H21: * Nota 1 - Provisiona-se, mensalmente, o proporcional a 1/12 dos valores referentes a gratificação natalina, férias e adicional de férias.
H22: * Nota 2 - O adicional de férias contido no Submódulo 2.1 corresponde a 1/3 da remuneração que, por sua vez, é dividida por 12 contome Nota 1.
B23: Submódulo 2.2 - Encargos Previdenciários (GPS), Fundo de Garantia por Tempo de Serviço (FGTS) e Outras Contribuições
C24: A | D24: INSS (art. 22, inciso I, Lei nº 8.212/91) | E24: ='Encargos Sociais'!E14 -> 0 | F24: =ROUND(E24*($F$16+$F$41+$F$73),2) -> 0
C25: B | D25: Salário Educação (art. 3º, inciso I, Decreto nº 87.043/82) | E25: ='Encargos Sociais'!E15 -> 0.025 | F25: =ROUND(E25*($F$16+$F$41+$F$73),2) -> 257.25
C26: C | D26: SAT/RAT (art. 22, II, Lei 8.212/91 e Anexo V, Decreto 6.042/07) - Enquadramento 8211-3/00 | E26: ='Encargos Sociais'!E16 -> 0.03 | F26: 308.7
C27: D | D27: SESC ou SESI (art. 30, Lei nº 8.036/90 e art. 1º, Lei 8.154/90) | E27: ='Encargos Sociais'!E17 -> 0.015 | F27: 154.35
C28: E | D28: SENAI ou SENAC (Decreto nº 2.318/86) | E28: ='Encargos Sociais'!E18 -> 0.01 | F28: 102.9
C29: F | D29: SEBRAE (§ 3º, art. 8º, Lei 8.029/90, alterada pela Lei nº 8.154/90) | E29: ='Encargos Sociais'!E19 -> 0.006 | F29: 61.74
C30: G | D30: INCRA (art. 1º, I, Decreto Lei 1.146/70 e Lei 7.787, de 30/06/89) | E30: ='Encargos Sociais'!E20 -> 0.002 | F30: 20.58 | H30: * Nota 1 - Os percentuais dos encargos previdenciários, do FGTS e demais contribuições são estabelecidos por legislação vigente.
C31: H | D31: FGTS (Lei Complementar nº 110/01 e art. 30, Lei nº 8.036/90) | E31: ='Encargos Sociais'!E21 -> 0.08 | F31: 823.2 | H31: * Nota 2 - O SAT, a depender do grau de risco do serviço, irá variar entre 1%, para risco leve, de 2%, para risco médio, e de 3% para risco grave.
C32: I | D32: SECONCI (Convenções Coletivas de Trabalho da construção) | E32: ='Encargos Sociais'!E22 -> 0.01 | F32: 102.9 | H32: * Nota 3 - Os percentuais do Submódulo 2.2 incidem sobre o Módulo 1 e o Submódulo 2.1.
B34: Submódulo 2.3 - Benefícios Mensais e Diários
C35: A | D35: Auxílio Transporte | F35: =HLOOKUP($B$5,'Dados Gerais'!$D$6:$BI$95,83) -> 488.59
C36: B | D36: Auxílio Alimentação | F36: =HLOOKUP($B$5,'Dados Gerais'!$D$6:$BI$95,90) -> 770
C37: C | D37: Assistência Médica e Familiar | F37: =HLOOKUP($B$5,'Dados Gerais'!$D$6:$BI$103,98) -> 0
C38: D | D38: Outros (Seguro de vida, auxílio funeral, auxílio odontológico e auxílio creche) | F38: =HLOOKUP($B$5,'Dados Gerais'!$D$6:$BI$121,115) -> 13.95 | H38: * Nota 1 - O valor informado deverá ser o custo real do benefício (descontado o valor eventualmente pago pelo empregado).
H39: * Nota 2 - Observar a previsão dos benefícios contidos em Acordos, Convenções e Dissídios Coletivos de Trabalho e o disposto no art. 6º da IN 5/2017
D40: QUADRO-RESUMO DO MÓDULO 2
D41: 2.1 - 13º Salário, Férias e Adicional de Férias - 13º Destacado - Calculado no Módulo 7 | E41: =SUM(E20:E21) -> 0.1212 | F41: =F20+F21 -> 1092.84
D42: 2.2 - Encargos Previdenciários (GPS), Fundo de Garantia por Tempo de Serviço (FGTS) e Contribuições | E42: =SUM(E24:E32) -> 0.178 | F42: =SUM(F24:F32) -> 1831.62
D43: 2.3 - Benefícios Mensais e Diários | F43: =SUM(F35:F38) -> 1272.54
D45: TOTAL DOS ENCARGOS E BENEFÍCIOS | F45: =SUM(F41:F43) -> 4197
B47: MÓDULO 3 - PREVISÃO PARA RESCISÃO | E47: Percentuais | F47: Valor
C48: A | D48: Aviso Prévio Indenizado (Art. 7º, inciso XXI, da CF/1988 e arts. 477, 487, §1º, e 491 da CLT) | E48: ='Encargos Sociais'!E36 -> 0.005 | F48: =ROUND(E48*$F$16,2) -> 45.08
C49: B | D49: Incidência do FGTS sobre o Aviso Prévio Indenizado (Súmula 305 TST) | E49: ='Encargos Sociais'!E37 -> 0.0004 | F49: 3.61 | H49: * Nota 1 - Adotou-se os parâmetros do estudo do STF (http://www.stf.jus.br/arquivo/cms/sobrestfestudosci/anexo/encargos_sociais_03102007.pdf), onde 5% do pessoal é demitido pelo empregador no decurso do contrato (para estes, considerou-se o aviso prévio indenizado). Desprezou-se as demissões por justa causa e os pedidos de demissão.
C50: C | D50: Multa do FGTS e Contribuição Social sobre o Aviso Prévio Indenizado (Art. 18, §1º, da Lei 8.036/1990 e art. 1º da LC nº 110/2001) | E50: ='Encargos Sociais'!E38 -> 0.0019 | F50: 17.13 | H50: * Nota 2 - No cálculo do percentual, considerou-se 36 dias, correspondendo à metade da duração média dos contratos (2 anos)
C51: D | D51: Aviso Prévio Trabalhado (Art. 488, parágrafo único, CLT) | E51: ='Encargos Sociais'!E39 -> 0.012 | F51: 108.2 | H51: * Nota 3 - Incide sobre a Remuneração + 13º salário (1/12) + Férias (1/12) + Adicional de Férias (1/36) x 50% multa (40% para o empregado e 10% de contribuição social) x 8% FGTS
C52: E | D52: Incidência de GPS, FGTS e outras contribuições sobre o Aviso Prévio Trabalhado | E52: ='Encargos Sociais'!E40 -> 0.0021 | F52: 18.94 | H52: * Nota 4 - Os 95% restantes do cálculo, a um prazo médio de contrato de 4 anos. Assim, calcula-se 7 dias para o 1º ano de contrato e mais 3 dias para os 3 anos seguintes.
C53: F | D53: Multa do FGTS e Contribuição Social sobre o Aviso Prévio Trabalhado | E53: ='Encargos Sociais'!E41 -> 0.0145 | F53: 130.74
D55: TOTAL DE PREVISÃO PARA RESCISÃO | F55: =SUM(F48:F53) -> 323.7
B57: MÓDULO 4 - CUSTO DO PROFISSIONAL AUSENTE | E57: Percentuais | F57: Valor
B58: Submódulo 4.1 - Ausências Legais
C59: A | D59: Férias (Arts. 129 e 130, inc. I, da CLT) - Calculado no Submódulo 2.1 | E59: 0 | F59: =ROUND(E59*$F$16,2) -> 0 | H59: * Nota 1 - As alíneas “A” a “F” referem-se somente ao custo que será pago ao repositor pelos dias trabalhados quando da necessidade de substituir a mão de obra alocada na prestação do serviço.
C60: B | D60: Ausências Legais (Arts. 131 e 473 da CLT) | E60: ='Encargos Sociais'!E26 -> 0.0079 | F60: 71.23 | H60: * Nota 2 - Adotou-se a estimativa do SINAPI de 2 dias por ano.
C61: C | D61: Licença-Paternidade (Art. 7º, XIX, e art. 10, §1º, do ADCT, CF/1988 e Art. 1º, II, da Lei 11.770/2008) | E61: ='Encargos Sociais'!E27 -> 0.0008 | F61: 7.21 | H61: * Nota 3 - Utilizada a proporção de 50% para homens, 5 dias de afastamento, e a probabilidade de um trabalhador requerer a Licença Paternidade em 5,22%, conforme SINAPI (citando dados da PNAD 2015)
C62: D | D62: Ausência por Acidente de Trabalho (Art. 131, III, da CLT) | E62: ='Encargos Sociais'!E28 -> 0.0009 | F62: 8.12 | H62: * Nota 4 - Utilzada a estatística de 1,96% dos contribuintes beneficiados com a emissão do auxílio, conforme Anuário Estatístico da Previdência Social. Afastamento de 15 dias a cargo da empresa.
C63: E | D63: Afastamento Maternidade (Art. 71 da Lei nº 8.213/1991) | E63: ='Encargos Sociais'!E29 -> 0.0033 | F63: 29.76 | H63: * Nota 5 - Utilizada a proporção de 50% para mulheres, 180 dias de afastamento, e a probabilidade de uma trabalhadora requerer a Licença Maternidade em 4,91%, conforme SINAPI (citando dados do IBGE 2016)
C64: F | D64: Auxílio Enfermidade - Doença (Art. 59 da Lei nº 8.213/1991) | E64: ='Encargos Sociais'!E30 -> 0.0071 | F64: 64.02 | H64: * Nota 6 - Utilizada a estatística de 3,37% dos contribuintes beneficiados com o auxílio, conforme Anuário Estatístico da Previdência Social de 2015 (acrescidos de 2 dias ao ano, para os quais o trabalhador nem requer o benefício da Previdência - conforme SINAPI)
B66: Submódulo 4.2 - Intrajornada
C67: A | D67: Intervalo para repouso ou alimentação | E67: ='Encargos Sociais'!E33 -> 0 | F67: =ROUND(E67*$F$16,2) -> 0
D69: QUADRO-RESUMO DO MÓDULO 4 | F69: Valor
D70: 4.1 - Ausências Legais | E70: =SUM(E59:E64) -> 0.02 | F70: =ROUND(E70*$F$16,2) -> 180.34
D71: 4.2 - Intrajornada | E71: =E67 -> 0 | F71: =ROUND(E71*$F$16,2) -> 0
D73: TOTAL DE PREVISÃO PARA RESCISÃO E INTERVALO INTRAJORNADA | F73: =SUM(F70:F71) -> 180.34
B75: MÓDULO 5 - INSUMOS DIVERSOS | F75: Valor
C76: A | D76: Uniformes - aquisição | F76: 0
C77: B | D77: Materiais de consumo relacionados ao posto - aquisição | F77: =ROUND(HLOOKUP(B5,'Mat Cons'!I11:DX13,3)/12,2) -> 0
C78: C | D78: Ferramentas relacionadas ao posto - remuneração da sua depreciação / manutenção | F78: =HLOOKUP(B5,'Relacion - Ferram'!Q3:EF5,3) -> 90.68
C79: D | D79: Equipamentos relacionados ao posto - remuneração da sua depreciação / manutenção | F79: =HLOOKUP(B5,'Equip Rel'!Q11:EF13,3) -> 0
C80: E | D80: Equipamentos de Proteção Individual - EPI - aquisição | F80: =ROUND(HLOOKUP(B5,EPI!I4:X6,3)/12,2) -> 0
D82: TOTAL DE INSUMOS DIVERSOS | F82: =SUM(F76:F81) -> 90.68 | H82: * Nota - Valores mensais por empregado
B84: MÓDULO 6 - CUSTOS INDIRETOS, TRIBUTOS E LUCRO - BDI | E84: Percentuais | F84: Valor
C85: A | D85: Custos Indiretos | E85: ='BDI - Geral'!E7 -> 0.0227
C86: A.1 | D86: Administração Central | E86: ='BDI - Geral'!E8 -> 0.0173
C87: A.2 | D87: Seguros, Garantias e Riscos | E87: ='BDI - Geral'!E9 -> 0.0054
C88: B | D88: Lucro | E88: ='BDI - Geral'!E11 -> 0.0267
C89: C | D89: Tributos | E89: =SUM(E90:E91) -> 0.169
C90: C.1 | D90: Tributos Federais (COFINS, PIS e CPRB) | E90: ='BDI - Geral'!E19 -> 0.119
C91: C.2 | D91: Tributos Distritais (ISS) | E91: ='BDI - Geral'!E24 -> 0.05 | H91: * Nota - Utilizou-se o indicado pelo Sindicato da Arquitetura e da Engenharia (Sinaenco, 2008, p. 22), que adota um percentual redutor de 20% no cálculo dos custos tributários relativos às contribuições PIS e COFINS
C92: D | D92: Despesas Financeiras | E92: ='BDI - Geral'!E14 -> 0.004367839439
D94: TOTAL DE BDI | E94: ='BDI - Geral'!E27 -> 0.2691 | F94: =ROUND(E94*E102,2) -> 3715.87
D96: QUADRO-RESUMO DO CUSTO MENSAL POR EMPREGADO - SEM O 13º | E96: Valor
D97: Módulo 1 - Composição da Remuneração | E97: =F16 -> 9016.8
D98: Módulo 2 - Encargos e Benefícios Anuais, Mensais e Diários | E98: =F45 -> 4197
D99: Módulo 3 - Provisão para Rescisão | E99: =F55 -> 323.7
D100: Módulo 4 - Custo de Reposição do Profissional Ausente | E100: =F73 -> 180.34
D101: Módulo 5 - Insumos Diversos | E101: =F82 -> 90.68
D102: SUBTOTAL (A+B+C+D+E) | E102: =SUM(E97:E101) -> 13808.52
D103: Módulo 6 - Custos Indiretos, Tributos e Lucro | E103: =F94 -> 3715.87
D105: TOTAL DO POSTO | E105: =SUM(E102:E103) -> 17524.39
B107: MÓDULO 7 - DESTAQUE DO MÓDULO 2 - 13º SALÁRIO | E107: Percentuais | F107: Valor
C108: A | D108: 13º Salário | E108: ='Encargos Sociais'!E32 -> 0.0833 | F108: =ROUND(E108*F$16,2) -> 751.1
C109: B | D109: Encargos Sociais sobre o 13º Salário - Taxa calculada no SUBMÓDULO 2.2 | E109: =SUM($E$24:$E$32) -> 0.178 | F109: =ROUND(E109*$F$108,2) -> 133.7 | H109: * Nota 1 - Provisiona-se, mensalmente, o proporcional a 1/12 dos valores referentes a gratificação natalina e adicional de férias.
C110: C | D110: BDI sobre o 13º Salário - Taxa calculada no MÓDULO 6 | E110: =E94 -> 0.2691 | F110: =ROUND(E110*($F$108+$F$109),2) -> 238.1
D112: TOTAL DO DESTAQUE DO 13º SALÁRIO | F112: =SUM(F108:F110) -> 1122.9
D114: QUADRO-RESUMO DO CUSTO MENSAL POR EMPREGADO | E114: Valor
D115: Custo total - sem o 13º Salário | E115: =ROUND(E105,2) -> 17524.39
D116: Destaque do 13º Salário (valor mensal) | E116: =ROUND(F112,2) -> 1122.9
D118: TOTAL DO POSTO | E118: =E115+E116 -> 18647.29

Sheet 13
B2: PLANILHA DE ESTIMATIVA DE CUSTOS
B3: Padrão IN 05/2017 e IN 07/2018 - MPDG
B5: 13 | D5: =HLOOKUP($B$5,'Dados Gerais'!$D$6:$BI$22,6) -> TÉCNICO DE CONTROLE OPERACIONAL DE INSTALAÇÕES HIDROSSANITÁRIAS | E5: QUANTIDADE | F5: =HLOOKUP($B$5,'Dados Gerais'!$D$6:$BI$22,10) -> 2
B6: CCT | D6: =HLOOKUP($B$5,'Dados Gerais'!$D$6:$BI$22,16) -> SINDUSCON/DF x STICOMBE/DF CCT 2024/2025 N.º DF000276/2024 | E6: DATA-BASE | F6: =HLOOKUP($B$5,'Dados Gerais'!$D$6:$BI$22,17) -> 2024-05-01
B8: MÓDULO 1 - COMPOSIÇÃO DA REMUNERAÇÃO | F8: Valor
C9: A | D9: Salário-Base | F9: =HLOOKUP($B$5,'Dados Gerais'!$D$6:$BI$22,8) -> 6508.88
C10: B | D10: Adicional de Periculosidade | F10: =HLOOKUP($B$5,'Dados Gerais'!$D$6:$BI$39,26) -> 0
C11: C | D11: Adicional de Insalubridade | F11: =HLOOKUP($B$5,'Dados Gerais'!$D$6:$BI$39,32) -> 564.8
C12: D | D12: Adicional Noturno | F12: =HLOOKUP($B$5,'Dados Gerais'!$D$6:$BI$52,47) -> 0 | H12: * Nota 1 - O Módulo 1 refere-se ao valor mensal devido ao empregado pela prestação do serviço no período de 12 meses.
C13: E | D13: Adicional de Hora Extra | F13: =HLOOKUP($B$5,'Dados Gerais'!$D$6:$BI$69,64) -> 0 | H13: * Nota 2 - O adicional de hora extra no feriado trabalhado foi suprimido pela Lei 13.467/17
C14: F | D14: Outros (adicional de sobreaviso) | F14: =HLOOKUP($B$5,'Dados Gerais'!$D$6:$BI$69,34) -> 696.22 | H14: * Nota 3 - ART. 7º, § 2º, DA LEI Nº 605/49.Sendo mensalista o obreiro, o adicional noturno pago de forma fixa já é considerado integrado para os efeitos do pagamento do repouso semanal remunerado, nos termos do art. 7º, § 2º, da Lei nº 605/49.
D16: TOTAL DA REMUNERAÇÃO | F16: =SUM(F9:F14) -> 7769.9
B18: MÓDULO 2 - ENCARGOS E BENEFÍCIOS ANUAIS, MENSAIS E DIÁRIOS | E18: Percentuais | F18: Valor
B19: Submódulo 2.1 - 13º Salário, Férias e Adicional de Férias
C20: A | D20: 13º Salário - Calculado no Módulo 7 - Destacado | E20: 0 | F20: =ROUND(E20*F$16,2) -> 0
C21: B | D21: Férias e Adicional de Férias | E21: ='Encargos Sociais'!E25+'Encargos Sociais'!E31 -> 0.1212 | F21: =ROUND(E21*F$16,2) -> 941.71 | H21: * Nota 1 - Provisiona-se, mensalmente, o proporcional a 1/12 dos valores referentes a gratificação natalina, férias e adicional de férias.
H22: * Nota 2 - O adicional de férias contido no Submódulo 2.1 corresponde a 1/3 da remuneração que, por sua vez, é dividida por 12 contome Nota 1.
B23: Submódulo 2.2 - Encargos Previdenciários (GPS), Fundo de Garantia por Tempo de Serviço (FGTS) e Outras Contribuições
C24: A | D24: INSS (art. 22, inciso I, Lei nº 8.212/91) | E24: ='Encargos Sociais'!E14 -> 0 | F24: =ROUND(E24*($F$16+$F$41+$F$73),2) -> 0
C25: B | D25: Salário Educação (art. 3º, inciso I, Decreto nº 87.043/82) | E25: ='Encargos Sociais'!E15 -> 0.025 | F25: =ROUND(E25*($F$16+$F$41+$F$73),2) -> 221.68
C26: C | D26: SAT/RAT (art. 22, II, Lei 8.212/91 e Anexo V, Decreto 6.042/07) - Enquadramento 8211-3/00 | E26: ='Encargos Sociais'!E16 -> 0.03 | F26: 266.01
C27: D | D27: SESC ou SESI (art. 30, Lei nº 8.036/90 e art. 1º, Lei 8.154/90) | E27: ='Encargos Sociais'!E17 -> 0.015 | F27: 133.01
C28: E | D28: SENAI ou SENAC (Decreto nº 2.318/86) | E28: ='Encargos Sociais'!E18 -> 0.01 | F28: 88.67
C29: F | D29: SEBRAE (§ 3º, art. 8º, Lei 8.029/90, alterada pela Lei nº 8.154/90) | E29: ='Encargos Sociais'!E19 -> 0.006 | F29: 53.2
C30: G | D30: INCRA (art. 1º, I, Decreto Lei 1.146/70 e Lei 7.787, de 30/06/89) | E30: ='Encargos Sociais'!E20 -> 0.002 | F30: 17.73 | H30: * Nota 1 - Os percentuais dos encargos previdenciários, do FGTS e demais contribuições são estabelecidos por legislação vigente.
C31: H | D31: FGTS (Lei Complementar nº 110/01 e art. 30, Lei nº 8.036/90) | E31: ='Encargos Sociais'!E21 -> 0.08 | F31: 709.36 | H31: * Nota 2 - O SAT, a depender do grau de risco do serviço, irá variar entre 1%, para risco leve, de 2%, para risco médio, e de 3% para risco grave.
C32: I | D32: SECONCI (Convenções Coletivas de Trabalho da construção) | E32: ='Encargos Sociais'!E22 -> 0.01 | F32: 88.67 | H32: * Nota 3 - Os percentuais do Submódulo 2.2 incidem sobre o Módulo 1 e o Submódulo 2.1.
B34: Submódulo 2.3 - Benefícios Mensais e Diários
C35: A | D35: Auxílio Transporte | F35: =HLOOKUP($B$5,'Dados Gerais'!$D$6:$BI$95,83) -> 488.59
C36: B | D36: Auxílio Alimentação | F36: =HLOOKUP($B$5,'Dados Gerais'!$D$6:$BI$95,90) -> 770
C37: C | D37: Assistência Médica e Familiar | F37: =HLOOKUP($B$5,'Dados Gerais'!$D$6:$BI$103,98) -> 0
C38: D | D38: Outros (Seguro de vida, auxílio funeral, auxílio odontológico e auxílio creche) | F38: =HLOOKUP($B$5,'Dados Gerais'!$D$6:$BI$121,115) -> 13.95 | H38: * Nota 1 - O valor informado deverá ser o custo real do benefício (descontado o valor eventualmente pago pelo empregado).
H39: * Nota 2 - Observar a previsão dos benefícios contidos em Acordos, Convenções e Dissídios Coletivos de Trabalho e o disposto no art. 6º da IN 5/2017
D40: QUADRO-RESUMO DO MÓDULO 2
D41: 2.1 - 13º Salário, Férias e Adicional de Férias - 13º Destacado - Calculado no Módulo 7 | E41: =SUM(E20:E21) -> 0.1212 | F41: =F20+F21 -> 941.71
D42: 2.2 - Encargos Previdenciários (GPS), Fundo de Garantia por Tempo de Serviço (FGTS) e Contribuições | E42: =SUM(E24:E32) -> 0.178 | F42: =SUM(F24:F32) -> 1578.33
D43: 2.3 - Benefícios Mensais e Diários | F43: =SUM(F35:F38) -> 1272.54
D45: TOTAL DOS ENCARGOS E BENEFÍCIOS | F45: =SUM(F41:F43) -> 3792.58
B47: MÓDULO 3 - PREVISÃO PARA RESCISÃO | E47: Percentuais | F47: Valor
C48: A | D48: Aviso Prévio Indenizado (Art. 7º, inciso XXI, da CF/1988 e arts. 477, 487, §1º, e 491 da CLT) | E48: ='Encargos Sociais'!E36 -> 0.005 | F48: =ROUND(E48*$F$16,2) -> 38.85
C49: B | D49: Incidência do FGTS sobre o Aviso Prévio Indenizado (Súmula 305 TST) | E49: ='Encargos Sociais'!E37 -> 0.0004 | F49: 3.11 | H49: * Nota 1 - Adotou-se os parâmetros do estudo do STF (http://www.stf.jus.br/arquivo/cms/sobrestfestudosci/anexo/encargos_sociais_03102007.pdf), onde 5% do pessoal é demitido pelo empregador no decurso do contrato (para estes, considerou-se o aviso prévio indenizado). Desprezou-se as demissões por justa causa e os pedidos de demissão.
C50: C | D50: Multa do FGTS e Contribuição Social sobre o Aviso Prévio Indenizado (Art. 18, §1º, da Lei 8.036/1990 e art. 1º da LC nº 110/2001) | E50: ='Encargos Sociais'!E38 -> 0.0019 | F50: 14.76 | H50: * Nota 2 - No cálculo do percentual, considerou-se 36 dias, correspondendo à metade da duração média dos contratos (2 anos)
C51: D | D51: Aviso Prévio Trabalhado (Art. 488, parágrafo único, CLT) | E51: ='Encargos Sociais'!E39 -> 0.012 | F51: 93.24 | H51: * Nota 3 - Incide sobre a Remuneração + 13º salário (1/12) + Férias (1/12) + Adicional de Férias (1/36) x 50% multa (40% para o empregado e 10% de contribuição social) x 8% FGTS
C52: E | D52: Incidência de GPS, FGTS e outras contribuições sobre o Aviso Prévio Trabalhado | E52: ='Encargos Sociais'!E40 -> 0.0021 | F52: 16.32 | H52: * Nota 4 - Os 95% restantes do cálculo, a um prazo médio de contrato de 4 anos. Assim, calcula-se 7 dias para o 1º ano de contrato e mais 3 dias para os 3 anos seguintes.
C53: F | D53: Multa do FGTS e Contribuição Social sobre o Aviso Prévio Trabalhado | E53: ='Encargos Sociais'!E41 -> 0.0145 | F53: 112.66
D55: TOTAL DE PREVISÃO PARA RESCISÃO | F55: =SUM(F48:F53) -> 278.94
B57: MÓDULO 4 - CUSTO DO PROFISSIONAL AUSENTE | E57: Percentuais | F57: Valor
B58: Submódulo 4.1 - Ausências Legais
C59: A | D59: Férias (Arts. 129 e 130, inc. I, da CLT) - Calculado no Submódulo 2.1 | E59: 0 | F59: =ROUND(E59*$F$16,2) -> 0 | H59: * Nota 1 - As alíneas “A” a “F” referem-se somente ao custo que será pago ao repositor pelos dias trabalhados quando da necessidade de substituir a mão de obra alocada na prestação do serviço.
C60: B | D60: Ausências Legais (Arts. 131 e 473 da CLT) | E60: ='Encargos Sociais'!E26 -> 0.0079 | F60: 61.38 | H60: * Nota 2 - Adotou-se a estimativa do SINAPI de 2 dias por ano.
C61: C | D61: Licença-Paternidade (Art. 7º, XIX, e art. 10, §1º, do ADCT, CF/1988 e Art. 1º, II, da Lei 11.770/2008) | E61: ='Encargos Sociais'!E27 -> 0.0008 | F61: 6.22 | H61: * Nota 3 - Utilizada a proporção de 50% para homens, 5 dias de afastamento, e a probabilidade de um trabalhador requerer a Licença Paternidade em 5,22%, conforme SINAPI (citando dados da PNAD 2015)
C62: D | D62: Ausência por Acidente de Trabalho (Art. 131, III, da CLT) | E62: ='Encargos Sociais'!E28 -> 0.0009 | F62: 6.99 | H62: * Nota 4 - Utilzada a estatística de 1,96% dos contribuintes beneficiados com a emissão do auxílio, conforme Anuário Estatístico da Previdência Social. Afastamento de 15 dias a cargo da empresa.
C63: E | D63: Afastamento Maternidade (Art. 71 da Lei nº 8.213/1991) | E63: ='Encargos Sociais'!E29 -> 0.0033 | F63: 25.64 | H63: * Nota 5 - Utilizada a proporção de 50% para mulheres, 180 dias de afastamento, e a probabilidade de uma trabalhadora requerer a Licença Maternidade em 4,91%, conforme SINAPI (citando dados do IBGE 2016)
C64: F | D64: Auxílio Enfermidade - Doença (Art. 59 da Lei nº 8.213/1991) | E64: ='Encargos Sociais'!E30 -> 0.0071 | F64: 55.17 | H64: * Nota 6 - Utilizada a estatística de 3,37% dos contribuintes beneficiados com o auxílio, conforme Anuário Estatístico da Previdência Social de 2015 (acrescidos de 2 dias ao ano, para os quais o trabalhador nem requer o benefício da Previdência - conforme SINAPI)
B66: Submódulo 4.2 - Intrajornada
C67: A | D67: Intervalo para repouso ou alimentação | E67: ='Encargos Sociais'!E33 -> 0 | F67: =ROUND(E67*$F$16,2) -> 0
D69: QUADRO-RESUMO DO MÓDULO 4 | F69: Valor
D70: 4.1 - Ausências Legais | E70: =SUM(E59:E64) -> 0.02 | F70: =ROUND(E70*$F$16,2) -> 155.4
D71: 4.2 - Intrajornada | E71: =E67 -> 0 | F71: =ROUND(E71*$F$16,2) -> 0
D73: TOTAL DE PREVISÃO PARA RESCISÃO E INTERVALO INTRAJORNADA | F73: =SUM(F70:F71) -> 155.4
B75: MÓDULO 5 - INSUMOS DIVERSOS | F75: Valor
C76: A | D76: Uniformes - aquisição | F76: 0
C77: B | D77: Materiais de consumo relacionados ao posto - aquisição | F77: =ROUND(HLOOKUP(B5,'Mat Cons'!I11:DX13,3)/12,2) -> 0
C78: C | D78: Ferramentas relacionadas ao posto - remuneração da sua depreciação / manutenção | F78: =HLOOKUP(B5,'Relacion - Ferram'!Q3:EF5,3) -> 24.52
C79: D | D79: Equipamentos relacionados ao posto - remuneração da sua depreciação / manutenção | F79: =HLOOKUP(B5,'Equip Rel'!Q11:EF13,3) -> 0
C80: E | D80: Equipamentos de Proteção Individual - EPI - aquisição | F80: =ROUND(HLOOKUP(B5,EPI!I4:X6,3)/12,2) -> 0
D82: TOTAL DE INSUMOS DIVERSOS | F82: =SUM(F76:F81) -> 24.52 | H82: * Nota - Valores mensais por empregado
B84: MÓDULO 6 - CUSTOS INDIRETOS, TRIBUTOS E LUCRO - BDI | E84: Percentuais | F84: Valor
C85: A | D85: Custos Indiretos | E85: ='BDI - Geral'!E7 -> 0.0227
C86: A.1 | D86: Administração Central | E86: ='BDI - Geral'!E8 -> 0.0173
C87: A.2 | D87: Seguros, Garantias e Riscos | E87: ='BDI - Geral'!E9 -> 0.0054
C88: B | D88: Lucro | E88: ='BDI - Geral'!E11 -> 0.0267
C89: C | D89: Tributos | E89: =SUM(E90:E91) -> 0.169
C90: C.1 | D90: Tributos Federais (COFINS, PIS e CPRB) | E90: ='BDI - Geral'!E19 -> 0.119
C91: C.2 | D91: Tributos Distritais (ISS) | E91: ='BDI - Geral'!E24 -> 0.05 | H91: * Nota - Utilizou-se o indicado pelo Sindicato da Arquitetura e da Engenharia (Sinaenco, 2008, p. 22), que adota um percentual redutor de 20% no cálculo dos custos tributários relativos às contribuições PIS e COFINS
C92: D | D92: Despesas Financeiras | E92: ='BDI - Geral'!E14 -> 0.004367839439
D94: TOTAL DE BDI | E94: ='BDI - Geral'!E27 -> 0.2691 | F94: =ROUND(E94*E102,2) -> 3234.94
D96: QUADRO-RESUMO DO CUSTO MENSAL POR EMPREGADO - SEM O 13º | E96: Valor
D97: Módulo 1 - Composição da Remuneração | E97: =F16 -> 7769.9
D98: Módulo 2 - Encargos e Benefícios Anuais, Mensais e Diários | E98: =F45 -> 3792.58
D99: Módulo 3 - Provisão para Rescisão | E99: =F55 -> 278.94
D100: Módulo 4 - Custo de Reposição do Profissional Ausente | E100: =F73 -> 155.4
D101: Módulo 5 - Insumos Diversos | E101: =F82 -> 24.52
D102: SUBTOTAL (A+B+C+D+E) | E102: =SUM(E97:E101) -> 12021.34
D103: Módulo 6 - Custos Indiretos, Tributos e Lucro | E103: =F94 -> 3234.94
D105: TOTAL DO POSTO | E105: =SUM(E102:E103) -> 15256.28
B107: MÓDULO 7 - DESTAQUE DO MÓDULO 2 - 13º SALÁRIO | E107: Percentuais | F107: Valor
C108: A | D108: 13º Salário | E108: ='Encargos Sociais'!E32 -> 0.0833 | F108: =ROUND(E108*F$16,2) -> 647.23
C109: B | D109: Encargos Sociais sobre o 13º Salário - Taxa calculada no SUBMÓDULO 2.2 | E109: =SUM($E$24:$E$32) -> 0.178 | F109: =ROUND(E109*$F$108,2) -> 115.21 | H109: * Nota 1 - Provisiona-se, mensalmente, o proporcional a 1/12 dos valores referentes a gratificação natalina e adicional de férias.
C110: C | D110: BDI sobre o 13º Salário - Taxa calculada no MÓDULO 6 | E110: =E94 -> 0.2691 | F110: =ROUND(E110*($F$108+$F$109),2) -> 205.17
D112: TOTAL DO DESTAQUE DO 13º SALÁRIO | F112: =SUM(F108:F110) -> 967.61
D114: QUADRO-RESUMO DO CUSTO MENSAL POR EMPREGADO | E114: Valor
D115: Custo total - sem o 13º Salário | E115: =ROUND(E105,2) -> 15256.28
D116: Destaque do 13º Salário (valor mensal) | E116: =ROUND(F112,2) -> 967.61
D118: TOTAL DO POSTO | E118: =E115+E116 -> 16223.89

Sheet 14
B2: PLANILHA DE ESTIMATIVA DE CUSTOS
B3: Padrão IN 05/2017 e IN 07/2018 - MPDG
B5: 14 | D5: =HLOOKUP($B$5,'Dados Gerais'!$D$6:$BI$22,6) -> TÉCNICO DE INSTALAÇÕES RESIDENCIAIS | E5: QUANTIDADE | F5: =HLOOKUP($B$5,'Dados Gerais'!$D$6:$BI$22,10) -> 1
B6: CCT | D6: =HLOOKUP($B$5,'Dados Gerais'!$D$6:$BI$22,16) -> SINDUSCON/DF x STICOMBE/DF CCT 2024/2025 N.º DF000276/2024 | E6: DATA-BASE | F6: =HLOOKUP($B$5,'Dados Gerais'!$D$6:$BI$22,17) -> 2024-05-01
B8: MÓDULO 1 - COMPOSIÇÃO DA REMUNERAÇÃO | F8: Valor
C9: A | D9: Salário-Base | F9: =HLOOKUP($B$5,'Dados Gerais'!$D$6:$BI$22,8) -> 6112.66
C10: B | D10: Adicional de Periculosidade | F10: =HLOOKUP($B$5,'Dados Gerais'!$D$6:$BI$39,26) -> 1833.8
C11: C | D11: Adicional de Insalubridade | F11: =HLOOKUP($B$5,'Dados Gerais'!$D$6:$BI$39,32) -> 0
C12: D | D12: Adicional Noturno | F12: =HLOOKUP($B$5,'Dados Gerais'!$D$6:$BI$52,47) -> 0 | H12: * Nota 1 - O Módulo 1 refere-se ao valor mensal devido ao empregado pela prestação do serviço no período de 12 meses.
C13: E | D13: Adicional de Hora Extra | F13: =HLOOKUP($B$5,'Dados Gerais'!$D$6:$BI$69,64) -> 0 | H13: * Nota 2 - O adicional de hora extra no feriado trabalhado foi suprimido pela Lei 13.467/17
C14: F | D14: Outros (adicional de sobreaviso) | F14: =HLOOKUP($B$5,'Dados Gerais'!$D$6:$BI$69,34) -> 521.46 | H14: * Nota 3 - ART. 7º, § 2º, DA LEI Nº 605/49.Sendo mensalista o obreiro, o adicional noturno pago de forma fixa já é considerado integrado para os efeitos do pagamento do repouso semanal remunerado, nos termos do art. 7º, § 2º, da Lei nº 605/49.
D16: TOTAL DA REMUNERAÇÃO | F16: =SUM(F9:F14) -> 8467.92
B18: MÓDULO 2 - ENCARGOS E BENEFÍCIOS ANUAIS, MENSAIS E DIÁRIOS | E18: Percentuais | F18: Valor
B19: Submódulo 2.1 - 13º Salário, Férias e Adicional de Férias
C20: A | D20: 13º Salário - Calculado no Módulo 7 - Destacado | E20: 0 | F20: =ROUND(E20*F$16,2) -> 0
C21: B | D21: Férias e Adicional de Férias | E21: ='Encargos Sociais'!E25+'Encargos Sociais'!E31 -> 0.1212 | F21: =ROUND(E21*F$16,2) -> 1026.31 | H21: * Nota 1 - Provisiona-se, mensalmente, o proporcional a 1/12 dos valores referentes a gratificação natalina, férias e adicional de férias.
H22: * Nota 2 - O adicional de férias contido no Submódulo 2.1 corresponde a 1/3 da remuneração que, por sua vez, é dividida por 12 contome Nota 1.
B23: Submódulo 2.2 - Encargos Previdenciários (GPS), Fundo de Garantia por Tempo de Serviço (FGTS) e Outras Contribuições
C24: A | D24: INSS (art. 22, inciso I, Lei nº 8.212/91) | E24: ='Encargos Sociais'!E14 -> 0 | F24: =ROUND(E24*($F$16+$F$41+$F$73),2) -> 0
C25: B | D25: Salário Educação (art. 3º, inciso I, Decreto nº 87.043/82) | E25: ='Encargos Sociais'!E15 -> 0.025 | F25: =ROUND(E25*($F$16+$F$41+$F$73),2) -> 241.59
C26: C | D26: SAT/RAT (art. 22, II, Lei 8.212/91 e Anexo V, Decreto 6.042/07) - Enquadramento 8211-3/00 | E26: ='Encargos Sociais'!E16 -> 0.03 | F26: 289.91
C27: D | D27: SESC ou SESI (art. 30, Lei nº 8.036/90 e art. 1º, Lei 8.154/90) | E27: ='Encargos Sociais'!E17 -> 0.015 | F27: 144.95
C28: E | D28: SENAI ou SENAC (Decreto nº 2.318/86) | E28: ='Encargos Sociais'!E18 -> 0.01 | F28: 96.64
C29: F | D29: SEBRAE (§ 3º, art. 8º, Lei 8.029/90, alterada pela Lei nº 8.154/90) | E29: ='Encargos Sociais'!E19 -> 0.006 | F29: 57.98
C30: G | D30: INCRA (art. 1º, I, Decreto Lei 1.146/70 e Lei 7.787, de 30/06/89) | E30: ='Encargos Sociais'!E20 -> 0.002 | F30: 19.33 | H30: * Nota 1 - Os percentuais dos encargos previdenciários, do FGTS e demais contribuições são estabelecidos por legislação vigente.
C31: H | D31: FGTS (Lei Complementar nº 110/01 e art. 30, Lei nº 8.036/90) | E31: ='Encargos Sociais'!E21 -> 0.08 | F31: 773.09 | H31: * Nota 2 - O SAT, a depender do grau de risco do serviço, irá variar entre 1%, para risco leve, de 2%, para risco médio, e de 3% para risco grave.
C32: I | D32: SECONCI (Convenções Coletivas de Trabalho da construção) | E32: ='Encargos Sociais'!E22 -> 0.01 | F32: 96.64 | H32: * Nota 3 - Os percentuais do Submódulo 2.2 incidem sobre o Módulo 1 e o Submódulo 2.1.
B34: Submódulo 2.3 - Benefícios Mensais e Diários
C35: A | D35: Auxílio Transporte | F35: =HLOOKUP($B$5,'Dados Gerais'!$D$6:$BI$95,83) -> 488.59
C36: B | D36: Auxílio Alimentação | F36: =HLOOKUP($B$5,'Dados Gerais'!$D$6:$BI$95,90) -> 770
C37: C | D37: Assistência Médica e Familiar | F37: =HLOOKUP($B$5,'Dados Gerais'!$D$6:$BI$103,98) -> 0
C38: D | D38: Outros (Seguro de vida, auxílio funeral, auxílio odontológico e auxílio creche) | F38: =HLOOKUP($B$5,'Dados Gerais'!$D$6:$BI$121,115) -> 13.95 | H38: * Nota 1 - O valor informado deverá ser o custo real do benefício (descontado o valor eventualmente pago pelo empregado).
H39: * Nota 2 - Observar a previsão dos benefícios contidos em Acordos, Convenções e Dissídios Coletivos de Trabalho e o disposto no art. 6º da IN 5/2017
D40: QUADRO-RESUMO DO MÓDULO 2
D41: 2.1 - 13º Salário, Férias e Adicional de Férias - 13º Destacado - Calculado no Módulo 7 | E41: =SUM(E20:E21) -> 0.1212 | F41: =F20+F21 -> 1026.31
D42: 2.2 - Encargos Previdenciários (GPS), Fundo de Garantia por Tempo de Serviço (FGTS) e Contribuições | E42: =SUM(E24:E32) -> 0.178 | F42: =SUM(F24:F32) -> 1720.13
D43: 2.3 - Benefícios Mensais e Diários | F43: =SUM(F35:F38) -> 1272.54
D45: TOTAL DOS ENCARGOS E BENEFÍCIOS | F45: =SUM(F41:F43) -> 4018.98
B47: MÓDULO 3 - PREVISÃO PARA RESCISÃO | E47: Percentuais | F47: Valor
C48: A | D48: Aviso Prévio Indenizado (Art. 7º, inciso XXI, da CF/1988 e arts. 477, 487, §1º, e 491 da CLT) | E48: ='Encargos Sociais'!E36 -> 0.005 | F48: =ROUND(E48*$F$16,2) -> 42.34
C49: B | D49: Incidência do FGTS sobre o Aviso Prévio Indenizado (Súmula 305 TST) | E49: ='Encargos Sociais'!E37 -> 0.0004 | F49: 3.39 | H49: * Nota 1 - Adotou-se os parâmetros do estudo do STF (http://www.stf.jus.br/arquivo/cms/sobrestfestudosci/anexo/encargos_sociais_03102007.pdf), onde 5% do pessoal é demitido pelo empregador no decurso do contrato (para estes, considerou-se o aviso prévio indenizado). Desprezou-se as demissões por justa causa e os pedidos de demissão.
C50: C | D50: Multa do FGTS e Contribuição Social sobre o Aviso Prévio Indenizado (Art. 18, §1º, da Lei 8.036/1990 e art. 1º da LC nº 110/2001) | E50: ='Encargos Sociais'!E38 -> 0.0019 | F50: 16.09 | H50: * Nota 2 - No cálculo do percentual, considerou-se 36 dias, correspondendo à metade da duração média dos contratos (2 anos)
C51: D | D51: Aviso Prévio Trabalhado (Art. 488, parágrafo único, CLT) | E51: ='Encargos Sociais'!E39 -> 0.012 | F51: 101.62 | H51: * Nota 3 - Incide sobre a Remuneração + 13º salário (1/12) + Férias (1/12) + Adicional de Férias (1/36) x 50% multa (40% para o empregado e 10% de contribuição social) x 8% FGTS
C52: E | D52: Incidência de GPS, FGTS e outras contribuições sobre o Aviso Prévio Trabalhado | E52: ='Encargos Sociais'!E40 -> 0.0021 | F52: 17.78 | H52: * Nota 4 - Os 95% restantes do cálculo, a um prazo médio de contrato de 4 anos. Assim, calcula-se 7 dias para o 1º ano de contrato e mais 3 dias para os 3 anos seguintes.
C53: F | D53: Multa do FGTS e Contribuição Social sobre o Aviso Prévio Trabalhado | E53: ='Encargos Sociais'!E41 -> 0.0145 | F53: 122.78
D55: TOTAL DE PREVISÃO PARA RESCISÃO | F55: =SUM(F48:F53) -> 304
B57: MÓDULO 4 - CUSTO DO PROFISSIONAL AUSENTE | E57: Percentuais | F57: Valor
B58: Submódulo 4.1 - Ausências Legais
C59: A | D59: Férias (Arts. 129 e 130, inc. I, da CLT) - Calculado no Submódulo 2.1 | E59: 0 | F59: =ROUND(E59*$F$16,2) -> 0 | H59: * Nota 1 - As alíneas “A” a “F” referem-se somente ao custo que será pago ao repositor pelos dias trabalhados quando da necessidade de substituir a mão de obra alocada na prestação do serviço.
C60: B | D60: Ausências Legais (Arts. 131 e 473 da CLT) | E60: ='Encargos Sociais'!E26 -> 0.0079 | F60: 66.9 | H60: * Nota 2 - Adotou-se a estimativa do SINAPI de 2 dias por ano.
C61: C | D61: Licença-Paternidade (Art. 7º, XIX, e art. 10, §1º, do ADCT, CF/1988 e Art. 1º, II, da Lei 11.770/2008) | E61: ='Encargos Sociais'!E27 -> 0.0008 | F61: 6.77 | H61: * Nota 3 - Utilizada a proporção de 50% para homens, 5 dias de afastamento, e a probabilidade de um trabalhador requerer a Licença Paternidade em 5,22%, conforme SINAPI (citando dados da PNAD 2015)
C62: D | D62: Ausência por Acidente de Trabalho (Art. 131, III, da CLT) | E62: ='Encargos Sociais'!E28 -> 0.0009 | F62: 7.62 | H62: * Nota 4 - Utilzada a estatística de 1,96% dos contribuintes beneficiados com a emissão do auxílio, conforme Anuário Estatístico da Previdência Social. Afastamento de 15 dias a cargo da empresa.
C63: E | D63: Afastamento Maternidade (Art. 71 da Lei nº 8.213/1991) | E63: ='Encargos Sociais'!E29 -> 0.0033 | F63: 27.94 | H63: * Nota 5 - Utilizada a proporção de 50% para mulheres, 180 dias de afastamento, e a probabilidade de uma trabalhadora requerer a Licença Maternidade em 4,91%, conforme SINAPI (citando dados do IBGE 2016)
C64: F | D64: Auxílio Enfermidade - Doença (Art. 59 da Lei nº 8.213/1991) | E64: ='Encargos Sociais'!E30 -> 0.0071 | F64: 60.12 | H64: * Nota 6 - Utilizada a estatística de 3,37% dos contribuintes beneficiados com o auxílio, conforme Anuário Estatístico da Previdência Social de 2015 (acrescidos de 2 dias ao ano, para os quais o trabalhador nem requer o benefício da Previdência - conforme SINAPI)
B66: Submódulo 4.2 - Intrajornada
C67: A | D67: Intervalo para repouso ou alimentação | E67: ='Encargos Sociais'!E33 -> 0 | F67: =ROUND(E67*$F$16,2) -> 0
D69: QUADRO-RESUMO DO MÓDULO 4 | F69: Valor
D70: 4.1 - Ausências Legais | E70: =SUM(E59:E64) -> 0.02 | F70: =ROUND(E70*$F$16,2) -> 169.36
D71: 4.2 - Intrajornada | E71: =E67 -> 0 | F71: =ROUND(E71*$F$16,2) -> 0
D73: TOTAL DE PREVISÃO PARA RESCISÃO E INTERVALO INTRAJORNADA | F73: =SUM(F70:F71) -> 169.36
B75: MÓDULO 5 - INSUMOS DIVERSOS | F75: Valor
C76: A | D76: Uniformes - aquisição | F76: 0
C77: B | D77: Materiais de consumo relacionados ao posto - aquisição | F77: =ROUND(HLOOKUP(B5,'Mat Cons'!I11:DX13,3)/12,2) -> 0
C78: C | D78: Ferramentas relacionadas ao posto - remuneração da sua depreciação / manutenção | F78: =HLOOKUP(B5,'Relacion - Ferram'!Q3:EF5,3) -> 90.68
C79: D | D79: Equipamentos relacionados ao posto - remuneração da sua depreciação / manutenção | F79: =HLOOKUP(B5,'Equip Rel'!Q11:EF13,3) -> 0
C80: E | D80: Equipamentos de Proteção Individual - EPI - aquisição | F80: =ROUND(HLOOKUP(B5,EPI!I4:X6,3)/12,2) -> 0
D82: TOTAL DE INSUMOS DIVERSOS | F82: =SUM(F76:F81) -> 90.68 | H82: * Nota - Valores mensais por empregado
B84: MÓDULO 6 - CUSTOS INDIRETOS, TRIBUTOS E LUCRO - BDI | E84: Percentuais | F84: Valor
C85: A | D85: Custos Indiretos | E85: ='BDI - Geral'!E7 -> 0.0227
C86: A.1 | D86: Administração Central | E86: ='BDI - Geral'!E8 -> 0.0173
C87: A.2 | D87: Seguros, Garantias e Riscos | E87: ='BDI - Geral'!E9 -> 0.0054
C88: B | D88: Lucro | E88: ='BDI - Geral'!E11 -> 0.0267
C89: C | D89: Tributos | E89: =SUM(E90:E91) -> 0.169
C90: C.1 | D90: Tributos Federais (COFINS, PIS e CPRB) | E90: ='BDI - Geral'!E19 -> 0.119
C91: C.2 | D91: Tributos Distritais (ISS) | E91: ='BDI - Geral'!E24 -> 0.05 | H91: * Nota - Utilizou-se o indicado pelo Sindicato da Arquitetura e da Engenharia (Sinaenco, 2008, p. 22), que adota um percentual redutor de 20% no cálculo dos custos tributários relativos às contribuições PIS e COFINS
C92: D | D92: Despesas Financeiras | E92: ='BDI - Geral'!E14 -> 0.004367839439
D94: TOTAL DE BDI | E94: ='BDI - Geral'!E27 -> 0.2691 | F94: =ROUND(E94*E102,2) -> 3512.01
D96: QUADRO-RESUMO DO CUSTO MENSAL POR EMPREGADO - SEM O 13º | E96: Valor
D97: Módulo 1 - Composição da Remuneração | E97: =F16 -> 8467.92
D98: Módulo 2 - Encargos e Benefícios Anuais, Mensais e Diários | E98: =F45 -> 4018.98
D99: Módulo 3 - Provisão para Rescisão | E99: =F55 -> 304
D100: Módulo 4 - Custo de Reposição do Profissional Ausente | E100: =F73 -> 169.36
D101: Módulo 5 - Insumos Diversos | E101: =F82 -> 90.68
D102: SUBTOTAL (A+B+C+D+E) | E102: =SUM(E97:E101) -> 13050.94
D103: Módulo 6 - Custos Indiretos, Tributos e Lucro | E103: =F94 -> 3512.01
D105: TOTAL DO POSTO | E105: =SUM(E102:E103) -> 16562.95
B107: MÓDULO 7 - DESTAQUE DO MÓDULO 2 - 13º SALÁRIO | E107: Percentuais | F107: Valor
C108: A | D108: 13º Salário | E108: ='Encargos Sociais'!E32 -> 0.0833 | F108: =ROUND(E108*F$16,2) -> 705.38
C109: B | D109: Encargos Sociais sobre o 13º Salário - Taxa calculada no SUBMÓDULO 2.2 | E109: =SUM($E$24:$E$32) -> 0.178 | F109: =ROUND(E109*$F$108,2) -> 125.56 | H109: * Nota 1 - Provisiona-se, mensalmente, o proporcional a 1/12 dos valores referentes a gratificação natalina e adicional de férias.
C110: C | D110: BDI sobre o 13º Salário - Taxa calculada no MÓDULO 6 | E110: =E94 -> 0.2691 | F110: =ROUND(E110*($F$108+$F$109),2) -> 223.61
D112: TOTAL DO DESTAQUE DO 13º SALÁRIO | F112: =SUM(F108:F110) -> 1054.55
D114: QUADRO-RESUMO DO CUSTO MENSAL POR EMPREGADO | E114: Valor
D115: Custo total - sem o 13º Salário | E115: =ROUND(E105,2) -> 16562.95
D116: Destaque do 13º Salário (valor mensal) | E116: =ROUND(F112,2) -> 1054.55
D118: TOTAL DO POSTO | E118: =E115+E116 -> 17617.5

Sheet 15
B2: PLANILHA DE ESTIMATIVA DE CUSTOS
B3: Padrão IN 05/2017 e IN 07/2018 - MPDG
B5: 15 | D5: =HLOOKUP($B$5,'Dados Gerais'!$D$6:$BI$22,6) -> TÉCNICO DE MANUTENÇÃO DE INSTALAÇÕES ELÉTRICAS | E5: QUANTIDADE | F5: =HLOOKUP($B$5,'Dados Gerais'!$D$6:$BI$22,10) -> 6
B6: CCT | D6: =HLOOKUP($B$5,'Dados Gerais'!$D$6:$BI$22,16) -> SINDUSCON/DF x STICOMBE/DF CCT 2024/2025 N.º DF000276/2024 | E6: DATA-BASE | F6: =HLOOKUP($B$5,'Dados Gerais'!$D$6:$BI$22,17) -> 2024-05-01
B8: MÓDULO 1 - COMPOSIÇÃO DA REMUNERAÇÃO | F8: Valor
C9: A | D9: Salário-Base | F9: =HLOOKUP($B$5,'Dados Gerais'!$D$6:$BI$22,8) -> 6112.66
C10: B | D10: Adicional de Periculosidade | F10: =HLOOKUP($B$5,'Dados Gerais'!$D$6:$BI$39,26) -> 1833.8
C11: C | D11: Adicional de Insalubridade | F11: =HLOOKUP($B$5,'Dados Gerais'!$D$6:$BI$39,32) -> 0
C12: D | D12: Adicional Noturno | F12: =HLOOKUP($B$5,'Dados Gerais'!$D$6:$BI$52,47) -> 0 | H12: * Nota 1 - O Módulo 1 refere-se ao valor mensal devido ao empregado pela prestação do serviço no período de 12 meses.
C13: E | D13: Adicional de Hora Extra | F13: =HLOOKUP($B$5,'Dados Gerais'!$D$6:$BI$69,64) -> 0 | H13: * Nota 2 - O adicional de hora extra no feriado trabalhado foi suprimido pela Lei 13.467/17
C14: F | D14: Outros (adicional de sobreaviso) | F14: =HLOOKUP($B$5,'Dados Gerais'!$D$6:$BI$69,34) -> 521.46 | H14: * Nota 3 - ART. 7º, § 2º, DA LEI Nº 605/49.Sendo mensalista o obreiro, o adicional noturno pago de forma fixa já é considerado integrado para os efeitos do pagamento do repouso semanal remunerado, nos termos do art. 7º, § 2º, da Lei nº 605/49.
D16: TOTAL DA REMUNERAÇÃO | F16: =SUM(F9:F14) -> 8467.92
B18: MÓDULO 2 - ENCARGOS E BENEFÍCIOS ANUAIS, MENSAIS E DIÁRIOS | E18: Percentuais | F18: Valor
B19: Submódulo 2.1 - 13º Salário, Férias e Adicional de Férias
C20: A | D20: 13º Salário - Calculado no Módulo 7 - Destacado | E20: 0 | F20: =ROUND(E20*F$16,2) -> 0
C21: B | D21: Férias e Adicional de Férias | E21: ='Encargos Sociais'!E25+'Encargos Sociais'!E31 -> 0.1212 | F21: =ROUND(E21*F$16,2) -> 1026.31 | H21: * Nota 1 - Provisiona-se, mensalmente, o proporcional a 1/12 dos valores referentes a gratificação natalina, férias e adicional de férias.
H22: * Nota 2 - O adicional de férias contido no Submódulo 2.1 corresponde a 1/3 da remuneração que, por sua vez, é dividida por 12 contome Nota 1.
B23: Submódulo 2.2 - Encargos Previdenciários (GPS), Fundo de Garantia por Tempo de Serviço (FGTS) e Outras Contribuições
C24: A | D24: INSS (art. 22, inciso I, Lei nº 8.212/91) | E24: ='Encargos Sociais'!E14 -> 0 | F24: =ROUND(E24*($F$16+$F$41+$F$73),2) -> 0
C25: B | D25: Salário Educação (art. 3º, inciso I, Decreto nº 87.043/82) | E25: ='Encargos Sociais'!E15 -> 0.025 | F25: =ROUND(E25*($F$16+$F$41+$F$73),2) -> 241.59
C26: C | D26: SAT/RAT (art. 22, II, Lei 8.212/91 e Anexo V, Decreto 6.042/07) - Enquadramento 8211-3/00 | E26: ='Encargos Sociais'!E16 -> 0.03 | F26: 289.91
C27: D | D27: SESC ou SESI (art. 30, Lei nº 8.036/90 e art. 1º, Lei 8.154/90) | E27: ='Encargos Sociais'!E17 -> 0.015 | F27: 144.95
C28: E | D28: SENAI ou SENAC (Decreto nº 2.318/86) | E28: ='Encargos Sociais'!E18 -> 0.01 | F28: 96.64
C29: F | D29: SEBRAE (§ 3º, art. 8º, Lei 8.029/90, alterada pela Lei nº 8.154/90) | E29: ='Encargos Sociais'!E19 -> 0.006 | F29: 57.98
C30: G | D30: INCRA (art. 1º, I, Decreto Lei 1.146/70 e Lei 7.787, de 30/06/89) | E30: ='Encargos Sociais'!E20 -> 0.002 | F30: 19.33 | H30: * Nota 1 - Os percentuais dos encargos previdenciários, do FGTS e demais contribuições são estabelecidos por legislação vigente.
C31: H | D31: FGTS (Lei Complementar nº 110/01 e art. 30, Lei nº 8.036/90) | E31: ='Encargos Sociais'!E21 -> 0.08 | F31: 773.09 | H31: * Nota 2 - O SAT, a depender do grau de risco do serviço, irá variar entre 1%, para risco leve, de 2%, para risco médio, e de 3% para risco grave.
C32: I | D32: SECONCI (Convenções Coletivas de Trabalho da construção) | E32: ='Encargos Sociais'!E22 -> 0.01 | F32: 96.64 | H32: * Nota 3 - Os percentuais do Submódulo 2.2 incidem sobre o Módulo 1 e o Submódulo 2.1.
B34: Submódulo 2.3 - Benefícios Mensais e Diários
C35: A | D35: Auxílio Transporte | F35: =HLOOKUP($B$5,'Dados Gerais'!$D$6:$BI$95,83) -> 488.59
C36: B | D36: Auxílio Alimentação | F36: =HLOOKUP($B$5,'Dados Gerais'!$D$6:$BI$95,90) -> 770
C37: C | D37: Assistência Médica e Familiar | F37: =HLOOKUP($B$5,'Dados Gerais'!$D$6:$BI$103,98) -> 0
C38: D | D38: Outros (Seguro de vida, auxílio funeral, auxílio odontológico e auxílio creche) | F38: =HLOOKUP($B$5,'Dados Gerais'!$D$6:$BI$121,115) -> 13.95 | H38: * Nota 1 - O valor informado deverá ser o custo real do benefício (descontado o valor eventualmente pago pelo empregado).
H39: * Nota 2 - Observar a previsão dos benefícios contidos em Acordos, Convenções e Dissídios Coletivos de Trabalho e o disposto no art. 6º da IN 5/2017
D40: QUADRO-RESUMO DO MÓDULO 2
D41: 2.1 - 13º Salário, Férias e Adicional de Férias - 13º Destacado - Calculado no Módulo 7 | E41: =SUM(E20:E21) -> 0.1212 | F41: =F20+F21 -> 1026.31
D42: 2.2 - Encargos Previdenciários (GPS), Fundo de Garantia por Tempo de Serviço (FGTS) e Contribuições | E42: =SUM(E24:E32) -> 0.178 | F42: =SUM(F24:F32) -> 1720.13
D43: 2.3 - Benefícios Mensais e Diários | F43: =SUM(F35:F38) -> 1272.54
D45: TOTAL DOS ENCARGOS E BENEFÍCIOS | F45: =SUM(F41:F43) -> 4018.98
B47: MÓDULO 3 - PREVISÃO PARA RESCISÃO | E47: Percentuais | F47: Valor
C48: A | D48: Aviso Prévio Indenizado (Art. 7º, inciso XXI, da CF/1988 e arts. 477, 487, §1º, e 491 da CLT) | E48: ='Encargos Sociais'!E36 -> 0.005 | F48: =ROUND(E48*$F$16,2) -> 42.34
C49: B | D49: Incidência do FGTS sobre o Aviso Prévio Indenizado (Súmula 305 TST) | E49: ='Encargos Sociais'!E37 -> 0.0004 | F49: 3.39 | H49: * Nota 1 - Adotou-se os parâmetros do estudo do STF (http://www.stf.jus.br/arquivo/cms/sobrestfestudosci/anexo/encargos_sociais_03102007.pdf), onde 5% do pessoal é demitido pelo empregador no decurso do contrato (para estes, considerou-se o aviso prévio indenizado). Desprezou-se as demissões por justa causa e os pedidos de demissão.
C50: C | D50: Multa do FGTS e Contribuição Social sobre o Aviso Prévio Indenizado (Art. 18, §1º, da Lei 8.036/1990 e art. 1º da LC nº 110/2001) | E50: ='Encargos Sociais'!E38 -> 0.0019 | F50: 16.09 | H50: * Nota 2 - No cálculo do percentual, considerou-se 36 dias, correspondendo à metade da duração média dos contratos (2 anos)
C51: D | D51: Aviso Prévio Trabalhado (Art. 488, parágrafo único, CLT) | E51: ='Encargos Sociais'!E39 -> 0.012 | F51: 101.62 | H51: * Nota 3 - Incide sobre a Remuneração + 13º salário (1/12) + Férias (1/12) + Adicional de Férias (1/36) x 50% multa (40% para o empregado e 10% de contribuição social) x 8% FGTS
C52: E | D52: Incidência de GPS, FGTS e outras contribuições sobre o Aviso Prévio Trabalhado | E52: ='Encargos Sociais'!E40 -> 0.0021 | F52: 17.78 | H52: * Nota 4 - Os 95% restantes do cálculo, a um prazo médio de contrato de 4 anos. Assim, calcula-se 7 dias para o 1º ano de contrato e mais 3 dias para os 3 anos seguintes.
C53: F | D53: Multa do FGTS e Contribuição Social sobre o Aviso Prévio Trabalhado | E53: ='Encargos Sociais'!E41 -> 0.0145 | F53: 122.78
D55: TOTAL DE PREVISÃO PARA RESCISÃO | F55: =SUM(F48:F53) -> 304
B57: MÓDULO 4 - CUSTO DO PROFISSIONAL AUSENTE | E57: Percentuais | F57: Valor
B58: Submódulo 4.1 - Ausências Legais
C59: A | D59: Férias (Arts. 129 e 130, inc. I, da CLT) - Calculado no Submódulo 2.1 | E59: 0 | F59: =ROUND(E59*$F$16,2) -> 0 | H59: * Nota 1 - As alíneas “A” a “F” referem-se somente ao custo que será pago ao repositor pelos dias trabalhados quando da necessidade de substituir a mão de obra alocada na prestação do serviço.
C60: B | D60: Ausências Legais (Arts. 131 e 473 da CLT) | E60: ='Encargos Sociais'!E26 -> 0.0079 | F60: 66.9 | H60: * Nota 2 - Adotou-se a estimativa do SINAPI de 2 dias por ano.
C61: C | D61: Licença-Paternidade (Art. 7º, XIX, e art. 10, §1º, do ADCT, CF/1988 e Art. 1º, II, da Lei 11.770/2008) | E61: ='Encargos Sociais'!E27 -> 0.0008 | F61: 6.77 | H61: * Nota 3 - Utilizada a proporção de 50% para homens, 5 dias de afastamento, e a probabilidade de um trabalhador requerer a Licença Paternidade em 5,22%, conforme SINAPI (citando dados da PNAD 2015)
C62: D | D62: Ausência por Acidente de Trabalho (Art. 131, III, da CLT) | E62: ='Encargos Sociais'!E28 -> 0.0009 | F62: 7.62 | H62: * Nota 4 - Utilzada a estatística de 1,96% dos contribuintes beneficiados com a emissão do auxílio, conforme Anuário Estatístico da Previdência Social. Afastamento de 15 dias a cargo da empresa.
C63: E | D63: Afastamento Maternidade (Art. 71 da Lei nº 8.213/1991) | E63: ='Encargos Sociais'!E29 -> 0.0033 | F63: 27.94 | H63: * Nota 5 - Utilizada a proporção de 50% para mulheres, 180 dias de afastamento, e a probabilidade de uma trabalhadora requerer a Licença Maternidade em 4,91%, conforme SINAPI (citando dados do IBGE 2016)
C64: F | D64: Auxílio Enfermidade - Doença (Art. 59 da Lei nº 8.213/1991) | E64: ='Encargos Sociais'!E30 -> 0.0071 | F64: 60.12 | H64: * Nota 6 - Utilizada a estatística de 3,37% dos contribuintes beneficiados com o auxílio, conforme Anuário Estatístico da Previdência Social de 2015 (acrescidos de 2 dias ao ano, para os quais o trabalhador nem requer o benefício da Previdência - conforme SINAPI)
B66: Submódulo 4.2 - Intrajornada
C67: A | D67: Intervalo para repouso ou alimentação | E67: ='Encargos Sociais'!E33 -> 0 | F67: =ROUND(E67*$F$16,2) -> 0
D69: QUADRO-RESUMO DO MÓDULO 4 | F69: Valor
D70: 4.1 - Ausências Legais | E70: =SUM(E59:E64) -> 0.02 | F70: =ROUND(E70*$F$16,2) -> 169.36
D71: 4.2 - Intrajornada | E71: =E67 -> 0 | F71: =ROUND(E71*$F$16,2) -> 0
D73: TOTAL DE PREVISÃO PARA RESCISÃO E INTERVALO INTRAJORNADA | F73: =SUM(F70:F71) -> 169.36
B75: MÓDULO 5 - INSUMOS DIVERSOS | F75: Valor
C76: A | D76: Uniformes - aquisição | F76: 0
C77: B | D77: Materiais de consumo relacionados ao posto - aquisição | F77: =ROUND(HLOOKUP(B5,'Mat Cons'!I11:DX13,3)/12,2) -> 0
C78: C | D78: Ferramentas relacionadas ao posto - remuneração da sua depreciação / manutenção | F78: =HLOOKUP(B5,'Relacion - Ferram'!Q3:EF5,3) -> 90.68
C79: D | D79: Equipamentos relacionados ao posto - remuneração da sua depreciação / manutenção | F79: =HLOOKUP(B5,'Equip Rel'!Q11:EF13,3) -> 0
C80: E | D80: Equipamentos de Proteção Individual - EPI - aquisição | F80: =ROUND(HLOOKUP(B5,EPI!I4:X6,3)/12,2) -> 0
D82: TOTAL DE INSUMOS DIVERSOS | F82: =SUM(F76:F81) -> 90.68 | H82: * Nota - Valores mensais por empregado
B84: MÓDULO 6 - CUSTOS INDIRETOS, TRIBUTOS E LUCRO - BDI | E84: Percentuais | F84: Valor
C85: A | D85: Custos Indiretos | E85: ='BDI - Geral'!E7 -> 0.0227
C86: A.1 | D86: Administração Central | E86: ='BDI - Geral'!E8 -> 0.0173
C87: A.2 | D87: Seguros, Garantias e Riscos | E87: ='BDI - Geral'!E9 -> 0.0054
C88: B | D88: Lucro | E88: ='BDI - Geral'!E11 -> 0.0267
C89: C | D89: Tributos | E89: =SUM(E90:E91) -> 0.169
C90: C.1 | D90: Tributos Federais (COFINS, PIS e CPRB) | E90: ='BDI - Geral'!E19 -> 0.119
C91: C.2 | D91: Tributos Distritais (ISS) | E91: ='BDI - Geral'!E24 -> 0.05 | H91: * Nota - Utilizou-se o indicado pelo Sindicato da Arquitetura e da Engenharia (Sinaenco, 2008, p. 22), que adota um percentual redutor de 20% no cálculo dos custos tributários relativos às contribuições PIS e COFINS
C92: D | D92: Despesas Financeiras | E92: ='BDI - Geral'!E14 -> 0.004367839439
D94: TOTAL DE BDI | E94: ='BDI - Geral'!E27 -> 0.2691 | F94: =ROUND(E94*E102,2) -> 3512.01
D96: QUADRO-RESUMO DO CUSTO MENSAL POR EMPREGADO - SEM O 13º | E96: Valor
D97: Módulo 1 - Composição da Remuneração | E97: =F16 -> 8467.92
D98: Módulo 2 - Encargos e Benefícios Anuais, Mensais e Diários | E98: =F45 -> 4018.98
D99: Módulo 3 - Provisão para Rescisão | E99: =F55 -> 304
D100: Módulo 4 - Custo de Reposição do Profissional Ausente | E100: =F73 -> 169.36
D101: Módulo 5 - Insumos Diversos | E101: =F82 -> 90.68
D102: SUBTOTAL (A+B+C+D+E) | E102: =SUM(E97:E101) -> 13050.94
D103: Módulo 6 - Custos Indiretos, Tributos e Lucro | E103: =F94 -> 3512.01
D105: TOTAL DO POSTO | E105: =SUM(E102:E103) -> 16562.95
B107: MÓDULO 7 - DESTAQUE DO MÓDULO 2 - 13º SALÁRIO | E107: Percentuais | F107: Valor
C108: A | D108: 13º Salário | E108: ='Encargos Sociais'!E32 -> 0.0833 | F108: =ROUND(E108*F$16,2) -> 705.38
C109: B | D109: Encargos Sociais sobre o 13º Salário - Taxa calculada no SUBMÓDULO 2.2 | E109: =SUM($E$24:$E$32) -> 0.178 | F109: =ROUND(E109*$F$108,2) -> 125.56 | H109: * Nota 1 - Provisiona-se, mensalmente, o proporcional a 1/12 dos valores referentes a gratificação natalina e adicional de férias.
C110: C | D110: BDI sobre o 13º Salário - Taxa calculada no MÓDULO 6 | E110: =E94 -> 0.2691 | F110: =ROUND(E110*($F$108+$F$109),2) -> 223.61
D112: TOTAL DO DESTAQUE DO 13º SALÁRIO | F112: =SUM(F108:F110) -> 1054.55
D114: QUADRO-RESUMO DO CUSTO MENSAL POR EMPREGADO | E114: Valor
D115: Custo total - sem o 13º Salário | E115: =ROUND(E105,2) -> 16562.95
D116: Destaque do 13º Salário (valor mensal) | E116: =ROUND(F112,2) -> 1054.55
D118: TOTAL DO POSTO | E118: =E115+E116 -> 17617.5

Sheet 16
B2: PLANILHA DE ESTIMATIVA DE CUSTOS
B3: Padrão IN 05/2017 e IN 07/2018 - MPDG
B5: 16 | D5: =HLOOKUP($B$5,'Dados Gerais'!$D$6:$BI$22,6) -> TÉCNICO DE MANUTENÇÃO DE INSTALAÇÕES HIDROSSANITÁRIAS | E5: QUANTIDADE | F5: =HLOOKUP($B$5,'Dados Gerais'!$D$6:$BI$22,10) -> 6
B6: CCT | D6: =HLOOKUP($B$5,'Dados Gerais'!$D$6:$BI$22,16) -> SINDUSCON/DF x STICOMBE/DF CCT 2024/2025 N.º DF000276/2024 | E6: DATA-BASE | F6: =HLOOKUP($B$5,'Dados Gerais'!$D$6:$BI$22,17) -> 2024-05-01
B8: MÓDULO 1 - COMPOSIÇÃO DA REMUNERAÇÃO | F8: Valor
C9: A | D9: Salário-Base | F9: =HLOOKUP($B$5,'Dados Gerais'!$D$6:$BI$22,8) -> 6112.66
C10: B | D10: Adicional de Periculosidade | F10: =HLOOKUP($B$5,'Dados Gerais'!$D$6:$BI$39,26) -> 0
C11: C | D11: Adicional de Insalubridade | F11: =HLOOKUP($B$5,'Dados Gerais'!$D$6:$BI$39,32) -> 564.8
C12: D | D12: Adicional Noturno | F12: =HLOOKUP($B$5,'Dados Gerais'!$D$6:$BI$52,47) -> 0 | H12: * Nota 1 - O Módulo 1 refere-se ao valor mensal devido ao empregado pela prestação do serviço no período de 12 meses.
C13: E | D13: Adicional de Hora Extra | F13: =HLOOKUP($B$5,'Dados Gerais'!$D$6:$BI$69,64) -> 0 | H13: * Nota 2 - O adicional de hora extra no feriado trabalhado foi suprimido pela Lei 13.467/17
C14: F | D14: Outros (adicional de sobreaviso) | F14: =HLOOKUP($B$5,'Dados Gerais'!$D$6:$BI$69,34) -> 657.22 | H14: * Nota 3 - ART. 7º, § 2º, DA LEI Nº 605/49.Sendo mensalista o obreiro, o adicional noturno pago de forma fixa já é considerado integrado para os efeitos do pagamento do repouso semanal remunerado, nos termos do art. 7º, § 2º, da Lei nº 605/49.
D16: TOTAL DA REMUNERAÇÃO | F16: =SUM(F9:F14) -> 7334.68
B18: MÓDULO 2 - ENCARGOS E BENEFÍCIOS ANUAIS, MENSAIS E DIÁRIOS | E18: Percentuais | F18: Valor
B19: Submódulo 2.1 - 13º Salário, Férias e Adicional de Férias
C20: A | D20: 13º Salário - Calculado no Módulo 7 - Destacado | E20: 0 | F20: =ROUND(E20*F$16,2) -> 0
C21: B | D21: Férias e Adicional de Férias | E21: ='Encargos Sociais'!E25+'Encargos Sociais'!E31 -> 0.1212 | F21: =ROUND(E21*F$16,2) -> 888.96 | H21: * Nota 1 - Provisiona-se, mensalmente, o proporcional a 1/12 dos valores referentes a gratificação natalina, férias e adicional de férias.
H22: * Nota 2 - O adicional de férias contido no Submódulo 2.1 corresponde a 1/3 da remuneração que, por sua vez, é dividida por 12 contome Nota 1.
B23: Submódulo 2.2 - Encargos Previdenciários (GPS), Fundo de Garantia por Tempo de Serviço (FGTS) e Outras Contribuições
C24: A | D24: INSS (art. 22, inciso I, Lei nº 8.212/91) | E24: ='Encargos Sociais'!E14 -> 0 | F24: =ROUND(E24*($F$16+$F$41+$F$73),2) -> 0
C25: B | D25: Salário Educação (art. 3º, inciso I, Decreto nº 87.043/82) | E25: ='Encargos Sociais'!E15 -> 0.025 | F25: =ROUND(E25*($F$16+$F$41+$F$73),2) -> 209.26
C26: C | D26: SAT/RAT (art. 22, II, Lei 8.212/91 e Anexo V, Decreto 6.042/07) - Enquadramento 8211-3/00 | E26: ='Encargos Sociais'!E16 -> 0.03 | F26: 251.11
C27: D | D27: SESC ou SESI (art. 30, Lei nº 8.036/90 e art. 1º, Lei 8.154/90) | E27: ='Encargos Sociais'!E17 -> 0.015 | F27: 125.55
C28: E | D28: SENAI ou SENAC (Decreto nº 2.318/86) | E28: ='Encargos Sociais'!E18 -> 0.01 | F28: 83.7
C29: F | D29: SEBRAE (§ 3º, art. 8º, Lei 8.029/90, alterada pela Lei nº 8.154/90) | E29: ='Encargos Sociais'!E19 -> 0.006 | F29: 50.22
C30: G | D30: INCRA (art. 1º, I, Decreto Lei 1.146/70 e Lei 7.787, de 30/06/89) | E30: ='Encargos Sociais'!E20 -> 0.002 | F30: 16.74 | H30: * Nota 1 - Os percentuais dos encargos previdenciários, do FGTS e demais contribuições são estabelecidos por legislação vigente.
C31: H | D31: FGTS (Lei Complementar nº 110/01 e art. 30, Lei nº 8.036/90) | E31: ='Encargos Sociais'!E21 -> 0.08 | F31: 669.63 | H31: * Nota 2 - O SAT, a depender do grau de risco do serviço, irá variar entre 1%, para risco leve, de 2%, para risco médio, e de 3% para risco grave.
C32: I | D32: SECONCI (Convenções Coletivas de Trabalho da construção) | E32: ='Encargos Sociais'!E22 -> 0.01 | F32: 83.7 | H32: * Nota 3 - Os percentuais do Submódulo 2.2 incidem sobre o Módulo 1 e o Submódulo 2.1.
B34: Submódulo 2.3 - Benefícios Mensais e Diários
C35: A | D35: Auxílio Transporte | F35: =HLOOKUP($B$5,'Dados Gerais'!$D$6:$BI$95,83) -> 488.59
C36: B | D36: Auxílio Alimentação | F36: =HLOOKUP($B$5,'Dados Gerais'!$D$6:$BI$95,90) -> 770
C37: C | D37: Assistência Médica e Familiar | F37: =HLOOKUP($B$5,'Dados Gerais'!$D$6:$BI$103,98) -> 0
C38: D | D38: Outros (Seguro de vida, auxílio funeral, auxílio odontológico e auxílio creche) | F38: =HLOOKUP($B$5,'Dados Gerais'!$D$6:$BI$121,115) -> 13.95 | H38: * Nota 1 - O valor informado deverá ser o custo real do benefício (descontado o valor eventualmente pago pelo empregado).
H39: * Nota 2 - Observar a previsão dos benefícios contidos em Acordos, Convenções e Dissídios Coletivos de Trabalho e o disposto no art. 6º da IN 5/2017
D40: QUADRO-RESUMO DO MÓDULO 2
D41: 2.1 - 13º Salário, Férias e Adicional de Férias - 13º Destacado - Calculado no Módulo 7 | E41: =SUM(E20:E21) -> 0.1212 | F41: =F20+F21 -> 888.96
D42: 2.2 - Encargos Previdenciários (GPS), Fundo de Garantia por Tempo de Serviço (FGTS) e Contribuições | E42: =SUM(E24:E32) -> 0.178 | F42: =SUM(F24:F32) -> 1489.91
D43: 2.3 - Benefícios Mensais e Diários | F43: =SUM(F35:F38) -> 1272.54
D45: TOTAL DOS ENCARGOS E BENEFÍCIOS | F45: =SUM(F41:F43) -> 3651.41
B47: MÓDULO 3 - PREVISÃO PARA RESCISÃO | E47: Percentuais | F47: Valor
C48: A | D48: Aviso Prévio Indenizado (Art. 7º, inciso XXI, da CF/1988 e arts. 477, 487, §1º, e 491 da CLT) | E48: ='Encargos Sociais'!E36 -> 0.005 | F48: =ROUND(E48*$F$16,2) -> 36.67
C49: B | D49: Incidência do FGTS sobre o Aviso Prévio Indenizado (Súmula 305 TST) | E49: ='Encargos Sociais'!E37 -> 0.0004 | F49: 2.93 | H49: * Nota 1 - Adotou-se os parâmetros do estudo do STF (http://www.stf.jus.br/arquivo/cms/sobrestfestudosci/anexo/encargos_sociais_03102007.pdf), onde 5% do pessoal é demitido pelo empregador no decurso do contrato (para estes, considerou-se o aviso prévio indenizado). Desprezou-se as demissões por justa causa e os pedidos de demissão.
C50: C | D50: Multa do FGTS e Contribuição Social sobre o Aviso Prévio Indenizado (Art. 18, §1º, da Lei 8.036/1990 e art. 1º da LC nº 110/2001) | E50: ='Encargos Sociais'!E38 -> 0.0019 | F50: 13.94 | H50: * Nota 2 - No cálculo do percentual, considerou-se 36 dias, correspondendo à metade da duração média dos contratos (2 anos)
C51: D | D51: Aviso Prévio Trabalhado (Art. 488, parágrafo único, CLT) | E51: ='Encargos Sociais'!E39 -> 0.012 | F51: 88.02 | H51: * Nota 3 - Incide sobre a Remuneração + 13º salário (1/12) + Férias (1/12) + Adicional de Férias (1/36) x 50% multa (40% para o empregado e 10% de contribuição social) x 8% FGTS
C52: E | D52: Incidência de GPS, FGTS e outras contribuições sobre o Aviso Prévio Trabalhado | E52: ='Encargos Sociais'!E40 -> 0.0021 | F52: 15.4 | H52: * Nota 4 - Os 95% restantes do cálculo, a um prazo médio de contrato de 4 anos. Assim, calcula-se 7 dias para o 1º ano de contrato e mais 3 dias para os 3 anos seguintes.
C53: F | D53: Multa do FGTS e Contribuição Social sobre o Aviso Prévio Trabalhado | E53: ='Encargos Sociais'!E41 -> 0.0145 | F53: 106.35
D55: TOTAL DE PREVISÃO PARA RESCISÃO | F55: =SUM(F48:F53) -> 263.31
B57: MÓDULO 4 - CUSTO DO PROFISSIONAL AUSENTE | E57: Percentuais | F57: Valor
B58: Submódulo 4.1 - Ausências Legais
C59: A | D59: Férias (Arts. 129 e 130, inc. I, da CLT) - Calculado no Submódulo 2.1 | E59: 0 | F59: =ROUND(E59*$F$16,2) -> 0 | H59: * Nota 1 - As alíneas “A” a “F” referem-se somente ao custo que será pago ao repositor pelos dias trabalhados quando da necessidade de substituir a mão de obra alocada na prestação do serviço.
C60: B | D60: Ausências Legais (Arts. 131 e 473 da CLT) | E60: ='Encargos Sociais'!E26 -> 0.0079 | F60: 57.94 | H60: * Nota 2 - Adotou-se a estimativa do SINAPI de 2 dias por ano.
C61: C | D61: Licença-Paternidade (Art. 7º, XIX, e art. 10, §1º, do ADCT, CF/1988 e Art. 1º, II, da Lei 11.770/2008) | E61: ='Encargos Sociais'!E27 -> 0.0008 | F61: 5.87 | H61: * Nota 3 - Utilizada a proporção de 50% para homens, 5 dias de afastamento, e a probabilidade de um trabalhador requerer a Licença Paternidade em 5,22%, conforme SINAPI (citando dados da PNAD 2015)
C62: D | D62: Ausência por Acidente de Trabalho (Art. 131, III, da CLT) | E62: ='Encargos Sociais'!E28 -> 0.0009 | F62: 6.6 | H62: * Nota 4 - Utilzada a estatística de 1,96% dos contribuintes beneficiados com a emissão do auxílio, conforme Anuário Estatístico da Previdência Social. Afastamento de 15 dias a cargo da empresa.
C63: E | D63: Afastamento Maternidade (Art. 71 da Lei nº 8.213/1991) | E63: ='Encargos Sociais'!E29 -> 0.0033 | F63: 24.2 | H63: * Nota 5 - Utilizada a proporção de 50% para mulheres, 180 dias de afastamento, e a probabilidade de uma trabalhadora requerer a Licença Maternidade em 4,91%, conforme SINAPI (citando dados do IBGE 2016)
C64: F | D64: Auxílio Enfermidade - Doença (Art. 59 da Lei nº 8.213/1991) | E64: ='Encargos Sociais'!E30 -> 0.0071 | F64: 52.08 | H64: * Nota 6 - Utilizada a estatística de 3,37% dos contribuintes beneficiados com o auxílio, conforme Anuário Estatístico da Previdência Social de 2015 (acrescidos de 2 dias ao ano, para os quais o trabalhador nem requer o benefício da Previdência - conforme SINAPI)
B66: Submódulo 4.2 - Intrajornada
C67: A | D67: Intervalo para repouso ou alimentação | E67: ='Encargos Sociais'!E33 -> 0 | F67: =ROUND(E67*$F$16,2) -> 0
D69: QUADRO-RESUMO DO MÓDULO 4 | F69: Valor
D70: 4.1 - Ausências Legais | E70: =SUM(E59:E64) -> 0.02 | F70: =ROUND(E70*$F$16,2) -> 146.69
D71: 4.2 - Intrajornada | E71: =E67 -> 0 | F71: =ROUND(E71*$F$16,2) -> 0
D73: TOTAL DE PREVISÃO PARA RESCISÃO E INTERVALO INTRAJORNADA | F73: =SUM(F70:F71) -> 146.69
B75: MÓDULO 5 - INSUMOS DIVERSOS | F75: Valor
C76: A | D76: Uniformes - aquisição | F76: 0
C77: B | D77: Materiais de consumo relacionados ao posto - aquisição | F77: =ROUND(HLOOKUP(B5,'Mat Cons'!I11:DX13,3)/12,2) -> 0
C78: C | D78: Ferramentas relacionadas ao posto - remuneração da sua depreciação / manutenção | F78: =HLOOKUP(B5,'Relacion - Ferram'!Q3:EF5,3) -> 24.52
C79: D | D79: Equipamentos relacionados ao posto - remuneração da sua depreciação / manutenção | F79: =HLOOKUP(B5,'Equip Rel'!Q11:EF13,3) -> 0
C80: E | D80: Equipamentos de Proteção Individual - EPI - aquisição | F80: =ROUND(HLOOKUP(B5,EPI!I4:X6,3)/12,2) -> 0
D82: TOTAL DE INSUMOS DIVERSOS | F82: =SUM(F76:F81) -> 24.52 | H82: * Nota - Valores mensais por empregado
B84: MÓDULO 6 - CUSTOS INDIRETOS, TRIBUTOS E LUCRO - BDI | E84: Percentuais | F84: Valor
C85: A | D85: Custos Indiretos | E85: ='BDI - Geral'!E7 -> 0.0227
C86: A.1 | D86: Administração Central | E86: ='BDI - Geral'!E8 -> 0.0173
C87: A.2 | D87: Seguros, Garantias e Riscos | E87: ='BDI - Geral'!E9 -> 0.0054
C88: B | D88: Lucro | E88: ='BDI - Geral'!E11 -> 0.0267
C89: C | D89: Tributos | E89: =SUM(E90:E91) -> 0.169
C90: C.1 | D90: Tributos Federais (COFINS, PIS e CPRB) | E90: ='BDI - Geral'!E19 -> 0.119
C91: C.2 | D91: Tributos Distritais (ISS) | E91: ='BDI - Geral'!E24 -> 0.05 | H91: * Nota - Utilizou-se o indicado pelo Sindicato da Arquitetura e da Engenharia (Sinaenco, 2008, p. 22), que adota um percentual redutor de 20% no cálculo dos custos tributários relativos às contribuições PIS e COFINS
C92: D | D92: Despesas Financeiras | E92: ='BDI - Geral'!E14 -> 0.004367839439
D94: TOTAL DE BDI | E94: ='BDI - Geral'!E27 -> 0.2691 | F94: =ROUND(E94*E102,2) -> 3073.29
D96: QUADRO-RESUMO DO CUSTO MENSAL POR EMPREGADO - SEM O 13º | E96: Valor
D97: Módulo 1 - Composição da Remuneração | E97: =F16 -> 7334.68
D98: Módulo 2 - Encargos e Benefícios Anuais, Mensais e Diários | E98: =F45 -> 3651.41
D99: Módulo 3 - Provisão para Rescisão | E99: =F55 -> 263.31
D100: Módulo 4 - Custo de Reposição do Profissional Ausente | E100: =F73 -> 146.69
D101: Módulo 5 - Insumos Diversos | E101: =F82 -> 24.52
D102: SUBTOTAL (A+B+C+D+E) | E102: =SUM(E97:E101) -> 11420.61
D103: Módulo 6 - Custos Indiretos, Tributos e Lucro | E103: =F94 -> 3073.29
D105: TOTAL DO POSTO | E105: =SUM(E102:E103) -> 14493.9
B107: MÓDULO 7 - DESTAQUE DO MÓDULO 2 - 13º SALÁRIO | E107: Percentuais | F107: Valor
C108: A | D108: 13º Salário | E108: ='Encargos Sociais'!E32 -> 0.0833 | F108: =ROUND(E108*F$16,2) -> 610.98
C109: B | D109: Encargos Sociais sobre o 13º Salário - Taxa calculada no SUBMÓDULO 2.2 | E109: =SUM($E$24:$E$32) -> 0.178 | F109: =ROUND(E109*$F$108,2) -> 108.75 | H109: * Nota 1 - Provisiona-se, mensalmente, o proporcional a 1/12 dos valores referentes a gratificação natalina e adicional de férias.
C110: C | D110: BDI sobre o 13º Salário - Taxa calculada no MÓDULO 6 | E110: =E94 -> 0.2691 | F110: =ROUND(E110*($F$108+$F$109),2) -> 193.68
D112: TOTAL DO DESTAQUE DO 13º SALÁRIO | F112: =SUM(F108:F110) -> 913.41
D114: QUADRO-RESUMO DO CUSTO MENSAL POR EMPREGADO | E114: Valor
D115: Custo total - sem o 13º Salário | E115: =ROUND(E105,2) -> 14493.9
D116: Destaque do 13º Salário (valor mensal) | E116: =ROUND(F112,2) -> 913.41
D118: TOTAL DO POSTO | E118: =E115+E116 -> 15407.31

Sheet 17
B2: PLANILHA DE ESTIMATIVA DE CUSTOS
B3: Padrão IN 05/2017 e IN 07/2018 - MPDG
B5: 17 | D5: =HLOOKUP($B$5,'Dados Gerais'!$D$6:$BI$22,6) -> BOMBEIRO HIDRÁULICO DE MANUTENÇÃO - PLANTONISTA DIURNO | E5: QUANTIDADE | F5: =HLOOKUP($B$5,'Dados Gerais'!$D$6:$BI$22,10) -> 4
B6: CCT | D6: =HLOOKUP($B$5,'Dados Gerais'!$D$6:$BI$22,16) -> SINDUSCON/DF x STICOMBE/DF CCT 2024/2025 N.º DF000276/2024 | E6: DATA-BASE | F6: =HLOOKUP($B$5,'Dados Gerais'!$D$6:$BI$22,17) -> 2024-05-01
B8: MÓDULO 1 - COMPOSIÇÃO DA REMUNERAÇÃO | F8: Valor
C9: A | D9: Salário-Base | F9: =HLOOKUP($B$5,'Dados Gerais'!$D$6:$BI$22,8) -> 3240.37
C10: B | D10: Adicional de Periculosidade | F10: =HLOOKUP($B$5,'Dados Gerais'!$D$6:$BI$39,26) -> 0
C11: C | D11: Adicional de Insalubridade | F11: =HLOOKUP($B$5,'Dados Gerais'!$D$6:$BI$39,32) -> 564.8
C12: D | D12: Adicional Noturno | F12: =HLOOKUP($B$5,'Dados Gerais'!$D$6:$BI$52,47) -> 0 | H12: * Nota 1 - O Módulo 1 refere-se ao valor mensal devido ao empregado pela prestação do serviço no período de 12 meses.
C13: E | D13: Adicional de Hora Extra | F13: =HLOOKUP($B$5,'Dados Gerais'!$D$6:$BI$69,64) -> 207.55 | H13: * Nota 2 - O adicional de hora extra no feriado trabalhado foi suprimido pela Lei 13.467/17
C14: F | D14: Outros (adicional de sobreaviso) | F14: =HLOOKUP($B$5,'Dados Gerais'!$D$6:$BI$69,34) -> 0 | H14: * Nota 3 - ART. 7º, § 2º, DA LEI Nº 605/49.Sendo mensalista o obreiro, o adicional noturno pago de forma fixa já é considerado integrado para os efeitos do pagamento do repouso semanal remunerado, nos termos do art. 7º, § 2º, da Lei nº 605/49.
D16: TOTAL DA REMUNERAÇÃO | F16: =SUM(F9:F14) -> 4012.72
B18: MÓDULO 2 - ENCARGOS E BENEFÍCIOS ANUAIS, MENSAIS E DIÁRIOS | E18: Percentuais | F18: Valor
B19: Submódulo 2.1 - 13º Salário, Férias e Adicional de Férias
C20: A | D20: 13º Salário - Calculado no Módulo 7 - Destacado | E20: 0 | F20: =ROUND(E20*F$16,2) -> 0
C21: B | D21: Férias e Adicional de Férias | E21: ='Encargos Sociais'!E25+'Encargos Sociais'!E31 -> 0.1212 | F21: =ROUND(E21*F$16,2) -> 486.34 | H21: * Nota 1 - Provisiona-se, mensalmente, o proporcional a 1/12 dos valores referentes a gratificação natalina, férias e adicional de férias.
H22: * Nota 2 - O adicional de férias contido no Submódulo 2.1 corresponde a 1/3 da remuneração que, por sua vez, é dividida por 12 contome Nota 1.
B23: Submódulo 2.2 - Encargos Previdenciários (GPS), Fundo de Garantia por Tempo de Serviço (FGTS) e Outras Contribuições
C24: A | D24: INSS (art. 22, inciso I, Lei nº 8.212/91) | E24: ='Encargos Sociais'!E14 -> 0 | F24: =ROUND(E24*($F$16+$F$41+$F$73),2) -> 0
C25: B | D25: Salário Educação (art. 3º, inciso I, Decreto nº 87.043/82) | E25: ='Encargos Sociais'!E15 -> 0.025 | F25: =ROUND(E25*($F$16+$F$41+$F$73),2) -> 114.48
C26: C | D26: SAT/RAT (art. 22, II, Lei 8.212/91 e Anexo V, Decreto 6.042/07) - Enquadramento 8211-3/00 | E26: ='Encargos Sociais'!E16 -> 0.03 | F26: 137.38
C27: D | D27: SESC ou SESI (art. 30, Lei nº 8.036/90 e art. 1º, Lei 8.154/90) | E27: ='Encargos Sociais'!E17 -> 0.015 | F27: 68.69
C28: E | D28: SENAI ou SENAC (Decreto nº 2.318/86) | E28: ='Encargos Sociais'!E18 -> 0.01 | F28: 45.79
C29: F | D29: SEBRAE (§ 3º, art. 8º, Lei 8.029/90, alterada pela Lei nº 8.154/90) | E29: ='Encargos Sociais'!E19 -> 0.006 | F29: 27.48
C30: G | D30: INCRA (art. 1º, I, Decreto Lei 1.146/70 e Lei 7.787, de 30/06/89) | E30: ='Encargos Sociais'!E20 -> 0.002 | F30: 9.16 | H30: * Nota 1 - Os percentuais dos encargos previdenciários, do FGTS e demais contribuições são estabelecidos por legislação vigente.
C31: H | D31: FGTS (Lei Complementar nº 110/01 e art. 30, Lei nº 8.036/90) | E31: ='Encargos Sociais'!E21 -> 0.08 | F31: 366.34 | H31: * Nota 2 - O SAT, a depender do grau de risco do serviço, irá variar entre 1%, para risco leve, de 2%, para risco médio, e de 3% para risco grave.
C32: I | D32: SECONCI (Convenções Coletivas de Trabalho da construção) | E32: ='Encargos Sociais'!E22 -> 0.01 | F32: 45.79 | H32: * Nota 3 - Os percentuais do Submódulo 2.2 incidem sobre o Módulo 1 e o Submódulo 2.1.
B34: Submódulo 2.3 - Benefícios Mensais e Diários
C35: A | D35: Auxílio Transporte | F35: =HLOOKUP($B$5,'Dados Gerais'!$D$6:$BI$95,83) -> 333.13
C36: B | D36: Auxílio Alimentação | F36: =HLOOKUP($B$5,'Dados Gerais'!$D$6:$BI$95,90) -> 525
C37: C | D37: Assistência Médica e Familiar | F37: =HLOOKUP($B$5,'Dados Gerais'!$D$6:$BI$103,98) -> 0
C38: D | D38: Outros (Seguro de vida, auxílio funeral, auxílio odontológico e auxílio creche) | F38: =HLOOKUP($B$5,'Dados Gerais'!$D$6:$BI$121,115) -> 13.95 | H38: * Nota 1 - O valor informado deverá ser o custo real do benefício (descontado o valor eventualmente pago pelo empregado).
H39: * Nota 2 - Observar a previsão dos benefícios contidos em Acordos, Convenções e Dissídios Coletivos de Trabalho e o disposto no art. 6º da IN 5/2017
D40: QUADRO-RESUMO DO MÓDULO 2
D41: 2.1 - 13º Salário, Férias e Adicional de Férias - 13º Destacado - Calculado no Módulo 7 | E41: =SUM(E20:E21) -> 0.1212 | F41: =F20+F21 -> 486.34
D42: 2.2 - Encargos Previdenciários (GPS), Fundo de Garantia por Tempo de Serviço (FGTS) e Contribuições | E42: =SUM(E24:E32) -> 0.178 | F42: =SUM(F24:F32) -> 815.11
D43: 2.3 - Benefícios Mensais e Diários | F43: =SUM(F35:F38) -> 872.08
D45: TOTAL DOS ENCARGOS E BENEFÍCIOS | F45: =SUM(F41:F43) -> 2173.53
B47: MÓDULO 3 - PREVISÃO PARA RESCISÃO | E47: Percentuais | F47: Valor
C48: A | D48: Aviso Prévio Indenizado (Art. 7º, inciso XXI, da CF/1988 e arts. 477, 487, §1º, e 491 da CLT) | E48: ='Encargos Sociais'!E36 -> 0.005 | F48: =ROUND(E48*$F$16,2) -> 20.06
C49: B | D49: Incidência do FGTS sobre o Aviso Prévio Indenizado (Súmula 305 TST) | E49: ='Encargos Sociais'!E37 -> 0.0004 | F49: 1.61 | H49: * Nota 1 - Adotou-se os parâmetros do estudo do STF (http://www.stf.jus.br/arquivo/cms/sobrestfestudosci/anexo/encargos_sociais_03102007.pdf), onde 5% do pessoal é demitido pelo empregador no decurso do contrato (para estes, considerou-se o aviso prévio indenizado). Desprezou-se as demissões por justa causa e os pedidos de demissão.
C50: C | D50: Multa do FGTS e Contribuição Social sobre o Aviso Prévio Indenizado (Art. 18, §1º, da Lei 8.036/1990 e art. 1º da LC nº 110/2001) | E50: ='Encargos Sociais'!E38 -> 0.0019 | F50: 7.62 | H50: * Nota 2 - No cálculo do percentual, considerou-se 36 dias, correspondendo à metade da duração média dos contratos (2 anos)
C51: D | D51: Aviso Prévio Trabalhado (Art. 488, parágrafo único, CLT) | E51: ='Encargos Sociais'!E39 -> 0.012 | F51: 48.15 | H51: * Nota 3 - Incide sobre a Remuneração + 13º salário (1/12) + Férias (1/12) + Adicional de Férias (1/36) x 50% multa (40% para o empregado e 10% de contribuição social) x 8% FGTS
C52: E | D52: Incidência de GPS, FGTS e outras contribuições sobre o Aviso Prévio Trabalhado | E52: ='Encargos Sociais'!E40 -> 0.0021 | F52: 8.43 | H52: * Nota 4 - Os 95% restantes do cálculo, a um prazo médio de contrato de 4 anos. Assim, calcula-se 7 dias para o 1º ano de contrato e mais 3 dias para os 3 anos seguintes.
C53: F | D53: Multa do FGTS e Contribuição Social sobre o Aviso Prévio Trabalhado | E53: ='Encargos Sociais'!E41 -> 0.0145 | F53: 58.18
D55: TOTAL DE PREVISÃO PARA RESCISÃO | F55: =SUM(F48:F53) -> 144.05
B57: MÓDULO 4 - CUSTO DO PROFISSIONAL AUSENTE | E57: Percentuais | F57: Valor
B58: Submódulo 4.1 - Ausências Legais
C59: A | D59: Férias (Arts. 129 e 130, inc. I, da CLT) - Calculado no Submódulo 2.1 | E59: 0 | F59: =ROUND(E59*$F$16,2) -> 0 | H59: * Nota 1 - As alíneas “A” a “F” referem-se somente ao custo que será pago ao repositor pelos dias trabalhados quando da necessidade de substituir a mão de obra alocada na prestação do serviço.
C60: B | D60: Ausências Legais (Arts. 131 e 473 da CLT) | E60: ='Encargos Sociais'!E26 -> 0.0079 | F60: 31.7 | H60: * Nota 2 - Adotou-se a estimativa do SINAPI de 2 dias por ano.
C61: C | D61: Licença-Paternidade (Art. 7º, XIX, e art. 10, §1º, do ADCT, CF/1988 e Art. 1º, II, da Lei 11.770/2008) | E61: ='Encargos Sociais'!E27 -> 0.0008 | F61: 3.21 | H61: * Nota 3 - Utilizada a proporção de 50% para homens, 5 dias de afastamento, e a probabilidade de um trabalhador requerer a Licença Paternidade em 5,22%, conforme SINAPI (citando dados da PNAD 2015)
C62: D | D62: Ausência por Acidente de Trabalho (Art. 131, III, da CLT) | E62: ='Encargos Sociais'!E28 -> 0.0009 | F62: 3.61 | H62: * Nota 4 - Utilzada a estatística de 1,96% dos contribuintes beneficiados com a emissão do auxílio, conforme Anuário Estatístico da Previdência Social. Afastamento de 15 dias a cargo da empresa.
C63: E | D63: Afastamento Maternidade (Art. 71 da Lei nº 8.213/1991) | E63: ='Encargos Sociais'!E29 -> 0.0033 | F63: 13.24 | H63: * Nota 5 - Utilizada a proporção de 50% para mulheres, 180 dias de afastamento, e a probabilidade de uma trabalhadora requerer a Licença Maternidade em 4,91%, conforme SINAPI (citando dados do IBGE 2016)
C64: F | D64: Auxílio Enfermidade - Doença (Art. 59 da Lei nº 8.213/1991) | E64: ='Encargos Sociais'!E30 -> 0.0071 | F64: 28.49 | H64: * Nota 6 - Utilizada a estatística de 3,37% dos contribuintes beneficiados com o auxílio, conforme Anuário Estatístico da Previdência Social de 2015 (acrescidos de 2 dias ao ano, para os quais o trabalhador nem requer o benefício da Previdência - conforme SINAPI)
B66: Submódulo 4.2 - Intrajornada
C67: A | D67: Intervalo para repouso ou alimentação | E67: ='Encargos Sociais'!E33 -> 0 | F67: =ROUND(E67*$F$16,2) -> 0
D69: QUADRO-RESUMO DO MÓDULO 4 | F69: Valor
D70: 4.1 - Ausências Legais | E70: =SUM(E59:E64) -> 0.02 | F70: =ROUND(E70*$F$16,2) -> 80.25
D71: 4.2 - Intrajornada | E71: =E67 -> 0 | F71: =ROUND(E71*$F$16,2) -> 0
D73: TOTAL DE PREVISÃO PARA RESCISÃO E INTERVALO INTRAJORNADA | F73: =SUM(F70:F71) -> 80.25
B75: MÓDULO 5 - INSUMOS DIVERSOS | F75: Valor
C76: A | D76: Uniformes - aquisição | F76: 0
C77: B | D77: Materiais de consumo relacionados ao posto - aquisição | F77: =ROUND(HLOOKUP(B5,'Mat Cons'!I11:DX13,3)/12,2) -> 0
C78: C | D78: Ferramentas relacionadas ao posto - remuneração da sua depreciação / manutenção | F78: =HLOOKUP(B5,'Relacion - Ferram'!Q3:EF5,3) -> 23.13
C79: D | D79: Equipamentos relacionados ao posto - remuneração da sua depreciação / manutenção | F79: =HLOOKUP(B5,'Equip Rel'!Q11:EF13,3) -> 0
C80: E | D80: Equipamentos de Proteção Individual - EPI - aquisição | F80: =ROUND(HLOOKUP(B5,EPI!I4:X6,3)/12,2) -> 0
D82: TOTAL DE INSUMOS DIVERSOS | F82: =SUM(F76:F81) -> 23.13 | H82: * Nota - Valores mensais por empregado
B84: MÓDULO 6 - CUSTOS INDIRETOS, TRIBUTOS E LUCRO - BDI | E84: Percentuais | F84: Valor
C85: A | D85: Custos Indiretos | E85: ='BDI - Geral'!E7 -> 0.0227
C86: A.1 | D86: Administração Central | E86: ='BDI - Geral'!E8 -> 0.0173
C87: A.2 | D87: Seguros, Garantias e Riscos | E87: ='BDI - Geral'!E9 -> 0.0054
C88: B | D88: Lucro | E88: ='BDI - Geral'!E11 -> 0.0267
C89: C | D89: Tributos | E89: =SUM(E90:E91) -> 0.169
C90: C.1 | D90: Tributos Federais (COFINS, PIS e CPRB) | E90: ='BDI - Geral'!E19 -> 0.119
C91: C.2 | D91: Tributos Distritais (ISS) | E91: ='BDI - Geral'!E24 -> 0.05 | H91: * Nota - Utilizou-se o indicado pelo Sindicato da Arquitetura e da Engenharia (Sinaenco, 2008, p. 22), que adota um percentual redutor de 20% no cálculo dos custos tributários relativos às contribuições PIS e COFINS
C92: D | D92: Despesas Financeiras | E92: ='BDI - Geral'!E14 -> 0.004367839439
D94: TOTAL DE BDI | E94: ='BDI - Geral'!E27 -> 0.2691 | F94: =ROUND(E94*E102,2) -> 1731.3
D96: QUADRO-RESUMO DO CUSTO MENSAL POR EMPREGADO - SEM O 13º | E96: Valor
D97: Módulo 1 - Composição da Remuneração | E97: =F16 -> 4012.72
D98: Módulo 2 - Encargos e Benefícios Anuais, Mensais e Diários | E98: =F45 -> 2173.53
D99: Módulo 3 - Provisão para Rescisão | E99: =F55 -> 144.05
D100: Módulo 4 - Custo de Reposição do Profissional Ausente | E100: =F73 -> 80.25
D101: Módulo 5 - Insumos Diversos | E101: =F82 -> 23.13
D102: SUBTOTAL (A+B+C+D+E) | E102: =SUM(E97:E101) -> 6433.68
D103: Módulo 6 - Custos Indiretos, Tributos e Lucro | E103: =F94 -> 1731.3
D105: TOTAL DO POSTO | E105: =SUM(E102:E103) -> 8164.98
B107: MÓDULO 7 - DESTAQUE DO MÓDULO 2 - 13º SALÁRIO | E107: Percentuais | F107: Valor
C108: A | D108: 13º Salário | E108: ='Encargos Sociais'!E32 -> 0.0833 | F108: =ROUND(E108*F$16,2) -> 334.26
C109: B | D109: Encargos Sociais sobre o 13º Salário - Taxa calculada no SUBMÓDULO 2.2 | E109: =SUM($E$24:$E$32) -> 0.178 | F109: =ROUND(E109*$F$108,2) -> 59.5 | H109: * Nota 1 - Provisiona-se, mensalmente, o proporcional a 1/12 dos valores referentes a gratificação natalina e adicional de férias.
C110: C | D110: BDI sobre o 13º Salário - Taxa calculada no MÓDULO 6 | E110: =E94 -> 0.2691 | F110: =ROUND(E110*($F$108+$F$109),2) -> 105.96
D112: TOTAL DO DESTAQUE DO 13º SALÁRIO | F112: =SUM(F108:F110) -> 499.72
D114: QUADRO-RESUMO DO CUSTO MENSAL POR EMPREGADO | E114: Valor
D115: Custo total - sem o 13º Salário | E115: =ROUND(E105,2) -> 8164.98
D116: Destaque do 13º Salário (valor mensal) | E116: =ROUND(F112,2) -> 499.72
D118: TOTAL DO POSTO | E118: =E115+E116 -> 8664.7

Sheet 18
B2: PLANILHA DE ESTIMATIVA DE CUSTOS
B3: Padrão IN 05/2017 e IN 07/2018 - MPDG
B5: 18 | D5: =HLOOKUP($B$5,'Dados Gerais'!$D$6:$BI$22,6) -> BOMBEIRO HIDRÁULICO DE MANUTENÇÃO - PLANTONISTA NOTURNO | E5: QUANTIDADE | F5: =HLOOKUP($B$5,'Dados Gerais'!$D$6:$BI$22,10) -> 4
B6: CCT | D6: =HLOOKUP($B$5,'Dados Gerais'!$D$6:$BI$22,16) -> SINDUSCON/DF x STICOMBE/DF CCT 2024/2025 N.º DF000276/2024 | E6: DATA-BASE | F6: =HLOOKUP($B$5,'Dados Gerais'!$D$6:$BI$22,17) -> 2024-05-01
B8: MÓDULO 1 - COMPOSIÇÃO DA REMUNERAÇÃO | F8: Valor
C9: A | D9: Salário-Base | F9: =HLOOKUP($B$5,'Dados Gerais'!$D$6:$BI$22,8) -> 3240.37
C10: B | D10: Adicional de Periculosidade | F10: =HLOOKUP($B$5,'Dados Gerais'!$D$6:$BI$39,26) -> 0
C11: C | D11: Adicional de Insalubridade | F11: =HLOOKUP($B$5,'Dados Gerais'!$D$6:$BI$39,32) -> 564.8
C12: D | D12: Adicional Noturno | F12: =HLOOKUP($B$5,'Dados Gerais'!$D$6:$BI$52,47) -> 415.11 | H12: * Nota 1 - O Módulo 1 refere-se ao valor mensal devido ao empregado pela prestação do serviço no período de 12 meses.
C13: E | D13: Adicional de Hora Extra | F13: =HLOOKUP($B$5,'Dados Gerais'!$D$6:$BI$69,64) -> 207.55 | H13: * Nota 2 - O adicional de hora extra no feriado trabalhado foi suprimido pela Lei 13.467/17
C14: F | D14: Outros (adicional de sobreaviso) | F14: =HLOOKUP($B$5,'Dados Gerais'!$D$6:$BI$69,34) -> 0 | H14: * Nota 3 - ART. 7º, § 2º, DA LEI Nº 605/49.Sendo mensalista o obreiro, o adicional noturno pago de forma fixa já é considerado integrado para os efeitos do pagamento do repouso semanal remunerado, nos termos do art. 7º, § 2º, da Lei nº 605/49.
D16: TOTAL DA REMUNERAÇÃO | F16: =SUM(F9:F14) -> 4427.83
B18: MÓDULO 2 - ENCARGOS E BENEFÍCIOS ANUAIS, MENSAIS E DIÁRIOS | E18: Percentuais | F18: Valor
B19: Submódulo 2.1 - 13º Salário, Férias e Adicional de Férias
C20: A | D20: 13º Salário - Calculado no Módulo 7 - Destacado | E20: 0 | F20: =ROUND(E20*F$16,2) -> 0
C21: B | D21: Férias e Adicional de Férias | E21: ='Encargos Sociais'!E25+'Encargos Sociais'!E31 -> 0.1212 | F21: =ROUND(E21*F$16,2) -> 536.65 | H21: * Nota 1 - Provisiona-se, mensalmente, o proporcional a 1/12 dos valores referentes a gratificação natalina, férias e adicional de férias.
H22: * Nota 2 - O adicional de férias contido no Submódulo 2.1 corresponde a 1/3 da remuneração que, por sua vez, é dividida por 12 contome Nota 1.
B23: Submódulo 2.2 - Encargos Previdenciários (GPS), Fundo de Garantia por Tempo de Serviço (FGTS) e Outras Contribuições
C24: A | D24: INSS (art. 22, inciso I, Lei nº 8.212/91) | E24: ='Encargos Sociais'!E14 -> 0 | F24: =ROUND(E24*($F$16+$F$41+$F$73),2) -> 0
C25: B | D25: Salário Educação (art. 3º, inciso I, Decreto nº 87.043/82) | E25: ='Encargos Sociais'!E15 -> 0.025 | F25: =ROUND(E25*($F$16+$F$41+$F$73),2) -> 126.33
C26: C | D26: SAT/RAT (art. 22, II, Lei 8.212/91 e Anexo V, Decreto 6.042/07) - Enquadramento 8211-3/00 | E26: ='Encargos Sociais'!E16 -> 0.03 | F26: 151.59
C27: D | D27: SESC ou SESI (art. 30, Lei nº 8.036/90 e art. 1º, Lei 8.154/90) | E27: ='Encargos Sociais'!E17 -> 0.015 | F27: 75.8
C28: E | D28: SENAI ou SENAC (Decreto nº 2.318/86) | E28: ='Encargos Sociais'!E18 -> 0.01 | F28: 50.53
C29: F | D29: SEBRAE (§ 3º, art. 8º, Lei 8.029/90, alterada pela Lei nº 8.154/90) | E29: ='Encargos Sociais'!E19 -> 0.006 | F29: 30.32
C30: G | D30: INCRA (art. 1º, I, Decreto Lei 1.146/70 e Lei 7.787, de 30/06/89) | E30: ='Encargos Sociais'!E20 -> 0.002 | F30: 10.11 | H30: * Nota 1 - Os percentuais dos encargos previdenciários, do FGTS e demais contribuições são estabelecidos por legislação vigente.
C31: H | D31: FGTS (Lei Complementar nº 110/01 e art. 30, Lei nº 8.036/90) | E31: ='Encargos Sociais'!E21 -> 0.08 | F31: 404.24 | H31: * Nota 2 - O SAT, a depender do grau de risco do serviço, irá variar entre 1%, para risco leve, de 2%, para risco médio, e de 3% para risco grave.
C32: I | D32: SECONCI (Convenções Coletivas de Trabalho da construção) | E32: ='Encargos Sociais'!E22 -> 0.01 | F32: 50.53 | H32: * Nota 3 - Os percentuais do Submódulo 2.2 incidem sobre o Módulo 1 e o Submódulo 2.1.
B34: Submódulo 2.3 - Benefícios Mensais e Diários
C35: A | D35: Auxílio Transporte | F35: =HLOOKUP($B$5,'Dados Gerais'!$D$6:$BI$95,83) -> 333.13
C36: B | D36: Auxílio Alimentação | F36: =HLOOKUP($B$5,'Dados Gerais'!$D$6:$BI$95,90) -> 525
C37: C | D37: Assistência Médica e Familiar | F37: =HLOOKUP($B$5,'Dados Gerais'!$D$6:$BI$103,98) -> 0
C38: D | D38: Outros (Seguro de vida, auxílio funeral, auxílio odontológico e auxílio creche) | F38: =HLOOKUP($B$5,'Dados Gerais'!$D$6:$BI$121,115) -> 13.95 | H38: * Nota 1 - O valor informado deverá ser o custo real do benefício (descontado o valor eventualmente pago pelo empregado).
H39: * Nota 2 - Observar a previsão dos benefícios contidos em Acordos, Convenções e Dissídios Coletivos de Trabalho e o disposto no art. 6º da IN 5/2017
D40: QUADRO-RESUMO DO MÓDULO 2
D41: 2.1 - 13º Salário, Férias e Adicional de Férias - 13º Destacado - Calculado no Módulo 7 | E41: =SUM(E20:E21) -> 0.1212 | F41: =F20+F21 -> 536.65
D42: 2.2 - Encargos Previdenciários (GPS), Fundo de Garantia por Tempo de Serviço (FGTS) e Contribuições | E42: =SUM(E24:E32) -> 0.178 | F42: =SUM(F24:F32) -> 899.45
D43: 2.3 - Benefícios Mensais e Diários | F43: =SUM(F35:F38) -> 872.08
D45: TOTAL DOS ENCARGOS E BENEFÍCIOS | F45: =SUM(F41:F43) -> 2308.18
B47: MÓDULO 3 - PREVISÃO PARA RESCISÃO | E47: Percentuais | F47: Valor
C48: A | D48: Aviso Prévio Indenizado (Art. 7º, inciso XXI, da CF/1988 e arts. 477, 487, §1º, e 491 da CLT) | E48: ='Encargos Sociais'!E36 -> 0.005 | F48: =ROUND(E48*$F$16,2) -> 22.14
C49: B | D49: Incidência do FGTS sobre o Aviso Prévio Indenizado (Súmula 305 TST) | E49: ='Encargos Sociais'!E37 -> 0.0004 | F49: 1.77 | H49: * Nota 1 - Adotou-se os parâmetros do estudo do STF (http://www.stf.jus.br/arquivo/cms/sobrestfestudosci/anexo/encargos_sociais_03102007.pdf), onde 5% do pessoal é demitido pelo empregador no decurso do contrato (para estes, considerou-se o aviso prévio indenizado). Desprezou-se as demissões por justa causa e os pedidos de demissão.
C50: C | D50: Multa do FGTS e Contribuição Social sobre o Aviso Prévio Indenizado (Art. 18, §1º, da Lei 8.036/1990 e art. 1º da LC nº 110/2001) | E50: ='Encargos Sociais'!E38 -> 0.0019 | F50: 8.41 | H50: * Nota 2 - No cálculo do percentual, considerou-se 36 dias, correspondendo à metade da duração média dos contratos (2 anos)
C51: D | D51: Aviso Prévio Trabalhado (Art. 488, parágrafo único, CLT) | E51: ='Encargos Sociais'!E39 -> 0.012 | F51: 53.13 | H51: * Nota 3 - Incide sobre a Remuneração + 13º salário (1/12) + Férias (1/12) + Adicional de Férias (1/36) x 50% multa (40% para o empregado e 10% de contribuição social) x 8% FGTS
C52: E | D52: Incidência de GPS, FGTS e outras contribuições sobre o Aviso Prévio Trabalhado | E52: ='Encargos Sociais'!E40 -> 0.0021 | F52: 9.3 | H52: * Nota 4 - Os 95% restantes do cálculo, a um prazo médio de contrato de 4 anos. Assim, calcula-se 7 dias para o 1º ano de contrato e mais 3 dias para os 3 anos seguintes.
C53: F | D53: Multa do FGTS e Contribuição Social sobre o Aviso Prévio Trabalhado | E53: ='Encargos Sociais'!E41 -> 0.0145 | F53: 64.2
D55: TOTAL DE PREVISÃO PARA RESCISÃO | F55: =SUM(F48:F53) -> 158.95
B57: MÓDULO 4 - CUSTO DO PROFISSIONAL AUSENTE | E57: Percentuais | F57: Valor
B58: Submódulo 4.1 - Ausências Legais
C59: A | D59: Férias (Arts. 129 e 130, inc. I, da CLT) - Calculado no Submódulo 2.1 | E59: 0 | F59: =ROUND(E59*$F$16,2) -> 0 | H59: * Nota 1 - As alíneas “A” a “F” referem-se somente ao custo que será pago ao repositor pelos dias trabalhados quando da necessidade de substituir a mão de obra alocada na prestação do serviço.
C60: B | D60: Ausências Legais (Arts. 131 e 473 da CLT) | E60: ='Encargos Sociais'!E26 -> 0.0079 | F60: 34.98 | H60: * Nota 2 - Adotou-se a estimativa do SINAPI de 2 dias por ano.
C61: C | D61: Licença-Paternidade (Art. 7º, XIX, e art. 10, §1º, do ADCT, CF/1988 e Art. 1º, II, da Lei 11.770/2008) | E61: ='Encargos Sociais'!E27 -> 0.0008 | F61: 3.54 | H61: * Nota 3 - Utilizada a proporção de 50% para homens, 5 dias de afastamento, e a probabilidade de um trabalhador requerer a Licença Paternidade em 5,22%, conforme SINAPI (citando dados da PNAD 2015)
C62: D | D62: Ausência por Acidente de Trabalho (Art. 131, III, da CLT) | E62: ='Encargos Sociais'!E28 -> 0.0009 | F62: 3.99 | H62: * Nota 4 - Utilzada a estatística de 1,96% dos contribuintes beneficiados com a emissão do auxílio, conforme Anuário Estatístico da Previdência Social. Afastamento de 15 dias a cargo da empresa.
C63: E | D63: Afastamento Maternidade (Art. 71 da Lei nº 8.213/1991) | E63: ='Encargos Sociais'!E29 -> 0.0033 | F63: 14.61 | H63: * Nota 5 - Utilizada a proporção de 50% para mulheres, 180 dias de afastamento, e a probabilidade de uma trabalhadora requerer a Licença Maternidade em 4,91%, conforme SINAPI (citando dados do IBGE 2016)
C64: F | D64: Auxílio Enfermidade - Doença (Art. 59 da Lei nº 8.213/1991) | E64: ='Encargos Sociais'!E30 -> 0.0071 | F64: 31.44 | H64: * Nota 6 - Utilizada a estatística de 3,37% dos contribuintes beneficiados com o auxílio, conforme Anuário Estatístico da Previdência Social de 2015 (acrescidos de 2 dias ao ano, para os quais o trabalhador nem requer o benefício da Previdência - conforme SINAPI)
B66: Submódulo 4.2 - Intrajornada
C67: A | D67: Intervalo para repouso ou alimentação | E67: ='Encargos Sociais'!E33 -> 0 | F67: =ROUND(E67*$F$16,2) -> 0
D69: QUADRO-RESUMO DO MÓDULO 4 | F69: Valor
D70: 4.1 - Ausências Legais | E70: =SUM(E59:E64) -> 0.02 | F70: =ROUND(E70*$F$16,2) -> 88.56
D71: 4.2 - Intrajornada | E71: =E67 -> 0 | F71: =ROUND(E71*$F$16,2) -> 0
D73: TOTAL DE PREVISÃO PARA RESCISÃO E INTERVALO INTRAJORNADA | F73: =SUM(F70:F71) -> 88.56
B75: MÓDULO 5 - INSUMOS DIVERSOS | F75: Valor
C76: A | D76: Uniformes - aquisição | F76: 0
C77: B | D77: Materiais de consumo relacionados ao posto - aquisição | F77: =ROUND(HLOOKUP(B5,'Mat Cons'!I11:DX13,3)/12,2) -> 0
C78: C | D78: Ferramentas relacionadas ao posto - remuneração da sua depreciação / manutenção | F78: =HLOOKUP(B5,'Relacion - Ferram'!Q3:EF5,3) -> 23.13
C79: D | D79: Equipamentos relacionados ao posto - remuneração da sua depreciação / manutenção | F79: =HLOOKUP(B5,'Equip Rel'!Q11:EF13,3) -> 0
C80: E | D80: Equipamentos de Proteção Individual - EPI - aquisição | F80: =ROUND(HLOOKUP(B5,EPI!I4:X6,3)/12,2) -> 0
D82: TOTAL DE INSUMOS DIVERSOS | F82: =SUM(F76:F81) -> 23.13 | H82: * Nota - Valores mensais por empregado
B84: MÓDULO 6 - CUSTOS INDIRETOS, TRIBUTOS E LUCRO - BDI | E84: Percentuais | F84: Valor
C85: A | D85: Custos Indiretos | E85: ='BDI - Geral'!E7 -> 0.0227
C86: A.1 | D86: Administração Central | E86: ='BDI - Geral'!E8 -> 0.0173
C87: A.2 | D87: Seguros, Garantias e Riscos | E87: ='BDI - Geral'!E9 -> 0.0054
C88: B | D88: Lucro | E88: ='BDI - Geral'!E11 -> 0.0267
C89: C | D89: Tributos | E89: =SUM(E90:E91) -> 0.169
C90: C.1 | D90: Tributos Federais (COFINS, PIS e CPRB) | E90: ='BDI - Geral'!E19 -> 0.119
C91: C.2 | D91: Tributos Distritais (ISS) | E91: ='BDI - Geral'!E24 -> 0.05 | H91: * Nota - Utilizou-se o indicado pelo Sindicato da Arquitetura e da Engenharia (Sinaenco, 2008, p. 22), que adota um percentual redutor de 20% no cálculo dos custos tributários relativos às contribuições PIS e COFINS
C92: D | D92: Despesas Financeiras | E92: ='BDI - Geral'!E14 -> 0.004367839439
D94: TOTAL DE BDI | E94: ='BDI - Geral'!E27 -> 0.2691 | F94: =ROUND(E94*E102,2) -> 1885.49
D96: QUADRO-RESUMO DO CUSTO MENSAL POR EMPREGADO - SEM O 13º | E96: Valor
D97: Módulo 1 - Composição da Remuneração | E97: =F16 -> 4427.83
D98: Módulo 2 - Encargos e Benefícios Anuais, Mensais e Diários | E98: =F45 -> 2308.18
D99: Módulo 3 - Provisão para Rescisão | E99: =F55 -> 158.95
D100: Módulo 4 - Custo de Reposição do Profissional Ausente | E100: =F73 -> 88.56
D101: Módulo 5 - Insumos Diversos | E101: =F82 -> 23.13
D102: SUBTOTAL (A+B+C+D+E) | E102: =SUM(E97:E101) -> 7006.65
D103: Módulo 6 - Custos Indiretos, Tributos e Lucro | E103: =F94 -> 1885.49
D105: TOTAL DO POSTO | E105: =SUM(E102:E103) -> 8892.14
B107: MÓDULO 7 - DESTAQUE DO MÓDULO 2 - 13º SALÁRIO | E107: Percentuais | F107: Valor
C108: A | D108: 13º Salário | E108: ='Encargos Sociais'!E32 -> 0.0833 | F108: =ROUND(E108*F$16,2) -> 368.84
C109: B | D109: Encargos Sociais sobre o 13º Salário - Taxa calculada no SUBMÓDULO 2.2 | E109: =SUM($E$24:$E$32) -> 0.178 | F109: =ROUND(E109*$F$108,2) -> 65.65 | H109: * Nota 1 - Provisiona-se, mensalmente, o proporcional a 1/12 dos valores referentes a gratificação natalina e adicional de férias.
C110: C | D110: BDI sobre o 13º Salário - Taxa calculada no MÓDULO 6 | E110: =E94 -> 0.2691 | F110: =ROUND(E110*($F$108+$F$109),2) -> 116.92
D112: TOTAL DO DESTAQUE DO 13º SALÁRIO | F112: =SUM(F108:F110) -> 551.41
D114: QUADRO-RESUMO DO CUSTO MENSAL POR EMPREGADO | E114: Valor
D115: Custo total - sem o 13º Salário | E115: =ROUND(E105,2) -> 8892.14
D116: Destaque do 13º Salário (valor mensal) | E116: =ROUND(F112,2) -> 551.41
D118: TOTAL DO POSTO | E118: =E115+E116 -> 9443.55

Sheet 19
B2: PLANILHA DE ESTIMATIVA DE CUSTOS
B3: Padrão IN 05/2017 e IN 07/2018 - MPDG
B5: 19 | D5: =HLOOKUP($B$5,'Dados Gerais'!$D$6:$BI$22,6) -> ELETRICISTA DE MANUTENÇÃO - PLANTONISTA DIURNO | E5: QUANTIDADE | F5: =HLOOKUP($B$5,'Dados Gerais'!$D$6:$BI$22,10) -> 4
B6: CCT | D6: =HLOOKUP($B$5,'Dados Gerais'!$D$6:$BI$22,16) -> SINDUSCON/DF x STICOMBE/DF CCT 2024/2025 N.º DF000276/2024 | E6: DATA-BASE | F6: =HLOOKUP($B$5,'Dados Gerais'!$D$6:$BI$22,17) -> 2024-05-01
B8: MÓDULO 1 - COMPOSIÇÃO DA REMUNERAÇÃO | F8: Valor
C9: A | D9: Salário-Base | F9: =HLOOKUP($B$5,'Dados Gerais'!$D$6:$BI$22,8) -> 3240.37
C10: B | D10: Adicional de Periculosidade | F10: =HLOOKUP($B$5,'Dados Gerais'!$D$6:$BI$39,26) -> 972.11
C11: C | D11: Adicional de Insalubridade | F11: =HLOOKUP($B$5,'Dados Gerais'!$D$6:$BI$39,32) -> 0
C12: D | D12: Adicional Noturno | F12: =HLOOKUP($B$5,'Dados Gerais'!$D$6:$BI$52,47) -> 0 | H12: * Nota 1 - O Módulo 1 refere-se ao valor mensal devido ao empregado pela prestação do serviço no período de 12 meses.
C13: E | D13: Adicional de Hora Extra | F13: =HLOOKUP($B$5,'Dados Gerais'!$D$6:$BI$69,64) -> 229.77 | H13: * Nota 2 - O adicional de hora extra no feriado trabalhado foi suprimido pela Lei 13.467/17
C14: F | D14: Outros (adicional de sobreaviso) | F14: =HLOOKUP($B$5,'Dados Gerais'!$D$6:$BI$69,34) -> 0 | H14: * Nota 3 - ART. 7º, § 2º, DA LEI Nº 605/49.Sendo mensalista o obreiro, o adicional noturno pago de forma fixa já é considerado integrado para os efeitos do pagamento do repouso semanal remunerado, nos termos do art. 7º, § 2º, da Lei nº 605/49.
D16: TOTAL DA REMUNERAÇÃO | F16: =SUM(F9:F14) -> 4442.25
B18: MÓDULO 2 - ENCARGOS E BENEFÍCIOS ANUAIS, MENSAIS E DIÁRIOS | E18: Percentuais | F18: Valor
B19: Submódulo 2.1 - 13º Salário, Férias e Adicional de Férias
C20: A | D20: 13º Salário - Calculado no Módulo 7 - Destacado | E20: 0 | F20: =ROUND(E20*F$16,2) -> 0
C21: B | D21: Férias e Adicional de Férias | E21: ='Encargos Sociais'!E25+'Encargos Sociais'!E31 -> 0.1212 | F21: =ROUND(E21*F$16,2) -> 538.4 | H21: * Nota 1 - Provisiona-se, mensalmente, o proporcional a 1/12 dos valores referentes a gratificação natalina, férias e adicional de férias.
H22: * Nota 2 - O adicional de férias contido no Submódulo 2.1 corresponde a 1/3 da remuneração que, por sua vez, é dividida por 12 contome Nota 1.
B23: Submódulo 2.2 - Encargos Previdenciários (GPS), Fundo de Garantia por Tempo de Serviço (FGTS) e Outras Contribuições
C24: A | D24: INSS (art. 22, inciso I, Lei nº 8.212/91) | E24: ='Encargos Sociais'!E14 -> 0 | F24: =ROUND(E24*($F$16+$F$41+$F$73),2) -> 0
C25: B | D25: Salário Educação (art. 3º, inciso I, Decreto nº 87.043/82) | E25: ='Encargos Sociais'!E15 -> 0.025 | F25: =ROUND(E25*($F$16+$F$41+$F$73),2) -> 126.74
C26: C | D26: SAT/RAT (art. 22, II, Lei 8.212/91 e Anexo V, Decreto 6.042/07) - Enquadramento 8211-3/00 | E26: ='Encargos Sociais'!E16 -> 0.03 | F26: 152.09
C27: D | D27: SESC ou SESI (art. 30, Lei nº 8.036/90 e art. 1º, Lei 8.154/90) | E27: ='Encargos Sociais'!E17 -> 0.015 | F27: 76.04
C28: E | D28: SENAI ou SENAC (Decreto nº 2.318/86) | E28: ='Encargos Sociais'!E18 -> 0.01 | F28: 50.7
C29: F | D29: SEBRAE (§ 3º, art. 8º, Lei 8.029/90, alterada pela Lei nº 8.154/90) | E29: ='Encargos Sociais'!E19 -> 0.006 | F29: 30.42
C30: G | D30: INCRA (art. 1º, I, Decreto Lei 1.146/70 e Lei 7.787, de 30/06/89) | E30: ='Encargos Sociais'!E20 -> 0.002 | F30: 10.14 | H30: * Nota 1 - Os percentuais dos encargos previdenciários, do FGTS e demais contribuições são estabelecidos por legislação vigente.
C31: H | D31: FGTS (Lei Complementar nº 110/01 e art. 30, Lei nº 8.036/90) | E31: ='Encargos Sociais'!E21 -> 0.08 | F31: 405.56 | H31: * Nota 2 - O SAT, a depender do grau de risco do serviço, irá variar entre 1%, para risco leve, de 2%, para risco médio, e de 3% para risco grave.
C32: I | D32: SECONCI (Convenções Coletivas de Trabalho da construção) | E32: ='Encargos Sociais'!E22 -> 0.01 | F32: 50.7 | H32: * Nota 3 - Os percentuais do Submódulo 2.2 incidem sobre o Módulo 1 e o Submódulo 2.1.
B34: Submódulo 2.3 - Benefícios Mensais e Diários
C35: A | D35: Auxílio Transporte | F35: =HLOOKUP($B$5,'Dados Gerais'!$D$6:$BI$95,83) -> 333.13
C36: B | D36: Auxílio Alimentação | F36: =HLOOKUP($B$5,'Dados Gerais'!$D$6:$BI$95,90) -> 525
C37: C | D37: Assistência Médica e Familiar | F37: =HLOOKUP($B$5,'Dados Gerais'!$D$6:$BI$103,98) -> 0
C38: D | D38: Outros (Seguro de vida, auxílio funeral, auxílio odontológico e auxílio creche) | F38: =HLOOKUP($B$5,'Dados Gerais'!$D$6:$BI$121,115) -> 13.95 | H38: * Nota 1 - O valor informado deverá ser o custo real do benefício (descontado o valor eventualmente pago pelo empregado).
H39: * Nota 2 - Observar a previsão dos benefícios contidos em Acordos, Convenções e Dissídios Coletivos de Trabalho e o disposto no art. 6º da IN 5/2017
D40: QUADRO-RESUMO DO MÓDULO 2
D41: 2.1 - 13º Salário, Férias e Adicional de Férias - 13º Destacado - Calculado no Módulo 7 | E41: =SUM(E20:E21) -> 0.1212 | F41: =F20+F21 -> 538.4
D42: 2.2 - Encargos Previdenciários (GPS), Fundo de Garantia por Tempo de Serviço (FGTS) e Contribuições | E42: =SUM(E24:E32) -> 0.178 | F42: =SUM(F24:F32) -> 902.39
D43: 2.3 - Benefícios Mensais e Diários | F43: =SUM(F35:F38) -> 872.08
D45: TOTAL DOS ENCARGOS E BENEFÍCIOS | F45: =SUM(F41:F43) -> 2312.87
B47: MÓDULO 3 - PREVISÃO PARA RESCISÃO | E47: Percentuais | F47: Valor
C48: A | D48: Aviso Prévio Indenizado (Art. 7º, inciso XXI, da CF/1988 e arts. 477, 487, §1º, e 491 da CLT) | E48: ='Encargos Sociais'!E36 -> 0.005 | F48: =ROUND(E48*$F$16,2) -> 22.21
C49: B | D49: Incidência do FGTS sobre o Aviso Prévio Indenizado (Súmula 305 TST) | E49: ='Encargos Sociais'!E37 -> 0.0004 | F49: 1.78 | H49: * Nota 1 - Adotou-se os parâmetros do estudo do STF (http://www.stf.jus.br/arquivo/cms/sobrestfestudosci/anexo/encargos_sociais_03102007.pdf), onde 5% do pessoal é demitido pelo empregador no decurso do contrato (para estes, considerou-se o aviso prévio indenizado). Desprezou-se as demissões por justa causa e os pedidos de demissão.
C50: C | D50: Multa do FGTS e Contribuição Social sobre o Aviso Prévio Indenizado (Art. 18, §1º, da Lei 8.036/1990 e art. 1º da LC nº 110/2001) | E50: ='Encargos Sociais'!E38 -> 0.0019 | F50: 8.44 | H50: * Nota 2 - No cálculo do percentual, considerou-se 36 dias, correspondendo à metade da duração média dos contratos (2 anos)
C51: D | D51: Aviso Prévio Trabalhado (Art. 488, parágrafo único, CLT) | E51: ='Encargos Sociais'!E39 -> 0.012 | F51: 53.31 | H51: * Nota 3 - Incide sobre a Remuneração + 13º salário (1/12) + Férias (1/12) + Adicional de Férias (1/36) x 50% multa (40% para o empregado e 10% de contribuição social) x 8% FGTS
C52: E | D52: Incidência de GPS, FGTS e outras contribuições sobre o Aviso Prévio Trabalhado | E52: ='Encargos Sociais'!E40 -> 0.0021 | F52: 9.33 | H52: * Nota 4 - Os 95% restantes do cálculo, a um prazo médio de contrato de 4 anos. Assim, calcula-se 7 dias para o 1º ano de contrato e mais 3 dias para os 3 anos seguintes.
C53: F | D53: Multa do FGTS e Contribuição Social sobre o Aviso Prévio Trabalhado | E53: ='Encargos Sociais'!E41 -> 0.0145 | F53: 64.41
D55: TOTAL DE PREVISÃO PARA RESCISÃO | F55: =SUM(F48:F53) -> 159.48
B57: MÓDULO 4 - CUSTO DO PROFISSIONAL AUSENTE | E57: Percentuais | F57: Valor
B58: Submódulo 4.1 - Ausências Legais
C59: A | D59: Férias (Arts. 129 e 130, inc. I, da CLT) - Calculado no Submódulo 2.1 | E59: 0 | F59: =ROUND(E59*$F$16,2) -> 0 | H59: * Nota 1 - As alíneas “A” a “F” referem-se somente ao custo que será pago ao repositor pelos dias trabalhados quando da necessidade de substituir a mão de obra alocada na prestação do serviço.
C60: B | D60: Ausências Legais (Arts. 131 e 473 da CLT) | E60: ='Encargos Sociais'!E26 -> 0.0079 | F60: 35.09 | H60: * Nota 2 - Adotou-se a estimativa do SINAPI de 2 dias por ano.
C61: C | D61: Licença-Paternidade (Art. 7º, XIX, e art. 10, §1º, do ADCT, CF/1988 e Art. 1º, II, da Lei 11.770/2008) | E61: ='Encargos Sociais'!E27 -> 0.0008 | F61: 3.55 | H61: * Nota 3 - Utilizada a proporção de 50% para homens, 5 dias de afastamento, e a probabilidade de um trabalhador requerer a Licença Paternidade em 5,22%, conforme SINAPI (citando dados da PNAD 2015)
C62: D | D62: Ausência por Acidente de Trabalho (Art. 131, III, da CLT) | E62: ='Encargos Sociais'!E28 -> 0.0009 | F62: 4 | H62: * Nota 4 - Utilzada a estatística de 1,96% dos contribuintes beneficiados com a emissão do auxílio, conforme Anuário Estatístico da Previdência Social. Afastamento de 15 dias a cargo da empresa.
C63: E | D63: Afastamento Maternidade (Art. 71 da Lei nº 8.213/1991) | E63: ='Encargos Sociais'!E29 -> 0.0033 | F63: 14.66 | H63: * Nota 5 - Utilizada a proporção de 50% para mulheres, 180 dias de afastamento, e a probabilidade de uma trabalhadora requerer a Licença Maternidade em 4,91%, conforme SINAPI (citando dados do IBGE 2016)
C64: F | D64: Auxílio Enfermidade - Doença (Art. 59 da Lei nº 8.213/1991) | E64: ='Encargos Sociais'!E30 -> 0.0071 | F64: 31.54 | H64: * Nota 6 - Utilizada a estatística de 3,37% dos contribuintes beneficiados com o auxílio, conforme Anuário Estatístico da Previdência Social de 2015 (acrescidos de 2 dias ao ano, para os quais o trabalhador nem requer o benefício da Previdência - conforme SINAPI)
B66: Submódulo 4.2 - Intrajornada
C67: A | D67: Intervalo para repouso ou alimentação | E67: ='Encargos Sociais'!E33 -> 0 | F67: =ROUND(E67*$F$16,2) -> 0
D69: QUADRO-RESUMO DO MÓDULO 4 | F69: Valor
D70: 4.1 - Ausências Legais | E70: =SUM(E59:E64) -> 0.02 | F70: =ROUND(E70*$F$16,2) -> 88.85
D71: 4.2 - Intrajornada | E71: =E67 -> 0 | F71: =ROUND(E71*$F$16,2) -> 0
D73: TOTAL DE PREVISÃO PARA RESCISÃO E INTERVALO INTRAJORNADA | F73: =SUM(F70:F71) -> 88.85
B75: MÓDULO 5 - INSUMOS DIVERSOS | F75: Valor
C76: A | D76: Uniformes - aquisição | F76: 0
C77: B | D77: Materiais de consumo relacionados ao posto - aquisição | F77: =ROUND(HLOOKUP(B5,'Mat Cons'!I11:DX13,3)/12,2) -> 0
C78: C | D78: Ferramentas relacionadas ao posto - remuneração da sua depreciação / manutenção | F78: =HLOOKUP(B5,'Relacion - Ferram'!Q3:EF5,3) -> 30.05
C79: D | D79: Equipamentos relacionados ao posto - remuneração da sua depreciação / manutenção | F79: =HLOOKUP(B5,'Equip Rel'!Q11:EF13,3) -> 0
C80: E | D80: Equipamentos de Proteção Individual - EPI - aquisição | F80: =ROUND(HLOOKUP(B5,EPI!I4:X6,3)/12,2) -> 0
D82: TOTAL DE INSUMOS DIVERSOS | F82: =SUM(F76:F81) -> 30.05 | H82: * Nota - Valores mensais por empregado
B84: MÓDULO 6 - CUSTOS INDIRETOS, TRIBUTOS E LUCRO - BDI | E84: Percentuais | F84: Valor
C85: A | D85: Custos Indiretos | E85: ='BDI - Geral'!E7 -> 0.0227
C86: A.1 | D86: Administração Central | E86: ='BDI - Geral'!E8 -> 0.0173
C87: A.2 | D87: Seguros, Garantias e Riscos | E87: ='BDI - Geral'!E9 -> 0.0054
C88: B | D88: Lucro | E88: ='BDI - Geral'!E11 -> 0.0267
C89: C | D89: Tributos | E89: =SUM(E90:E91) -> 0.169
C90: C.1 | D90: Tributos Federais (COFINS, PIS e CPRB) | E90: ='BDI - Geral'!E19 -> 0.119
C91: C.2 | D91: Tributos Distritais (ISS) | E91: ='BDI - Geral'!E24 -> 0.05 | H91: * Nota - Utilizou-se o indicado pelo Sindicato da Arquitetura e da Engenharia (Sinaenco, 2008, p. 22), que adota um percentual redutor de 20% no cálculo dos custos tributários relativos às contribuições PIS e COFINS
C92: D | D92: Despesas Financeiras | E92: ='BDI - Geral'!E14 -> 0.004367839439
D94: TOTAL DE BDI | E94: ='BDI - Geral'!E27 -> 0.2691 | F94: =ROUND(E94*E102,2) -> 1892.71
D96: QUADRO-RESUMO DO CUSTO MENSAL POR EMPREGADO - SEM O 13º | E96: Valor
D97: Módulo 1 - Composição da Remuneração | E97: =F16 -> 4442.25
D98: Módulo 2 - Encargos e Benefícios Anuais, Mensais e Diários | E98: =F45 -> 2312.87
D99: Módulo 3 - Provisão para Rescisão | E99: =F55 -> 159.48
D100: Módulo 4 - Custo de Reposição do Profissional Ausente | E100: =F73 -> 88.85
D101: Módulo 5 - Insumos Diversos | E101: =F82 -> 30.05
D102: SUBTOTAL (A+B+C+D+E) | E102: =SUM(E97:E101) -> 7033.5
D103: Módulo 6 - Custos Indiretos, Tributos e Lucro | E103: =F94 -> 1892.71
D105: TOTAL DO POSTO | E105: =SUM(E102:E103) -> 8926.21
B107: MÓDULO 7 - DESTAQUE DO MÓDULO 2 - 13º SALÁRIO | E107: Percentuais | F107: Valor
C108: A | D108: 13º Salário | E108: ='Encargos Sociais'!E32 -> 0.0833 | F108: =ROUND(E108*F$16,2) -> 370.04
C109: B | D109: Encargos Sociais sobre o 13º Salário - Taxa calculada no SUBMÓDULO 2.2 | E109: =SUM($E$24:$E$32) -> 0.178 | F109: =ROUND(E109*$F$108,2) -> 65.87 | H109: * Nota 1 - Provisiona-se, mensalmente, o proporcional a 1/12 dos valores referentes a gratificação natalina e adicional de férias.
C110: C | D110: BDI sobre o 13º Salário - Taxa calculada no MÓDULO 6 | E110: =E94 -> 0.2691 | F110: =ROUND(E110*($F$108+$F$109),2) -> 117.3
D112: TOTAL DO DESTAQUE DO 13º SALÁRIO | F112: =SUM(F108:F110) -> 553.21
D114: QUADRO-RESUMO DO CUSTO MENSAL POR EMPREGADO | E114: Valor
D115: Custo total - sem o 13º Salário | E115: =ROUND(E105,2) -> 8926.21
D116: Destaque do 13º Salário (valor mensal) | E116: =ROUND(F112,2) -> 553.21
D118: TOTAL DO POSTO | E118: =E115+E116 -> 9479.42

Sheet 20
B2: PLANILHA DE ESTIMATIVA DE CUSTOS
B3: Padrão IN 05/2017 e IN 07/2018 - MPDG
B5: 20 | D5: =HLOOKUP($B$5,'Dados Gerais'!$D$6:$BI$22,6) -> ELETRICISTA DE MANUTENÇÃO - PLANTONISTA NOTURNO | E5: QUANTIDADE | F5: =HLOOKUP($B$5,'Dados Gerais'!$D$6:$BI$22,10) -> 4
B6: CCT | D6: =HLOOKUP($B$5,'Dados Gerais'!$D$6:$BI$22,16) -> SINDUSCON/DF x STICOMBE/DF CCT 2024/2025 N.º DF000276/2024 | E6: DATA-BASE | F6: =HLOOKUP($B$5,'Dados Gerais'!$D$6:$BI$22,17) -> 2024-05-01
B8: MÓDULO 1 - COMPOSIÇÃO DA REMUNERAÇÃO | F8: Valor
C9: A | D9: Salário-Base | F9: =HLOOKUP($B$5,'Dados Gerais'!$D$6:$BI$22,8) -> 3240.37
C10: B | D10: Adicional de Periculosidade | F10: =HLOOKUP($B$5,'Dados Gerais'!$D$6:$BI$39,26) -> 972.11
C11: C | D11: Adicional de Insalubridade | F11: =HLOOKUP($B$5,'Dados Gerais'!$D$6:$BI$39,32) -> 0
C12: D | D12: Adicional Noturno | F12: =HLOOKUP($B$5,'Dados Gerais'!$D$6:$BI$52,47) -> 459.54 | H12: * Nota 1 - O Módulo 1 refere-se ao valor mensal devido ao empregado pela prestação do serviço no período de 12 meses.
C13: E | D13: Adicional de Hora Extra | F13: =HLOOKUP($B$5,'Dados Gerais'!$D$6:$BI$69,64) -> 229.77 | H13: * Nota 2 - O adicional de hora extra no feriado trabalhado foi suprimido pela Lei 13.467/17
C14: F | D14: Outros (adicional de sobreaviso) | F14: =HLOOKUP($B$5,'Dados Gerais'!$D$6:$BI$69,34) -> 0 | H14: * Nota 3 - ART. 7º, § 2º, DA LEI Nº 605/49.Sendo mensalista o obreiro, o adicional noturno pago de forma fixa já é considerado integrado para os efeitos do pagamento do repouso semanal remunerado, nos termos do art. 7º, § 2º, da Lei nº 605/49.
D16: TOTAL DA REMUNERAÇÃO | F16: =SUM(F9:F14) -> 4901.79
B18: MÓDULO 2 - ENCARGOS E BENEFÍCIOS ANUAIS, MENSAIS E DIÁRIOS | E18: Percentuais | F18: Valor
B19: Submódulo 2.1 - 13º Salário, Férias e Adicional de Férias
C20: A | D20: 13º Salário - Calculado no Módulo 7 - Destacado | E20: 0 | F20: =ROUND(E20*F$16,2) -> 0
C21: B | D21: Férias e Adicional de Férias | E21: ='Encargos Sociais'!E25+'Encargos Sociais'!E31 -> 0.1212 | F21: =ROUND(E21*F$16,2) -> 594.1 | H21: * Nota 1 - Provisiona-se, mensalmente, o proporcional a 1/12 dos valores referentes a gratificação natalina, férias e adicional de férias.
H22: * Nota 2 - O adicional de férias contido no Submódulo 2.1 corresponde a 1/3 da remuneração que, por sua vez, é dividida por 12 contome Nota 1.
B23: Submódulo 2.2 - Encargos Previdenciários (GPS), Fundo de Garantia por Tempo de Serviço (FGTS) e Outras Contribuições
C24: A | D24: INSS (art. 22, inciso I, Lei nº 8.212/91) | E24: ='Encargos Sociais'!E14 -> 0 | F24: =ROUND(E24*($F$16+$F$41+$F$73),2) -> 0
C25: B | D25: Salário Educação (art. 3º, inciso I, Decreto nº 87.043/82) | E25: ='Encargos Sociais'!E15 -> 0.025 | F25: =ROUND(E25*($F$16+$F$41+$F$73),2) -> 139.85
C26: C | D26: SAT/RAT (art. 22, II, Lei 8.212/91 e Anexo V, Decreto 6.042/07) - Enquadramento 8211-3/00 | E26: ='Encargos Sociais'!E16 -> 0.03 | F26: 167.82
C27: D | D27: SESC ou SESI (art. 30, Lei nº 8.036/90 e art. 1º, Lei 8.154/90) | E27: ='Encargos Sociais'!E17 -> 0.015 | F27: 83.91
C28: E | D28: SENAI ou SENAC (Decreto nº 2.318/86) | E28: ='Encargos Sociais'!E18 -> 0.01 | F28: 55.94
C29: F | D29: SEBRAE (§ 3º, art. 8º, Lei 8.029/90, alterada pela Lei nº 8.154/90) | E29: ='Encargos Sociais'!E19 -> 0.006 | F29: 33.56
C30: G | D30: INCRA (art. 1º, I, Decreto Lei 1.146/70 e Lei 7.787, de 30/06/89) | E30: ='Encargos Sociais'!E20 -> 0.002 | F30: 11.19 | H30: * Nota 1 - Os percentuais dos encargos previdenciários, do FGTS e demais contribuições são estabelecidos por legislação vigente.
C31: H | D31: FGTS (Lei Complementar nº 110/01 e art. 30, Lei nº 8.036/90) | E31: ='Encargos Sociais'!E21 -> 0.08 | F31: 447.51 | H31: * Nota 2 - O SAT, a depender do grau de risco do serviço, irá variar entre 1%, para risco leve, de 2%, para risco médio, e de 3% para risco grave.
C32: I | D32: SECONCI (Convenções Coletivas de Trabalho da construção) | E32: ='Encargos Sociais'!E22 -> 0.01 | F32: 55.94 | H32: * Nota 3 - Os percentuais do Submódulo 2.2 incidem sobre o Módulo 1 e o Submódulo 2.1.
B34: Submódulo 2.3 - Benefícios Mensais e Diários
C35: A | D35: Auxílio Transporte | F35: =HLOOKUP($B$5,'Dados Gerais'!$D$6:$BI$95,83) -> 333.13
C36: B | D36: Auxílio Alimentação | F36: =HLOOKUP($B$5,'Dados Gerais'!$D$6:$BI$95,90) -> 525
C37: C | D37: Assistência Médica e Familiar | F37: =HLOOKUP($B$5,'Dados Gerais'!$D$6:$BI$103,98) -> 0
C38: D | D38: Outros (Seguro de vida, auxílio funeral, auxílio odontológico e auxílio creche) | F38: =HLOOKUP($B$5,'Dados Gerais'!$D$6:$BI$121,115) -> 13.95 | H38: * Nota 1 - O valor informado deverá ser o custo real do benefício (descontado o valor eventualmente pago pelo empregado).
H39: * Nota 2 - Observar a previsão dos benefícios contidos em Acordos, Convenções e Dissídios Coletivos de Trabalho e o disposto no art. 6º da IN 5/2017
D40: QUADRO-RESUMO DO MÓDULO 2
D41: 2.1 - 13º Salário, Férias e Adicional de Férias - 13º Destacado - Calculado no Módulo 7 | E41: =SUM(E20:E21) -> 0.1212 | F41: =F20+F21 -> 594.1
D42: 2.2 - Encargos Previdenciários (GPS), Fundo de Garantia por Tempo de Serviço (FGTS) e Contribuições | E42: =SUM(E24:E32) -> 0.178 | F42: =SUM(F24:F32) -> 995.72
D43: 2.3 - Benefícios Mensais e Diários | F43: =SUM(F35:F38) -> 872.08
D45: TOTAL DOS ENCARGOS E BENEFÍCIOS | F45: =SUM(F41:F43) -> 2461.9
B47: MÓDULO 3 - PREVISÃO PARA RESCISÃO | E47: Percentuais | F47: Valor
C48: A | D48: Aviso Prévio Indenizado (Art. 7º, inciso XXI, da CF/1988 e arts. 477, 487, §1º, e 491 da CLT) | E48: ='Encargos Sociais'!E36 -> 0.005 | F48: =ROUND(E48*$F$16,2) -> 24.51
C49: B | D49: Incidência do FGTS sobre o Aviso Prévio Indenizado (Súmula 305 TST) | E49: ='Encargos Sociais'!E37 -> 0.0004 | F49: 1.96 | H49: * Nota 1 - Adotou-se os parâmetros do estudo do STF (http://www.stf.jus.br/arquivo/cms/sobrestfestudosci/anexo/encargos_sociais_03102007.pdf), onde 5% do pessoal é demitido pelo empregador no decurso do contrato (para estes, considerou-se o aviso prévio indenizado). Desprezou-se as demissões por justa causa e os pedidos de demissão.
C50: C | D50: Multa do FGTS e Contribuição Social sobre o Aviso Prévio Indenizado (Art. 18, §1º, da Lei 8.036/1990 e art. 1º da LC nº 110/2001) | E50: ='Encargos Sociais'!E38 -> 0.0019 | F50: 9.31 | H50: * Nota 2 - No cálculo do percentual, considerou-se 36 dias, correspondendo à metade da duração média dos contratos (2 anos)
C51: D | D51: Aviso Prévio Trabalhado (Art. 488, parágrafo único, CLT) | E51: ='Encargos Sociais'!E39 -> 0.012 | F51: 58.82 | H51: * Nota 3 - Incide sobre a Remuneração + 13º salário (1/12) + Férias (1/12) + Adicional de Férias (1/36) x 50% multa (40% para o empregado e 10% de contribuição social) x 8% FGTS
C52: E | D52: Incidência de GPS, FGTS e outras contribuições sobre o Aviso Prévio Trabalhado | E52: ='Encargos Sociais'!E40 -> 0.0021 | F52: 10.29 | H52: * Nota 4 - Os 95% restantes do cálculo, a um prazo médio de contrato de 4 anos. Assim, calcula-se 7 dias para o 1º ano de contrato e mais 3 dias para os 3 anos seguintes.
C53: F | D53: Multa do FGTS e Contribuição Social sobre o Aviso Prévio Trabalhado | E53: ='Encargos Sociais'!E41 -> 0.0145 | F53: 71.08
D55: TOTAL DE PREVISÃO PARA RESCISÃO | F55: =SUM(F48:F53) -> 175.97
B57: MÓDULO 4 - CUSTO DO PROFISSIONAL AUSENTE | E57: Percentuais | F57: Valor
B58: Submódulo 4.1 - Ausências Legais
C59: A | D59: Férias (Arts. 129 e 130, inc. I, da CLT) - Calculado no Submódulo 2.1 | E59: 0 | F59: =ROUND(E59*$F$16,2) -> 0 | H59: * Nota 1 - As alíneas “A” a “F” referem-se somente ao custo que será pago ao repositor pelos dias trabalhados quando da necessidade de substituir a mão de obra alocada na prestação do serviço.
C60: B | D60: Ausências Legais (Arts. 131 e 473 da CLT) | E60: ='Encargos Sociais'!E26 -> 0.0079 | F60: 38.72 | H60: * Nota 2 - Adotou-se a estimativa do SINAPI de 2 dias por ano.
C61: C | D61: Licença-Paternidade (Art. 7º, XIX, e art. 10, §1º, do ADCT, CF/1988 e Art. 1º, II, da Lei 11.770/2008) | E61: ='Encargos Sociais'!E27 -> 0.0008 | F61: 3.92 | H61: * Nota 3 - Utilizada a proporção de 50% para homens, 5 dias de afastamento, e a probabilidade de um trabalhador requerer a Licença Paternidade em 5,22%, conforme SINAPI (citando dados da PNAD 2015)
C62: D | D62: Ausência por Acidente de Trabalho (Art. 131, III, da CLT) | E62: ='Encargos Sociais'!E28 -> 0.0009 | F62: 4.41 | H62: * Nota 4 - Utilzada a estatística de 1,96% dos contribuintes beneficiados com a emissão do auxílio, conforme Anuário Estatístico da Previdência Social. Afastamento de 15 dias a cargo da empresa.
C63: E | D63: Afastamento Maternidade (Art. 71 da Lei nº 8.213/1991) | E63: ='Encargos Sociais'!E29 -> 0.0033 | F63: 16.18 | H63: * Nota 5 - Utilizada a proporção de 50% para mulheres, 180 dias de afastamento, e a probabilidade de uma trabalhadora requerer a Licença Maternidade em 4,91%, conforme SINAPI (citando dados do IBGE 2016)
C64: F | D64: Auxílio Enfermidade - Doença (Art. 59 da Lei nº 8.213/1991) | E64: ='Encargos Sociais'!E30 -> 0.0071 | F64: 34.8 | H64: * Nota 6 - Utilizada a estatística de 3,37% dos contribuintes beneficiados com o auxílio, conforme Anuário Estatístico da Previdência Social de 2015 (acrescidos de 2 dias ao ano, para os quais o trabalhador nem requer o benefício da Previdência - conforme SINAPI)
B66: Submódulo 4.2 - Intrajornada
C67: A | D67: Intervalo para repouso ou alimentação | E67: ='Encargos Sociais'!E33 -> 0 | F67: =ROUND(E67*$F$16,2) -> 0
D69: QUADRO-RESUMO DO MÓDULO 4 | F69: Valor
D70: 4.1 - Ausências Legais | E70: =SUM(E59:E64) -> 0.02 | F70: =ROUND(E70*$F$16,2) -> 98.04
D71: 4.2 - Intrajornada | E71: =E67 -> 0 | F71: =ROUND(E71*$F$16,2) -> 0
D73: TOTAL DE PREVISÃO PARA RESCISÃO E INTERVALO INTRAJORNADA | F73: =SUM(F70:F71) -> 98.04
B75: MÓDULO 5 - INSUMOS DIVERSOS | F75: Valor
C76: A | D76: Uniformes - aquisição | F76: 0
C77: B | D77: Materiais de consumo relacionados ao posto - aquisição | F77: =ROUND(HLOOKUP(B5,'Mat Cons'!I11:DX13,3)/12,2) -> 0
C78: C | D78: Ferramentas relacionadas ao posto - remuneração da sua depreciação / manutenção | F78: =HLOOKUP(B5,'Relacion - Ferram'!Q3:EF5,3) -> 30.05
C79: D | D79: Equipamentos relacionados ao posto - remuneração da sua depreciação / manutenção | F79: =HLOOKUP(B5,'Equip Rel'!Q11:EF13,3) -> 0
C80: E | D80: Equipamentos de Proteção Individual - EPI - aquisição | F80: =ROUND(HLOOKUP(B5,EPI!I4:X6,3)/12,2) -> 0
D82: TOTAL DE INSUMOS DIVERSOS | F82: =SUM(F76:F81) -> 30.05 | H82: * Nota - Valores mensais por empregado
B84: MÓDULO 6 - CUSTOS INDIRETOS, TRIBUTOS E LUCRO - BDI | E84: Percentuais | F84: Valor
C85: A | D85: Custos Indiretos | E85: ='BDI - Geral'!E7 -> 0.0227
C86: A.1 | D86: Administração Central | E86: ='BDI - Geral'!E8 -> 0.0173
C87: A.2 | D87: Seguros, Garantias e Riscos | E87: ='BDI - Geral'!E9 -> 0.0054
C88: B | D88: Lucro | E88: ='BDI - Geral'!E11 -> 0.0267
C89: C | D89: Tributos | E89: =SUM(E90:E91) -> 0.169
C90: C.1 | D90: Tributos Federais (COFINS, PIS e CPRB) | E90: ='BDI - Geral'!E19 -> 0.119
C91: C.2 | D91: Tributos Distritais (ISS) | E91: ='BDI - Geral'!E24 -> 0.05 | H91: * Nota - Utilizou-se o indicado pelo Sindicato da Arquitetura e da Engenharia (Sinaenco, 2008, p. 22), que adota um percentual redutor de 20% no cálculo dos custos tributários relativos às contribuições PIS e COFINS
C92: D | D92: Despesas Financeiras | E92: ='BDI - Geral'!E14 -> 0.004367839439
D94: TOTAL DE BDI | E94: ='BDI - Geral'!E27 -> 0.2691 | F94: =ROUND(E94*E102,2) -> 2063.39
D96: QUADRO-RESUMO DO CUSTO MENSAL POR EMPREGADO - SEM O 13º | E96: Valor
D97: Módulo 1 - Composição da Remuneração | E97: =F16 -> 4901.79
D98: Módulo 2 - Encargos e Benefícios Anuais, Mensais e Diários | E98: =F45 -> 2461.9
D99: Módulo 3 - Provisão para Rescisão | E99: =F55 -> 175.97
D100: Módulo 4 - Custo de Reposição do Profissional Ausente | E100: =F73 -> 98.04
D101: Módulo 5 - Insumos Diversos | E101: =F82 -> 30.05
D102: SUBTOTAL (A+B+C+D+E) | E102: =SUM(E97:E101) -> 7667.75
D103: Módulo 6 - Custos Indiretos, Tributos e Lucro | E103: =F94 -> 2063.39
D105: TOTAL DO POSTO | E105: =SUM(E102:E103) -> 9731.14
B107: MÓDULO 7 - DESTAQUE DO MÓDULO 2 - 13º SALÁRIO | E107: Percentuais | F107: Valor
C108: A | D108: 13º Salário | E108: ='Encargos Sociais'!E32 -> 0.0833 | F108: =ROUND(E108*F$16,2) -> 408.32
C109: B | D109: Encargos Sociais sobre o 13º Salário - Taxa calculada no SUBMÓDULO 2.2 | E109: =SUM($E$24:$E$32) -> 0.178 | F109: =ROUND(E109*$F$108,2) -> 72.68 | H109: * Nota 1 - Provisiona-se, mensalmente, o proporcional a 1/12 dos valores referentes a gratificação natalina e adicional de férias.
C110: C | D110: BDI sobre o 13º Salário - Taxa calculada no MÓDULO 6 | E110: =E94 -> 0.2691 | F110: =ROUND(E110*($F$108+$F$109),2) -> 129.44
D112: TOTAL DO DESTAQUE DO 13º SALÁRIO | F112: =SUM(F108:F110) -> 610.44
D114: QUADRO-RESUMO DO CUSTO MENSAL POR EMPREGADO | E114: Valor
D115: Custo total - sem o 13º Salário | E115: =ROUND(E105,2) -> 9731.14
D116: Destaque do 13º Salário (valor mensal) | E116: =ROUND(F112,2) -> 610.44
D118: TOTAL DO POSTO | E118: =E115+E116 -> 10341.58

Sheet 21 (hidden)
B2: PLANILHA DE ESTIMATIVA DE CUSTOS
B3: Padrão IN 05/2017 e IN 07/2018 - MPDG
B5: 21 | D5: =HLOOKUP($B$5,'Dados Gerais'!$D$6:$BI$22,6) -> 0 | E5: QUANTIDADE | F5: =HLOOKUP($B$5,'Dados Gerais'!$D$6:$BI$22,10) -> 0
B6: CCT | D6: =HLOOKUP($B$5,'Dados Gerais'!$D$6:$BI$22,16) -> 0 | E6: DATA-BASE | F6: =HLOOKUP($B$5,'Dados Gerais'!$D$6:$BI$22,17) -> 00:00:00
B8: MÓDULO 1 - COMPOSIÇÃO DA REMUNERAÇÃO | F8: Valor
C9: A | D9: Salário-Base | F9: =HLOOKUP($B$5,'Dados Gerais'!$D$6:$BI$22,8) -> 0
C10: B | D10: Adicional de Periculosidade | F10: =HLOOKUP($B$5,'Dados Gerais'!$D$6:$BI$39,26) -> 0
C11: C | D11: Adicional de Insalubridade | F11: =HLOOKUP($B$5,'Dados Gerais'!$D$6:$BI$39,32) -> 0
C12: D | D12: Adicional Noturno | F12: =HLOOKUP($B$5,'Dados Gerais'!$D$6:$BI$52,47) -> 0 | H12: * Nota 1 - O Módulo 1 refere-se ao valor mensal devido ao empregado pela prestação do serviço no período de 12 meses.
C13: E | D13: Adicional de Hora Extra | F13: =HLOOKUP($B$5,'Dados Gerais'!$D$6:$BI$69,64) -> 0 | H13: * Nota 2 - O adicional de hora extra no feriado trabalhado foi suprimido pela Lei 13.467/17
C14: F | D14: Outros (especificar) | F14: 0 | H14: * Nota 3 - ART. 7º, § 2º, DA LEI Nº 605/49.Sendo mensalista o obreiro, o adicional noturno pago de forma fixa já é considerado integrado para os efeitos do pagamento do repouso semanal remunerado, nos termos do art. 7º, § 2º, da Lei nº 605/49.
D16: TOTAL DA REMUNERAÇÃO | F16: =SUM(F9:F14) -> 0
B18: MÓDULO 2 - ENCARGOS E BENEFÍCIOS ANUAIS, MENSAIS E DIÁRIOS | E18: Percentuais | F18: Valor
B19: Submódulo 2.1 - 13º Salário, Férias e Adicional de Férias
C20: A | D20: 13º Salário - Calculado no Módulo 7 - Destacado | E20: 0 | F20: =ROUND(E20*F$16,2) -> 0
C21: B | D21: Férias e Adicional de Férias | E21: ='Encargos Sociais'!E25+'Encargos Sociais'!E31 -> 0.1212 | F21: =ROUND(E21*F$16,2) -> 0 | H21: * Nota 1 - Provisiona-se, mensalmente, o proporcional a 1/12 dos valores referentes a gratificação natalina, férias e adicional de férias.
H22: * Nota 2 - O adicional de férias contido no Submódulo 2.1 corresponde a 1/3 da remuneração que, por sua vez, é dividida por 12 contome Nota 1.
B23: Submódulo 2.2 - Encargos Previdenciários (GPS), Fundo de Garantia por Tempo de Serviço (FGTS) e Outras Contribuições
C24: A | D24: INSS (art. 22, inciso I, Lei nº 8.212/91) | E24: ='Encargos Sociais'!E14 -> 0 | F24: =ROUND(E24*($F$16+$F$41+$F$73),2) -> 0
C25: B | D25: Salário Educação (art. 3º, inciso I, Decreto nº 87.043/82) | E25: ='Encargos Sociais'!E15 -> 0.025 | F25: =ROUND(E25*($F$16+$F$41+$F$73),2) -> 0
C26: C | D26: SAT/RAT (art. 22, II, Lei 8.212/91 e Anexo V, Decreto 6.042/07) - Enquadramento 8211-3/00 | E26: ='Encargos Sociais'!E16 -> 0.03 | F26: 0
C27: D | D27: SESC ou SESI (art. 30, Lei nº 8.036/90 e art. 1º, Lei 8.154/90) | E27: ='Encargos Sociais'!E17 -> 0.015 | F27: 0
C28: E | D28: SENAI ou SENAC (Decreto nº 2.318/86) | E28: ='Encargos Sociais'!E18 -> 0.01 | F28: 0
C29: F | D29: SEBRAE (§ 3º, art. 8º, Lei 8.029/90, alterada pela Lei nº 8.154/90) | E29: ='Encargos Sociais'!E19 -> 0.006 | F29: 0
C30: G | D30: INCRA (art. 1º, I, Decreto Lei 1.146/70 e Lei 7.787, de 30/06/89) | E30: ='Encargos Sociais'!E20 -> 0.002 | F30: 0 | H30: * Nota 1 - Os percentuais dos encargos previdenciários, do FGTS e demais contribuições são estabelecidos por legislação vigente.
C31: H | D31: FGTS (Lei Complementar nº 110/01 e art. 30, Lei nº 8.036/90) | E31: ='Encargos Sociais'!E21 -> 0.08 | F31: 0 | H31: * Nota 2 - O SAT, a depender do grau de risco do serviço, irá variar entre 1%, para risco leve, de 2%, para risco médio, e de 3% para risco grave.
C32: I | D32: SECONCI (Convenções Coletivas de Trabalho da construção) | E32: ='Encargos Sociais'!E22 -> 0.01 | F32: 0 | H32: * Nota 3 - Os percentuais do Submódulo 2.2 incidem sobre o Módulo 1 e o Submódulo 2.1.
B34: Submódulo 2.3 - Benefícios Mensais e Diários
C35: A | D35: Auxílio Transporte | F35: =HLOOKUP($B$5,'Dados Gerais'!$D$6:$BI$95,83) -> 0
C36: B | D36: Auxílio Alimentação | F36: =HLOOKUP($B$5,'Dados Gerais'!$D$6:$BI$95,90) -> 0
C37: C | D37: Assistência Médica e Familiar | F37: =HLOOKUP($B$5,'Dados Gerais'!$D$6:$BI$103,98) -> 0
C38: D | D38: Outros (Seguro de vida, auxílio funeral, auxílio odontológico e auxílio creche) | F38: =HLOOKUP($B$5,'Dados Gerais'!$D$6:$BI$121,115) -> 0 | H38: * Nota 1 - O valor informado deverá ser o custo real do benefício (descontado o valor eventualmente pago pelo empregado).
H39: * Nota 2 - Observar a previsão dos benefícios contidos em Acordos, Convenções e Dissídios Coletivos de Trabalho e o disposto no art. 6º da IN 5/2017
D40: QUADRO-RESUMO DO MÓDULO 2
D41: 2.1 - 13º Salário, Férias e Adicional de Férias - 13º Destacado - Calculado no Módulo 7 | E41: =SUM(E20:E21) -> 0.1212 | F41: =F20+F21 -> 0
D42: 2.2 - Encargos Previdenciários (GPS), Fundo de Garantia por Tempo de Serviço (FGTS) e Contribuições | E42: =SUM(E24:E32) -> 0.178 | F42: =SUM(F24:F32) -> 0
D43: 2.3 - Benefícios Mensais e Diários | F43: =SUM(F35:F38) -> 0
D45: TOTAL DOS ENCARGOS E BENEFÍCIOS | F45: =SUM(F41:F43) -> 0
B47: MÓDULO 3 - PREVISÃO PARA RESCISÃO | E47: Percentuais | F47: Valor
C48: A | D48: Aviso Prévio Indenizado (Art. 7º, inciso XXI, da CF/1988 e arts. 477, 487, §1º, e 491 da CLT) | E48: ='Encargos Sociais'!E36 -> 0.005 | F48: =ROUND(E48*$F$16,2) -> 0
C49: B | D49: Incidência do FGTS sobre o Aviso Prévio Indenizado (Súmula 305 TST) | E49: ='Encargos Sociais'!E37 -> 0.0004 | F49: 0 | H49: * Nota 1 - Adotou-se os parâmetros do estudo do STF (http://www.stf.jus.br/arquivo/cms/sobrestfestudosci/anexo/encargos_sociais_03102007.pdf), onde 5% do pessoal é demitido pelo empregador no decurso do contrato (para estes, considerou-se o aviso prévio indenizado). Desprezou-se as demissões por justa causa e os pedidos de demissão.
C50: C | D50: Multa do FGTS e Contribuição Social sobre o Aviso Prévio Indenizado (Art. 18, §1º, da Lei 8.036/1990 e art. 1º da LC nº 110/2001) | E50: ='Encargos Sociais'!E38 -> 0.0019 | F50: 0 | H50: * Nota 2 - No cálculo do percentual, considerou-se 36 dias, correspondendo à metade da duração média dos contratos (2 anos)
C51: D | D51: Aviso Prévio Trabalhado (Art. 488, parágrafo único, CLT) | E51: ='Encargos Sociais'!E39 -> 0.012 | F51: 0 | H51: * Nota 3 - Incide sobre a Remuneração + 13º salário (1/12) + Férias (1/12) + Adicional de Férias (1/36) x 50% multa (40% para o empregado e 10% de contribuição social) x 8% FGTS
C52: E | D52: Incidência de GPS, FGTS e outras contribuições sobre o Aviso Prévio Trabalhado | E52: ='Encargos Sociais'!E40 -> 0.0021 | F52: 0 | H52: * Nota 4 - Os 95% restantes do cálculo, a um prazo médio de contrato de 4 anos. Assim, calcula-se 7 dias para o 1º ano de contrato e mais 3 dias para os 3 anos seguintes.
C53: F | D53: Multa do FGTS e Contribuição Social sobre o Aviso Prévio Trabalhado | E53: ='Encargos Sociais'!E41 -> 0.0145 | F53: 0
D55: TOTAL DE PREVISÃO PARA RESCISÃO | F55: =SUM(F48:F53) -> 0
B57: MÓDULO 4 - CUSTO DO PROFISSIONAL AUSENTE | E57: Percentuais | F57: Valor
B58: Submódulo 4.1 - Ausências Legais
